Workbook

Sheet Disclaimer
A1: Introduction and Disclaimer

Sheet Inputs
B2: Inputs and Assumptions
B3: Starting Account Balance | C3: 500000
... 4 more rows

Sheet Comparison
B2: Ranking of solutions according to the MDUF v1: | M2: Expected Utility | O2: Risk-Adj Income | Q2: Risk-Adj Residual Benefit | R2: MDUF Score | S2: Welfare Gain
A3: 1 | B3: =INDEX($AC$3:$AC$7,MATCH(A3,$AF$3:$AF$7,0)) -> 1 | C3: =INDEX($AA$3:$AA$7,MATCH(A3,$AF$3:$AF$7,0)) -> Case 4 - Target constant income stream with 50% in LA and 50% in ABP | M3: =INDEX($AB$3:$AB$7,MATCH(A3,$AF$3:$AF$7,0)) -> -3.587012558e-32 | O3: =INDEX($AI$3:$AI$7,MATCH(A3,$AF$3:$AF$7,0)) -> 37043.59632 | Q3: =INDEX($AJ$3:$AJ$7,MATCH(A3,$AF$3:$AF$7,0)) -> 184062.5552 | R3: =(M3/( SUMPRODUCT('Case 1 - Utility'!$E$3:$E$48,'Case 1 - Utility'!$G$3:$G$48)+SUMPRODUCT('Case 1 - Utility'!$F$3:$F$48,'Case 1 - Utility'!$G$3:$G$48)*Inputs!$C$15/(1-Inputs!$C$15))*(1-Inputs!$C$14))^(1/(1-Inputs!$C$14)) -> 37166.66003 | S3: =(R3-$AL$4) * (Inputs!$C$15/(1-Inputs!$C$15)* SUMPRODUCT('Case 1 - Utility'!$F$3:$F$48,'Case 1 - Utility'!$G$3:$G$48) + SUMPRODUCT('Case 1 - Utility'!$E$3:$E$48,'Case 1 - Utility'!$G$3:$G$48)) -> 574327.5425 | Z3: 1 | AA3: =B10 -> Case 1 - 100% life annuity | AB3: ='Case 1 - Utility'!$J$5 -> -7.117362122e-24 | AC3: =RANK(AE3,$AE$3:$AE$7) -> 5 | AD3: =COUNTIF($AE$3:$AE$7,AE3) -> 1 | AE3: =ROUND(AB3,34) -> -7.117362122e-24 | AF3: =RANK(AE3,$AE$3:$AE$7)+AG3 -> 5 | AG3: =COUNTIF($AE$3:AE3,AE3)-1 -> 0 | AH3: =SUM('Case 1 - Summary'!$H$3:$H$48) -> 998855.0346 | AI3: ='Case 1 - Utility'!$K$3 -> 42676.42053 | AJ3: ='Case 1 - Utility'!$K$4 -> 9399.138258 | AL3: =(AB3/( SUMPRODUCT('Case 1 - Utility'!$E$3:$E$48,'Case 1 - Utility'!$G$3:$G$48)+SUMPRODUCT('Case 1 - Utility'!$F$3:$F$48,'Case 1 - Utility'!$G$3:$G$48)*Inputs!$C$15/(1-Inputs!$C$15))*(1-Inputs!$C$14))^(1/(1-Inputs!$C$14)) -> 2425.403963
... 1 more rows

Sheet Case 1 - Summary
A1: Summary
A2: Year | B2: Age | C2: Annuity Income | D2: Residual Benefit | E2: Deduction Amount | F2: Deduction Amount x Term Elapsed | G2: Total Asset | H2: Age Pension | I2: Drawdown | J2: Income
A3: 0 | B3: =A3+Inputs!$C$4 -> 65 | C3: =VLOOKUP(Inputs!$C$4,'Annuity Price'!$A$13:$C$28,IF(Inputs!$C$5="Male",2,3))/100000 * Inputs!$C$3 -> 28300 | D3: 0 | E3: =Inputs!$C$3/IF(Inputs!$C$5="Male",'Life Tables'!$F$4,'Life Tables'!$G$4) -> 26020.00986 | F3: =E3*A3 -> 0 | G3: =MAX(Inputs!$C$3-F3,0) -> 500000 | H3: =MAX(MIN(MAX(Full_AP-Income_Test_Taper*MAX(MAX(C3-E3,0)*AP_Factor-Income_Test_Threshold,0),0),MAX(Full_AP-Asset_Test_Taper*MAX(G3*AP_Factor-Asset_Test_Threshold,0),0))/AP_Factor,0.01) -> 4986.8 | I3: 0 | J3: =C3+H3 -> 33286.8
... 4 more rows

Sheet Case 1 - Utility
A1: Utility
A2: Year | B2: Age | C2: Utility from income | D2: Utility from residual benefit | E2: Survival Prob | F2: Death Prob | G2: Risk-free Discount | J2: Expected Utility | K2: Risk-adj Measure
A3: 0 | B3: =A3+Inputs!$C$4 -> 65 | C3: =MAX('Case 1 - Summary'!H3,'Case 1 - Summary'!J3)^(1-Inputs!$C$14)/(1-Inputs!$C$14) * Inputs!$C$16^$A3 -> -3.154987433e-33 | D3: =IF(Inputs!$C$15=0,0,MAX('Case 1 - Summary'!H3,'Case 1 - Summary'!D3)^(1-Inputs!$C$14)/(1-Inputs!$C$14)*(Inputs!$C$15/(1-Inputs!$C$15))^Inputs!$C$14 * Inputs!$C$16^$A3) -> -6.014252707e-22 | E3: =VLOOKUP(B3,'Life Tables'!$A$5:$E$155,IF(Inputs!$C$5="Male",3,5),FALSE) -> 1 | F3: =E3-E4 -> 0.010505 | G3: =(1 + Inputs!$C$8)^(-$A3) -> 1 | I3: Income | J3: =SUMPRODUCT(C3:C48,E3:E48) -> -1.092457213e-32 | K3: =(J3/(SUMPRODUCT('Case 1 - Utility'!$E$3:$E$48,'Case 1 - Utility'!$G$3:$G$48))*(1-Inputs!$C$14))^(1/(1-Inputs!$C$14)) -> 42676.42053
... 4 more rows

Sheet Case 2 - Summary
A1: Summary
C2: Income | F2: Residual Benefit | I2: Annuity Income | J2: Age Pension | M2: Drawdown
A3: Year | B3: Age | C3: Lower Bound | D3: Mean | E3: Upper Bound | F3: Lower Bound | G3: Mean | H3: Upper Bound | J3: Lower Bound | K3: Mean | L3: Upper Bound | M3: Lower Bound | N3: Mean | O3: Upper Bound
... 4 more rows

Sheet Case 2 - Residual Benefit (hidden)
A1: Residual Account
A2: Year | B2: 1 | C2: 2 | D2: 3 | E2: 4 | F2: 5 | G2: 6 | H2: 7 | I2: 8 | J2: 9 | K2: 10 | L2: 11 | M2: 12 | N2: 13 | O2: 14 | P2: 15 | Q2: 16 | R2: 17 | S2: 18 | T2: 19 | U2: 20 | V2: 21 | W2: 22 | X2: 23 | Y2: 24 | Z2: 25 | AA2: 26 | AB2: 27 | AC2: 28 | AD2: 29 | AE2: 30 | AF2: 31 | AG2: 32 | AH2: 33 | AI2: 34 | AJ2: 35 | AK2: 36 | AL2: 37 | AM2: 38 | AN2: 39 | AO2: 40 | AP2: 41 | AQ2: 42 | AR2: 43 | AS2: 44 | AT2: 45 | AU2: 46 | AV2: 47 | AW2: 48 | AX2: 49 | AY2: 50 | AZ2: 51 | BA2: 52 | BB2: 53 | BC2: 54 | BD2: 55 | BE2: 56 | BF2: 57 | BG2: 58 | BH2: 59 | BI2: 60 | BJ2: 61 | BK2: 62 | BL2: 63 | BM2: 64 | BN2: 65 | BO2: 66 | BP2: 67 | BQ2: 68 | BR2: 69 | BS2: 70 | BT2: 71 | BU2: 72 | BV2: 73 | BW2: 74 | BX2: 75 | BY2: 76 | BZ2: 77 | CA2: 78 | CB2: 79 | CC2: 80 | CD2: 81 | CE2: 82 | CF2: 83 | CG2: 84 | CH2: 85 | CI2: 86 | CJ2: 87 | CK2: 88 | CL2: 89 | CM2: 90 | CN2: 91 | CO2: 92 | CP2: 93 | CQ2: 94 | CR2: 95 | CS2: 96 | CT2: 97 | CU2: 98 | CV2: 99 | CW2: 100 | CX2: 101 | CY2: 102 | CZ2: 103 | DA2: 104 | DB2: 105 | DC2: 106 | DD2: 107 | DE2: 108 | DF2: 109 | DG2: 110 | DH2: 111 | DI2: 112 | DJ2: 113 | DK2: 114 | DL2: 115 | DM2: 116 | DN2: 117 | DO2: 118 | DP2: 119 | DQ2: 120 | DR2: 121 | DS2: 122 | DT2: 123 | DU2: 124 | DV2: 125 | DW2: 126 | DX2: 127 | DY2: 128 | DZ2: 129 | EA2: 130 | EB2: 131 | EC2: 132 | ED2: 133 | EE2: 134 | EF2: 135 | EG2: 136 | EH2: 137 | EI2: 138 | EJ2: 139 | EK2: 140 | EL2: 141 | EM2: 142 | EN2: 143 | EO2: 144 | EP2: 145 | EQ2: 146 | ER2: 147 | ES2: 148 | ET2: 149 | EU2: 150 | EV2: 151 | EW2: 152 | EX2: 153 | EY2: 154 | EZ2: 155 | FA2: 156 | FB2: 157 | FC2: 158 | FD2: 159 | FE2: 160 | FF2: 161 | FG2: 162 | FH2: 163 | FI2: 164 | FJ2: 165 | FK2: 166 | FL2: 167 | FM2: 168 | FN2: 169 | FO2: 170 | FP2: 171 | FQ2: 172 | FR2: 173 | FS2: 174 | FT2: 175 | FU2: 176 | FV2: 177 | FW2: 178 | FX2: 179 | FY2: 180 | FZ2: 181 | GA2: 182 | GB2: 183 | GC2: 184 | GD2: 185 | GE2: 186 | GF2: 187 | GG2: 188 | GH2: 189 | GI2: 190 | GJ2: 191 | GK2: 192 | GL2: 193 | GM2: 194 | GN2: 195 | GO2: 196 | GP2: 197 | GQ2: 198 | GR2: 199 | GS2: 200 | GT2: 201 | GU2: 202 | GV2: 203 | GW2: 204 | GX2: 205 | GY2: 206 | GZ2: 207 | HA2: 208 | HB2: 209 | HC2: 210 | HD2: 211 | HE2: 212 | HF2: 213 | HG2: 214 | HH2: 215 | HI2: 216 | HJ2: 217 | HK2: 218 | HL2: 219 | HM2: 220 | HN2: 221 | HO2: 222 | HP2: 223 | HQ2: 224 | HR2: 225 | HS2: 226 | HT2: 227 | HU2: 228 | HV2: 229 | HW2: 230 | HX2: 231 | HY2: 232 | HZ2: 233 | IA2: 234 | IB2: 235 | IC2: 236 | ID2: 237 | IE2: 238 | IF2: 239 | IG2: 240 | IH2: 241 | II2: 242 | IJ2: 243 | IK2: 244 | IL2: 245 | IM2: 246 | IN2: 247 | IO2: 248 | IP2: 249 | IQ2: 250 | IR2: 251 | IS2: 252 | IT2: 253 | IU2: 254 | IV2: 255 | IW2: 256 | IX2: 257 | IY2: 258 | IZ2: 259 | JA2: 260 | JB2: 261 | JC2: 262 | JD2: 263 | JE2: 264 | JF2: 265 | JG2: 266 | JH2: 267 | JI2: 268 | JJ2: 269 | JK2: 270 | JL2: 271 | JM2: 272 | JN2: 273 | JO2: 274 | JP2: 275 | JQ2: 276 | JR2: 277 | JS2: 278 | JT2: 279 | JU2: 280 | JV2: 281 | JW2: 282 | JX2: 283 | JY2: 284 | JZ2: 285 | KA2: 286 | KB2: 287 | KC2: 288 | KD2: 289 | KE2: 290 | KF2: 291 | KG2: 292 | KH2: 293 | KI2: 294 | KJ2: 295 | KK2: 296 | KL2: 297 | KM2: 298 | KN2: 299 | KO2: 300 | KP2: 301 | KQ2: 302 | KR2: 303 | KS2: 304 | KT2: 305 | KU2: 306 | KV2: 307 | KW2: 308 | KX2: 309 | KY2: 310 | KZ2: 311 | LA2: 312 | LB2: 313 | LC2: 314 | LD2: 315 | LE2: 316 | LF2: 317 | LG2: 318 | LH2: 319 | LI2: 320 | LJ2: 321 | LK2: 322 | LL2: 323 | LM2: 324 | LN2: 325 | LO2: 326 | LP2: 327 | LQ2: 328 | LR2: 329 | LS2: 330 | LT2: 331 | LU2: 332 | LV2: 333 | LW2: 334 | LX2: 335 | LY2: 336 | LZ2: 337 | MA2: 338 | MB2: 339 | MC2: 340 | MD2: 341 | ME2: 342 | MF2: 343 | MG2: 344 | MH2: 345 | MI2: 346 | MJ2: 347 | MK2: 348 | ML2: 349 | MM2: 350 | MN2: 351 | MO2: 352 | MP2: 353 | MQ2: 354 | MR2: 355 | MS2: 356 | MT2: 357 | MU2: 358 | MV2: 359 | MW2: 360 | MX2: 361 | MY2: 362 | MZ2: 363 | NA2: 364 | NB2: 365 | NC2: 366 | ND2: 367 | NE2: 368 | NF2: 369 | NG2: 370 | NH2: 371 | NI2: 372 | NJ2: 373 | NK2: 374 | NL2: 375 | NM2: 376 | NN2: 377 | NO2: 378 | NP2: 379 | NQ2: 380 | NR2: 381 | NS2: 382 | NT2: 383 | NU2: 384 | NV2: 385 | NW2: 386 | NX2: 387 | NY2: 388 | NZ2: 389 | OA2: 390 | OB2: 391 | OC2: 392 | OD2: 393 | OE2: 394 | OF2: 395 | OG2: 396 | OH2: 397 | OI2: 398 | OJ2: 399 | OK2: 400 | OL2: 401 | OM2: 402 | ON2: 403 | OO2: 404 | OP2: 405 | OQ2: 406 | OR2: 407 | OS2: 408 | OT2: 409 | OU2: 410 | OV2: 411 | OW2: 412 | OX2: 413 | OY2: 414 | OZ2: 415 | PA2: 416 | PB2: 417 | PC2: 418 | PD2: 419 | PE2: 420 | PF2: 421 | PG2: 422 | PH2: 423 | PI2: 424 | PJ2: 425 | PK2: 426 | PL2: 427 | PM2: 428 | PN2: 429 | PO2: 430 | PP2: 431 | PQ2: 432 | PR2: 433 | PS2: 434 | PT2: 435 | PU2: 436 | PV2: 437 | PW2: 438 | PX2: 439 | PY2: 440 | PZ2: 441 | QA2: 442 | QB2: 443 | QC2: 444 | QD2: 445 | QE2: 446 | QF2: 447 | QG2: 448 | QH2: 449 | QI2: 450 | QJ2: 451 | QK2: 452 | QL2: 453 | QM2: 454 | QN2: 455 | QO2: 456 | QP2: 457 | QQ2: 458 | QR2: 459 | QS2: 460 | QT2: 461 | QU2: 462 | QV2: 463 | QW2: 464 | QX2: 465 | QY2: 466 | QZ2: 467 | RA2: 468 | RB2: 469 | RC2: 470 | RD2: 471 | RE2: 472 | RF2: 473 | RG2: 474 | RH2: 475 | RI2: 476 | RJ2: 477 | RK2: 478 | RL2: 479 | RM2: 480 | RN2: 481 | RO2: 482 | RP2: 483 | RQ2: 484 | RR2: 485 | RS2: 486 | RT2: 487 | RU2: 488 | RV2: 489 | RW2: 490 | RX2: 491 | RY2: 492 | RZ2: 493 | SA2: 494 | SB2: 495 | SC2: 496 | SD2: 497 | SE2: 498 | SF2: 499 | SG2: 500
A3: 0 | B3: =Inputs!$C$3 -> 500000 | C3: =Inputs!$C$3 -> 500000 | D3: =Inputs!$C$3 -> 500000 | E3: =Inputs!$C$3 -> 500000 | F3: =Inputs!$C$3 -> 500000 | G3: =Inputs!$C$3 -> 500000 | H3: =Inputs!$C$3 -> 500000 | I3: =Inputs!$C$3 -> 500000 | J3: =Inputs!$C$3 -> 500000 | K3: =Inputs!$C$3 -> 500000 | L3: =Inputs!$C$3 -> 500000 | M3: =Inputs!$C$3 -> 500000 | N3: =Inputs!$C$3 -> 500000 | O3: =Inputs!$C$3 -> 500000 | P3: =Inputs!$C$3 -> 500000 | Q3: =Inputs!$C$3 -> 500000 | R3: =Inputs!$C$3 -> 500000 | S3: =Inputs!$C$3 -> 500000 | T3: =Inputs!$C$3 -> 500000 | U3: =Inputs!$C$3 -> 500000 | V3: =Inputs!$C$3 -> 500000 | W3: =Inputs!$C$3 -> 500000 | X3: =Inputs!$C$3 -> 500000 | Y3: =Inputs!$C$3 -> 500000 | Z3: =Inputs!$C$3 -> 500000 | AA3: =Inputs!$C$3 -> 500000 | AB3: =Inputs!$C$3 -> 500000 | AC3: =Inputs!$C$3 -> 500000 | AD3: =Inputs!$C$3 -> 500000 | AE3: =Inputs!$C$3 -> 500000 | AF3: =Inputs!$C$3 -> 500000 | AG3: =Inputs!$C$3 -> 500000 | AH3: =Inputs!$C$3 -> 500000 | AI3: =Inputs!$C$3 -> 500000 | AJ3: =Inputs!$C$3 -> 500000 | AK3: =Inputs!$C$3 -> 500000 | AL3: =Inputs!$C$3 -> 500000 | AM3: =Inputs!$C$3 -> 500000 | AN3: =Inputs!$C$3 -> 500000 | AO3: =Inputs!$C$3 -> 500000 | AP3: =Inputs!$C$3 -> 500000 | AQ3: =Inputs!$C$3 -> 500000 | AR3: =Inputs!$C$3 -> 500000 | AS3: =Inputs!$C$3 -> 500000 | AT3: =Inputs!$C$3 -> 500000 | AU3: =Inputs!$C$3 -> 500000 | AV3: =Inputs!$C$3 -> 500000 | AW3: =Inputs!$C$3 -> 500000 | AX3: =Inputs!$C$3 -> 500000 | AY3: =Inputs!$C$3 -> 500000 | AZ3: =Inputs!$C$3 -> 500000 | BA3: =Inputs!$C$3 -> 500000 | BB3: =Inputs!$C$3 -> 500000 | BC3: =Inputs!$C$3 -> 500000 | BD3: =Inputs!$C$3 -> 500000 | BE3: =Inputs!$C$3 -> 500000 | BF3: =Inputs!$C$3 -> 500000 | BG3: =Inputs!$C$3 -> 500000 | BH3: =Inputs!$C$3 -> 500000 | BI3: =Inputs!$C$3 -> 500000 | BJ3: =Inputs!$C$3 -> 500000 | BK3: =Inputs!$C$3 -> 500000 | BL3: =Inputs!$C$3 -> 500000 | BM3: =Inputs!$C$3 -> 500000 | BN3: =Inputs!$C$3 -> 500000 | BO3: =Inputs!$C$3 -> 500000 | BP3: =Inputs!$C$3 -> 500000 | BQ3: =Inputs!$C$3 -> 500000 | BR3: =Inputs!$C$3 -> 500000 | BS3: =Inputs!$C$3 -> 500000 | BT3: =Inputs!$C$3 -> 500000 | BU3: =Inputs!$C$3 -> 500000 | BV3: =Inputs!$C$3 -> 500000 | BW3: =Inputs!$C$3 -> 500000 | BX3: =Inputs!$C$3 -> 500000 | BY3: =Inputs!$C$3 -> 500000 | BZ3: =Inputs!$C$3 -> 500000 | CA3: =Inputs!$C$3 -> 500000 | CB3: =Inputs!$C$3 -> 500000 | CC3: =Inputs!$C$3 -> 500000 | CD3: =Inputs!$C$3 -> 500000 | CE3: =Inputs!$C$3 -> 500000 | CF3: =Inputs!$C$3 -> 500000 | CG3: =Inputs!$C$3 -> 500000 | CH3: =Inputs!$C$3 -> 500000 | CI3: =Inputs!$C$3 -> 500000 | CJ3: =Inputs!$C$3 -> 500000 | CK3: =Inputs!$C$3 -> 500000 | CL3: =Inputs!$C$3 -> 500000 | CM3: =Inputs!$C$3 -> 500000 | CN3: =Inputs!$C$3 -> 500000 | CO3: =Inputs!$C$3 -> 500000 | CP3: =Inputs!$C$3 -> 500000 | CQ3: =Inputs!$C$3 -> 500000 | CR3: =Inputs!$C$3 -> 500000 | CS3: =Inputs!$C$3 -> 500000 | CT3: =Inputs!$C$3 -> 500000 | CU3: =Inputs!$C$3 -> 500000 | CV3: =Inputs!$C$3 -> 500000 | CW3: =Inputs!$C$3 -> 500000 | CX3: =Inputs!$C$3 -> 500000 | CY3: =Inputs!$C$3 -> 500000 | CZ3: =Inputs!$C$3 -> 500000 | DA3: =Inputs!$C$3 -> 500000 | DB3: =Inputs!$C$3 -> 500000 | DC3: =Inputs!$C$3 -> 500000 | DD3: =Inputs!$C$3 -> 500000 | DE3: =Inputs!$C$3 -> 500000 | DF3: =Inputs!$C$3 -> 500000 | DG3: =Inputs!$C$3 -> 500000 | DH3: =Inputs!$C$3 -> 500000 | DI3: =Inputs!$C$3 -> 500000 | DJ3: =Inputs!$C$3 -> 500000 | DK3: =Inputs!$C$3 -> 500000 | DL3: =Inputs!$C$3 -> 500000 | DM3: =Inputs!$C$3 -> 500000 | DN3: =Inputs!$C$3 -> 500000 | DO3: =Inputs!$C$3 -> 500000 | DP3: =Inputs!$C$3 -> 500000 | DQ3: =Inputs!$C$3 -> 500000 | DR3: =Inputs!$C$3 -> 500000 | DS3: =Inputs!$C$3 -> 500000 | DT3: =Inputs!$C$3 -> 500000 | DU3: =Inputs!$C$3 -> 500000 | DV3: =Inputs!$C$3 -> 500000 | DW3: =Inputs!$C$3 -> 500000 | DX3: =Inputs!$C$3 -> 500000 | DY3: =Inputs!$C$3 -> 500000 | DZ3: =Inputs!$C$3 -> 500000 | EA3: =Inputs!$C$3 -> 500000 | EB3: =Inputs!$C$3 -> 500000 | EC3: =Inputs!$C$3 -> 500000 | ED3: =Inputs!$C$3 -> 500000 | EE3: =Inputs!$C$3 -> 500000 | EF3: =Inputs!$C$3 -> 500000 | EG3: =Inputs!$C$3 -> 500000 | EH3: =Inputs!$C$3 -> 500000 | EI3: =Inputs!$C$3 -> 500000 | EJ3: =Inputs!$C$3 -> 500000 | EK3: =Inputs!$C$3 -> 500000 | EL3: =Inputs!$C$3 -> 500000 | EM3: =Inputs!$C$3 -> 500000 | EN3: =Inputs!$C$3 -> 500000 | EO3: =Inputs!$C$3 -> 500000 | EP3: =Inputs!$C$3 -> 500000 | EQ3: =Inputs!$C$3 -> 500000 | ER3: =Inputs!$C$3 -> 500000 | ES3: =Inputs!$C$3 -> 500000 | ET3: =Inputs!$C$3 -> 500000 | EU3: =Inputs!$C$3 -> 500000 | EV3: =Inputs!$C$3 -> 500000 | EW3: =Inputs!$C$3 -> 500000 | EX3: =Inputs!$C$3 -> 500000 | EY3: =Inputs!$C$3 -> 500000 | EZ3: =Inputs!$C$3 -> 500000 | FA3: =Inputs!$C$3 -> 500000 | FB3: =Inputs!$C$3 -> 500000 | FC3: =Inputs!$C$3 -> 500000 | FD3: =Inputs!$C$3 -> 500000 | FE3: =Inputs!$C$3 -> 500000 | FF3: =Inputs!$C$3 -> 500000 | FG3: =Inputs!$C$3 -> 500000 | FH3: =Inputs!$C$3 -> 500000 | FI3: =Inputs!$C$3 -> 500000 | FJ3: =Inputs!$C$3 -> 500000 | FK3: =Inputs!$C$3 -> 500000 | FL3: =Inputs!$C$3 -> 500000 | FM3: =Inputs!$C$3 -> 500000 | FN3: =Inputs!$C$3 -> 500000 | FO3: =Inputs!$C$3 -> 500000 | FP3: =Inputs!$C$3 -> 500000 | FQ3: =Inputs!$C$3 -> 500000 | FR3: =Inputs!$C$3 -> 500000 | FS3: =Inputs!$C$3 -> 500000 | FT3: =Inputs!$C$3 -> 500000 | FU3: =Inputs!$C$3 -> 500000 | FV3: =Inputs!$C$3 -> 500000 | FW3: =Inputs!$C$3 -> 500000 | FX3: =Inputs!$C$3 -> 500000 | FY3: =Inputs!$C$3 -> 500000 | FZ3: =Inputs!$C$3 -> 500000 | GA3: =Inputs!$C$3 -> 500000 | GB3: =Inputs!$C$3 -> 500000 | GC3: =Inputs!$C$3 -> 500000 | GD3: =Inputs!$C$3 -> 500000 | GE3: =Inputs!$C$3 -> 500000 | GF3: =Inputs!$C$3 -> 500000 | GG3: =Inputs!$C$3 -> 500000 | GH3: =Inputs!$C$3 -> 500000 | GI3: =Inputs!$C$3 -> 500000 | GJ3: =Inputs!$C$3 -> 500000 | GK3: =Inputs!$C$3 -> 500000 | GL3: =Inputs!$C$3 -> 500000 | GM3: =Inputs!$C$3 -> 500000 | GN3: =Inputs!$C$3 -> 500000 | GO3: =Inputs!$C$3 -> 500000 | GP3: =Inputs!$C$3 -> 500000 | GQ3: =Inputs!$C$3 -> 500000 | GR3: =Inputs!$C$3 -> 500000 | GS3: =Inputs!$C$3 -> 500000 | GT3: =Inputs!$C$3 -> 500000 | GU3: =Inputs!$C$3 -> 500000 | GV3: =Inputs!$C$3 -> 500000 | GW3: =Inputs!$C$3 -> 500000 | GX3: =Inputs!$C$3 -> 500000 | GY3: =Inputs!$C$3 -> 500000 | GZ3: =Inputs!$C$3 -> 500000 | HA3: =Inputs!$C$3 -> 500000 | HB3: =Inputs!$C$3 -> 500000 | HC3: =Inputs!$C$3 -> 500000 | HD3: =Inputs!$C$3 -> 500000 | HE3: =Inputs!$C$3 -> 500000 | HF3: =Inputs!$C$3 -> 500000 | HG3: =Inputs!$C$3 -> 500000 | HH3: =Inputs!$C$3 -> 500000 | HI3: =Inputs!$C$3 -> 500000 | HJ3: =Inputs!$C$3 -> 500000 | HK3: =Inputs!$C$3 -> 500000 | HL3: =Inputs!$C$3 -> 500000 | HM3: =Inputs!$C$3 -> 500000 | HN3: =Inputs!$C$3 -> 500000 | HO3: =Inputs!$C$3 -> 500000 | HP3: =Inputs!$C$3 -> 500000 | HQ3: =Inputs!$C$3 -> 500000 | HR3: =Inputs!$C$3 -> 500000 | HS3: =Inputs!$C$3 -> 500000 | HT3: =Inputs!$C$3 -> 500000 | HU3: =Inputs!$C$3 -> 500000 | HV3: =Inputs!$C$3 -> 500000 | HW3: =Inputs!$C$3 -> 500000 | HX3: =Inputs!$C$3 -> 500000 | HY3: =Inputs!$C$3 -> 500000 | HZ3: =Inputs!$C$3 -> 500000 | IA3: =Inputs!$C$3 -> 500000 | IB3: =Inputs!$C$3 -> 500000 | IC3: =Inputs!$C$3 -> 500000 | ID3: =Inputs!$C$3 -> 500000 | IE3: =Inputs!$C$3 -> 500000 | IF3: =Inputs!$C$3 -> 500000 | IG3: =Inputs!$C$3 -> 500000 | IH3: =Inputs!$C$3 -> 500000 | II3: =Inputs!$C$3 -> 500000 | IJ3: =Inputs!$C$3 -> 500000 | IK3: =Inputs!$C$3 -> 500000 | IL3: =Inputs!$C$3 -> 500000 | IM3: =Inputs!$C$3 -> 500000 | IN3: =Inputs!$C$3 -> 500000 | IO3: =Inputs!$C$3 -> 500000 | IP3: =Inputs!$C$3 -> 500000 | IQ3: =Inputs!$C$3 -> 500000 | IR3: =Inputs!$C$3 -> 500000 | IS3: =Inputs!$C$3 -> 500000 | IT3: =Inputs!$C$3 -> 500000 | IU3: =Inputs!$C$3 -> 500000 | IV3: =Inputs!$C$3 -> 500000 | IW3: =Inputs!$C$3 -> 500000 | IX3: =Inputs!$C$3 -> 500000 | IY3: =Inputs!$C$3 -> 500000 | IZ3: =Inputs!$C$3 -> 500000 | JA3: =Inputs!$C$3 -> 500000 | JB3: =Inputs!$C$3 -> 500000 | JC3: =Inputs!$C$3 -> 500000 | JD3: =Inputs!$C$3 -> 500000 | JE3: =Inputs!$C$3 -> 500000 | JF3: =Inputs!$C$3 -> 500000 | JG3: =Inputs!$C$3 -> 500000 | JH3: =Inputs!$C$3 -> 500000 | JI3: =Inputs!$C$3 -> 500000 | JJ3: =Inputs!$C$3 -> 500000 | JK3: =Inputs!$C$3 -> 500000 | JL3: =Inputs!$C$3 -> 500000 | JM3: =Inputs!$C$3 -> 500000 | JN3: =Inputs!$C$3 -> 500000 | JO3: =Inputs!$C$3 -> 500000 | JP3: =Inputs!$C$3 -> 500000 | JQ3: =Inputs!$C$3 -> 500000 | JR3: =Inputs!$C$3 -> 500000 | JS3: =Inputs!$C$3 -> 500000 | JT3: =Inputs!$C$3 -> 500000 | JU3: =Inputs!$C$3 -> 500000 | JV3: =Inputs!$C$3 -> 500000 | JW3: =Inputs!$C$3 -> 500000 | JX3: =Inputs!$C$3 -> 500000 | JY3: =Inputs!$C$3 -> 500000 | JZ3: =Inputs!$C$3 -> 500000 | KA3: =Inputs!$C$3 -> 500000 | KB3: =Inputs!$C$3 -> 500000 | KC3: =Inputs!$C$3 -> 500000 | KD3: =Inputs!$C$3 -> 500000 | KE3: =Inputs!$C$3 -> 500000 | KF3: =Inputs!$C$3 -> 500000 | KG3: =Inputs!$C$3 -> 500000 | KH3: =Inputs!$C$3 -> 500000 | KI3: =Inputs!$C$3 -> 500000 | KJ3: =Inputs!$C$3 -> 500000 | KK3: =Inputs!$C$3 -> 500000 | KL3: =Inputs!$C$3 -> 500000 | KM3: =Inputs!$C$3 -> 500000 | KN3: =Inputs!$C$3 -> 500000 | KO3: =Inputs!$C$3 -> 500000 | KP3: =Inputs!$C$3 -> 500000 | KQ3: =Inputs!$C$3 -> 500000 | KR3: =Inputs!$C$3 -> 500000 | KS3: =Inputs!$C$3 -> 500000 | KT3: =Inputs!$C$3 -> 500000 | KU3: =Inputs!$C$3 -> 500000 | KV3: =Inputs!$C$3 -> 500000 | KW3: =Inputs!$C$3 -> 500000 | KX3: =Inputs!$C$3 -> 500000 | KY3: =Inputs!$C$3 -> 500000 | KZ3: =Inputs!$C$3 -> 500000 | LA3: =Inputs!$C$3 -> 500000 | LB3: =Inputs!$C$3 -> 500000 | LC3: =Inputs!$C$3 -> 500000 | LD3: =Inputs!$C$3 -> 500000 | LE3: =Inputs!$C$3 -> 500000 | LF3: =Inputs!$C$3 -> 500000 | LG3: =Inputs!$C$3 -> 500000 | LH3: =Inputs!$C$3 -> 500000 | LI3: =Inputs!$C$3 -> 500000 | LJ3: =Inputs!$C$3 -> 500000 | LK3: =Inputs!$C$3 -> 500000 | LL3: =Inputs!$C$3 -> 500000 | LM3: =Inputs!$C$3 -> 500000 | LN3: =Inputs!$C$3 -> 500000 | LO3: =Inputs!$C$3 -> 500000 | LP3: =Inputs!$C$3 -> 500000 | LQ3: =Inputs!$C$3 -> 500000 | LR3: =Inputs!$C$3 -> 500000 | LS3: =Inputs!$C$3 -> 500000 | LT3: =Inputs!$C$3 -> 500000 | LU3: =Inputs!$C$3 -> 500000 | LV3: =Inputs!$C$3 -> 500000 | LW3: =Inputs!$C$3 -> 500000 | LX3: =Inputs!$C$3 -> 500000 | LY3: =Inputs!$C$3 -> 500000 | LZ3: =Inputs!$C$3 -> 500000 | MA3: =Inputs!$C$3 -> 500000 | MB3: =Inputs!$C$3 -> 500000 | MC3: =Inputs!$C$3 -> 500000 | MD3: =Inputs!$C$3 -> 500000 | ME3: =Inputs!$C$3 -> 500000 | MF3: =Inputs!$C$3 -> 500000 | MG3: =Inputs!$C$3 -> 500000 | MH3: =Inputs!$C$3 -> 500000 | MI3: =Inputs!$C$3 -> 500000 | MJ3: =Inputs!$C$3 -> 500000 | MK3: =Inputs!$C$3 -> 500000 | ML3: =Inputs!$C$3 -> 500000 | MM3: =Inputs!$C$3 -> 500000 | MN3: =Inputs!$C$3 -> 500000 | MO3: =Inputs!$C$3 -> 500000 | MP3: =Inputs!$C$3 -> 500000 | MQ3: =Inputs!$C$3 -> 500000 | MR3: =Inputs!$C$3 -> 500000 | MS3: =Inputs!$C$3 -> 500000 | MT3: =Inputs!$C$3 -> 500000 | MU3: =Inputs!$C$3 -> 500000 | MV3: =Inputs!$C$3 -> 500000 | MW3: =Inputs!$C$3 -> 500000 | MX3: =Inputs!$C$3 -> 500000 | MY3: =Inputs!$C$3 -> 500000 | MZ3: =Inputs!$C$3 -> 500000 | NA3: =Inputs!$C$3 -> 500000 | NB3: =Inputs!$C$3 -> 500000 | NC3: =Inputs!$C$3 -> 500000 | ND3: =Inputs!$C$3 -> 500000 | NE3: =Inputs!$C$3 -> 500000 | NF3: =Inputs!$C$3 -> 500000 | NG3: =Inputs!$C$3 -> 500000 | NH3: =Inputs!$C$3 -> 500000 | NI3: =Inputs!$C$3 -> 500000 | NJ3: =Inputs!$C$3 -> 500000 | NK3: =Inputs!$C$3 -> 500000 | NL3: =Inputs!$C$3 -> 500000 | NM3: =Inputs!$C$3 -> 500000 | NN3: =Inputs!$C$3 -> 500000 | NO3: =Inputs!$C$3 -> 500000 | NP3: =Inputs!$C$3 -> 500000 | NQ3: =Inputs!$C$3 -> 500000 | NR3: =Inputs!$C$3 -> 500000 | NS3: =Inputs!$C$3 -> 500000 | NT3: =Inputs!$C$3 -> 500000 | NU3: =Inputs!$C$3 -> 500000 | NV3: =Inputs!$C$3 -> 500000 | NW3: =Inputs!$C$3 -> 500000 | NX3: =Inputs!$C$3 -> 500000 | NY3: =Inputs!$C$3 -> 500000 | NZ3: =Inputs!$C$3 -> 500000 | OA3: =Inputs!$C$3 -> 500000 | OB3: =Inputs!$C$3 -> 500000 | OC3: =Inputs!$C$3 -> 500000 | OD3: =Inputs!$C$3 -> 500000 | OE3: =Inputs!$C$3 -> 500000 | OF3: =Inputs!$C$3 -> 500000 | OG3: =Inputs!$C$3 -> 500000 | OH3: =Inputs!$C$3 -> 500000 | OI3: =Inputs!$C$3 -> 500000 | OJ3: =Inputs!$C$3 -> 500000 | OK3: =Inputs!$C$3 -> 500000 | OL3: =Inputs!$C$3 -> 500000 | OM3: =Inputs!$C$3 -> 500000 | ON3: =Inputs!$C$3 -> 500000 | OO3: =Inputs!$C$3 -> 500000 | OP3: =Inputs!$C$3 -> 500000 | OQ3: =Inputs!$C$3 -> 500000 | OR3: =Inputs!$C$3 -> 500000 | OS3: =Inputs!$C$3 -> 500000 | OT3: =Inputs!$C$3 -> 500000 | OU3: =Inputs!$C$3 -> 500000 | OV3: =Inputs!$C$3 -> 500000 | OW3: =Inputs!$C$3 -> 500000 | OX3: =Inputs!$C$3 -> 500000 | OY3: =Inputs!$C$3 -> 500000 | OZ3: =Inputs!$C$3 -> 500000 | PA3: =Inputs!$C$3 -> 500000 | PB3: =Inputs!$C$3 -> 500000 | PC3: =Inputs!$C$3 -> 500000 | PD3: =Inputs!$C$3 -> 500000 | PE3: =Inputs!$C$3 -> 500000 | PF3: =Inputs!$C$3 -> 500000 | PG3: =Inputs!$C$3 -> 500000 | PH3: =Inputs!$C$3 -> 500000 | PI3: =Inputs!$C$3 -> 500000 | PJ3: =Inputs!$C$3 -> 500000 | PK3: =Inputs!$C$3 -> 500000 | PL3: =Inputs!$C$3 -> 500000 | PM3: =Inputs!$C$3 -> 500000 | PN3: =Inputs!$C$3 -> 500000 | PO3: =Inputs!$C$3 -> 500000 | PP3: =Inputs!$C$3 -> 500000 | PQ3: =Inputs!$C$3 -> 500000 | PR3: =Inputs!$C$3 -> 500000 | PS3: =Inputs!$C$3 -> 500000 | PT3: =Inputs!$C$3 -> 500000 | PU3: =Inputs!$C$3 -> 500000 | PV3: =Inputs!$C$3 -> 500000 | PW3: =Inputs!$C$3 -> 500000 | PX3: =Inputs!$C$3 -> 500000 | PY3: =Inputs!$C$3 -> 500000 | PZ3: =Inputs!$C$3 -> 500000 | QA3: =Inputs!$C$3 -> 500000 | QB3: =Inputs!$C$3 -> 500000 | QC3: =Inputs!$C$3 -> 500000 | QD3: =Inputs!$C$3 -> 500000 | QE3: =Inputs!$C$3 -> 500000 | QF3: =Inputs!$C$3 -> 500000 | QG3: =Inputs!$C$3 -> 500000 | QH3: =Inputs!$C$3 -> 500000 | QI3: =Inputs!$C$3 -> 500000 | QJ3: =Inputs!$C$3 -> 500000 | QK3: =Inputs!$C$3 -> 500000 | QL3: =Inputs!$C$3 -> 500000 | QM3: =Inputs!$C$3 -> 500000 | QN3: =Inputs!$C$3 -> 500000 | QO3: =Inputs!$C$3 -> 500000 | QP3: =Inputs!$C$3 -> 500000 | QQ3: =Inputs!$C$3 -> 500000 | QR3: =Inputs!$C$3 -> 500000 | QS3: =Inputs!$C$3 -> 500000 | QT3: =Inputs!$C$3 -> 500000 | QU3: =Inputs!$C$3 -> 500000 | QV3: =Inputs!$C$3 -> 500000 | QW3: =Inputs!$C$3 -> 500000 | QX3: =Inputs!$C$3 -> 500000 | QY3: =Inputs!$C$3 -> 500000 | QZ3: =Inputs!$C$3 -> 500000 | RA3: =Inputs!$C$3 -> 500000 | RB3: =Inputs!$C$3 -> 500000 | RC3: =Inputs!$C$3 -> 500000 | RD3: =Inputs!$C$3 -> 500000 | RE3: =Inputs!$C$3 -> 500000 | RF3: =Inputs!$C$3 -> 500000 | RG3: =Inputs!$C$3 -> 500000 | RH3: =Inputs!$C$3 -> 500000 | RI3: =Inputs!$C$3 -> 500000 | RJ3: =Inputs!$C$3 -> 500000 | RK3: =Inputs!$C$3 -> 500000 | RL3: =Inputs!$C$3 -> 500000 | RM3: =Inputs!$C$3 -> 500000 | RN3: =Inputs!$C$3 -> 500000 | RO3: =Inputs!$C$3 -> 500000 | RP3: =Inputs!$C$3 -> 500000 | RQ3: =Inputs!$C$3 -> 500000 | RR3: =Inputs!$C$3 -> 500000 | RS3: =Inputs!$C$3 -> 500000 | RT3: =Inputs!$C$3 -> 500000 | RU3: =Inputs!$C$3 -> 500000 | RV3: =Inputs!$C$3 -> 500000 | RW3: =Inputs!$C$3 -> 500000 | RX3: =Inputs!$C$3 -> 500000 | RY3: =Inputs!$C$3 -> 500000 | RZ3: =Inputs!$C$3 -> 500000 | SA3: =Inputs!$C$3 -> 500000 | SB3: =Inputs!$C$3 -> 500000 | SC3: =Inputs!$C$3 -> 500000 | SD3: =Inputs!$C$3 -> 500000 | SE3: =Inputs!$C$3 -> 500000 | SF3: =Inputs!$C$3 -> 500000 | SG3: =Inputs!$C$3 -> 500000
... 4 more rows

Sheet Case 2 - Drawdown (hidden)
A1: Drawdown
A2: Year | B2: Min drawdown | C2: 1 | D2: 2 | E2: 3 | F2: 4 | G2: 5 | H2: 6 | I2: 7 | J2: 8 | K2: 9 | L2: 10 | M2: 11 | N2: 12 | O2: 13 | P2: 14 | Q2: 15 | R2: 16 | S2: 17 | T2: 18 | U2: 19 | V2: 20 | W2: 21 | X2: 22 | Y2: 23 | Z2: 24 | AA2: 25 | AB2: 26 | AC2: 27 | AD2: 28 | AE2: 29 | AF2: 30 | AG2: 31 | AH2: 32 | AI2: 33 | AJ2: 34 | AK2: 35 | AL2: 36 | AM2: 37 | AN2: 38 | AO2: 39 | AP2: 40 | AQ2: 41 | AR2: 42 | AS2: 43 | AT2: 44 | AU2: 45 | AV2: 46 | AW2: 47 | AX2: 48 | AY2: 49 | AZ2: 50 | BA2: 51 | BB2: 52 | BC2: 53 | BD2: 54 | BE2: 55 | BF2: 56 | BG2: 57 | BH2: 58 | BI2: 59 | BJ2: 60 | BK2: 61 | BL2: 62 | BM2: 63 | BN2: 64 | BO2: 65 | BP2: 66 | BQ2: 67 | BR2: 68 | BS2: 69 | BT2: 70 | BU2: 71 | BV2: 72 | BW2: 73 | BX2: 74 | BY2: 75 | BZ2: 76 | CA2: 77 | CB2: 78 | CC2: 79 | CD2: 80 | CE2: 81 | CF2: 82 | CG2: 83 | CH2: 84 | CI2: 85 | CJ2: 86 | CK2: 87 | CL2: 88 | CM2: 89 | CN2: 90 | CO2: 91 | CP2: 92 | CQ2: 93 | CR2: 94 | CS2: 95 | CT2: 96 | CU2: 97 | CV2: 98 | CW2: 99 | CX2: 100 | CY2: 101 | CZ2: 102 | DA2: 103 | DB2: 104 | DC2: 105 | DD2: 106 | DE2: 107 | DF2: 108 | DG2: 109 | DH2: 110 | DI2: 111 | DJ2: 112 | DK2: 113 | DL2: 114 | DM2: 115 | DN2: 116 | DO2: 117 | DP2: 118 | DQ2: 119 | DR2: 120 | DS2: 121 | DT2: 122 | DU2: 123 | DV2: 124 | DW2: 125 | DX2: 126 | DY2: 127 | DZ2: 128 | EA2: 129 | EB2: 130 | EC2: 131 | ED2: 132 | EE2: 133 | EF2: 134 | EG2: 135 | EH2: 136 | EI2: 137 | EJ2: 138 | EK2: 139 | EL2: 140 | EM2: 141 | EN2: 142 | EO2: 143 | EP2: 144 | EQ2: 145 | ER2: 146 | ES2: 147 | ET2: 148 | EU2: 149 | EV2: 150 | EW2: 151 | EX2: 152 | EY2: 153 | EZ2: 154 | FA2: 155 | FB2: 156 | FC2: 157 | FD2: 158 | FE2: 159 | FF2: 160 | FG2: 161 | FH2: 162 | FI2: 163 | FJ2: 164 | FK2: 165 | FL2: 166 | FM2: 167 | FN2: 168 | FO2: 169 | FP2: 170 | FQ2: 171 | FR2: 172 | FS2: 173 | FT2: 174 | FU2: 175 | FV2: 176 | FW2: 177 | FX2: 178 | FY2: 179 | FZ2: 180 | GA2: 181 | GB2: 182 | GC2: 183 | GD2: 184 | GE2: 185 | GF2: 186 | GG2: 187 | GH2: 188 | GI2: 189 | GJ2: 190 | GK2: 191 | GL2: 192 | GM2: 193 | GN2: 194 | GO2: 195 | GP2: 196 | GQ2: 197 | GR2: 198 | GS2: 199 | GT2: 200 | GU2: 201 | GV2: 202 | GW2: 203 | GX2: 204 | GY2: 205 | GZ2: 206 | HA2: 207 | HB2: 208 | HC2: 209 | HD2: 210 | HE2: 211 | HF2: 212 | HG2: 213 | HH2: 214 | HI2: 215 | HJ2: 216 | HK2: 217 | HL2: 218 | HM2: 219 | HN2: 220 | HO2: 221 | HP2: 222 | HQ2: 223 | HR2: 224 | HS2: 225 | HT2: 226 | HU2: 227 | HV2: 228 | HW2: 229 | HX2: 230 | HY2: 231 | HZ2: 232 | IA2: 233 | IB2: 234 | IC2: 235 | ID2: 236 | IE2: 237 | IF2: 238 | IG2: 239 | IH2: 240 | II2: 241 | IJ2: 242 | IK2: 243 | IL2: 244 | IM2: 245 | IN2: 246 | IO2: 247 | IP2: 248 | IQ2: 249 | IR2: 250 | IS2: 251 | IT2: 252 | IU2: 253 | IV2: 254 | IW2: 255 | IX2: 256 | IY2: 257 | IZ2: 258 | JA2: 259 | JB2: 260 | JC2: 261 | JD2: 262 | JE2: 263 | JF2: 264 | JG2: 265 | JH2: 266 | JI2: 267 | JJ2: 268 | JK2: 269 | JL2: 270 | JM2: 271 | JN2: 272 | JO2: 273 | JP2: 274 | JQ2: 275 | JR2: 276 | JS2: 277 | JT2: 278 | JU2: 279 | JV2: 280 | JW2: 281 | JX2: 282 | JY2: 283 | JZ2: 284 | KA2: 285 | KB2: 286 | KC2: 287 | KD2: 288 | KE2: 289 | KF2: 290 | KG2: 291 | KH2: 292 | KI2: 293 | KJ2: 294 | KK2: 295 | KL2: 296 | KM2: 297 | KN2: 298 | KO2: 299 | KP2: 300 | KQ2: 301 | KR2: 302 | KS2: 303 | KT2: 304 | KU2: 305 | KV2: 306 | KW2: 307 | KX2: 308 | KY2: 309 | KZ2: 310 | LA2: 311 | LB2: 312 | LC2: 313 | LD2: 314 | LE2: 315 | LF2: 316 | LG2: 317 | LH2: 318 | LI2: 319 | LJ2: 320 | LK2: 321 | LL2: 322 | LM2: 323 | LN2: 324 | LO2: 325 | LP2: 326 | LQ2: 327 | LR2: 328 | LS2: 329 | LT2: 330 | LU2: 331 | LV2: 332 | LW2: 333 | LX2: 334 | LY2: 335 | LZ2: 336 | MA2: 337 | MB2: 338 | MC2: 339 | MD2: 340 | ME2: 341 | MF2: 342 | MG2: 343 | MH2: 344 | MI2: 345 | MJ2: 346 | MK2: 347 | ML2: 348 | MM2: 349 | MN2: 350 | MO2: 351 | MP2: 352 | MQ2: 353 | MR2: 354 | MS2: 355 | MT2: 356 | MU2: 357 | MV2: 358 | MW2: 359 | MX2: 360 | MY2: 361 | MZ2: 362 | NA2: 363 | NB2: 364 | NC2: 365 | ND2: 366 | NE2: 367 | NF2: 368 | NG2: 369 | NH2: 370 | NI2: 371 | NJ2: 372 | NK2: 373 | NL2: 374 | NM2: 375 | NN2: 376 | NO2: 377 | NP2: 378 | NQ2: 379 | NR2: 380 | NS2: 381 | NT2: 382 | NU2: 383 | NV2: 384 | NW2: 385 | NX2: 386 | NY2: 387 | NZ2: 388 | OA2: 389 | OB2: 390 | OC2: 391 | OD2: 392 | OE2: 393 | OF2: 394 | OG2: 395 | OH2: 396 | OI2: 397 | OJ2: 398 | OK2: 399 | OL2: 400 | OM2: 401 | ON2: 402 | OO2: 403 | OP2: 404 | OQ2: 405 | OR2: 406 | OS2: 407 | OT2: 408 | OU2: 409 | OV2: 410 | OW2: 411 | OX2: 412 | OY2: 413 | OZ2: 414 | PA2: 415 | PB2: 416 | PC2: 417 | PD2: 418 | PE2: 419 | PF2: 420 | PG2: 421 | PH2: 422 | PI2: 423 | PJ2: 424 | PK2: 425 | PL2: 426 | PM2: 427 | PN2: 428 | PO2: 429 | PP2: 430 | PQ2: 431 | PR2: 432 | PS2: 433 | PT2: 434 | PU2: 435 | PV2: 436 | PW2: 437 | PX2: 438 | PY2: 439 | PZ2: 440 | QA2: 441 | QB2: 442 | QC2: 443 | QD2: 444 | QE2: 445 | QF2: 446 | QG2: 447 | QH2: 448 | QI2: 449 | QJ2: 450 | QK2: 451 | QL2: 452 | QM2: 453 | QN2: 454 | QO2: 455 | QP2: 456 | QQ2: 457 | QR2: 458 | QS2: 459 | QT2: 460 | QU2: 461 | QV2: 462 | QW2: 463 | QX2: 464 | QY2: 465 | QZ2: 466 | RA2: 467 | RB2: 468 | RC2: 469 | RD2: 470 | RE2: 471 | RF2: 472 | RG2: 473 | RH2: 474 | RI2: 475 | RJ2: 476 | RK2: 477 | RL2: 478 | RM2: 479 | RN2: 480 | RO2: 481 | RP2: 482 | RQ2: 483 | RR2: 484 | RS2: 485 | RT2: 486 | RU2: 487 | RV2: 488 | RW2: 489 | RX2: 490 | RY2: 491 | RZ2: 492 | SA2: 493 | SB2: 494 | SC2: 495 | SD2: 496 | SE2: 497 | SF2: 498 | SG2: 499 | SH2: 500
A3: 0 | B3: =INDEX('Minimum Drawdown Rule'!$C$3:$C$50, SUMPRODUCT(--(Inputs!$C$4+'Case 2 - Drawdown'!$A3<='Minimum Drawdown Rule'!$B$3:$B$50), --(Inputs!$C$4+'Case 2 - Drawdown'!$A3>='Minimum Drawdown Rule'!$A$3:$A$50), ROW($A$1:$A$48))) -> 0.05 | C3: ='Case 2 - Residual Benefit'!B3*$B3 -> 25000 | D3: ='Case 2 - Residual Benefit'!C3*$B3 -> 25000 | E3: ='Case 2 - Residual Benefit'!D3*$B3 -> 25000 | F3: ='Case 2 - Residual Benefit'!E3*$B3 -> 25000 | G3: ='Case 2 - Residual Benefit'!F3*$B3 -> 25000 | H3: ='Case 2 - Residual Benefit'!G3*$B3 -> 25000 | I3: ='Case 2 - Residual Benefit'!H3*$B3 -> 25000 | J3: ='Case 2 - Residual Benefit'!I3*$B3 -> 25000 | K3: ='Case 2 - Residual Benefit'!J3*$B3 -> 25000 | L3: ='Case 2 - Residual Benefit'!K3*$B3 -> 25000 | M3: ='Case 2 - Residual Benefit'!L3*$B3 -> 25000 | N3: ='Case 2 - Residual Benefit'!M3*$B3 -> 25000 | O3: ='Case 2 - Residual Benefit'!N3*$B3 -> 25000 | P3: ='Case 2 - Residual Benefit'!O3*$B3 -> 25000 | Q3: ='Case 2 - Residual Benefit'!P3*$B3 -> 25000 | R3: ='Case 2 - Residual Benefit'!Q3*$B3 -> 25000 | S3: ='Case 2 - Residual Benefit'!R3*$B3 -> 25000 | T3: ='Case 2 - Residual Benefit'!S3*$B3 -> 25000 | U3: ='Case 2 - Residual Benefit'!T3*$B3 -> 25000 | V3: ='Case 2 - Residual Benefit'!U3*$B3 -> 25000 | W3: ='Case 2 - Residual Benefit'!V3*$B3 -> 25000 | X3: ='Case 2 - Residual Benefit'!W3*$B3 -> 25000 | Y3: ='Case 2 - Residual Benefit'!X3*$B3 -> 25000 | Z3: ='Case 2 - Residual Benefit'!Y3*$B3 -> 25000 | AA3: ='Case 2 - Residual Benefit'!Z3*$B3 -> 25000 | AB3: ='Case 2 - Residual Benefit'!AA3*$B3 -> 25000 | AC3: ='Case 2 - Residual Benefit'!AB3*$B3 -> 25000 | AD3: ='Case 2 - Residual Benefit'!AC3*$B3 -> 25000 | AE3: ='Case 2 - Residual Benefit'!AD3*$B3 -> 25000 | AF3: ='Case 2 - Residual Benefit'!AE3*$B3 -> 25000 | AG3: ='Case 2 - Residual Benefit'!AF3*$B3 -> 25000 | AH3: ='Case 2 - Residual Benefit'!AG3*$B3 -> 25000 | AI3: ='Case 2 - Residual Benefit'!AH3*$B3 -> 25000 | AJ3: ='Case 2 - Residual Benefit'!AI3*$B3 -> 25000 | AK3: ='Case 2 - Residual Benefit'!AJ3*$B3 -> 25000 | AL3: ='Case 2 - Residual Benefit'!AK3*$B3 -> 25000 | AM3: ='Case 2 - Residual Benefit'!AL3*$B3 -> 25000 | AN3: ='Case 2 - Residual Benefit'!AM3*$B3 -> 25000 | AO3: ='Case 2 - Residual Benefit'!AN3*$B3 -> 25000 | AP3: ='Case 2 - Residual Benefit'!AO3*$B3 -> 25000 | AQ3: ='Case 2 - Residual Benefit'!AP3*$B3 -> 25000 | AR3: ='Case 2 - Residual Benefit'!AQ3*$B3 -> 25000 | AS3: ='Case 2 - Residual Benefit'!AR3*$B3 -> 25000 | AT3: ='Case 2 - Residual Benefit'!AS3*$B3 -> 25000 | AU3: ='Case 2 - Residual Benefit'!AT3*$B3 -> 25000 | AV3: ='Case 2 - Residual Benefit'!AU3*$B3 -> 25000 | AW3: ='Case 2 - Residual Benefit'!AV3*$B3 -> 25000 | AX3: ='Case 2 - Residual Benefit'!AW3*$B3 -> 25000 | AY3: ='Case 2 - Residual Benefit'!AX3*$B3 -> 25000 | AZ3: ='Case 2 - Residual Benefit'!AY3*$B3 -> 25000 | BA3: ='Case 2 - Residual Benefit'!AZ3*$B3 -> 25000 | BB3: ='Case 2 - Residual Benefit'!BA3*$B3 -> 25000 | BC3: ='Case 2 - Residual Benefit'!BB3*$B3 -> 25000 | BD3: ='Case 2 - Residual Benefit'!BC3*$B3 -> 25000 | BE3: ='Case 2 - Residual Benefit'!BD3*$B3 -> 25000 | BF3: ='Case 2 - Residual Benefit'!BE3*$B3 -> 25000 | BG3: ='Case 2 - Residual Benefit'!BF3*$B3 -> 25000 | BH3: ='Case 2 - Residual Benefit'!BG3*$B3 -> 25000 | BI3: ='Case 2 - Residual Benefit'!BH3*$B3 -> 25000 | BJ3: ='Case 2 - Residual Benefit'!BI3*$B3 -> 25000 | BK3: ='Case 2 - Residual Benefit'!BJ3*$B3 -> 25000 | BL3: ='Case 2 - Residual Benefit'!BK3*$B3 -> 25000 | BM3: ='Case 2 - Residual Benefit'!BL3*$B3 -> 25000 | BN3: ='Case 2 - Residual Benefit'!BM3*$B3 -> 25000 | BO3: ='Case 2 - Residual Benefit'!BN3*$B3 -> 25000 | BP3: ='Case 2 - Residual Benefit'!BO3*$B3 -> 25000 | BQ3: ='Case 2 - Residual Benefit'!BP3*$B3 -> 25000 | BR3: ='Case 2 - Residual Benefit'!BQ3*$B3 -> 25000 | BS3: ='Case 2 - Residual Benefit'!BR3*$B3 -> 25000 | BT3: ='Case 2 - Residual Benefit'!BS3*$B3 -> 25000 | BU3: ='Case 2 - Residual Benefit'!BT3*$B3 -> 25000 | BV3: ='Case 2 - Residual Benefit'!BU3*$B3 -> 25000 | BW3: ='Case 2 - Residual Benefit'!BV3*$B3 -> 25000 | BX3: ='Case 2 - Residual Benefit'!BW3*$B3 -> 25000 | BY3: ='Case 2 - Residual Benefit'!BX3*$B3 -> 25000 | BZ3: ='Case 2 - Residual Benefit'!BY3*$B3 -> 25000 | CA3: ='Case 2 - Residual Benefit'!BZ3*$B3 -> 25000 | CB3: ='Case 2 - Residual Benefit'!CA3*$B3 -> 25000 | CC3: ='Case 2 - Residual Benefit'!CB3*$B3 -> 25000 | CD3: ='Case 2 - Residual Benefit'!CC3*$B3 -> 25000 | CE3: ='Case 2 - Residual Benefit'!CD3*$B3 -> 25000 | CF3: ='Case 2 - Residual Benefit'!CE3*$B3 -> 25000 | CG3: ='Case 2 - Residual Benefit'!CF3*$B3 -> 25000 | CH3: ='Case 2 - Residual Benefit'!CG3*$B3 -> 25000 | CI3: ='Case 2 - Residual Benefit'!CH3*$B3 -> 25000 | CJ3: ='Case 2 - Residual Benefit'!CI3*$B3 -> 25000 | CK3: ='Case 2 - Residual Benefit'!CJ3*$B3 -> 25000 | CL3: ='Case 2 - Residual Benefit'!CK3*$B3 -> 25000 | CM3: ='Case 2 - Residual Benefit'!CL3*$B3 -> 25000 | CN3: ='Case 2 - Residual Benefit'!CM3*$B3 -> 25000 | CO3: ='Case 2 - Residual Benefit'!CN3*$B3 -> 25000 | CP3: ='Case 2 - Residual Benefit'!CO3*$B3 -> 25000 | CQ3: ='Case 2 - Residual Benefit'!CP3*$B3 -> 25000 | CR3: ='Case 2 - Residual Benefit'!CQ3*$B3 -> 25000 | CS3: ='Case 2 - Residual Benefit'!CR3*$B3 -> 25000 | CT3: ='Case 2 - Residual Benefit'!CS3*$B3 -> 25000 | CU3: ='Case 2 - Residual Benefit'!CT3*$B3 -> 25000 | CV3: ='Case 2 - Residual Benefit'!CU3*$B3 -> 25000 | CW3: ='Case 2 - Residual Benefit'!CV3*$B3 -> 25000 | CX3: ='Case 2 - Residual Benefit'!CW3*$B3 -> 25000 | CY3: ='Case 2 - Residual Benefit'!CX3*$B3 -> 25000 | CZ3: ='Case 2 - Residual Benefit'!CY3*$B3 -> 25000 | DA3: ='Case 2 - Residual Benefit'!CZ3*$B3 -> 25000 | DB3: ='Case 2 - Residual Benefit'!DA3*$B3 -> 25000 | DC3: ='Case 2 - Residual Benefit'!DB3*$B3 -> 25000 | DD3: ='Case 2 - Residual Benefit'!DC3*$B3 -> 25000 | DE3: ='Case 2 - Residual Benefit'!DD3*$B3 -> 25000 | DF3: ='Case 2 - Residual Benefit'!DE3*$B3 -> 25000 | DG3: ='Case 2 - Residual Benefit'!DF3*$B3 -> 25000 | DH3: ='Case 2 - Residual Benefit'!DG3*$B3 -> 25000 | DI3: ='Case 2 - Residual Benefit'!DH3*$B3 -> 25000 | DJ3: ='Case 2 - Residual Benefit'!DI3*$B3 -> 25000 | DK3: ='Case 2 - Residual Benefit'!DJ3*$B3 -> 25000 | DL3: ='Case 2 - Residual Benefit'!DK3*$B3 -> 25000 | DM3: ='Case 2 - Residual Benefit'!DL3*$B3 -> 25000 | DN3: ='Case 2 - Residual Benefit'!DM3*$B3 -> 25000 | DO3: ='Case 2 - Residual Benefit'!DN3*$B3 -> 25000 | DP3: ='Case 2 - Residual Benefit'!DO3*$B3 -> 25000 | DQ3: ='Case 2 - Residual Benefit'!DP3*$B3 -> 25000 | DR3: ='Case 2 - Residual Benefit'!DQ3*$B3 -> 25000 | DS3: ='Case 2 - Residual Benefit'!DR3*$B3 -> 25000 | DT3: ='Case 2 - Residual Benefit'!DS3*$B3 -> 25000 | DU3: ='Case 2 - Residual Benefit'!DT3*$B3 -> 25000 | DV3: ='Case 2 - Residual Benefit'!DU3*$B3 -> 25000 | DW3: ='Case 2 - Residual Benefit'!DV3*$B3 -> 25000 | DX3: ='Case 2 - Residual Benefit'!DW3*$B3 -> 25000 | DY3: ='Case 2 - Residual Benefit'!DX3*$B3 -> 25000 | DZ3: ='Case 2 - Residual Benefit'!DY3*$B3 -> 25000 | EA3: ='Case 2 - Residual Benefit'!DZ3*$B3 -> 25000 | EB3: ='Case 2 - Residual Benefit'!EA3*$B3 -> 25000 | EC3: ='Case 2 - Residual Benefit'!EB3*$B3 -> 25000 | ED3: ='Case 2 - Residual Benefit'!EC3*$B3 -> 25000 | EE3: ='Case 2 - Residual Benefit'!ED3*$B3 -> 25000 | EF3: ='Case 2 - Residual Benefit'!EE3*$B3 -> 25000 | EG3: ='Case 2 - Residual Benefit'!EF3*$B3 -> 25000 | EH3: ='Case 2 - Residual Benefit'!EG3*$B3 -> 25000 | EI3: ='Case 2 - Residual Benefit'!EH3*$B3 -> 25000 | EJ3: ='Case 2 - Residual Benefit'!EI3*$B3 -> 25000 | EK3: ='Case 2 - Residual Benefit'!EJ3*$B3 -> 25000 | EL3: ='Case 2 - Residual Benefit'!EK3*$B3 -> 25000 | EM3: ='Case 2 - Residual Benefit'!EL3*$B3 -> 25000 | EN3: ='Case 2 - Residual Benefit'!EM3*$B3 -> 25000 | EO3: ='Case 2 - Residual Benefit'!EN3*$B3 -> 25000 | EP3: ='Case 2 - Residual Benefit'!EO3*$B3 -> 25000 | EQ3: ='Case 2 - Residual Benefit'!EP3*$B3 -> 25000 | ER3: ='Case 2 - Residual Benefit'!EQ3*$B3 -> 25000 | ES3: ='Case 2 - Residual Benefit'!ER3*$B3 -> 25000 | ET3: ='Case 2 - Residual Benefit'!ES3*$B3 -> 25000 | EU3: ='Case 2 - Residual Benefit'!ET3*$B3 -> 25000 | EV3: ='Case 2 - Residual Benefit'!EU3*$B3 -> 25000 | EW3: ='Case 2 - Residual Benefit'!EV3*$B3 -> 25000 | EX3: ='Case 2 - Residual Benefit'!EW3*$B3 -> 25000 | EY3: ='Case 2 - Residual Benefit'!EX3*$B3 -> 25000 | EZ3: ='Case 2 - Residual Benefit'!EY3*$B3 -> 25000 | FA3: ='Case 2 - Residual Benefit'!EZ3*$B3 -> 25000 | FB3: ='Case 2 - Residual Benefit'!FA3*$B3 -> 25000 | FC3: ='Case 2 - Residual Benefit'!FB3*$B3 -> 25000 | FD3: ='Case 2 - Residual Benefit'!FC3*$B3 -> 25000 | FE3: ='Case 2 - Residual Benefit'!FD3*$B3 -> 25000 | FF3: ='Case 2 - Residual Benefit'!FE3*$B3 -> 25000 | FG3: ='Case 2 - Residual Benefit'!FF3*$B3 -> 25000 | FH3: ='Case 2 - Residual Benefit'!FG3*$B3 -> 25000 | FI3: ='Case 2 - Residual Benefit'!FH3*$B3 -> 25000 | FJ3: ='Case 2 - Residual Benefit'!FI3*$B3 -> 25000 | FK3: ='Case 2 - Residual Benefit'!FJ3*$B3 -> 25000 | FL3: ='Case 2 - Residual Benefit'!FK3*$B3 -> 25000 | FM3: ='Case 2 - Residual Benefit'!FL3*$B3 -> 25000 | FN3: ='Case 2 - Residual Benefit'!FM3*$B3 -> 25000 | FO3: ='Case 2 - Residual Benefit'!FN3*$B3 -> 25000 | FP3: ='Case 2 - Residual Benefit'!FO3*$B3 -> 25000 | FQ3: ='Case 2 - Residual Benefit'!FP3*$B3 -> 25000 | FR3: ='Case 2 - Residual Benefit'!FQ3*$B3 -> 25000 | FS3: ='Case 2 - Residual Benefit'!FR3*$B3 -> 25000 | FT3: ='Case 2 - Residual Benefit'!FS3*$B3 -> 25000 | FU3: ='Case 2 - Residual Benefit'!FT3*$B3 -> 25000 | FV3: ='Case 2 - Residual Benefit'!FU3*$B3 -> 25000 | FW3: ='Case 2 - Residual Benefit'!FV3*$B3 -> 25000 | FX3: ='Case 2 - Residual Benefit'!FW3*$B3 -> 25000 | FY3: ='Case 2 - Residual Benefit'!FX3*$B3 -> 25000 | FZ3: ='Case 2 - Residual Benefit'!FY3*$B3 -> 25000 | GA3: ='Case 2 - Residual Benefit'!FZ3*$B3 -> 25000 | GB3: ='Case 2 - Residual Benefit'!GA3*$B3 -> 25000 | GC3: ='Case 2 - Residual Benefit'!GB3*$B3 -> 25000 | GD3: ='Case 2 - Residual Benefit'!GC3*$B3 -> 25000 | GE3: ='Case 2 - Residual Benefit'!GD3*$B3 -> 25000 | GF3: ='Case 2 - Residual Benefit'!GE3*$B3 -> 25000 | GG3: ='Case 2 - Residual Benefit'!GF3*$B3 -> 25000 | GH3: ='Case 2 - Residual Benefit'!GG3*$B3 -> 25000 | GI3: ='Case 2 - Residual Benefit'!GH3*$B3 -> 25000 | GJ3: ='Case 2 - Residual Benefit'!GI3*$B3 -> 25000 | GK3: ='Case 2 - Residual Benefit'!GJ3*$B3 -> 25000 | GL3: ='Case 2 - Residual Benefit'!GK3*$B3 -> 25000 | GM3: ='Case 2 - Residual Benefit'!GL3*$B3 -> 25000 | GN3: ='Case 2 - Residual Benefit'!GM3*$B3 -> 25000 | GO3: ='Case 2 - Residual Benefit'!GN3*$B3 -> 25000 | GP3: ='Case 2 - Residual Benefit'!GO3*$B3 -> 25000 | GQ3: ='Case 2 - Residual Benefit'!GP3*$B3 -> 25000 | GR3: ='Case 2 - Residual Benefit'!GQ3*$B3 -> 25000 | GS3: ='Case 2 - Residual Benefit'!GR3*$B3 -> 25000 | GT3: ='Case 2 - Residual Benefit'!GS3*$B3 -> 25000 | GU3: ='Case 2 - Residual Benefit'!GT3*$B3 -> 25000 | GV3: ='Case 2 - Residual Benefit'!GU3*$B3 -> 25000 | GW3: ='Case 2 - Residual Benefit'!GV3*$B3 -> 25000 | GX3: ='Case 2 - Residual Benefit'!GW3*$B3 -> 25000 | GY3: ='Case 2 - Residual Benefit'!GX3*$B3 -> 25000 | GZ3: ='Case 2 - Residual Benefit'!GY3*$B3 -> 25000 | HA3: ='Case 2 - Residual Benefit'!GZ3*$B3 -> 25000 | HB3: ='Case 2 - Residual Benefit'!HA3*$B3 -> 25000 | HC3: ='Case 2 - Residual Benefit'!HB3*$B3 -> 25000 | HD3: ='Case 2 - Residual Benefit'!HC3*$B3 -> 25000 | HE3: ='Case 2 - Residual Benefit'!HD3*$B3 -> 25000 | HF3: ='Case 2 - Residual Benefit'!HE3*$B3 -> 25000 | HG3: ='Case 2 - Residual Benefit'!HF3*$B3 -> 25000 | HH3: ='Case 2 - Residual Benefit'!HG3*$B3 -> 25000 | HI3: ='Case 2 - Residual Benefit'!HH3*$B3 -> 25000 | HJ3: ='Case 2 - Residual Benefit'!HI3*$B3 -> 25000 | HK3: ='Case 2 - Residual Benefit'!HJ3*$B3 -> 25000 | HL3: ='Case 2 - Residual Benefit'!HK3*$B3 -> 25000 | HM3: ='Case 2 - Residual Benefit'!HL3*$B3 -> 25000 | HN3: ='Case 2 - Residual Benefit'!HM3*$B3 -> 25000 | HO3: ='Case 2 - Residual Benefit'!HN3*$B3 -> 25000 | HP3: ='Case 2 - Residual Benefit'!HO3*$B3 -> 25000 | HQ3: ='Case 2 - Residual Benefit'!HP3*$B3 -> 25000 | HR3: ='Case 2 - Residual Benefit'!HQ3*$B3 -> 25000 | HS3: ='Case 2 - Residual Benefit'!HR3*$B3 -> 25000 | HT3: ='Case 2 - Residual Benefit'!HS3*$B3 -> 25000 | HU3: ='Case 2 - Residual Benefit'!HT3*$B3 -> 25000 | HV3: ='Case 2 - Residual Benefit'!HU3*$B3 -> 25000 | HW3: ='Case 2 - Residual Benefit'!HV3*$B3 -> 25000 | HX3: ='Case 2 - Residual Benefit'!HW3*$B3 -> 25000 | HY3: ='Case 2 - Residual Benefit'!HX3*$B3 -> 25000 | HZ3: ='Case 2 - Residual Benefit'!HY3*$B3 -> 25000 | IA3: ='Case 2 - Residual Benefit'!HZ3*$B3 -> 25000 | IB3: ='Case 2 - Residual Benefit'!IA3*$B3 -> 25000 | IC3: ='Case 2 - Residual Benefit'!IB3*$B3 -> 25000 | ID3: ='Case 2 - Residual Benefit'!IC3*$B3 -> 25000 | IE3: ='Case 2 - Residual Benefit'!ID3*$B3 -> 25000 | IF3: ='Case 2 - Residual Benefit'!IE3*$B3 -> 25000 | IG3: ='Case 2 - Residual Benefit'!IF3*$B3 -> 25000 | IH3: ='Case 2 - Residual Benefit'!IG3*$B3 -> 25000 | II3: ='Case 2 - Residual Benefit'!IH3*$B3 -> 25000 | IJ3: ='Case 2 - Residual Benefit'!II3*$B3 -> 25000 | IK3: ='Case 2 - Residual Benefit'!IJ3*$B3 -> 25000 | IL3: ='Case 2 - Residual Benefit'!IK3*$B3 -> 25000 | IM3: ='Case 2 - Residual Benefit'!IL3*$B3 -> 25000 | IN3: ='Case 2 - Residual Benefit'!IM3*$B3 -> 25000 | IO3: ='Case 2 - Residual Benefit'!IN3*$B3 -> 25000 | IP3: ='Case 2 - Residual Benefit'!IO3*$B3 -> 25000 | IQ3: ='Case 2 - Residual Benefit'!IP3*$B3 -> 25000 | IR3: ='Case 2 - Residual Benefit'!IQ3*$B3 -> 25000 | IS3: ='Case 2 - Residual Benefit'!IR3*$B3 -> 25000 | IT3: ='Case 2 - Residual Benefit'!IS3*$B3 -> 25000 | IU3: ='Case 2 - Residual Benefit'!IT3*$B3 -> 25000 | IV3: ='Case 2 - Residual Benefit'!IU3*$B3 -> 25000 | IW3: ='Case 2 - Residual Benefit'!IV3*$B3 -> 25000 | IX3: ='Case 2 - Residual Benefit'!IW3*$B3 -> 25000 | IY3: ='Case 2 - Residual Benefit'!IX3*$B3 -> 25000 | IZ3: ='Case 2 - Residual Benefit'!IY3*$B3 -> 25000 | JA3: ='Case 2 - Residual Benefit'!IZ3*$B3 -> 25000 | JB3: ='Case 2 - Residual Benefit'!JA3*$B3 -> 25000 | JC3: ='Case 2 - Residual Benefit'!JB3*$B3 -> 25000 | JD3: ='Case 2 - Residual Benefit'!JC3*$B3 -> 25000 | JE3: ='Case 2 - Residual Benefit'!JD3*$B3 -> 25000 | JF3: ='Case 2 - Residual Benefit'!JE3*$B3 -> 25000 | JG3: ='Case 2 - Residual Benefit'!JF3*$B3 -> 25000 | JH3: ='Case 2 - Residual Benefit'!JG3*$B3 -> 25000 | JI3: ='Case 2 - Residual Benefit'!JH3*$B3 -> 25000 | JJ3: ='Case 2 - Residual Benefit'!JI3*$B3 -> 25000 | JK3: ='Case 2 - Residual Benefit'!JJ3*$B3 -> 25000 | JL3: ='Case 2 - Residual Benefit'!JK3*$B3 -> 25000 | JM3: ='Case 2 - Residual Benefit'!JL3*$B3 -> 25000 | JN3: ='Case 2 - Residual Benefit'!JM3*$B3 -> 25000 | JO3: ='Case 2 - Residual Benefit'!JN3*$B3 -> 25000 | JP3: ='Case 2 - Residual Benefit'!JO3*$B3 -> 25000 | JQ3: ='Case 2 - Residual Benefit'!JP3*$B3 -> 25000 | JR3: ='Case 2 - Residual Benefit'!JQ3*$B3 -> 25000 | JS3: ='Case 2 - Residual Benefit'!JR3*$B3 -> 25000 | JT3: ='Case 2 - Residual Benefit'!JS3*$B3 -> 25000 | JU3: ='Case 2 - Residual Benefit'!JT3*$B3 -> 25000 | JV3: ='Case 2 - Residual Benefit'!JU3*$B3 -> 25000 | JW3: ='Case 2 - Residual Benefit'!JV3*$B3 -> 25000 | JX3: ='Case 2 - Residual Benefit'!JW3*$B3 -> 25000 | JY3: ='Case 2 - Residual Benefit'!JX3*$B3 -> 25000 | JZ3: ='Case 2 - Residual Benefit'!JY3*$B3 -> 25000 | KA3: ='Case 2 - Residual Benefit'!JZ3*$B3 -> 25000 | KB3: ='Case 2 - Residual Benefit'!KA3*$B3 -> 25000 | KC3: ='Case 2 - Residual Benefit'!KB3*$B3 -> 25000 | KD3: ='Case 2 - Residual Benefit'!KC3*$B3 -> 25000 | KE3: ='Case 2 - Residual Benefit'!KD3*$B3 -> 25000 | KF3: ='Case 2 - Residual Benefit'!KE3*$B3 -> 25000 | KG3: ='Case 2 - Residual Benefit'!KF3*$B3 -> 25000 | KH3: ='Case 2 - Residual Benefit'!KG3*$B3 -> 25000 | KI3: ='Case 2 - Residual Benefit'!KH3*$B3 -> 25000 | KJ3: ='Case 2 - Residual Benefit'!KI3*$B3 -> 25000 | KK3: ='Case 2 - Residual Benefit'!KJ3*$B3 -> 25000 | KL3: ='Case 2 - Residual Benefit'!KK3*$B3 -> 25000 | KM3: ='Case 2 - Residual Benefit'!KL3*$B3 -> 25000 | KN3: ='Case 2 - Residual Benefit'!KM3*$B3 -> 25000 | KO3: ='Case 2 - Residual Benefit'!KN3*$B3 -> 25000 | KP3: ='Case 2 - Residual Benefit'!KO3*$B3 -> 25000 | KQ3: ='Case 2 - Residual Benefit'!KP3*$B3 -> 25000 | KR3: ='Case 2 - Residual Benefit'!KQ3*$B3 -> 25000 | KS3: ='Case 2 - Residual Benefit'!KR3*$B3 -> 25000 | KT3: ='Case 2 - Residual Benefit'!KS3*$B3 -> 25000 | KU3: ='Case 2 - Residual Benefit'!KT3*$B3 -> 25000 | KV3: ='Case 2 - Residual Benefit'!KU3*$B3 -> 25000 | KW3: ='Case 2 - Residual Benefit'!KV3*$B3 -> 25000 | KX3: ='Case 2 - Residual Benefit'!KW3*$B3 -> 25000 | KY3: ='Case 2 - Residual Benefit'!KX3*$B3 -> 25000 | KZ3: ='Case 2 - Residual Benefit'!KY3*$B3 -> 25000 | LA3: ='Case 2 - Residual Benefit'!KZ3*$B3 -> 25000 | LB3: ='Case 2 - Residual Benefit'!LA3*$B3 -> 25000 | LC3: ='Case 2 - Residual Benefit'!LB3*$B3 -> 25000 | LD3: ='Case 2 - Residual Benefit'!LC3*$B3 -> 25000 | LE3: ='Case 2 - Residual Benefit'!LD3*$B3 -> 25000 | LF3: ='Case 2 - Residual Benefit'!LE3*$B3 -> 25000 | LG3: ='Case 2 - Residual Benefit'!LF3*$B3 -> 25000 | LH3: ='Case 2 - Residual Benefit'!LG3*$B3 -> 25000 | LI3: ='Case 2 - Residual Benefit'!LH3*$B3 -> 25000 | LJ3: ='Case 2 - Residual Benefit'!LI3*$B3 -> 25000 | LK3: ='Case 2 - Residual Benefit'!LJ3*$B3 -> 25000 | LL3: ='Case 2 - Residual Benefit'!LK3*$B3 -> 25000 | LM3: ='Case 2 - Residual Benefit'!LL3*$B3 -> 25000 | LN3: ='Case 2 - Residual Benefit'!LM3*$B3 -> 25000 | LO3: ='Case 2 - Residual Benefit'!LN3*$B3 -> 25000 | LP3: ='Case 2 - Residual Benefit'!LO3*$B3 -> 25000 | LQ3: ='Case 2 - Residual Benefit'!LP3*$B3 -> 25000 | LR3: ='Case 2 - Residual Benefit'!LQ3*$B3 -> 25000 | LS3: ='Case 2 - Residual Benefit'!LR3*$B3 -> 25000 | LT3: ='Case 2 - Residual Benefit'!LS3*$B3 -> 25000 | LU3: ='Case 2 - Residual Benefit'!LT3*$B3 -> 25000 | LV3: ='Case 2 - Residual Benefit'!LU3*$B3 -> 25000 | LW3: ='Case 2 - Residual Benefit'!LV3*$B3 -> 25000 | LX3: ='Case 2 - Residual Benefit'!LW3*$B3 -> 25000 | LY3: ='Case 2 - Residual Benefit'!LX3*$B3 -> 25000 | LZ3: ='Case 2 - Residual Benefit'!LY3*$B3 -> 25000 | MA3: ='Case 2 - Residual Benefit'!LZ3*$B3 -> 25000 | MB3: ='Case 2 - Residual Benefit'!MA3*$B3 -> 25000 | MC3: ='Case 2 - Residual Benefit'!MB3*$B3 -> 25000 | MD3: ='Case 2 - Residual Benefit'!MC3*$B3 -> 25000 | ME3: ='Case 2 - Residual Benefit'!MD3*$B3 -> 25000 | MF3: ='Case 2 - Residual Benefit'!ME3*$B3 -> 25000 | MG3: ='Case 2 - Residual Benefit'!MF3*$B3 -> 25000 | MH3: ='Case 2 - Residual Benefit'!MG3*$B3 -> 25000 | MI3: ='Case 2 - Residual Benefit'!MH3*$B3 -> 25000 | MJ3: ='Case 2 - Residual Benefit'!MI3*$B3 -> 25000 | MK3: ='Case 2 - Residual Benefit'!MJ3*$B3 -> 25000 | ML3: ='Case 2 - Residual Benefit'!MK3*$B3 -> 25000 | MM3: ='Case 2 - Residual Benefit'!ML3*$B3 -> 25000 | MN3: ='Case 2 - Residual Benefit'!MM3*$B3 -> 25000 | MO3: ='Case 2 - Residual Benefit'!MN3*$B3 -> 25000 | MP3: ='Case 2 - Residual Benefit'!MO3*$B3 -> 25000 | MQ3: ='Case 2 - Residual Benefit'!MP3*$B3 -> 25000 | MR3: ='Case 2 - Residual Benefit'!MQ3*$B3 -> 25000 | MS3: ='Case 2 - Residual Benefit'!MR3*$B3 -> 25000 | MT3: ='Case 2 - Residual Benefit'!MS3*$B3 -> 25000 | MU3: ='Case 2 - Residual Benefit'!MT3*$B3 -> 25000 | MV3: ='Case 2 - Residual Benefit'!MU3*$B3 -> 25000 | MW3: ='Case 2 - Residual Benefit'!MV3*$B3 -> 25000 | MX3: ='Case 2 - Residual Benefit'!MW3*$B3 -> 25000 | MY3: ='Case 2 - Residual Benefit'!MX3*$B3 -> 25000 | MZ3: ='Case 2 - Residual Benefit'!MY3*$B3 -> 25000 | NA3: ='Case 2 - Residual Benefit'!MZ3*$B3 -> 25000 | NB3: ='Case 2 - Residual Benefit'!NA3*$B3 -> 25000 | NC3: ='Case 2 - Residual Benefit'!NB3*$B3 -> 25000 | ND3: ='Case 2 - Residual Benefit'!NC3*$B3 -> 25000 | NE3: ='Case 2 - Residual Benefit'!ND3*$B3 -> 25000 | NF3: ='Case 2 - Residual Benefit'!NE3*$B3 -> 25000 | NG3: ='Case 2 - Residual Benefit'!NF3*$B3 -> 25000 | NH3: ='Case 2 - Residual Benefit'!NG3*$B3 -> 25000 | NI3: ='Case 2 - Residual Benefit'!NH3*$B3 -> 25000 | NJ3: ='Case 2 - Residual Benefit'!NI3*$B3 -> 25000 | NK3: ='Case 2 - Residual Benefit'!NJ3*$B3 -> 25000 | NL3: ='Case 2 - Residual Benefit'!NK3*$B3 -> 25000 | NM3: ='Case 2 - Residual Benefit'!NL3*$B3 -> 25000 | NN3: ='Case 2 - Residual Benefit'!NM3*$B3 -> 25000 | NO3: ='Case 2 - Residual Benefit'!NN3*$B3 -> 25000 | NP3: ='Case 2 - Residual Benefit'!NO3*$B3 -> 25000 | NQ3: ='Case 2 - Residual Benefit'!NP3*$B3 -> 25000 | NR3: ='Case 2 - Residual Benefit'!NQ3*$B3 -> 25000 | NS3: ='Case 2 - Residual Benefit'!NR3*$B3 -> 25000 | NT3: ='Case 2 - Residual Benefit'!NS3*$B3 -> 25000 | NU3: ='Case 2 - Residual Benefit'!NT3*$B3 -> 25000 | NV3: ='Case 2 - Residual Benefit'!NU3*$B3 -> 25000 | NW3: ='Case 2 - Residual Benefit'!NV3*$B3 -> 25000 | NX3: ='Case 2 - Residual Benefit'!NW3*$B3 -> 25000 | NY3: ='Case 2 - Residual Benefit'!NX3*$B3 -> 25000 | NZ3: ='Case 2 - Residual Benefit'!NY3*$B3 -> 25000 | OA3: ='Case 2 - Residual Benefit'!NZ3*$B3 -> 25000 | OB3: ='Case 2 - Residual Benefit'!OA3*$B3 -> 25000 | OC3: ='Case 2 - Residual Benefit'!OB3*$B3 -> 25000 | OD3: ='Case 2 - Residual Benefit'!OC3*$B3 -> 25000 | OE3: ='Case 2 - Residual Benefit'!OD3*$B3 -> 25000 | OF3: ='Case 2 - Residual Benefit'!OE3*$B3 -> 25000 | OG3: ='Case 2 - Residual Benefit'!OF3*$B3 -> 25000 | OH3: ='Case 2 - Residual Benefit'!OG3*$B3 -> 25000 | OI3: ='Case 2 - Residual Benefit'!OH3*$B3 -> 25000 | OJ3: ='Case 2 - Residual Benefit'!OI3*$B3 -> 25000 | OK3: ='Case 2 - Residual Benefit'!OJ3*$B3 -> 25000 | OL3: ='Case 2 - Residual Benefit'!OK3*$B3 -> 25000 | OM3: ='Case 2 - Residual Benefit'!OL3*$B3 -> 25000 | ON3: ='Case 2 - Residual Benefit'!OM3*$B3 -> 25000 | OO3: ='Case 2 - Residual Benefit'!ON3*$B3 -> 25000 | OP3: ='Case 2 - Residual Benefit'!OO3*$B3 -> 25000 | OQ3: ='Case 2 - Residual Benefit'!OP3*$B3 -> 25000 | OR3: ='Case 2 - Residual Benefit'!OQ3*$B3 -> 25000 | OS3: ='Case 2 - Residual Benefit'!OR3*$B3 -> 25000 | OT3: ='Case 2 - Residual Benefit'!OS3*$B3 -> 25000 | OU3: ='Case 2 - Residual Benefit'!OT3*$B3 -> 25000 | OV3: ='Case 2 - Residual Benefit'!OU3*$B3 -> 25000 | OW3: ='Case 2 - Residual Benefit'!OV3*$B3 -> 25000 | OX3: ='Case 2 - Residual Benefit'!OW3*$B3 -> 25000 | OY3: ='Case 2 - Residual Benefit'!OX3*$B3 -> 25000 | OZ3: ='Case 2 - Residual Benefit'!OY3*$B3 -> 25000 | PA3: ='Case 2 - Residual Benefit'!OZ3*$B3 -> 25000 | PB3: ='Case 2 - Residual Benefit'!PA3*$B3 -> 25000 | PC3: ='Case 2 - Residual Benefit'!PB3*$B3 -> 25000 | PD3: ='Case 2 - Residual Benefit'!PC3*$B3 -> 25000 | PE3: ='Case 2 - Residual Benefit'!PD3*$B3 -> 25000 | PF3: ='Case 2 - Residual Benefit'!PE3*$B3 -> 25000 | PG3: ='Case 2 - Residual Benefit'!PF3*$B3 -> 25000 | PH3: ='Case 2 - Residual Benefit'!PG3*$B3 -> 25000 | PI3: ='Case 2 - Residual Benefit'!PH3*$B3 -> 25000 | PJ3: ='Case 2 - Residual Benefit'!PI3*$B3 -> 25000 | PK3: ='Case 2 - Residual Benefit'!PJ3*$B3 -> 25000 | PL3: ='Case 2 - Residual Benefit'!PK3*$B3 -> 25000 | PM3: ='Case 2 - Residual Benefit'!PL3*$B3 -> 25000 | PN3: ='Case 2 - Residual Benefit'!PM3*$B3 -> 25000 | PO3: ='Case 2 - Residual Benefit'!PN3*$B3 -> 25000 | PP3: ='Case 2 - Residual Benefit'!PO3*$B3 -> 25000 | PQ3: ='Case 2 - Residual Benefit'!PP3*$B3 -> 25000 | PR3: ='Case 2 - Residual Benefit'!PQ3*$B3 -> 25000 | PS3: ='Case 2 - Residual Benefit'!PR3*$B3 -> 25000 | PT3: ='Case 2 - Residual Benefit'!PS3*$B3 -> 25000 | PU3: ='Case 2 - Residual Benefit'!PT3*$B3 -> 25000 | PV3: ='Case 2 - Residual Benefit'!PU3*$B3 -> 25000 | PW3: ='Case 2 - Residual Benefit'!PV3*$B3 -> 25000 | PX3: ='Case 2 - Residual Benefit'!PW3*$B3 -> 25000 | PY3: ='Case 2 - Residual Benefit'!PX3*$B3 -> 25000 | PZ3: ='Case 2 - Residual Benefit'!PY3*$B3 -> 25000 | QA3: ='Case 2 - Residual Benefit'!PZ3*$B3 -> 25000 | QB3: ='Case 2 - Residual Benefit'!QA3*$B3 -> 25000 | QC3: ='Case 2 - Residual Benefit'!QB3*$B3 -> 25000 | QD3: ='Case 2 - Residual Benefit'!QC3*$B3 -> 25000 | QE3: ='Case 2 - Residual Benefit'!QD3*$B3 -> 25000 | QF3: ='Case 2 - Residual Benefit'!QE3*$B3 -> 25000 | QG3: ='Case 2 - Residual Benefit'!QF3*$B3 -> 25000 | QH3: ='Case 2 - Residual Benefit'!QG3*$B3 -> 25000 | QI3: ='Case 2 - Residual Benefit'!QH3*$B3 -> 25000 | QJ3: ='Case 2 - Residual Benefit'!QI3*$B3 -> 25000 | QK3: ='Case 2 - Residual Benefit'!QJ3*$B3 -> 25000 | QL3: ='Case 2 - Residual Benefit'!QK3*$B3 -> 25000 | QM3: ='Case 2 - Residual Benefit'!QL3*$B3 -> 25000 | QN3: ='Case 2 - Residual Benefit'!QM3*$B3 -> 25000 | QO3: ='Case 2 - Residual Benefit'!QN3*$B3 -> 25000 | QP3: ='Case 2 - Residual Benefit'!QO3*$B3 -> 25000 | QQ3: ='Case 2 - Residual Benefit'!QP3*$B3 -> 25000 | QR3: ='Case 2 - Residual Benefit'!QQ3*$B3 -> 25000 | QS3: ='Case 2 - Residual Benefit'!QR3*$B3 -> 25000 | QT3: ='Case 2 - Residual Benefit'!QS3*$B3 -> 25000 | QU3: ='Case 2 - Residual Benefit'!QT3*$B3 -> 25000 | QV3: ='Case 2 - Residual Benefit'!QU3*$B3 -> 25000 | QW3: ='Case 2 - Residual Benefit'!QV3*$B3 -> 25000 | QX3: ='Case 2 - Residual Benefit'!QW3*$B3 -> 25000 | QY3: ='Case 2 - Residual Benefit'!QX3*$B3 -> 25000 | QZ3: ='Case 2 - Residual Benefit'!QY3*$B3 -> 25000 | RA3: ='Case 2 - Residual Benefit'!QZ3*$B3 -> 25000 | RB3: ='Case 2 - Residual Benefit'!RA3*$B3 -> 25000 | RC3: ='Case 2 - Residual Benefit'!RB3*$B3 -> 25000 | RD3: ='Case 2 - Residual Benefit'!RC3*$B3 -> 25000 | RE3: ='Case 2 - Residual Benefit'!RD3*$B3 -> 25000 | RF3: ='Case 2 - Residual Benefit'!RE3*$B3 -> 25000 | RG3: ='Case 2 - Residual Benefit'!RF3*$B3 -> 25000 | RH3: ='Case 2 - Residual Benefit'!RG3*$B3 -> 25000 | RI3: ='Case 2 - Residual Benefit'!RH3*$B3 -> 25000 | RJ3: ='Case 2 - Residual Benefit'!RI3*$B3 -> 25000 | RK3: ='Case 2 - Residual Benefit'!RJ3*$B3 -> 25000 | RL3: ='Case 2 - Residual Benefit'!RK3*$B3 -> 25000 | RM3: ='Case 2 - Residual Benefit'!RL3*$B3 -> 25000 | RN3: ='Case 2 - Residual Benefit'!RM3*$B3 -> 25000 | RO3: ='Case 2 - Residual Benefit'!RN3*$B3 -> 25000 | RP3: ='Case 2 - Residual Benefit'!RO3*$B3 -> 25000 | RQ3: ='Case 2 - Residual Benefit'!RP3*$B3 -> 25000 | RR3: ='Case 2 - Residual Benefit'!RQ3*$B3 -> 25000 | RS3: ='Case 2 - Residual Benefit'!RR3*$B3 -> 25000 | RT3: ='Case 2 - Residual Benefit'!RS3*$B3 -> 25000 | RU3: ='Case 2 - Residual Benefit'!RT3*$B3 -> 25000 | RV3: ='Case 2 - Residual Benefit'!RU3*$B3 -> 25000 | RW3: ='Case 2 - Residual Benefit'!RV3*$B3 -> 25000 | RX3: ='Case 2 - Residual Benefit'!RW3*$B3 -> 25000 | RY3: ='Case 2 - Residual Benefit'!RX3*$B3 -> 25000 | RZ3: ='Case 2 - Residual Benefit'!RY3*$B3 -> 25000 | SA3: ='Case 2 - Residual Benefit'!RZ3*$B3 -> 25000 | SB3: ='Case 2 - Residual Benefit'!SA3*$B3 -> 25000 | SC3: ='Case 2 - Residual Benefit'!SB3*$B3 -> 25000 | SD3: ='Case 2 - Residual Benefit'!SC3*$B3 -> 25000 | SE3: ='Case 2 - Residual Benefit'!SD3*$B3 -> 25000 | SF3: ='Case 2 - Residual Benefit'!SE3*$B3 -> 25000 | SG3: ='Case 2 - Residual Benefit'!SF3*$B3 -> 25000 | SH3: ='Case 2 - Residual Benefit'!SG3*$B3 -> 25000
... 4 more rows

Sheet Case 2 - Income (hidden)
A1: Income
A2: Year | B2: 1 | C2: 2 | D2: 3 | E2: 4 | F2: 5 | G2: 6 | H2: 7 | I2: 8 | J2: 9 | K2: 10 | L2: 11 | M2: 12 | N2: 13 | O2: 14 | P2: 15 | Q2: 16 | R2: 17 | S2: 18 | T2: 19 | U2: 20 | V2: 21 | W2: 22 | X2: 23 | Y2: 24 | Z2: 25 | AA2: 26 | AB2: 27 | AC2: 28 | AD2: 29 | AE2: 30 | AF2: 31 | AG2: 32 | AH2: 33 | AI2: 34 | AJ2: 35 | AK2: 36 | AL2: 37 | AM2: 38 | AN2: 39 | AO2: 40 | AP2: 41 | AQ2: 42 | AR2: 43 | AS2: 44 | AT2: 45 | AU2: 46 | AV2: 47 | AW2: 48 | AX2: 49 | AY2: 50 | AZ2: 51 | BA2: 52 | BB2: 53 | BC2: 54 | BD2: 55 | BE2: 56 | BF2: 57 | BG2: 58 | BH2: 59 | BI2: 60 | BJ2: 61 | BK2: 62 | BL2: 63 | BM2: 64 | BN2: 65 | BO2: 66 | BP2: 67 | BQ2: 68 | BR2: 69 | BS2: 70 | BT2: 71 | BU2: 72 | BV2: 73 | BW2: 74 | BX2: 75 | BY2: 76 | BZ2: 77 | CA2: 78 | CB2: 79 | CC2: 80 | CD2: 81 | CE2: 82 | CF2: 83 | CG2: 84 | CH2: 85 | CI2: 86 | CJ2: 87 | CK2: 88 | CL2: 89 | CM2: 90 | CN2: 91 | CO2: 92 | CP2: 93 | CQ2: 94 | CR2: 95 | CS2: 96 | CT2: 97 | CU2: 98 | CV2: 99 | CW2: 100 | CX2: 101 | CY2: 102 | CZ2: 103 | DA2: 104 | DB2: 105 | DC2: 106 | DD2: 107 | DE2: 108 | DF2: 109 | DG2: 110 | DH2: 111 | DI2: 112 | DJ2: 113 | DK2: 114 | DL2: 115 | DM2: 116 | DN2: 117 | DO2: 118 | DP2: 119 | DQ2: 120 | DR2: 121 | DS2: 122 | DT2: 123 | DU2: 124 | DV2: 125 | DW2: 126 | DX2: 127 | DY2: 128 | DZ2: 129 | EA2: 130 | EB2: 131 | EC2: 132 | ED2: 133 | EE2: 134 | EF2: 135 | EG2: 136 | EH2: 137 | EI2: 138 | EJ2: 139 | EK2: 140 | EL2: 141 | EM2: 142 | EN2: 143 | EO2: 144 | EP2: 145 | EQ2: 146 | ER2: 147 | ES2: 148 | ET2: 149 | EU2: 150 | EV2: 151 | EW2: 152 | EX2: 153 | EY2: 154 | EZ2: 155 | FA2: 156 | FB2: 157 | FC2: 158 | FD2: 159 | FE2: 160 | FF2: 161 | FG2: 162 | FH2: 163 | FI2: 164 | FJ2: 165 | FK2: 166 | FL2: 167 | FM2: 168 | FN2: 169 | FO2: 170 | FP2: 171 | FQ2: 172 | FR2: 173 | FS2: 174 | FT2: 175 | FU2: 176 | FV2: 177 | FW2: 178 | FX2: 179 | FY2: 180 | FZ2: 181 | GA2: 182 | GB2: 183 | GC2: 184 | GD2: 185 | GE2: 186 | GF2: 187 | GG2: 188 | GH2: 189 | GI2: 190 | GJ2: 191 | GK2: 192 | GL2: 193 | GM2: 194 | GN2: 195 | GO2: 196 | GP2: 197 | GQ2: 198 | GR2: 199 | GS2: 200 | GT2: 201 | GU2: 202 | GV2: 203 | GW2: 204 | GX2: 205 | GY2: 206 | GZ2: 207 | HA2: 208 | HB2: 209 | HC2: 210 | HD2: 211 | HE2: 212 | HF2: 213 | HG2: 214 | HH2: 215 | HI2: 216 | HJ2: 217 | HK2: 218 | HL2: 219 | HM2: 220 | HN2: 221 | HO2: 222 | HP2: 223 | HQ2: 224 | HR2: 225 | HS2: 226 | HT2: 227 | HU2: 228 | HV2: 229 | HW2: 230 | HX2: 231 | HY2: 232 | HZ2: 233 | IA2: 234 | IB2: 235 | IC2: 236 | ID2: 237 | IE2: 238 | IF2: 239 | IG2: 240 | IH2: 241 | II2: 242 | IJ2: 243 | IK2: 244 | IL2: 245 | IM2: 246 | IN2: 247 | IO2: 248 | IP2: 249 | IQ2: 250 | IR2: 251 | IS2: 252 | IT2: 253 | IU2: 254 | IV2: 255 | IW2: 256 | IX2: 257 | IY2: 258 | IZ2: 259 | JA2: 260 | JB2: 261 | JC2: 262 | JD2: 263 | JE2: 264 | JF2: 265 | JG2: 266 | JH2: 267 | JI2: 268 | JJ2: 269 | JK2: 270 | JL2: 271 | JM2: 272 | JN2: 273 | JO2: 274 | JP2: 275 | JQ2: 276 | JR2: 277 | JS2: 278 | JT2: 279 | JU2: 280 | JV2: 281 | JW2: 282 | JX2: 283 | JY2: 284 | JZ2: 285 | KA2: 286 | KB2: 287 | KC2: 288 | KD2: 289 | KE2: 290 | KF2: 291 | KG2: 292 | KH2: 293 | KI2: 294 | KJ2: 295 | KK2: 296 | KL2: 297 | KM2: 298 | KN2: 299 | KO2: 300 | KP2: 301 | KQ2: 302 | KR2: 303 | KS2: 304 | KT2: 305 | KU2: 306 | KV2: 307 | KW2: 308 | KX2: 309 | KY2: 310 | KZ2: 311 | LA2: 312 | LB2: 313 | LC2: 314 | LD2: 315 | LE2: 316 | LF2: 317 | LG2: 318 | LH2: 319 | LI2: 320 | LJ2: 321 | LK2: 322 | LL2: 323 | LM2: 324 | LN2: 325 | LO2: 326 | LP2: 327 | LQ2: 328 | LR2: 329 | LS2: 330 | LT2: 331 | LU2: 332 | LV2: 333 | LW2: 334 | LX2: 335 | LY2: 336 | LZ2: 337 | MA2: 338 | MB2: 339 | MC2: 340 | MD2: 341 | ME2: 342 | MF2: 343 | MG2: 344 | MH2: 345 | MI2: 346 | MJ2: 347 | MK2: 348 | ML2: 349 | MM2: 350 | MN2: 351 | MO2: 352 | MP2: 353 | MQ2: 354 | MR2: 355 | MS2: 356 | MT2: 357 | MU2: 358 | MV2: 359 | MW2: 360 | MX2: 361 | MY2: 362 | MZ2: 363 | NA2: 364 | NB2: 365 | NC2: 366 | ND2: 367 | NE2: 368 | NF2: 369 | NG2: 370 | NH2: 371 | NI2: 372 | NJ2: 373 | NK2: 374 | NL2: 375 | NM2: 376 | NN2: 377 | NO2: 378 | NP2: 379 | NQ2: 380 | NR2: 381 | NS2: 382 | NT2: 383 | NU2: 384 | NV2: 385 | NW2: 386 | NX2: 387 | NY2: 388 | NZ2: 389 | OA2: 390 | OB2: 391 | OC2: 392 | OD2: 393 | OE2: 394 | OF2: 395 | OG2: 396 | OH2: 397 | OI2: 398 | OJ2: 399 | OK2: 400 | OL2: 401 | OM2: 402 | ON2: 403 | OO2: 404 | OP2: 405 | OQ2: 406 | OR2: 407 | OS2: 408 | OT2: 409 | OU2: 410 | OV2: 411 | OW2: 412 | OX2: 413 | OY2: 414 | OZ2: 415 | PA2: 416 | PB2: 417 | PC2: 418 | PD2: 419 | PE2: 420 | PF2: 421 | PG2: 422 | PH2: 423 | PI2: 424 | PJ2: 425 | PK2: 426 | PL2: 427 | PM2: 428 | PN2: 429 | PO2: 430 | PP2: 431 | PQ2: 432 | PR2: 433 | PS2: 434 | PT2: 435 | PU2: 436 | PV2: 437 | PW2: 438 | PX2: 439 | PY2: 440 | PZ2: 441 | QA2: 442 | QB2: 443 | QC2: 444 | QD2: 445 | QE2: 446 | QF2: 447 | QG2: 448 | QH2: 449 | QI2: 450 | QJ2: 451 | QK2: 452 | QL2: 453 | QM2: 454 | QN2: 455 | QO2: 456 | QP2: 457 | QQ2: 458 | QR2: 459 | QS2: 460 | QT2: 461 | QU2: 462 | QV2: 463 | QW2: 464 | QX2: 465 | QY2: 466 | QZ2: 467 | RA2: 468 | RB2: 469 | RC2: 470 | RD2: 471 | RE2: 472 | RF2: 473 | RG2: 474 | RH2: 475 | RI2: 476 | RJ2: 477 | RK2: 478 | RL2: 479 | RM2: 480 | RN2: 481 | RO2: 482 | RP2: 483 | RQ2: 484 | RR2: 485 | RS2: 486 | RT2: 487 | RU2: 488 | RV2: 489 | RW2: 490 | RX2: 491 | RY2: 492 | RZ2: 493 | SA2: 494 | SB2: 495 | SC2: 496 | SD2: 497 | SE2: 498 | SF2: 499 | SG2: 500
A3: 0 | B3: ='Case 2 - Drawdown'!C3+'Case 2 - AP'!B3 -> 29986.8 | C3: ='Case 2 - Drawdown'!D3+'Case 2 - AP'!C3 -> 29986.8 | D3: ='Case 2 - Drawdown'!E3+'Case 2 - AP'!D3 -> 29986.8 | E3: ='Case 2 - Drawdown'!F3+'Case 2 - AP'!E3 -> 29986.8 | F3: ='Case 2 - Drawdown'!G3+'Case 2 - AP'!F3 -> 29986.8 | G3: ='Case 2 - Drawdown'!H3+'Case 2 - AP'!G3 -> 29986.8 | H3: ='Case 2 - Drawdown'!I3+'Case 2 - AP'!H3 -> 29986.8 | I3: ='Case 2 - Drawdown'!J3+'Case 2 - AP'!I3 -> 29986.8 | J3: ='Case 2 - Drawdown'!K3+'Case 2 - AP'!J3 -> 29986.8 | K3: ='Case 2 - Drawdown'!L3+'Case 2 - AP'!K3 -> 29986.8 | L3: ='Case 2 - Drawdown'!M3+'Case 2 - AP'!L3 -> 29986.8 | M3: ='Case 2 - Drawdown'!N3+'Case 2 - AP'!M3 -> 29986.8 | N3: ='Case 2 - Drawdown'!O3+'Case 2 - AP'!N3 -> 29986.8 | O3: ='Case 2 - Drawdown'!P3+'Case 2 - AP'!O3 -> 29986.8 | P3: ='Case 2 - Drawdown'!Q3+'Case 2 - AP'!P3 -> 29986.8 | Q3: ='Case 2 - Drawdown'!R3+'Case 2 - AP'!Q3 -> 29986.8 | R3: ='Case 2 - Drawdown'!S3+'Case 2 - AP'!R3 -> 29986.8 | S3: ='Case 2 - Drawdown'!T3+'Case 2 - AP'!S3 -> 29986.8 | T3: ='Case 2 - Drawdown'!U3+'Case 2 - AP'!T3 -> 29986.8 | U3: ='Case 2 - Drawdown'!V3+'Case 2 - AP'!U3 -> 29986.8 | V3: ='Case 2 - Drawdown'!W3+'Case 2 - AP'!V3 -> 29986.8 | W3: ='Case 2 - Drawdown'!X3+'Case 2 - AP'!W3 -> 29986.8 | X3: ='Case 2 - Drawdown'!Y3+'Case 2 - AP'!X3 -> 29986.8 | Y3: ='Case 2 - Drawdown'!Z3+'Case 2 - AP'!Y3 -> 29986.8 | Z3: ='Case 2 - Drawdown'!AA3+'Case 2 - AP'!Z3 -> 29986.8 | AA3: ='Case 2 - Drawdown'!AB3+'Case 2 - AP'!AA3 -> 29986.8 | AB3: ='Case 2 - Drawdown'!AC3+'Case 2 - AP'!AB3 -> 29986.8 | AC3: ='Case 2 - Drawdown'!AD3+'Case 2 - AP'!AC3 -> 29986.8 | AD3: ='Case 2 - Drawdown'!AE3+'Case 2 - AP'!AD3 -> 29986.8 | AE3: ='Case 2 - Drawdown'!AF3+'Case 2 - AP'!AE3 -> 29986.8 | AF3: ='Case 2 - Drawdown'!AG3+'Case 2 - AP'!AF3 -> 29986.8 | AG3: ='Case 2 - Drawdown'!AH3+'Case 2 - AP'!AG3 -> 29986.8 | AH3: ='Case 2 - Drawdown'!AI3+'Case 2 - AP'!AH3 -> 29986.8 | AI3: ='Case 2 - Drawdown'!AJ3+'Case 2 - AP'!AI3 -> 29986.8 | AJ3: ='Case 2 - Drawdown'!AK3+'Case 2 - AP'!AJ3 -> 29986.8 | AK3: ='Case 2 - Drawdown'!AL3+'Case 2 - AP'!AK3 -> 29986.8 | AL3: ='Case 2 - Drawdown'!AM3+'Case 2 - AP'!AL3 -> 29986.8 | AM3: ='Case 2 - Drawdown'!AN3+'Case 2 - AP'!AM3 -> 29986.8 | AN3: ='Case 2 - Drawdown'!AO3+'Case 2 - AP'!AN3 -> 29986.8 | AO3: ='Case 2 - Drawdown'!AP3+'Case 2 - AP'!AO3 -> 29986.8 | AP3: ='Case 2 - Drawdown'!AQ3+'Case 2 - AP'!AP3 -> 29986.8 | AQ3: ='Case 2 - Drawdown'!AR3+'Case 2 - AP'!AQ3 -> 29986.8 | AR3: ='Case 2 - Drawdown'!AS3+'Case 2 - AP'!AR3 -> 29986.8 | AS3: ='Case 2 - Drawdown'!AT3+'Case 2 - AP'!AS3 -> 29986.8 | AT3: ='Case 2 - Drawdown'!AU3+'Case 2 - AP'!AT3 -> 29986.8 | AU3: ='Case 2 - Drawdown'!AV3+'Case 2 - AP'!AU3 -> 29986.8 | AV3: ='Case 2 - Drawdown'!AW3+'Case 2 - AP'!AV3 -> 29986.8 | AW3: ='Case 2 - Drawdown'!AX3+'Case 2 - AP'!AW3 -> 29986.8 | AX3: ='Case 2 - Drawdown'!AY3+'Case 2 - AP'!AX3 -> 29986.8 | AY3: ='Case 2 - Drawdown'!AZ3+'Case 2 - AP'!AY3 -> 29986.8 | AZ3: ='Case 2 - Drawdown'!BA3+'Case 2 - AP'!AZ3 -> 29986.8 | BA3: ='Case 2 - Drawdown'!BB3+'Case 2 - AP'!BA3 -> 29986.8 | BB3: ='Case 2 - Drawdown'!BC3+'Case 2 - AP'!BB3 -> 29986.8 | BC3: ='Case 2 - Drawdown'!BD3+'Case 2 - AP'!BC3 -> 29986.8 | BD3: ='Case 2 - Drawdown'!BE3+'Case 2 - AP'!BD3 -> 29986.8 | BE3: ='Case 2 - Drawdown'!BF3+'Case 2 - AP'!BE3 -> 29986.8 | BF3: ='Case 2 - Drawdown'!BG3+'Case 2 - AP'!BF3 -> 29986.8 | BG3: ='Case 2 - Drawdown'!BH3+'Case 2 - AP'!BG3 -> 29986.8 | BH3: ='Case 2 - Drawdown'!BI3+'Case 2 - AP'!BH3 -> 29986.8 | BI3: ='Case 2 - Drawdown'!BJ3+'Case 2 - AP'!BI3 -> 29986.8 | BJ3: ='Case 2 - Drawdown'!BK3+'Case 2 - AP'!BJ3 -> 29986.8 | BK3: ='Case 2 - Drawdown'!BL3+'Case 2 - AP'!BK3 -> 29986.8 | BL3: ='Case 2 - Drawdown'!BM3+'Case 2 - AP'!BL3 -> 29986.8 | BM3: ='Case 2 - Drawdown'!BN3+'Case 2 - AP'!BM3 -> 29986.8 | BN3: ='Case 2 - Drawdown'!BO3+'Case 2 - AP'!BN3 -> 29986.8 | BO3: ='Case 2 - Drawdown'!BP3+'Case 2 - AP'!BO3 -> 29986.8 | BP3: ='Case 2 - Drawdown'!BQ3+'Case 2 - AP'!BP3 -> 29986.8 | BQ3: ='Case 2 - Drawdown'!BR3+'Case 2 - AP'!BQ3 -> 29986.8 | BR3: ='Case 2 - Drawdown'!BS3+'Case 2 - AP'!BR3 -> 29986.8 | BS3: ='Case 2 - Drawdown'!BT3+'Case 2 - AP'!BS3 -> 29986.8 | BT3: ='Case 2 - Drawdown'!BU3+'Case 2 - AP'!BT3 -> 29986.8 | BU3: ='Case 2 - Drawdown'!BV3+'Case 2 - AP'!BU3 -> 29986.8 | BV3: ='Case 2 - Drawdown'!BW3+'Case 2 - AP'!BV3 -> 29986.8 | BW3: ='Case 2 - Drawdown'!BX3+'Case 2 - AP'!BW3 -> 29986.8 | BX3: ='Case 2 - Drawdown'!BY3+'Case 2 - AP'!BX3 -> 29986.8 | BY3: ='Case 2 - Drawdown'!BZ3+'Case 2 - AP'!BY3 -> 29986.8 | BZ3: ='Case 2 - Drawdown'!CA3+'Case 2 - AP'!BZ3 -> 29986.8 | CA3: ='Case 2 - Drawdown'!CB3+'Case 2 - AP'!CA3 -> 29986.8 | CB3: ='Case 2 - Drawdown'!CC3+'Case 2 - AP'!CB3 -> 29986.8 | CC3: ='Case 2 - Drawdown'!CD3+'Case 2 - AP'!CC3 -> 29986.8 | CD3: ='Case 2 - Drawdown'!CE3+'Case 2 - AP'!CD3 -> 29986.8 | CE3: ='Case 2 - Drawdown'!CF3+'Case 2 - AP'!CE3 -> 29986.8 | CF3: ='Case 2 - Drawdown'!CG3+'Case 2 - AP'!CF3 -> 29986.8 | CG3: ='Case 2 - Drawdown'!CH3+'Case 2 - AP'!CG3 -> 29986.8 | CH3: ='Case 2 - Drawdown'!CI3+'Case 2 - AP'!CH3 -> 29986.8 | CI3: ='Case 2 - Drawdown'!CJ3+'Case 2 - AP'!CI3 -> 29986.8 | CJ3: ='Case 2 - Drawdown'!CK3+'Case 2 - AP'!CJ3 -> 29986.8 | CK3: ='Case 2 - Drawdown'!CL3+'Case 2 - AP'!CK3 -> 29986.8 | CL3: ='Case 2 - Drawdown'!CM3+'Case 2 - AP'!CL3 -> 29986.8 | CM3: ='Case 2 - Drawdown'!CN3+'Case 2 - AP'!CM3 -> 29986.8 | CN3: ='Case 2 - Drawdown'!CO3+'Case 2 - AP'!CN3 -> 29986.8 | CO3: ='Case 2 - Drawdown'!CP3+'Case 2 - AP'!CO3 -> 29986.8 | CP3: ='Case 2 - Drawdown'!CQ3+'Case 2 - AP'!CP3 -> 29986.8 | CQ3: ='Case 2 - Drawdown'!CR3+'Case 2 - AP'!CQ3 -> 29986.8 | CR3: ='Case 2 - Drawdown'!CS3+'Case 2 - AP'!CR3 -> 29986.8 | CS3: ='Case 2 - Drawdown'!CT3+'Case 2 - AP'!CS3 -> 29986.8 | CT3: ='Case 2 - Drawdown'!CU3+'Case 2 - AP'!CT3 -> 29986.8 | CU3: ='Case 2 - Drawdown'!CV3+'Case 2 - AP'!CU3 -> 29986.8 | CV3: ='Case 2 - Drawdown'!CW3+'Case 2 - AP'!CV3 -> 29986.8 | CW3: ='Case 2 - Drawdown'!CX3+'Case 2 - AP'!CW3 -> 29986.8 | CX3: ='Case 2 - Drawdown'!CY3+'Case 2 - AP'!CX3 -> 29986.8 | CY3: ='Case 2 - Drawdown'!CZ3+'Case 2 - AP'!CY3 -> 29986.8 | CZ3: ='Case 2 - Drawdown'!DA3+'Case 2 - AP'!CZ3 -> 29986.8 | DA3: ='Case 2 - Drawdown'!DB3+'Case 2 - AP'!DA3 -> 29986.8 | DB3: ='Case 2 - Drawdown'!DC3+'Case 2 - AP'!DB3 -> 29986.8 | DC3: ='Case 2 - Drawdown'!DD3+'Case 2 - AP'!DC3 -> 29986.8 | DD3: ='Case 2 - Drawdown'!DE3+'Case 2 - AP'!DD3 -> 29986.8 | DE3: ='Case 2 - Drawdown'!DF3+'Case 2 - AP'!DE3 -> 29986.8 | DF3: ='Case 2 - Drawdown'!DG3+'Case 2 - AP'!DF3 -> 29986.8 | DG3: ='Case 2 - Drawdown'!DH3+'Case 2 - AP'!DG3 -> 29986.8 | DH3: ='Case 2 - Drawdown'!DI3+'Case 2 - AP'!DH3 -> 29986.8 | DI3: ='Case 2 - Drawdown'!DJ3+'Case 2 - AP'!DI3 -> 29986.8 | DJ3: ='Case 2 - Drawdown'!DK3+'Case 2 - AP'!DJ3 -> 29986.8 | DK3: ='Case 2 - Drawdown'!DL3+'Case 2 - AP'!DK3 -> 29986.8 | DL3: ='Case 2 - Drawdown'!DM3+'Case 2 - AP'!DL3 -> 29986.8 | DM3: ='Case 2 - Drawdown'!DN3+'Case 2 - AP'!DM3 -> 29986.8 | DN3: ='Case 2 - Drawdown'!DO3+'Case 2 - AP'!DN3 -> 29986.8 | DO3: ='Case 2 - Drawdown'!DP3+'Case 2 - AP'!DO3 -> 29986.8 | DP3: ='Case 2 - Drawdown'!DQ3+'Case 2 - AP'!DP3 -> 29986.8 | DQ3: ='Case 2 - Drawdown'!DR3+'Case 2 - AP'!DQ3 -> 29986.8 | DR3: ='Case 2 - Drawdown'!DS3+'Case 2 - AP'!DR3 -> 29986.8 | DS3: ='Case 2 - Drawdown'!DT3+'Case 2 - AP'!DS3 -> 29986.8 | DT3: ='Case 2 - Drawdown'!DU3+'Case 2 - AP'!DT3 -> 29986.8 | DU3: ='Case 2 - Drawdown'!DV3+'Case 2 - AP'!DU3 -> 29986.8 | DV3: ='Case 2 - Drawdown'!DW3+'Case 2 - AP'!DV3 -> 29986.8 | DW3: ='Case 2 - Drawdown'!DX3+'Case 2 - AP'!DW3 -> 29986.8 | DX3: ='Case 2 - Drawdown'!DY3+'Case 2 - AP'!DX3 -> 29986.8 | DY3: ='Case 2 - Drawdown'!DZ3+'Case 2 - AP'!DY3 -> 29986.8 | DZ3: ='Case 2 - Drawdown'!EA3+'Case 2 - AP'!DZ3 -> 29986.8 | EA3: ='Case 2 - Drawdown'!EB3+'Case 2 - AP'!EA3 -> 29986.8 | EB3: ='Case 2 - Drawdown'!EC3+'Case 2 - AP'!EB3 -> 29986.8 | EC3: ='Case 2 - Drawdown'!ED3+'Case 2 - AP'!EC3 -> 29986.8 | ED3: ='Case 2 - Drawdown'!EE3+'Case 2 - AP'!ED3 -> 29986.8 | EE3: ='Case 2 - Drawdown'!EF3+'Case 2 - AP'!EE3 -> 29986.8 | EF3: ='Case 2 - Drawdown'!EG3+'Case 2 - AP'!EF3 -> 29986.8 | EG3: ='Case 2 - Drawdown'!EH3+'Case 2 - AP'!EG3 -> 29986.8 | EH3: ='Case 2 - Drawdown'!EI3+'Case 2 - AP'!EH3 -> 29986.8 | EI3: ='Case 2 - Drawdown'!EJ3+'Case 2 - AP'!EI3 -> 29986.8 | EJ3: ='Case 2 - Drawdown'!EK3+'Case 2 - AP'!EJ3 -> 29986.8 | EK3: ='Case 2 - Drawdown'!EL3+'Case 2 - AP'!EK3 -> 29986.8 | EL3: ='Case 2 - Drawdown'!EM3+'Case 2 - AP'!EL3 -> 29986.8 | EM3: ='Case 2 - Drawdown'!EN3+'Case 2 - AP'!EM3 -> 29986.8 | EN3: ='Case 2 - Drawdown'!EO3+'Case 2 - AP'!EN3 -> 29986.8 | EO3: ='Case 2 - Drawdown'!EP3+'Case 2 - AP'!EO3 -> 29986.8 | EP3: ='Case 2 - Drawdown'!EQ3+'Case 2 - AP'!EP3 -> 29986.8 | EQ3: ='Case 2 - Drawdown'!ER3+'Case 2 - AP'!EQ3 -> 29986.8 | ER3: ='Case 2 - Drawdown'!ES3+'Case 2 - AP'!ER3 -> 29986.8 | ES3: ='Case 2 - Drawdown'!ET3+'Case 2 - AP'!ES3 -> 29986.8 | ET3: ='Case 2 - Drawdown'!EU3+'Case 2 - AP'!ET3 -> 29986.8 | EU3: ='Case 2 - Drawdown'!EV3+'Case 2 - AP'!EU3 -> 29986.8 | EV3: ='Case 2 - Drawdown'!EW3+'Case 2 - AP'!EV3 -> 29986.8 | EW3: ='Case 2 - Drawdown'!EX3+'Case 2 - AP'!EW3 -> 29986.8 | EX3: ='Case 2 - Drawdown'!EY3+'Case 2 - AP'!EX3 -> 29986.8 | EY3: ='Case 2 - Drawdown'!EZ3+'Case 2 - AP'!EY3 -> 29986.8 | EZ3: ='Case 2 - Drawdown'!FA3+'Case 2 - AP'!EZ3 -> 29986.8 | FA3: ='Case 2 - Drawdown'!FB3+'Case 2 - AP'!FA3 -> 29986.8 | FB3: ='Case 2 - Drawdown'!FC3+'Case 2 - AP'!FB3 -> 29986.8 | FC3: ='Case 2 - Drawdown'!FD3+'Case 2 - AP'!FC3 -> 29986.8 | FD3: ='Case 2 - Drawdown'!FE3+'Case 2 - AP'!FD3 -> 29986.8 | FE3: ='Case 2 - Drawdown'!FF3+'Case 2 - AP'!FE3 -> 29986.8 | FF3: ='Case 2 - Drawdown'!FG3+'Case 2 - AP'!FF3 -> 29986.8 | FG3: ='Case 2 - Drawdown'!FH3+'Case 2 - AP'!FG3 -> 29986.8 | FH3: ='Case 2 - Drawdown'!FI3+'Case 2 - AP'!FH3 -> 29986.8 | FI3: ='Case 2 - Drawdown'!FJ3+'Case 2 - AP'!FI3 -> 29986.8 | FJ3: ='Case 2 - Drawdown'!FK3+'Case 2 - AP'!FJ3 -> 29986.8 | FK3: ='Case 2 - Drawdown'!FL3+'Case 2 - AP'!FK3 -> 29986.8 | FL3: ='Case 2 - Drawdown'!FM3+'Case 2 - AP'!FL3 -> 29986.8 | FM3: ='Case 2 - Drawdown'!FN3+'Case 2 - AP'!FM3 -> 29986.8 | FN3: ='Case 2 - Drawdown'!FO3+'Case 2 - AP'!FN3 -> 29986.8 | FO3: ='Case 2 - Drawdown'!FP3+'Case 2 - AP'!FO3 -> 29986.8 | FP3: ='Case 2 - Drawdown'!FQ3+'Case 2 - AP'!FP3 -> 29986.8 | FQ3: ='Case 2 - Drawdown'!FR3+'Case 2 - AP'!FQ3 -> 29986.8 | FR3: ='Case 2 - Drawdown'!FS3+'Case 2 - AP'!FR3 -> 29986.8 | FS3: ='Case 2 - Drawdown'!FT3+'Case 2 - AP'!FS3 -> 29986.8 | FT3: ='Case 2 - Drawdown'!FU3+'Case 2 - AP'!FT3 -> 29986.8 | FU3: ='Case 2 - Drawdown'!FV3+'Case 2 - AP'!FU3 -> 29986.8 | FV3: ='Case 2 - Drawdown'!FW3+'Case 2 - AP'!FV3 -> 29986.8 | FW3: ='Case 2 - Drawdown'!FX3+'Case 2 - AP'!FW3 -> 29986.8 | FX3: ='Case 2 - Drawdown'!FY3+'Case 2 - AP'!FX3 -> 29986.8 | FY3: ='Case 2 - Drawdown'!FZ3+'Case 2 - AP'!FY3 -> 29986.8 | FZ3: ='Case 2 - Drawdown'!GA3+'Case 2 - AP'!FZ3 -> 29986.8 | GA3: ='Case 2 - Drawdown'!GB3+'Case 2 - AP'!GA3 -> 29986.8 | GB3: ='Case 2 - Drawdown'!GC3+'Case 2 - AP'!GB3 -> 29986.8 | GC3: ='Case 2 - Drawdown'!GD3+'Case 2 - AP'!GC3 -> 29986.8 | GD3: ='Case 2 - Drawdown'!GE3+'Case 2 - AP'!GD3 -> 29986.8 | GE3: ='Case 2 - Drawdown'!GF3+'Case 2 - AP'!GE3 -> 29986.8 | GF3: ='Case 2 - Drawdown'!GG3+'Case 2 - AP'!GF3 -> 29986.8 | GG3: ='Case 2 - Drawdown'!GH3+'Case 2 - AP'!GG3 -> 29986.8 | GH3: ='Case 2 - Drawdown'!GI3+'Case 2 - AP'!GH3 -> 29986.8 | GI3: ='Case 2 - Drawdown'!GJ3+'Case 2 - AP'!GI3 -> 29986.8 | GJ3: ='Case 2 - Drawdown'!GK3+'Case 2 - AP'!GJ3 -> 29986.8 | GK3: ='Case 2 - Drawdown'!GL3+'Case 2 - AP'!GK3 -> 29986.8 | GL3: ='Case 2 - Drawdown'!GM3+'Case 2 - AP'!GL3 -> 29986.8 | GM3: ='Case 2 - Drawdown'!GN3+'Case 2 - AP'!GM3 -> 29986.8 | GN3: ='Case 2 - Drawdown'!GO3+'Case 2 - AP'!GN3 -> 29986.8 | GO3: ='Case 2 - Drawdown'!GP3+'Case 2 - AP'!GO3 -> 29986.8 | GP3: ='Case 2 - Drawdown'!GQ3+'Case 2 - AP'!GP3 -> 29986.8 | GQ3: ='Case 2 - Drawdown'!GR3+'Case 2 - AP'!GQ3 -> 29986.8 | GR3: ='Case 2 - Drawdown'!GS3+'Case 2 - AP'!GR3 -> 29986.8 | GS3: ='Case 2 - Drawdown'!GT3+'Case 2 - AP'!GS3 -> 29986.8 | GT3: ='Case 2 - Drawdown'!GU3+'Case 2 - AP'!GT3 -> 29986.8 | GU3: ='Case 2 - Drawdown'!GV3+'Case 2 - AP'!GU3 -> 29986.8 | GV3: ='Case 2 - Drawdown'!GW3+'Case 2 - AP'!GV3 -> 29986.8 | GW3: ='Case 2 - Drawdown'!GX3+'Case 2 - AP'!GW3 -> 29986.8 | GX3: ='Case 2 - Drawdown'!GY3+'Case 2 - AP'!GX3 -> 29986.8 | GY3: ='Case 2 - Drawdown'!GZ3+'Case 2 - AP'!GY3 -> 29986.8 | GZ3: ='Case 2 - Drawdown'!HA3+'Case 2 - AP'!GZ3 -> 29986.8 | HA3: ='Case 2 - Drawdown'!HB3+'Case 2 - AP'!HA3 -> 29986.8 | HB3: ='Case 2 - Drawdown'!HC3+'Case 2 - AP'!HB3 -> 29986.8 | HC3: ='Case 2 - Drawdown'!HD3+'Case 2 - AP'!HC3 -> 29986.8 | HD3: ='Case 2 - Drawdown'!HE3+'Case 2 - AP'!HD3 -> 29986.8 | HE3: ='Case 2 - Drawdown'!HF3+'Case 2 - AP'!HE3 -> 29986.8 | HF3: ='Case 2 - Drawdown'!HG3+'Case 2 - AP'!HF3 -> 29986.8 | HG3: ='Case 2 - Drawdown'!HH3+'Case 2 - AP'!HG3 -> 29986.8 | HH3: ='Case 2 - Drawdown'!HI3+'Case 2 - AP'!HH3 -> 29986.8 | HI3: ='Case 2 - Drawdown'!HJ3+'Case 2 - AP'!HI3 -> 29986.8 | HJ3: ='Case 2 - Drawdown'!HK3+'Case 2 - AP'!HJ3 -> 29986.8 | HK3: ='Case 2 - Drawdown'!HL3+'Case 2 - AP'!HK3 -> 29986.8 | HL3: ='Case 2 - Drawdown'!HM3+'Case 2 - AP'!HL3 -> 29986.8 | HM3: ='Case 2 - Drawdown'!HN3+'Case 2 - AP'!HM3 -> 29986.8 | HN3: ='Case 2 - Drawdown'!HO3+'Case 2 - AP'!HN3 -> 29986.8 | HO3: ='Case 2 - Drawdown'!HP3+'Case 2 - AP'!HO3 -> 29986.8 | HP3: ='Case 2 - Drawdown'!HQ3+'Case 2 - AP'!HP3 -> 29986.8 | HQ3: ='Case 2 - Drawdown'!HR3+'Case 2 - AP'!HQ3 -> 29986.8 | HR3: ='Case 2 - Drawdown'!HS3+'Case 2 - AP'!HR3 -> 29986.8 | HS3: ='Case 2 - Drawdown'!HT3+'Case 2 - AP'!HS3 -> 29986.8 | HT3: ='Case 2 - Drawdown'!HU3+'Case 2 - AP'!HT3 -> 29986.8 | HU3: ='Case 2 - Drawdown'!HV3+'Case 2 - AP'!HU3 -> 29986.8 | HV3: ='Case 2 - Drawdown'!HW3+'Case 2 - AP'!HV3 -> 29986.8 | HW3: ='Case 2 - Drawdown'!HX3+'Case 2 - AP'!HW3 -> 29986.8 | HX3: ='Case 2 - Drawdown'!HY3+'Case 2 - AP'!HX3 -> 29986.8 | HY3: ='Case 2 - Drawdown'!HZ3+'Case 2 - AP'!HY3 -> 29986.8 | HZ3: ='Case 2 - Drawdown'!IA3+'Case 2 - AP'!HZ3 -> 29986.8 | IA3: ='Case 2 - Drawdown'!IB3+'Case 2 - AP'!IA3 -> 29986.8 | IB3: ='Case 2 - Drawdown'!IC3+'Case 2 - AP'!IB3 -> 29986.8 | IC3: ='Case 2 - Drawdown'!ID3+'Case 2 - AP'!IC3 -> 29986.8 | ID3: ='Case 2 - Drawdown'!IE3+'Case 2 - AP'!ID3 -> 29986.8 | IE3: ='Case 2 - Drawdown'!IF3+'Case 2 - AP'!IE3 -> 29986.8 | IF3: ='Case 2 - Drawdown'!IG3+'Case 2 - AP'!IF3 -> 29986.8 | IG3: ='Case 2 - Drawdown'!IH3+'Case 2 - AP'!IG3 -> 29986.8 | IH3: ='Case 2 - Drawdown'!II3+'Case 2 - AP'!IH3 -> 29986.8 | II3: ='Case 2 - Drawdown'!IJ3+'Case 2 - AP'!II3 -> 29986.8 | IJ3: ='Case 2 - Drawdown'!IK3+'Case 2 - AP'!IJ3 -> 29986.8 | IK3: ='Case 2 - Drawdown'!IL3+'Case 2 - AP'!IK3 -> 29986.8 | IL3: ='Case 2 - Drawdown'!IM3+'Case 2 - AP'!IL3 -> 29986.8 | IM3: ='Case 2 - Drawdown'!IN3+'Case 2 - AP'!IM3 -> 29986.8 | IN3: ='Case 2 - Drawdown'!IO3+'Case 2 - AP'!IN3 -> 29986.8 | IO3: ='Case 2 - Drawdown'!IP3+'Case 2 - AP'!IO3 -> 29986.8 | IP3: ='Case 2 - Drawdown'!IQ3+'Case 2 - AP'!IP3 -> 29986.8 | IQ3: ='Case 2 - Drawdown'!IR3+'Case 2 - AP'!IQ3 -> 29986.8 | IR3: ='Case 2 - Drawdown'!IS3+'Case 2 - AP'!IR3 -> 29986.8 | IS3: ='Case 2 - Drawdown'!IT3+'Case 2 - AP'!IS3 -> 29986.8 | IT3: ='Case 2 - Drawdown'!IU3+'Case 2 - AP'!IT3 -> 29986.8 | IU3: ='Case 2 - Drawdown'!IV3+'Case 2 - AP'!IU3 -> 29986.8 | IV3: ='Case 2 - Drawdown'!IW3+'Case 2 - AP'!IV3 -> 29986.8 | IW3: ='Case 2 - Drawdown'!IX3+'Case 2 - AP'!IW3 -> 29986.8 | IX3: ='Case 2 - Drawdown'!IY3+'Case 2 - AP'!IX3 -> 29986.8 | IY3: ='Case 2 - Drawdown'!IZ3+'Case 2 - AP'!IY3 -> 29986.8 | IZ3: ='Case 2 - Drawdown'!JA3+'Case 2 - AP'!IZ3 -> 29986.8 | JA3: ='Case 2 - Drawdown'!JB3+'Case 2 - AP'!JA3 -> 29986.8 | JB3: ='Case 2 - Drawdown'!JC3+'Case 2 - AP'!JB3 -> 29986.8 | JC3: ='Case 2 - Drawdown'!JD3+'Case 2 - AP'!JC3 -> 29986.8 | JD3: ='Case 2 - Drawdown'!JE3+'Case 2 - AP'!JD3 -> 29986.8 | JE3: ='Case 2 - Drawdown'!JF3+'Case 2 - AP'!JE3 -> 29986.8 | JF3: ='Case 2 - Drawdown'!JG3+'Case 2 - AP'!JF3 -> 29986.8 | JG3: ='Case 2 - Drawdown'!JH3+'Case 2 - AP'!JG3 -> 29986.8 | JH3: ='Case 2 - Drawdown'!JI3+'Case 2 - AP'!JH3 -> 29986.8 | JI3: ='Case 2 - Drawdown'!JJ3+'Case 2 - AP'!JI3 -> 29986.8 | JJ3: ='Case 2 - Drawdown'!JK3+'Case 2 - AP'!JJ3 -> 29986.8 | JK3: ='Case 2 - Drawdown'!JL3+'Case 2 - AP'!JK3 -> 29986.8 | JL3: ='Case 2 - Drawdown'!JM3+'Case 2 - AP'!JL3 -> 29986.8 | JM3: ='Case 2 - Drawdown'!JN3+'Case 2 - AP'!JM3 -> 29986.8 | JN3: ='Case 2 - Drawdown'!JO3+'Case 2 - AP'!JN3 -> 29986.8 | JO3: ='Case 2 - Drawdown'!JP3+'Case 2 - AP'!JO3 -> 29986.8 | JP3: ='Case 2 - Drawdown'!JQ3+'Case 2 - AP'!JP3 -> 29986.8 | JQ3: ='Case 2 - Drawdown'!JR3+'Case 2 - AP'!JQ3 -> 29986.8 | JR3: ='Case 2 - Drawdown'!JS3+'Case 2 - AP'!JR3 -> 29986.8 | JS3: ='Case 2 - Drawdown'!JT3+'Case 2 - AP'!JS3 -> 29986.8 | JT3: ='Case 2 - Drawdown'!JU3+'Case 2 - AP'!JT3 -> 29986.8 | JU3: ='Case 2 - Drawdown'!JV3+'Case 2 - AP'!JU3 -> 29986.8 | JV3: ='Case 2 - Drawdown'!JW3+'Case 2 - AP'!JV3 -> 29986.8 | JW3: ='Case 2 - Drawdown'!JX3+'Case 2 - AP'!JW3 -> 29986.8 | JX3: ='Case 2 - Drawdown'!JY3+'Case 2 - AP'!JX3 -> 29986.8 | JY3: ='Case 2 - Drawdown'!JZ3+'Case 2 - AP'!JY3 -> 29986.8 | JZ3: ='Case 2 - Drawdown'!KA3+'Case 2 - AP'!JZ3 -> 29986.8 | KA3: ='Case 2 - Drawdown'!KB3+'Case 2 - AP'!KA3 -> 29986.8 | KB3: ='Case 2 - Drawdown'!KC3+'Case 2 - AP'!KB3 -> 29986.8 | KC3: ='Case 2 - Drawdown'!KD3+'Case 2 - AP'!KC3 -> 29986.8 | KD3: ='Case 2 - Drawdown'!KE3+'Case 2 - AP'!KD3 -> 29986.8 | KE3: ='Case 2 - Drawdown'!KF3+'Case 2 - AP'!KE3 -> 29986.8 | KF3: ='Case 2 - Drawdown'!KG3+'Case 2 - AP'!KF3 -> 29986.8 | KG3: ='Case 2 - Drawdown'!KH3+'Case 2 - AP'!KG3 -> 29986.8 | KH3: ='Case 2 - Drawdown'!KI3+'Case 2 - AP'!KH3 -> 29986.8 | KI3: ='Case 2 - Drawdown'!KJ3+'Case 2 - AP'!KI3 -> 29986.8 | KJ3: ='Case 2 - Drawdown'!KK3+'Case 2 - AP'!KJ3 -> 29986.8 | KK3: ='Case 2 - Drawdown'!KL3+'Case 2 - AP'!KK3 -> 29986.8 | KL3: ='Case 2 - Drawdown'!KM3+'Case 2 - AP'!KL3 -> 29986.8 | KM3: ='Case 2 - Drawdown'!KN3+'Case 2 - AP'!KM3 -> 29986.8 | KN3: ='Case 2 - Drawdown'!KO3+'Case 2 - AP'!KN3 -> 29986.8 | KO3: ='Case 2 - Drawdown'!KP3+'Case 2 - AP'!KO3 -> 29986.8 | KP3: ='Case 2 - Drawdown'!KQ3+'Case 2 - AP'!KP3 -> 29986.8 | KQ3: ='Case 2 - Drawdown'!KR3+'Case 2 - AP'!KQ3 -> 29986.8 | KR3: ='Case 2 - Drawdown'!KS3+'Case 2 - AP'!KR3 -> 29986.8 | KS3: ='Case 2 - Drawdown'!KT3+'Case 2 - AP'!KS3 -> 29986.8 | KT3: ='Case 2 - Drawdown'!KU3+'Case 2 - AP'!KT3 -> 29986.8 | KU3: ='Case 2 - Drawdown'!KV3+'Case 2 - AP'!KU3 -> 29986.8 | KV3: ='Case 2 - Drawdown'!KW3+'Case 2 - AP'!KV3 -> 29986.8 | KW3: ='Case 2 - Drawdown'!KX3+'Case 2 - AP'!KW3 -> 29986.8 | KX3: ='Case 2 - Drawdown'!KY3+'Case 2 - AP'!KX3 -> 29986.8 | KY3: ='Case 2 - Drawdown'!KZ3+'Case 2 - AP'!KY3 -> 29986.8 | KZ3: ='Case 2 - Drawdown'!LA3+'Case 2 - AP'!KZ3 -> 29986.8 | LA3: ='Case 2 - Drawdown'!LB3+'Case 2 - AP'!LA3 -> 29986.8 | LB3: ='Case 2 - Drawdown'!LC3+'Case 2 - AP'!LB3 -> 29986.8 | LC3: ='Case 2 - Drawdown'!LD3+'Case 2 - AP'!LC3 -> 29986.8 | LD3: ='Case 2 - Drawdown'!LE3+'Case 2 - AP'!LD3 -> 29986.8 | LE3: ='Case 2 - Drawdown'!LF3+'Case 2 - AP'!LE3 -> 29986.8 | LF3: ='Case 2 - Drawdown'!LG3+'Case 2 - AP'!LF3 -> 29986.8 | LG3: ='Case 2 - Drawdown'!LH3+'Case 2 - AP'!LG3 -> 29986.8 | LH3: ='Case 2 - Drawdown'!LI3+'Case 2 - AP'!LH3 -> 29986.8 | LI3: ='Case 2 - Drawdown'!LJ3+'Case 2 - AP'!LI3 -> 29986.8 | LJ3: ='Case 2 - Drawdown'!LK3+'Case 2 - AP'!LJ3 -> 29986.8 | LK3: ='Case 2 - Drawdown'!LL3+'Case 2 - AP'!LK3 -> 29986.8 | LL3: ='Case 2 - Drawdown'!LM3+'Case 2 - AP'!LL3 -> 29986.8 | LM3: ='Case 2 - Drawdown'!LN3+'Case 2 - AP'!LM3 -> 29986.8 | LN3: ='Case 2 - Drawdown'!LO3+'Case 2 - AP'!LN3 -> 29986.8 | LO3: ='Case 2 - Drawdown'!LP3+'Case 2 - AP'!LO3 -> 29986.8 | LP3: ='Case 2 - Drawdown'!LQ3+'Case 2 - AP'!LP3 -> 29986.8 | LQ3: ='Case 2 - Drawdown'!LR3+'Case 2 - AP'!LQ3 -> 29986.8 | LR3: ='Case 2 - Drawdown'!LS3+'Case 2 - AP'!LR3 -> 29986.8 | LS3: ='Case 2 - Drawdown'!LT3+'Case 2 - AP'!LS3 -> 29986.8 | LT3: ='Case 2 - Drawdown'!LU3+'Case 2 - AP'!LT3 -> 29986.8 | LU3: ='Case 2 - Drawdown'!LV3+'Case 2 - AP'!LU3 -> 29986.8 | LV3: ='Case 2 - Drawdown'!LW3+'Case 2 - AP'!LV3 -> 29986.8 | LW3: ='Case 2 - Drawdown'!LX3+'Case 2 - AP'!LW3 -> 29986.8 | LX3: ='Case 2 - Drawdown'!LY3+'Case 2 - AP'!LX3 -> 29986.8 | LY3: ='Case 2 - Drawdown'!LZ3+'Case 2 - AP'!LY3 -> 29986.8 | LZ3: ='Case 2 - Drawdown'!MA3+'Case 2 - AP'!LZ3 -> 29986.8 | MA3: ='Case 2 - Drawdown'!MB3+'Case 2 - AP'!MA3 -> 29986.8 | MB3: ='Case 2 - Drawdown'!MC3+'Case 2 - AP'!MB3 -> 29986.8 | MC3: ='Case 2 - Drawdown'!MD3+'Case 2 - AP'!MC3 -> 29986.8 | MD3: ='Case 2 - Drawdown'!ME3+'Case 2 - AP'!MD3 -> 29986.8 | ME3: ='Case 2 - Drawdown'!MF3+'Case 2 - AP'!ME3 -> 29986.8 | MF3: ='Case 2 - Drawdown'!MG3+'Case 2 - AP'!MF3 -> 29986.8 | MG3: ='Case 2 - Drawdown'!MH3+'Case 2 - AP'!MG3 -> 29986.8 | MH3: ='Case 2 - Drawdown'!MI3+'Case 2 - AP'!MH3 -> 29986.8 | MI3: ='Case 2 - Drawdown'!MJ3+'Case 2 - AP'!MI3 -> 29986.8 | MJ3: ='Case 2 - Drawdown'!MK3+'Case 2 - AP'!MJ3 -> 29986.8 | MK3: ='Case 2 - Drawdown'!ML3+'Case 2 - AP'!MK3 -> 29986.8 | ML3: ='Case 2 - Drawdown'!MM3+'Case 2 - AP'!ML3 -> 29986.8 | MM3: ='Case 2 - Drawdown'!MN3+'Case 2 - AP'!MM3 -> 29986.8 | MN3: ='Case 2 - Drawdown'!MO3+'Case 2 - AP'!MN3 -> 29986.8 | MO3: ='Case 2 - Drawdown'!MP3+'Case 2 - AP'!MO3 -> 29986.8 | MP3: ='Case 2 - Drawdown'!MQ3+'Case 2 - AP'!MP3 -> 29986.8 | MQ3: ='Case 2 - Drawdown'!MR3+'Case 2 - AP'!MQ3 -> 29986.8 | MR3: ='Case 2 - Drawdown'!MS3+'Case 2 - AP'!MR3 -> 29986.8 | MS3: ='Case 2 - Drawdown'!MT3+'Case 2 - AP'!MS3 -> 29986.8 | MT3: ='Case 2 - Drawdown'!MU3+'Case 2 - AP'!MT3 -> 29986.8 | MU3: ='Case 2 - Drawdown'!MV3+'Case 2 - AP'!MU3 -> 29986.8 | MV3: ='Case 2 - Drawdown'!MW3+'Case 2 - AP'!MV3 -> 29986.8 | MW3: ='Case 2 - Drawdown'!MX3+'Case 2 - AP'!MW3 -> 29986.8 | MX3: ='Case 2 - Drawdown'!MY3+'Case 2 - AP'!MX3 -> 29986.8 | MY3: ='Case 2 - Drawdown'!MZ3+'Case 2 - AP'!MY3 -> 29986.8 | MZ3: ='Case 2 - Drawdown'!NA3+'Case 2 - AP'!MZ3 -> 29986.8 | NA3: ='Case 2 - Drawdown'!NB3+'Case 2 - AP'!NA3 -> 29986.8 | NB3: ='Case 2 - Drawdown'!NC3+'Case 2 - AP'!NB3 -> 29986.8 | NC3: ='Case 2 - Drawdown'!ND3+'Case 2 - AP'!NC3 -> 29986.8 | ND3: ='Case 2 - Drawdown'!NE3+'Case 2 - AP'!ND3 -> 29986.8 | NE3: ='Case 2 - Drawdown'!NF3+'Case 2 - AP'!NE3 -> 29986.8 | NF3: ='Case 2 - Drawdown'!NG3+'Case 2 - AP'!NF3 -> 29986.8 | NG3: ='Case 2 - Drawdown'!NH3+'Case 2 - AP'!NG3 -> 29986.8 | NH3: ='Case 2 - Drawdown'!NI3+'Case 2 - AP'!NH3 -> 29986.8 | NI3: ='Case 2 - Drawdown'!NJ3+'Case 2 - AP'!NI3 -> 29986.8 | NJ3: ='Case 2 - Drawdown'!NK3+'Case 2 - AP'!NJ3 -> 29986.8 | NK3: ='Case 2 - Drawdown'!NL3+'Case 2 - AP'!NK3 -> 29986.8 | NL3: ='Case 2 - Drawdown'!NM3+'Case 2 - AP'!NL3 -> 29986.8 | NM3: ='Case 2 - Drawdown'!NN3+'Case 2 - AP'!NM3 -> 29986.8 | NN3: ='Case 2 - Drawdown'!NO3+'Case 2 - AP'!NN3 -> 29986.8 | NO3: ='Case 2 - Drawdown'!NP3+'Case 2 - AP'!NO3 -> 29986.8 | NP3: ='Case 2 - Drawdown'!NQ3+'Case 2 - AP'!NP3 -> 29986.8 | NQ3: ='Case 2 - Drawdown'!NR3+'Case 2 - AP'!NQ3 -> 29986.8 | NR3: ='Case 2 - Drawdown'!NS3+'Case 2 - AP'!NR3 -> 29986.8 | NS3: ='Case 2 - Drawdown'!NT3+'Case 2 - AP'!NS3 -> 29986.8 | NT3: ='Case 2 - Drawdown'!NU3+'Case 2 - AP'!NT3 -> 29986.8 | NU3: ='Case 2 - Drawdown'!NV3+'Case 2 - AP'!NU3 -> 29986.8 | NV3: ='Case 2 - Drawdown'!NW3+'Case 2 - AP'!NV3 -> 29986.8 | NW3: ='Case 2 - Drawdown'!NX3+'Case 2 - AP'!NW3 -> 29986.8 | NX3: ='Case 2 - Drawdown'!NY3+'Case 2 - AP'!NX3 -> 29986.8 | NY3: ='Case 2 - Drawdown'!NZ3+'Case 2 - AP'!NY3 -> 29986.8 | NZ3: ='Case 2 - Drawdown'!OA3+'Case 2 - AP'!NZ3 -> 29986.8 | OA3: ='Case 2 - Drawdown'!OB3+'Case 2 - AP'!OA3 -> 29986.8 | OB3: ='Case 2 - Drawdown'!OC3+'Case 2 - AP'!OB3 -> 29986.8 | OC3: ='Case 2 - Drawdown'!OD3+'Case 2 - AP'!OC3 -> 29986.8 | OD3: ='Case 2 - Drawdown'!OE3+'Case 2 - AP'!OD3 -> 29986.8 | OE3: ='Case 2 - Drawdown'!OF3+'Case 2 - AP'!OE3 -> 29986.8 | OF3: ='Case 2 - Drawdown'!OG3+'Case 2 - AP'!OF3 -> 29986.8 | OG3: ='Case 2 - Drawdown'!OH3+'Case 2 - AP'!OG3 -> 29986.8 | OH3: ='Case 2 - Drawdown'!OI3+'Case 2 - AP'!OH3 -> 29986.8 | OI3: ='Case 2 - Drawdown'!OJ3+'Case 2 - AP'!OI3 -> 29986.8 | OJ3: ='Case 2 - Drawdown'!OK3+'Case 2 - AP'!OJ3 -> 29986.8 | OK3: ='Case 2 - Drawdown'!OL3+'Case 2 - AP'!OK3 -> 29986.8 | OL3: ='Case 2 - Drawdown'!OM3+'Case 2 - AP'!OL3 -> 29986.8 | OM3: ='Case 2 - Drawdown'!ON3+'Case 2 - AP'!OM3 -> 29986.8 | ON3: ='Case 2 - Drawdown'!OO3+'Case 2 - AP'!ON3 -> 29986.8 | OO3: ='Case 2 - Drawdown'!OP3+'Case 2 - AP'!OO3 -> 29986.8 | OP3: ='Case 2 - Drawdown'!OQ3+'Case 2 - AP'!OP3 -> 29986.8 | OQ3: ='Case 2 - Drawdown'!OR3+'Case 2 - AP'!OQ3 -> 29986.8 | OR3: ='Case 2 - Drawdown'!OS3+'Case 2 - AP'!OR3 -> 29986.8 | OS3: ='Case 2 - Drawdown'!OT3+'Case 2 - AP'!OS3 -> 29986.8 | OT3: ='Case 2 - Drawdown'!OU3+'Case 2 - AP'!OT3 -> 29986.8 | OU3: ='Case 2 - Drawdown'!OV3+'Case 2 - AP'!OU3 -> 29986.8 | OV3: ='Case 2 - Drawdown'!OW3+'Case 2 - AP'!OV3 -> 29986.8 | OW3: ='Case 2 - Drawdown'!OX3+'Case 2 - AP'!OW3 -> 29986.8 | OX3: ='Case 2 - Drawdown'!OY3+'Case 2 - AP'!OX3 -> 29986.8 | OY3: ='Case 2 - Drawdown'!OZ3+'Case 2 - AP'!OY3 -> 29986.8 | OZ3: ='Case 2 - Drawdown'!PA3+'Case 2 - AP'!OZ3 -> 29986.8 | PA3: ='Case 2 - Drawdown'!PB3+'Case 2 - AP'!PA3 -> 29986.8 | PB3: ='Case 2 - Drawdown'!PC3+'Case 2 - AP'!PB3 -> 29986.8 | PC3: ='Case 2 - Drawdown'!PD3+'Case 2 - AP'!PC3 -> 29986.8 | PD3: ='Case 2 - Drawdown'!PE3+'Case 2 - AP'!PD3 -> 29986.8 | PE3: ='Case 2 - Drawdown'!PF3+'Case 2 - AP'!PE3 -> 29986.8 | PF3: ='Case 2 - Drawdown'!PG3+'Case 2 - AP'!PF3 -> 29986.8 | PG3: ='Case 2 - Drawdown'!PH3+'Case 2 - AP'!PG3 -> 29986.8 | PH3: ='Case 2 - Drawdown'!PI3+'Case 2 - AP'!PH3 -> 29986.8 | PI3: ='Case 2 - Drawdown'!PJ3+'Case 2 - AP'!PI3 -> 29986.8 | PJ3: ='Case 2 - Drawdown'!PK3+'Case 2 - AP'!PJ3 -> 29986.8 | PK3: ='Case 2 - Drawdown'!PL3+'Case 2 - AP'!PK3 -> 29986.8 | PL3: ='Case 2 - Drawdown'!PM3+'Case 2 - AP'!PL3 -> 29986.8 | PM3: ='Case 2 - Drawdown'!PN3+'Case 2 - AP'!PM3 -> 29986.8 | PN3: ='Case 2 - Drawdown'!PO3+'Case 2 - AP'!PN3 -> 29986.8 | PO3: ='Case 2 - Drawdown'!PP3+'Case 2 - AP'!PO3 -> 29986.8 | PP3: ='Case 2 - Drawdown'!PQ3+'Case 2 - AP'!PP3 -> 29986.8 | PQ3: ='Case 2 - Drawdown'!PR3+'Case 2 - AP'!PQ3 -> 29986.8 | PR3: ='Case 2 - Drawdown'!PS3+'Case 2 - AP'!PR3 -> 29986.8 | PS3: ='Case 2 - Drawdown'!PT3+'Case 2 - AP'!PS3 -> 29986.8 | PT3: ='Case 2 - Drawdown'!PU3+'Case 2 - AP'!PT3 -> 29986.8 | PU3: ='Case 2 - Drawdown'!PV3+'Case 2 - AP'!PU3 -> 29986.8 | PV3: ='Case 2 - Drawdown'!PW3+'Case 2 - AP'!PV3 -> 29986.8 | PW3: ='Case 2 - Drawdown'!PX3+'Case 2 - AP'!PW3 -> 29986.8 | PX3: ='Case 2 - Drawdown'!PY3+'Case 2 - AP'!PX3 -> 29986.8 | PY3: ='Case 2 - Drawdown'!PZ3+'Case 2 - AP'!PY3 -> 29986.8 | PZ3: ='Case 2 - Drawdown'!QA3+'Case 2 - AP'!PZ3 -> 29986.8 | QA3: ='Case 2 - Drawdown'!QB3+'Case 2 - AP'!QA3 -> 29986.8 | QB3: ='Case 2 - Drawdown'!QC3+'Case 2 - AP'!QB3 -> 29986.8 | QC3: ='Case 2 - Drawdown'!QD3+'Case 2 - AP'!QC3 -> 29986.8 | QD3: ='Case 2 - Drawdown'!QE3+'Case 2 - AP'!QD3 -> 29986.8 | QE3: ='Case 2 - Drawdown'!QF3+'Case 2 - AP'!QE3 -> 29986.8 | QF3: ='Case 2 - Drawdown'!QG3+'Case 2 - AP'!QF3 -> 29986.8 | QG3: ='Case 2 - Drawdown'!QH3+'Case 2 - AP'!QG3 -> 29986.8 | QH3: ='Case 2 - Drawdown'!QI3+'Case 2 - AP'!QH3 -> 29986.8 | QI3: ='Case 2 - Drawdown'!QJ3+'Case 2 - AP'!QI3 -> 29986.8 | QJ3: ='Case 2 - Drawdown'!QK3+'Case 2 - AP'!QJ3 -> 29986.8 | QK3: ='Case 2 - Drawdown'!QL3+'Case 2 - AP'!QK3 -> 29986.8 | QL3: ='Case 2 - Drawdown'!QM3+'Case 2 - AP'!QL3 -> 29986.8 | QM3: ='Case 2 - Drawdown'!QN3+'Case 2 - AP'!QM3 -> 29986.8 | QN3: ='Case 2 - Drawdown'!QO3+'Case 2 - AP'!QN3 -> 29986.8 | QO3: ='Case 2 - Drawdown'!QP3+'Case 2 - AP'!QO3 -> 29986.8 | QP3: ='Case 2 - Drawdown'!QQ3+'Case 2 - AP'!QP3 -> 29986.8 | QQ3: ='Case 2 - Drawdown'!QR3+'Case 2 - AP'!QQ3 -> 29986.8 | QR3: ='Case 2 - Drawdown'!QS3+'Case 2 - AP'!QR3 -> 29986.8 | QS3: ='Case 2 - Drawdown'!QT3+'Case 2 - AP'!QS3 -> 29986.8 | QT3: ='Case 2 - Drawdown'!QU3+'Case 2 - AP'!QT3 -> 29986.8 | QU3: ='Case 2 - Drawdown'!QV3+'Case 2 - AP'!QU3 -> 29986.8 | QV3: ='Case 2 - Drawdown'!QW3+'Case 2 - AP'!QV3 -> 29986.8 | QW3: ='Case 2 - Drawdown'!QX3+'Case 2 - AP'!QW3 -> 29986.8 | QX3: ='Case 2 - Drawdown'!QY3+'Case 2 - AP'!QX3 -> 29986.8 | QY3: ='Case 2 - Drawdown'!QZ3+'Case 2 - AP'!QY3 -> 29986.8 | QZ3: ='Case 2 - Drawdown'!RA3+'Case 2 - AP'!QZ3 -> 29986.8 | RA3: ='Case 2 - Drawdown'!RB3+'Case 2 - AP'!RA3 -> 29986.8 | RB3: ='Case 2 - Drawdown'!RC3+'Case 2 - AP'!RB3 -> 29986.8 | RC3: ='Case 2 - Drawdown'!RD3+'Case 2 - AP'!RC3 -> 29986.8 | RD3: ='Case 2 - Drawdown'!RE3+'Case 2 - AP'!RD3 -> 29986.8 | RE3: ='Case 2 - Drawdown'!RF3+'Case 2 - AP'!RE3 -> 29986.8 | RF3: ='Case 2 - Drawdown'!RG3+'Case 2 - AP'!RF3 -> 29986.8 | RG3: ='Case 2 - Drawdown'!RH3+'Case 2 - AP'!RG3 -> 29986.8 | RH3: ='Case 2 - Drawdown'!RI3+'Case 2 - AP'!RH3 -> 29986.8 | RI3: ='Case 2 - Drawdown'!RJ3+'Case 2 - AP'!RI3 -> 29986.8 | RJ3: ='Case 2 - Drawdown'!RK3+'Case 2 - AP'!RJ3 -> 29986.8 | RK3: ='Case 2 - Drawdown'!RL3+'Case 2 - AP'!RK3 -> 29986.8 | RL3: ='Case 2 - Drawdown'!RM3+'Case 2 - AP'!RL3 -> 29986.8 | RM3: ='Case 2 - Drawdown'!RN3+'Case 2 - AP'!RM3 -> 29986.8 | RN3: ='Case 2 - Drawdown'!RO3+'Case 2 - AP'!RN3 -> 29986.8 | RO3: ='Case 2 - Drawdown'!RP3+'Case 2 - AP'!RO3 -> 29986.8 | RP3: ='Case 2 - Drawdown'!RQ3+'Case 2 - AP'!RP3 -> 29986.8 | RQ3: ='Case 2 - Drawdown'!RR3+'Case 2 - AP'!RQ3 -> 29986.8 | RR3: ='Case 2 - Drawdown'!RS3+'Case 2 - AP'!RR3 -> 29986.8 | RS3: ='Case 2 - Drawdown'!RT3+'Case 2 - AP'!RS3 -> 29986.8 | RT3: ='Case 2 - Drawdown'!RU3+'Case 2 - AP'!RT3 -> 29986.8 | RU3: ='Case 2 - Drawdown'!RV3+'Case 2 - AP'!RU3 -> 29986.8 | RV3: ='Case 2 - Drawdown'!RW3+'Case 2 - AP'!RV3 -> 29986.8 | RW3: ='Case 2 - Drawdown'!RX3+'Case 2 - AP'!RW3 -> 29986.8 | RX3: ='Case 2 - Drawdown'!RY3+'Case 2 - AP'!RX3 -> 29986.8 | RY3: ='Case 2 - Drawdown'!RZ3+'Case 2 - AP'!RY3 -> 29986.8 | RZ3: ='Case 2 - Drawdown'!SA3+'Case 2 - AP'!RZ3 -> 29986.8 | SA3: ='Case 2 - Drawdown'!SB3+'Case 2 - AP'!SA3 -> 29986.8 | SB3: ='Case 2 - Drawdown'!SC3+'Case 2 - AP'!SB3 -> 29986.8 | SC3: ='Case 2 - Drawdown'!SD3+'Case 2 - AP'!SC3 -> 29986.8 | SD3: ='Case 2 - Drawdown'!SE3+'Case 2 - AP'!SD3 -> 29986.8 | SE3: ='Case 2 - Drawdown'!SF3+'Case 2 - AP'!SE3 -> 29986.8 | SF3: ='Case 2 - Drawdown'!SG3+'Case 2 - AP'!SF3 -> 29986.8 | SG3: ='Case 2 - Drawdown'!SH3+'Case 2 - AP'!SG3 -> 29986.8
... 4 more rows

Sheet Case 2 - AP
A1: Age Pension
A2: Year | B2: 1 | C2: 2 | D2: 3 | E2: 4 | F2: 5 | G2: 6 | H2: 7 | I2: 8 | J2: 9 | K2: 10 | L2: 11 | M2: 12 | N2: 13 | O2: 14 | P2: 15 | Q2: 16 | R2: 17 | S2: 18 | T2: 19 | U2: 20 | V2: 21 | W2: 22 | X2: 23 | Y2: 24 | Z2: 25 | AA2: 26 | AB2: 27 | AC2: 28 | AD2: 29 | AE2: 30 | AF2: 31 | AG2: 32 | AH2: 33 | AI2: 34 | AJ2: 35 | AK2: 36 | AL2: 37 | AM2: 38 | AN2: 39 | AO2: 40 | AP2: 41 | AQ2: 42 | AR2: 43 | AS2: 44 | AT2: 45 | AU2: 46 | AV2: 47 | AW2: 48 | AX2: 49 | AY2: 50 | AZ2: 51 | BA2: 52 | BB2: 53 | BC2: 54 | BD2: 55 | BE2: 56 | BF2: 57 | BG2: 58 | BH2: 59 | BI2: 60 | BJ2: 61 | BK2: 62 | BL2: 63 | BM2: 64 | BN2: 65 | BO2: 66 | BP2: 67 | BQ2: 68 | BR2: 69 | BS2: 70 | BT2: 71 | BU2: 72 | BV2: 73 | BW2: 74 | BX2: 75 | BY2: 76 | BZ2: 77 | CA2: 78 | CB2: 79 | CC2: 80 | CD2: 81 | CE2: 82 | CF2: 83 | CG2: 84 | CH2: 85 | CI2: 86 | CJ2: 87 | CK2: 88 | CL2: 89 | CM2: 90 | CN2: 91 | CO2: 92 | CP2: 93 | CQ2: 94 | CR2: 95 | CS2: 96 | CT2: 97 | CU2: 98 | CV2: 99 | CW2: 100 | CX2: 101 | CY2: 102 | CZ2: 103 | DA2: 104 | DB2: 105 | DC2: 106 | DD2: 107 | DE2: 108 | DF2: 109 | DG2: 110 | DH2: 111 | DI2: 112 | DJ2: 113 | DK2: 114 | DL2: 115 | DM2: 116 | DN2: 117 | DO2: 118 | DP2: 119 | DQ2: 120 | DR2: 121 | DS2: 122 | DT2: 123 | DU2: 124 | DV2: 125 | DW2: 126 | DX2: 127 | DY2: 128 | DZ2: 129 | EA2: 130 | EB2: 131 | EC2: 132 | ED2: 133 | EE2: 134 | EF2: 135 | EG2: 136 | EH2: 137 | EI2: 138 | EJ2: 139 | EK2: 140 | EL2: 141 | EM2: 142 | EN2: 143 | EO2: 144 | EP2: 145 | EQ2: 146 | ER2: 147 | ES2: 148 | ET2: 149 | EU2: 150 | EV2: 151 | EW2: 152 | EX2: 153 | EY2: 154 | EZ2: 155 | FA2: 156 | FB2: 157 | FC2: 158 | FD2: 159 | FE2: 160 | FF2: 161 | FG2: 162 | FH2: 163 | FI2: 164 | FJ2: 165 | FK2: 166 | FL2: 167 | FM2: 168 | FN2: 169 | FO2: 170 | FP2: 171 | FQ2: 172 | FR2: 173 | FS2: 174 | FT2: 175 | FU2: 176 | FV2: 177 | FW2: 178 | FX2: 179 | FY2: 180 | FZ2: 181 | GA2: 182 | GB2: 183 | GC2: 184 | GD2: 185 | GE2: 186 | GF2: 187 | GG2: 188 | GH2: 189 | GI2: 190 | GJ2: 191 | GK2: 192 | GL2: 193 | GM2: 194 | GN2: 195 | GO2: 196 | GP2: 197 | GQ2: 198 | GR2: 199 | GS2: 200 | GT2: 201 | GU2: 202 | GV2: 203 | GW2: 204 | GX2: 205 | GY2: 206 | GZ2: 207 | HA2: 208 | HB2: 209 | HC2: 210 | HD2: 211 | HE2: 212 | HF2: 213 | HG2: 214 | HH2: 215 | HI2: 216 | HJ2: 217 | HK2: 218 | HL2: 219 | HM2: 220 | HN2: 221 | HO2: 222 | HP2: 223 | HQ2: 224 | HR2: 225 | HS2: 226 | HT2: 227 | HU2: 228 | HV2: 229 | HW2: 230 | HX2: 231 | HY2: 232 | HZ2: 233 | IA2: 234 | IB2: 235 | IC2: 236 | ID2: 237 | IE2: 238 | IF2: 239 | IG2: 240 | IH2: 241 | II2: 242 | IJ2: 243 | IK2: 244 | IL2: 245 | IM2: 246 | IN2: 247 | IO2: 248 | IP2: 249 | IQ2: 250 | IR2: 251 | IS2: 252 | IT2: 253 | IU2: 254 | IV2: 255 | IW2: 256 | IX2: 257 | IY2: 258 | IZ2: 259 | JA2: 260 | JB2: 261 | JC2: 262 | JD2: 263 | JE2: 264 | JF2: 265 | JG2: 266 | JH2: 267 | JI2: 268 | JJ2: 269 | JK2: 270 | JL2: 271 | JM2: 272 | JN2: 273 | JO2: 274 | JP2: 275 | JQ2: 276 | JR2: 277 | JS2: 278 | JT2: 279 | JU2: 280 | JV2: 281 | JW2: 282 | JX2: 283 | JY2: 284 | JZ2: 285 | KA2: 286 | KB2: 287 | KC2: 288 | KD2: 289 | KE2: 290 | KF2: 291 | KG2: 292 | KH2: 293 | KI2: 294 | KJ2: 295 | KK2: 296 | KL2: 297 | KM2: 298 | KN2: 299 | KO2: 300 | KP2: 301 | KQ2: 302 | KR2: 303 | KS2: 304 | KT2: 305 | KU2: 306 | KV2: 307 | KW2: 308 | KX2: 309 | KY2: 310 | KZ2: 311 | LA2: 312 | LB2: 313 | LC2: 314 | LD2: 315 | LE2: 316 | LF2: 317 | LG2: 318 | LH2: 319 | LI2: 320 | LJ2: 321 | LK2: 322 | LL2: 323 | LM2: 324 | LN2: 325 | LO2: 326 | LP2: 327 | LQ2: 328 | LR2: 329 | LS2: 330 | LT2: 331 | LU2: 332 | LV2: 333 | LW2: 334 | LX2: 335 | LY2: 336 | LZ2: 337 | MA2: 338 | MB2: 339 | MC2: 340 | MD2: 341 | ME2: 342 | MF2: 343 | MG2: 344 | MH2: 345 | MI2: 346 | MJ2: 347 | MK2: 348 | ML2: 349 | MM2: 350 | MN2: 351 | MO2: 352 | MP2: 353 | MQ2: 354 | MR2: 355 | MS2: 356 | MT2: 357 | MU2: 358 | MV2: 359 | MW2: 360 | MX2: 361 | MY2: 362 | MZ2: 363 | NA2: 364 | NB2: 365 | NC2: 366 | ND2: 367 | NE2: 368 | NF2: 369 | NG2: 370 | NH2: 371 | NI2: 372 | NJ2: 373 | NK2: 374 | NL2: 375 | NM2: 376 | NN2: 377 | NO2: 378 | NP2: 379 | NQ2: 380 | NR2: 381 | NS2: 382 | NT2: 383 | NU2: 384 | NV2: 385 | NW2: 386 | NX2: 387 | NY2: 388 | NZ2: 389 | OA2: 390 | OB2: 391 | OC2: 392 | OD2: 393 | OE2: 394 | OF2: 395 | OG2: 396 | OH2: 397 | OI2: 398 | OJ2: 399 | OK2: 400 | OL2: 401 | OM2: 402 | ON2: 403 | OO2: 404 | OP2: 405 | OQ2: 406 | OR2: 407 | OS2: 408 | OT2: 409 | OU2: 410 | OV2: 411 | OW2: 412 | OX2: 413 | OY2: 414 | OZ2: 415 | PA2: 416 | PB2: 417 | PC2: 418 | PD2: 419 | PE2: 420 | PF2: 421 | PG2: 422 | PH2: 423 | PI2: 424 | PJ2: 425 | PK2: 426 | PL2: 427 | PM2: 428 | PN2: 429 | PO2: 430 | PP2: 431 | PQ2: 432 | PR2: 433 | PS2: 434 | PT2: 435 | PU2: 436 | PV2: 437 | PW2: 438 | PX2: 439 | PY2: 440 | PZ2: 441 | QA2: 442 | QB2: 443 | QC2: 444 | QD2: 445 | QE2: 446 | QF2: 447 | QG2: 448 | QH2: 449 | QI2: 450 | QJ2: 451 | QK2: 452 | QL2: 453 | QM2: 454 | QN2: 455 | QO2: 456 | QP2: 457 | QQ2: 458 | QR2: 459 | QS2: 460 | QT2: 461 | QU2: 462 | QV2: 463 | QW2: 464 | QX2: 465 | QY2: 466 | QZ2: 467 | RA2: 468 | RB2: 469 | RC2: 470 | RD2: 471 | RE2: 472 | RF2: 473 | RG2: 474 | RH2: 475 | RI2: 476 | RJ2: 477 | RK2: 478 | RL2: 479 | RM2: 480 | RN2: 481 | RO2: 482 | RP2: 483 | RQ2: 484 | RR2: 485 | RS2: 486 | RT2: 487 | RU2: 488 | RV2: 489 | RW2: 490 | RX2: 491 | RY2: 492 | RZ2: 493 | SA2: 494 | SB2: 495 | SC2: 496 | SD2: 497 | SE2: 498 | SF2: 499 | SG2: 500
A3: 0 | B3: =MAX(MIN(MAX(Full_AP-(Income_Test_Taper*MAX(MIN('Case 2 - Residual Benefit'!B3*AP_Factor,Deeming_Threshold)*Lower_Deeming_Rate+MAX('Case 2 - Residual Benefit'!B3*AP_Factor-Deeming_Threshold,0)*Higher_Deeming_Rate-Income_Test_Threshold,0)),0),MAX(Full_AP-(Asset_Test_Taper*MAX('Case 2 - Residual Benefit'!B3*AP_Factor-Asset_Test_Threshold,0)),0))/AP_Factor,0.01) -> 4986.8 | C3: =MAX(MIN(MAX(Full_AP-(Income_Test_Taper*MAX(MIN('Case 2 - Residual Benefit'!C3*AP_Factor,Deeming_Threshold)*Lower_Deeming_Rate+MAX('Case 2 - Residual Benefit'!C3*AP_Factor-Deeming_Threshold,0)*Higher_Deeming_Rate-Income_Test_Threshold,0)),0),MAX(Full_AP-(Asset_Test_Taper*MAX('Case 2 - Residual Benefit'!C3*AP_Factor-Asset_Test_Threshold,0)),0))/AP_Factor,0.01) -> 4986.8 | D3: =MAX(MIN(MAX(Full_AP-(Income_Test_Taper*MAX(MIN('Case 2 - Residual Benefit'!D3*AP_Factor,Deeming_Threshold)*Lower_Deeming_Rate+MAX('Case 2 - Residual Benefit'!D3*AP_Factor-Deeming_Threshold,0)*Higher_Deeming_Rate-Income_Test_Threshold,0)),0),MAX(Full_AP-(Asset_Test_Taper*MAX('Case 2 - Residual Benefit'!D3*AP_Factor-Asset_Test_Threshold,0)),0))/AP_Factor,0.01) -> 4986.8 | E3: =MAX(MIN(MAX(Full_AP-(Income_Test_Taper*MAX(MIN('Case 2 - Residual Benefit'!E3*AP_Factor,Deeming_Threshold)*Lower_Deeming_Rate+MAX('Case 2 - Residual Benefit'!E3*AP_Factor-Deeming_Threshold,0)*Higher_Deeming_Rate-Income_Test_Threshold,0)),0),MAX(Full_AP-(Asset_Test_Taper*MAX('Case 2 - Residual Benefit'!E3*AP_Factor-Asset_Test_Threshold,0)),0))/AP_Factor,0.01) -> 4986.8 | F3: =MAX(MIN(MAX(Full_AP-(Income_Test_Taper*MAX(MIN('Case 2 - Residual Benefit'!F3*AP_Factor,Deeming_Threshold)*Lower_Deeming_Rate+MAX('Case 2 - Residual Benefit'!F3*AP_Factor-Deeming_Threshold,0)*Higher_Deeming_Rate-Income_Test_Threshold,0)),0),MAX(Full_AP-(Asset_Test_Taper*MAX('Case 2 - Residual Benefit'!F3*AP_Factor-Asset_Test_Threshold,0)),0))/AP_Factor,0.01) -> 4986.8 | G3: =MAX(MIN(MAX(Full_AP-(Income_Test_Taper*MAX(MIN('Case 2 - Residual Benefit'!G3*AP_Factor,Deeming_Threshold)*Lower_Deeming_Rate+MAX('Case 2 - Residual Benefit'!G3*AP_Factor-Deeming_Threshold,0)*Higher_Deeming_Rate-Income_Test_Threshold,0)),0),MAX(Full_AP-(Asset_Test_Taper*MAX('Case 2 - Residual Benefit'!G3*AP_Factor-Asset_Test_Threshold,0)),0))/AP_Factor,0.01) -> 4986.8 | H3: =MAX(MIN(MAX(Full_AP-(Income_Test_Taper*MAX(MIN('Case 2 - Residual Benefit'!H3*AP_Factor,Deeming_Threshold)*Lower_Deeming_Rate+MAX('Case 2 - Residual Benefit'!H3*AP_Factor-Deeming_Threshold,0)*Higher_Deeming_Rate-Income_Test_Threshold,0)),0),MAX(Full_AP-(Asset_Test_Taper*MAX('Case 2 - Residual Benefit'!H3*AP_Factor-Asset_Test_Threshold,0)),0))/AP_Factor,0.01) -> 4986.8 | I3: =MAX(MIN(MAX(Full_AP-(Income_Test_Taper*MAX(MIN('Case 2 - Residual Benefit'!I3*AP_Factor,Deeming_Threshold)*Lower_Deeming_Rate+MAX('Case 2 - Residual Benefit'!I3*AP_Factor-Deeming_Threshold,0)*Higher_Deeming_Rate-Income_Test_Threshold,0)),0),MAX(Full_AP-(Asset_Test_Taper*MAX('Case 2 - Residual Benefit'!I3*AP_Factor-Asset_Test_Threshold,0)),0))/AP_Factor,0.01) -> 4986.8 | J3: =MAX(MIN(MAX(Full_AP-(Income_Test_Taper*MAX(MIN('Case 2 - Residual Benefit'!J3*AP_Factor,Deeming_Threshold)*Lower_Deeming_Rate+MAX('Case 2 - Residual Benefit'!J3*AP_Factor-Deeming_Threshold,0)*Higher_Deeming_Rate-Income_Test_Threshold,0)),0),MAX(Full_AP-(Asset_Test_Taper*MAX('Case 2 - Residual Benefit'!J3*AP_Factor-Asset_Test_Threshold,0)),0))/AP_Factor,0.01) -> 4986.8 | K3: =MAX(MIN(MAX(Full_AP-(Income_Test_Taper*MAX(MIN('Case 2 - Residual Benefit'!K3*AP_Factor,Deeming_Threshold)*Lower_Deeming_Rate+MAX('Case 2 - Residual Benefit'!K3*AP_Factor-Deeming_Threshold,0)*Higher_Deeming_Rate-Income_Test_Threshold,0)),0),MAX(Full_AP-(Asset_Test_Taper*MAX('Case 2 - Residual Benefit'!K3*AP_Factor-Asset_Test_Threshold,0)),0))/AP_Factor,0.01) -> 4986.8 | L3: =MAX(MIN(MAX(Full_AP-(Income_Test_Taper*MAX(MIN('Case 2 - Residual Benefit'!L3*AP_Factor,Deeming_Threshold)*Lower_Deeming_Rate+MAX('Case 2 - Residual Benefit'!L3*AP_Factor-Deeming_Threshold,0)*Higher_Deeming_Rate-Income_Test_Threshold,0)),0),MAX(Full_AP-(Asset_Test_Taper*MAX('Case 2 - Residual Benefit'!L3*AP_Factor-Asset_Test_Threshold,0)),0))/AP_Factor,0.01) -> 4986.8 | M3: =MAX(MIN(MAX(Full_AP-(Income_Test_Taper*MAX(MIN('Case 2 - Residual Benefit'!M3*AP_Factor,Deeming_Threshold)*Lower_Deeming_Rate+MAX('Case 2 - Residual Benefit'!M3*AP_Factor-Deeming_Threshold,0)*Higher_Deeming_Rate-Income_Test_Threshold,0)),0),MAX(Full_AP-(Asset_Test_Taper*MAX('Case 2 - Residual Benefit'!M3*AP_Factor-Asset_Test_Threshold,0)),0))/AP_Factor,0.01) -> 4986.8 | N3: =MAX(MIN(MAX(Full_AP-(Income_Test_Taper*MAX(MIN('Case 2 - Residual Benefit'!N3*AP_Factor,Deeming_Threshold)*Lower_Deeming_Rate+MAX('Case 2 - Residual Benefit'!N3*AP_Factor-Deeming_Threshold,0)*Higher_Deeming_Rate-Income_Test_Threshold,0)),0),MAX(Full_AP-(Asset_Test_Taper*MAX('Case 2 - Residual Benefit'!N3*AP_Factor-Asset_Test_Threshold,0)),0))/AP_Factor,0.01) -> 4986.8 | O3: =MAX(MIN(MAX(Full_AP-(Income_Test_Taper*MAX(MIN('Case 2 - Residual Benefit'!O3*AP_Factor,Deeming_Threshold)*Lower_Deeming_Rate+MAX('Case 2 - Residual Benefit'!O3*AP_Factor-Deeming_Threshold,0)*Higher_Deeming_Rate-Income_Test_Threshold,0)),0),MAX(Full_AP-(Asset_Test_Taper*MAX('Case 2 - Residual Benefit'!O3*AP_Factor-Asset_Test_Threshold,0)),0))/AP_Factor,0.01) -> 4986.8 | P3: =MAX(MIN(MAX(Full_AP-(Income_Test_Taper*MAX(MIN('Case 2 - Residual Benefit'!P3*AP_Factor,Deeming_Threshold)*Lower_Deeming_Rate+MAX('Case 2 - Residual Benefit'!P3*AP_Factor-Deeming_Threshold,0)*Higher_Deeming_Rate-Income_Test_Threshold,0)),0),MAX(Full_AP-(Asset_Test_Taper*MAX('Case 2 - Residual Benefit'!P3*AP_Factor-Asset_Test_Threshold,0)),0))/AP_Factor,0.01) -> 4986.8 | Q3: =MAX(MIN(MAX(Full_AP-(Income_Test_Taper*MAX(MIN('Case 2 - Residual Benefit'!Q3*AP_Factor,Deeming_Threshold)*Lower_Deeming_Rate+MAX('Case 2 - Residual Benefit'!Q3*AP_Factor-Deeming_Threshold,0)*Higher_Deeming_Rate-Income_Test_Threshold,0)),0),MAX(Full_AP-(Asset_Test_Taper*MAX('Case 2 - Residual Benefit'!Q3*AP_Factor-Asset_Test_Threshold,0)),0))/AP_Factor,0.01) -> 4986.8 | R3: =MAX(MIN(MAX(Full_AP-(Income_Test_Taper*MAX(MIN('Case 2 - Residual Benefit'!R3*AP_Factor,Deeming_Threshold)*Lower_Deeming_Rate+MAX('Case 2 - Residual Benefit'!R3*AP_Factor-Deeming_Threshold,0)*Higher_Deeming_Rate-Income_Test_Threshold,0)),0),MAX(Full_AP-(Asset_Test_Taper*MAX('Case 2 - Residual Benefit'!R3*AP_Factor-Asset_Test_Threshold,0)),0))/AP_Factor,0.01) -> 4986.8 | S3: =MAX(MIN(MAX(Full_AP-(Income_Test_Taper*MAX(MIN('Case 2 - Residual Benefit'!S3*AP_Factor,Deeming_Threshold)*Lower_Deeming_Rate+MAX('Case 2 - Residual Benefit'!S3*AP_Factor-Deeming_Threshold,0)*Higher_Deeming_Rate-Income_Test_Threshold,0)),0),MAX(Full_AP-(Asset_Test_Taper*MAX('Case 2 - Residual Benefit'!S3*AP_Factor-Asset_Test_Threshold,0)),0))/AP_Factor,0.01) -> 4986.8 | T3: =MAX(MIN(MAX(Full_AP-(Income_Test_Taper*MAX(MIN('Case 2 - Residual Benefit'!T3*AP_Factor,Deeming_Threshold)*Lower_Deeming_Rate+MAX('Case 2 - Residual Benefit'!T3*AP_Factor-Deeming_Threshold,0)*Higher_Deeming_Rate-Income_Test_Threshold,0)),0),MAX(Full_AP-(Asset_Test_Taper*MAX('Case 2 - Residual Benefit'!T3*AP_Factor-Asset_Test_Threshold,0)),0))/AP_Factor,0.01) -> 4986.8 | U3: =MAX(MIN(MAX(Full_AP-(Income_Test_Taper*MAX(MIN('Case 2 - Residual Benefit'!U3*AP_Factor,Deeming_Threshold)*Lower_Deeming_Rate+MAX('Case 2 - Residual Benefit'!U3*AP_Factor-Deeming_Threshold,0)*Higher_Deeming_Rate-Income_Test_Threshold,0)),0),MAX(Full_AP-(Asset_Test_Taper*MAX('Case 2 - Residual Benefit'!U3*AP_Factor-Asset_Test_Threshold,0)),0))/AP_Factor,0.01) -> 4986.8 | V3: =MAX(MIN(MAX(Full_AP-(Income_Test_Taper*MAX(MIN('Case 2 - Residual Benefit'!V3*AP_Factor,Deeming_Threshold)*Lower_Deeming_Rate+MAX('Case 2 - Residual Benefit'!V3*AP_Factor-Deeming_Threshold,0)*Higher_Deeming_Rate-Income_Test_Threshold,0)),0),MAX(Full_AP-(Asset_Test_Taper*MAX('Case 2 - Residual Benefit'!V3*AP_Factor-Asset_Test_Threshold,0)),0))/AP_Factor,0.01) -> 4986.8 | W3: =MAX(MIN(MAX(Full_AP-(Income_Test_Taper*MAX(MIN('Case 2 - Residual Benefit'!W3*AP_Factor,Deeming_Threshold)*Lower_Deeming_Rate+MAX('Case 2 - Residual Benefit'!W3*AP_Factor-Deeming_Threshold,0)*Higher_Deeming_Rate-Income_Test_Threshold,0)),0),MAX(Full_AP-(Asset_Test_Taper*MAX('Case 2 - Residual Benefit'!W3*AP_Factor-Asset_Test_Threshold,0)),0))/AP_Factor,0.01) -> 4986.8 | X3: =MAX(MIN(MAX(Full_AP-(Income_Test_Taper*MAX(MIN('Case 2 - Residual Benefit'!X3*AP_Factor,Deeming_Threshold)*Lower_Deeming_Rate+MAX('Case 2 - Residual Benefit'!X3*AP_Factor-Deeming_Threshold,0)*Higher_Deeming_Rate-Income_Test_Threshold,0)),0),MAX(Full_AP-(Asset_Test_Taper*MAX('Case 2 - Residual Benefit'!X3*AP_Factor-Asset_Test_Threshold,0)),0))/AP_Factor,0.01) -> 4986.8 | Y3: =MAX(MIN(MAX(Full_AP-(Income_Test_Taper*MAX(MIN('Case 2 - Residual Benefit'!Y3*AP_Factor,Deeming_Threshold)*Lower_Deeming_Rate+MAX('Case 2 - Residual Benefit'!Y3*AP_Factor-Deeming_Threshold,0)*Higher_Deeming_Rate-Income_Test_Threshold,0)),0),MAX(Full_AP-(Asset_Test_Taper*MAX('Case 2 - Residual Benefit'!Y3*AP_Factor-Asset_Test_Threshold,0)),0))/AP_Factor,0.01) -> 4986.8 | Z3: =MAX(MIN(MAX(Full_AP-(Income_Test_Taper*MAX(MIN('Case 2 - Residual Benefit'!Z3*AP_Factor,Deeming_Threshold)*Lower_Deeming_Rate+MAX('Case 2 - Residual Benefit'!Z3*AP_Factor-Deeming_Threshold,0)*Higher_Deeming_Rate-Income_Test_Threshold,0)),0),MAX(Full_AP-(Asset_Test_Taper*MAX('Case 2 - Residual Benefit'!Z3*AP_Factor-Asset_Test_Threshold,0)),0))/AP_Factor,0.01) -> 4986.8 | AA3: =MAX(MIN(MAX(Full_AP-(Income_Test_Taper*MAX(MIN('Case 2 - Residual Benefit'!AA3*AP_Factor,Deeming_Threshold)*Lower_Deeming_Rate+MAX('Case 2 - Residual Benefit'!AA3*AP_Factor-Deeming_Threshold,0)*Higher_Deeming_Rate-Income_Test_Threshold,0)),0),MAX(Full_AP-(Asset_Test_Taper*MAX('Case 2 - Residual Benefit'!AA3*AP_Factor-Asset_Test_Threshold,0)),0))/AP_Factor,0.01) -> 4986.8 | AB3: =MAX(MIN(MAX(Full_AP-(Income_Test_Taper*MAX(MIN('Case 2 - Residual Benefit'!AB3*AP_Factor,Deeming_Threshold)*Lower_Deeming_Rate+MAX('Case 2 - Residual Benefit'!AB3*AP_Factor-Deeming_Threshold,0)*Higher_Deeming_Rate-Income_Test_Threshold,0)),0),MAX(Full_AP-(Asset_Test_Taper*MAX('Case 2 - Residual Benefit'!AB3*AP_Factor-Asset_Test_Threshold,0)),0))/AP_Factor,0.01) -> 4986.8 | AC3: =MAX(MIN(MAX(Full_AP-(Income_Test_Taper*MAX(MIN('Case 2 - Residual Benefit'!AC3*AP_Factor,Deeming_Threshold)*Lower_Deeming_Rate+MAX('Case 2 - Residual Benefit'!AC3*AP_Factor-Deeming_Threshold,0)*Higher_Deeming_Rate-Income_Test_Threshold,0)),0),MAX(Full_AP-(Asset_Test_Taper*MAX('Case 2 - Residual Benefit'!AC3*AP_Factor-Asset_Test_Threshold,0)),0))/AP_Factor,0.01) -> 4986.8 | AD3: =MAX(MIN(MAX(Full_AP-(Income_Test_Taper*MAX(MIN('Case 2 - Residual Benefit'!AD3*AP_Factor,Deeming_Threshold)*Lower_Deeming_Rate+MAX('Case 2 - Residual Benefit'!AD3*AP_Factor-Deeming_Threshold,0)*Higher_Deeming_Rate-Income_Test_Threshold,0)),0),MAX(Full_AP-(Asset_Test_Taper*MAX('Case 2 - Residual Benefit'!AD3*AP_Factor-Asset_Test_Threshold,0)),0))/AP_Factor,0.01) -> 4986.8 | AE3: =MAX(MIN(MAX(Full_AP-(Income_Test_Taper*MAX(MIN('Case 2 - Residual Benefit'!AE3*AP_Factor,Deeming_Threshold)*Lower_Deeming_Rate+MAX('Case 2 - Residual Benefit'!AE3*AP_Factor-Deeming_Threshold,0)*Higher_Deeming_Rate-Income_Test_Threshold,0)),0),MAX(Full_AP-(Asset_Test_Taper*MAX('Case 2 - Residual Benefit'!AE3*AP_Factor-Asset_Test_Threshold,0)),0))/AP_Factor,0.01) -> 4986.8 | AF3: =MAX(MIN(MAX(Full_AP-(Income_Test_Taper*MAX(MIN('Case 2 - Residual Benefit'!AF3*AP_Factor,Deeming_Threshold)*Lower_Deeming_Rate+MAX('Case 2 - Residual Benefit'!AF3*AP_Factor-Deeming_Threshold,0)*Higher_Deeming_Rate-Income_Test_Threshold,0)),0),MAX(Full_AP-(Asset_Test_Taper*MAX('Case 2 - Residual Benefit'!AF3*AP_Factor-Asset_Test_Threshold,0)),0))/AP_Factor,0.01) -> 4986.8 | AG3: =MAX(MIN(MAX(Full_AP-(Income_Test_Taper*MAX(MIN('Case 2 - Residual Benefit'!AG3*AP_Factor,Deeming_Threshold)*Lower_Deeming_Rate+MAX('Case 2 - Residual Benefit'!AG3*AP_Factor-Deeming_Threshold,0)*Higher_Deeming_Rate-Income_Test_Threshold,0)),0),MAX(Full_AP-(Asset_Test_Taper*MAX('Case 2 - Residual Benefit'!AG3*AP_Factor-Asset_Test_Threshold,0)),0))/AP_Factor,0.01) -> 4986.8 | AH3: =MAX(MIN(MAX(Full_AP-(Income_Test_Taper*MAX(MIN('Case 2 - Residual Benefit'!AH3*AP_Factor,Deeming_Threshold)*Lower_Deeming_Rate+MAX('Case 2 - Residual Benefit'!AH3*AP_Factor-Deeming_Threshold,0)*Higher_Deeming_Rate-Income_Test_Threshold,0)),0),MAX(Full_AP-(Asset_Test_Taper*MAX('Case 2 - Residual Benefit'!AH3*AP_Factor-Asset_Test_Threshold,0)),0))/AP_Factor,0.01) -> 4986.8 | AI3: =MAX(MIN(MAX(Full_AP-(Income_Test_Taper*MAX(MIN('Case 2 - Residual Benefit'!AI3*AP_Factor,Deeming_Threshold)*Lower_Deeming_Rate+MAX('Case 2 - Residual Benefit'!AI3*AP_Factor-Deeming_Threshold,0)*Higher_Deeming_Rate-Income_Test_Threshold,0)),0),MAX(Full_AP-(Asset_Test_Taper*MAX('Case 2 - Residual Benefit'!AI3*AP_Factor-Asset_Test_Threshold,0)),0))/AP_Factor,0.01) -> 4986.8 | AJ3: =MAX(MIN(MAX(Full_AP-(Income_Test_Taper*MAX(MIN('Case 2 - Residual Benefit'!AJ3*AP_Factor,Deeming_Threshold)*Lower_Deeming_Rate+MAX('Case 2 - Residual Benefit'!AJ3*AP_Factor-Deeming_Threshold,0)*Higher_Deeming_Rate-Income_Test_Threshold,0)),0),MAX(Full_AP-(Asset_Test_Taper*MAX('Case 2 - Residual Benefit'!AJ3*AP_Factor-Asset_Test_Threshold,0)),0))/AP_Factor,0.01) -> 4986.8 | AK3: =MAX(MIN(MAX(Full_AP-(Income_Test_Taper*MAX(MIN('Case 2 - Residual Benefit'!AK3*AP_Factor,Deeming_Threshold)*Lower_Deeming_Rate+MAX('Case 2 - Residual Benefit'!AK3*AP_Factor-Deeming_Threshold,0)*Higher_Deeming_Rate-Income_Test_Threshold,0)),0),MAX(Full_AP-(Asset_Test_Taper*MAX('Case 2 - Residual Benefit'!AK3*AP_Factor-Asset_Test_Threshold,0)),0))/AP_Factor,0.01) -> 4986.8 | AL3: =MAX(MIN(MAX(Full_AP-(Income_Test_Taper*MAX(MIN('Case 2 - Residual Benefit'!AL3*AP_Factor,Deeming_Threshold)*Lower_Deeming_Rate+MAX('Case 2 - Residual Benefit'!AL3*AP_Factor-Deeming_Threshold,0)*Higher_Deeming_Rate-Income_Test_Threshold,0)),0),MAX(Full_AP-(Asset_Test_Taper*MAX('Case 2 - Residual Benefit'!AL3*AP_Factor-Asset_Test_Threshold,0)),0))/AP_Factor,0.01) -> 4986.8 | AM3: =MAX(MIN(MAX(Full_AP-(Income_Test_Taper*MAX(MIN('Case 2 - Residual Benefit'!AM3*AP_Factor,Deeming_Threshold)*Lower_Deeming_Rate+MAX('Case 2 - Residual Benefit'!AM3*AP_Factor-Deeming_Threshold,0)*Higher_Deeming_Rate-Income_Test_Threshold,0)),0),MAX(Full_AP-(Asset_Test_Taper*MAX('Case 2 - Residual Benefit'!AM3*AP_Factor-Asset_Test_Threshold,0)),0))/AP_Factor,0.01) -> 4986.8 | AN3: =MAX(MIN(MAX(Full_AP-(Income_Test_Taper*MAX(MIN('Case 2 - Residual Benefit'!AN3*AP_Factor,Deeming_Threshold)*Lower_Deeming_Rate+MAX('Case 2 - Residual Benefit'!AN3*AP_Factor-Deeming_Threshold,0)*Higher_Deeming_Rate-Income_Test_Threshold,0)),0),MAX(Full_AP-(Asset_Test_Taper*MAX('Case 2 - Residual Benefit'!AN3*AP_Factor-Asset_Test_Threshold,0)),0))/AP_Factor,0.01) -> 4986.8 | AO3: =MAX(MIN(MAX(Full_AP-(Income_Test_Taper*MAX(MIN('Case 2 - Residual Benefit'!AO3*AP_Factor,Deeming_Threshold)*Lower_Deeming_Rate+MAX('Case 2 - Residual Benefit'!AO3*AP_Factor-Deeming_Threshold,0)*Higher_Deeming_Rate-Income_Test_Threshold,0)),0),MAX(Full_AP-(Asset_Test_Taper*MAX('Case 2 - Residual Benefit'!AO3*AP_Factor-Asset_Test_Threshold,0)),0))/AP_Factor,0.01) -> 4986.8 | AP3: =MAX(MIN(MAX(Full_AP-(Income_Test_Taper*MAX(MIN('Case 2 - Residual Benefit'!AP3*AP_Factor,Deeming_Threshold)*Lower_Deeming_Rate+MAX('Case 2 - Residual Benefit'!AP3*AP_Factor-Deeming_Threshold,0)*Higher_Deeming_Rate-Income_Test_Threshold,0)),0),MAX(Full_AP-(Asset_Test_Taper*MAX('Case 2 - Residual Benefit'!AP3*AP_Factor-Asset_Test_Threshold,0)),0))/AP_Factor,0.01) -> 4986.8 | AQ3: =MAX(MIN(MAX(Full_AP-(Income_Test_Taper*MAX(MIN('Case 2 - Residual Benefit'!AQ3*AP_Factor,Deeming_Threshold)*Lower_Deeming_Rate+MAX('Case 2 - Residual Benefit'!AQ3*AP_Factor-Deeming_Threshold,0)*Higher_Deeming_Rate-Income_Test_Threshold,0)),0),MAX(Full_AP-(Asset_Test_Taper*MAX('Case 2 - Residual Benefit'!AQ3*AP_Factor-Asset_Test_Threshold,0)),0))/AP_Factor,0.01) -> 4986.8 | AR3: =MAX(MIN(MAX(Full_AP-(Income_Test_Taper*MAX(MIN('Case 2 - Residual Benefit'!AR3*AP_Factor,Deeming_Threshold)*Lower_Deeming_Rate+MAX('Case 2 - Residual Benefit'!AR3*AP_Factor-Deeming_Threshold,0)*Higher_Deeming_Rate-Income_Test_Threshold,0)),0),MAX(Full_AP-(Asset_Test_Taper*MAX('Case 2 - Residual Benefit'!AR3*AP_Factor-Asset_Test_Threshold,0)),0))/AP_Factor,0.01) -> 4986.8 | AS3: =MAX(MIN(MAX(Full_AP-(Income_Test_Taper*MAX(MIN('Case 2 - Residual Benefit'!AS3*AP_Factor,Deeming_Threshold)*Lower_Deeming_Rate+MAX('Case 2 - Residual Benefit'!AS3*AP_Factor-Deeming_Threshold,0)*Higher_Deeming_Rate-Income_Test_Threshold,0)),0),MAX(Full_AP-(Asset_Test_Taper*MAX('Case 2 - Residual Benefit'!AS3*AP_Factor-Asset_Test_Threshold,0)),0))/AP_Factor,0.01) -> 4986.8 | AT3: =MAX(MIN(MAX(Full_AP-(Income_Test_Taper*MAX(MIN('Case 2 - Residual Benefit'!AT3*AP_Factor,Deeming_Threshold)*Lower_Deeming_Rate+MAX('Case 2 - Residual Benefit'!AT3*AP_Factor-Deeming_Threshold,0)*Higher_Deeming_Rate-Income_Test_Threshold,0)),0),MAX(Full_AP-(Asset_Test_Taper*MAX('Case 2 - Residual Benefit'!AT3*AP_Factor-Asset_Test_Threshold,0)),0))/AP_Factor,0.01) -> 4986.8 | AU3: =MAX(MIN(MAX(Full_AP-(Income_Test_Taper*MAX(MIN('Case 2 - Residual Benefit'!AU3*AP_Factor,Deeming_Threshold)*Lower_Deeming_Rate+MAX('Case 2 - Residual Benefit'!AU3*AP_Factor-Deeming_Threshold,0)*Higher_Deeming_Rate-Income_Test_Threshold,0)),0),MAX(Full_AP-(Asset_Test_Taper*MAX('Case 2 - Residual Benefit'!AU3*AP_Factor-Asset_Test_Threshold,0)),0))/AP_Factor,0.01) -> 4986.8 | AV3: =MAX(MIN(MAX(Full_AP-(Income_Test_Taper*MAX(MIN('Case 2 - Residual Benefit'!AV3*AP_Factor,Deeming_Threshold)*Lower_Deeming_Rate+MAX('Case 2 - Residual Benefit'!AV3*AP_Factor-Deeming_Threshold,0)*Higher_Deeming_Rate-Income_Test_Threshold,0)),0),MAX(Full_AP-(Asset_Test_Taper*MAX('Case 2 - Residual Benefit'!AV3*AP_Factor-Asset_Test_Threshold,0)),0))/AP_Factor,0.01) -> 4986.8 | AW3: =MAX(MIN(MAX(Full_AP-(Income_Test_Taper*MAX(MIN('Case 2 - Residual Benefit'!AW3*AP_Factor,Deeming_Threshold)*Lower_Deeming_Rate+MAX('Case 2 - Residual Benefit'!AW3*AP_Factor-Deeming_Threshold,0)*Higher_Deeming_Rate-Income_Test_Threshold,0)),0),MAX(Full_AP-(Asset_Test_Taper*MAX('Case 2 - Residual Benefit'!AW3*AP_Factor-Asset_Test_Threshold,0)),0))/AP_Factor,0.01) -> 4986.8 | AX3: =MAX(MIN(MAX(Full_AP-(Income_Test_Taper*MAX(MIN('Case 2 - Residual Benefit'!AX3*AP_Factor,Deeming_Threshold)*Lower_Deeming_Rate+MAX('Case 2 - Residual Benefit'!AX3*AP_Factor-Deeming_Threshold,0)*Higher_Deeming_Rate-Income_Test_Threshold,0)),0),MAX(Full_AP-(Asset_Test_Taper*MAX('Case 2 - Residual Benefit'!AX3*AP_Factor-Asset_Test_Threshold,0)),0))/AP_Factor,0.01) -> 4986.8 | AY3: =MAX(MIN(MAX(Full_AP-(Income_Test_Taper*MAX(MIN('Case 2 - Residual Benefit'!AY3*AP_Factor,Deeming_Threshold)*Lower_Deeming_Rate+MAX('Case 2 - Residual Benefit'!AY3*AP_Factor-Deeming_Threshold,0)*Higher_Deeming_Rate-Income_Test_Threshold,0)),0),MAX(Full_AP-(Asset_Test_Taper*MAX('Case 2 - Residual Benefit'!AY3*AP_Factor-Asset_Test_Threshold,0)),0))/AP_Factor,0.01) -> 4986.8 | AZ3: =MAX(MIN(MAX(Full_AP-(Income_Test_Taper*MAX(MIN('Case 2 - Residual Benefit'!AZ3*AP_Factor,Deeming_Threshold)*Lower_Deeming_Rate+MAX('Case 2 - Residual Benefit'!AZ3*AP_Factor-Deeming_Threshold,0)*Higher_Deeming_Rate-Income_Test_Threshold,0)),0),MAX(Full_AP-(Asset_Test_Taper*MAX('Case 2 - Residual Benefit'!AZ3*AP_Factor-Asset_Test_Threshold,0)),0))/AP_Factor,0.01) -> 4986.8 | BA3: =MAX(MIN(MAX(Full_AP-(Income_Test_Taper*MAX(MIN('Case 2 - Residual Benefit'!BA3*AP_Factor,Deeming_Threshold)*Lower_Deeming_Rate+MAX('Case 2 - Residual Benefit'!BA3*AP_Factor-Deeming_Threshold,0)*Higher_Deeming_Rate-Income_Test_Threshold,0)),0),MAX(Full_AP-(Asset_Test_Taper*MAX('Case 2 - Residual Benefit'!BA3*AP_Factor-Asset_Test_Threshold,0)),0))/AP_Factor,0.01) -> 4986.8 | BB3: =MAX(MIN(MAX(Full_AP-(Income_Test_Taper*MAX(MIN('Case 2 - Residual Benefit'!BB3*AP_Factor,Deeming_Threshold)*Lower_Deeming_Rate+MAX('Case 2 - Residual Benefit'!BB3*AP_Factor-Deeming_Threshold,0)*Higher_Deeming_Rate-Income_Test_Threshold,0)),0),MAX(Full_AP-(Asset_Test_Taper*MAX('Case 2 - Residual Benefit'!BB3*AP_Factor-Asset_Test_Threshold,0)),0))/AP_Factor,0.01) -> 4986.8 | BC3: =MAX(MIN(MAX(Full_AP-(Income_Test_Taper*MAX(MIN('Case 2 - Residual Benefit'!BC3*AP_Factor,Deeming_Threshold)*Lower_Deeming_Rate+MAX('Case 2 - Residual Benefit'!BC3*AP_Factor-Deeming_Threshold,0)*Higher_Deeming_Rate-Income_Test_Threshold,0)),0),MAX(Full_AP-(Asset_Test_Taper*MAX('Case 2 - Residual Benefit'!BC3*AP_Factor-Asset_Test_Threshold,0)),0))/AP_Factor,0.01) -> 4986.8 | BD3: =MAX(MIN(MAX(Full_AP-(Income_Test_Taper*MAX(MIN('Case 2 - Residual Benefit'!BD3*AP_Factor,Deeming_Threshold)*Lower_Deeming_Rate+MAX('Case 2 - Residual Benefit'!BD3*AP_Factor-Deeming_Threshold,0)*Higher_Deeming_Rate-Income_Test_Threshold,0)),0),MAX(Full_AP-(Asset_Test_Taper*MAX('Case 2 - Residual Benefit'!BD3*AP_Factor-Asset_Test_Threshold,0)),0))/AP_Factor,0.01) -> 4986.8 | BE3: =MAX(MIN(MAX(Full_AP-(Income_Test_Taper*MAX(MIN('Case 2 - Residual Benefit'!BE3*AP_Factor,Deeming_Threshold)*Lower_Deeming_Rate+MAX('Case 2 - Residual Benefit'!BE3*AP_Factor-Deeming_Threshold,0)*Higher_Deeming_Rate-Income_Test_Threshold,0)),0),MAX(Full_AP-(Asset_Test_Taper*MAX('Case 2 - Residual Benefit'!BE3*AP_Factor-Asset_Test_Threshold,0)),0))/AP_Factor,0.01) -> 4986.8 | BF3: =MAX(MIN(MAX(Full_AP-(Income_Test_Taper*MAX(MIN('Case 2 - Residual Benefit'!BF3*AP_Factor,Deeming_Threshold)*Lower_Deeming_Rate+MAX('Case 2 - Residual Benefit'!BF3*AP_Factor-Deeming_Threshold,0)*Higher_Deeming_Rate-Income_Test_Threshold,0)),0),MAX(Full_AP-(Asset_Test_Taper*MAX('Case 2 - Residual Benefit'!BF3*AP_Factor-Asset_Test_Threshold,0)),0))/AP_Factor,0.01) -> 4986.8 | BG3: =MAX(MIN(MAX(Full_AP-(Income_Test_Taper*MAX(MIN('Case 2 - Residual Benefit'!BG3*AP_Factor,Deeming_Threshold)*Lower_Deeming_Rate+MAX('Case 2 - Residual Benefit'!BG3*AP_Factor-Deeming_Threshold,0)*Higher_Deeming_Rate-Income_Test_Threshold,0)),0),MAX(Full_AP-(Asset_Test_Taper*MAX('Case 2 - Residual Benefit'!BG3*AP_Factor-Asset_Test_Threshold,0)),0))/AP_Factor,0.01) -> 4986.8 | BH3: =MAX(MIN(MAX(Full_AP-(Income_Test_Taper*MAX(MIN('Case 2 - Residual Benefit'!BH3*AP_Factor,Deeming_Threshold)*Lower_Deeming_Rate+MAX('Case 2 - Residual Benefit'!BH3*AP_Factor-Deeming_Threshold,0)*Higher_Deeming_Rate-Income_Test_Threshold,0)),0),MAX(Full_AP-(Asset_Test_Taper*MAX('Case 2 - Residual Benefit'!BH3*AP_Factor-Asset_Test_Threshold,0)),0))/AP_Factor,0.01) -> 4986.8 | BI3: =MAX(MIN(MAX(Full_AP-(Income_Test_Taper*MAX(MIN('Case 2 - Residual Benefit'!BI3*AP_Factor,Deeming_Threshold)*Lower_Deeming_Rate+MAX('Case 2 - Residual Benefit'!BI3*AP_Factor-Deeming_Threshold,0)*Higher_Deeming_Rate-Income_Test_Threshold,0)),0),MAX(Full_AP-(Asset_Test_Taper*MAX('Case 2 - Residual Benefit'!BI3*AP_Factor-Asset_Test_Threshold,0)),0))/AP_Factor,0.01) -> 4986.8 | BJ3: =MAX(MIN(MAX(Full_AP-(Income_Test_Taper*MAX(MIN('Case 2 - Residual Benefit'!BJ3*AP_Factor,Deeming_Threshold)*Lower_Deeming_Rate+MAX('Case 2 - Residual Benefit'!BJ3*AP_Factor-Deeming_Threshold,0)*Higher_Deeming_Rate-Income_Test_Threshold,0)),0),MAX(Full_AP-(Asset_Test_Taper*MAX('Case 2 - Residual Benefit'!BJ3*AP_Factor-Asset_Test_Threshold,0)),0))/AP_Factor,0.01) -> 4986.8 | BK3: =MAX(MIN(MAX(Full_AP-(Income_Test_Taper*MAX(MIN('Case 2 - Residual Benefit'!BK3*AP_Factor,Deeming_Threshold)*Lower_Deeming_Rate+MAX('Case 2 - Residual Benefit'!BK3*AP_Factor-Deeming_Threshold,0)*Higher_Deeming_Rate-Income_Test_Threshold,0)),0),MAX(Full_AP-(Asset_Test_Taper*MAX('Case 2 - Residual Benefit'!BK3*AP_Factor-Asset_Test_Threshold,0)),0))/AP_Factor,0.01) -> 4986.8 | BL3: =MAX(MIN(MAX(Full_AP-(Income_Test_Taper*MAX(MIN('Case 2 - Residual Benefit'!BL3*AP_Factor,Deeming_Threshold)*Lower_Deeming_Rate+MAX('Case 2 - Residual Benefit'!BL3*AP_Factor-Deeming_Threshold,0)*Higher_Deeming_Rate-Income_Test_Threshold,0)),0),MAX(Full_AP-(Asset_Test_Taper*MAX('Case 2 - Residual Benefit'!BL3*AP_Factor-Asset_Test_Threshold,0)),0))/AP_Factor,0.01) -> 4986.8 | BM3: =MAX(MIN(MAX(Full_AP-(Income_Test_Taper*MAX(MIN('Case 2 - Residual Benefit'!BM3*AP_Factor,Deeming_Threshold)*Lower_Deeming_Rate+MAX('Case 2 - Residual Benefit'!BM3*AP_Factor-Deeming_Threshold,0)*Higher_Deeming_Rate-Income_Test_Threshold,0)),0),MAX(Full_AP-(Asset_Test_Taper*MAX('Case 2 - Residual Benefit'!BM3*AP_Factor-Asset_Test_Threshold,0)),0))/AP_Factor,0.01) -> 4986.8 | BN3: =MAX(MIN(MAX(Full_AP-(Income_Test_Taper*MAX(MIN('Case 2 - Residual Benefit'!BN3*AP_Factor,Deeming_Threshold)*Lower_Deeming_Rate+MAX('Case 2 - Residual Benefit'!BN3*AP_Factor-Deeming_Threshold,0)*Higher_Deeming_Rate-Income_Test_Threshold,0)),0),MAX(Full_AP-(Asset_Test_Taper*MAX('Case 2 - Residual Benefit'!BN3*AP_Factor-Asset_Test_Threshold,0)),0))/AP_Factor,0.01) -> 4986.8 | BO3: =MAX(MIN(MAX(Full_AP-(Income_Test_Taper*MAX(MIN('Case 2 - Residual Benefit'!BO3*AP_Factor,Deeming_Threshold)*Lower_Deeming_Rate+MAX('Case 2 - Residual Benefit'!BO3*AP_Factor-Deeming_Threshold,0)*Higher_Deeming_Rate-Income_Test_Threshold,0)),0),MAX(Full_AP-(Asset_Test_Taper*MAX('Case 2 - Residual Benefit'!BO3*AP_Factor-Asset_Test_Threshold,0)),0))/AP_Factor,0.01) -> 4986.8 | BP3: =MAX(MIN(MAX(Full_AP-(Income_Test_Taper*MAX(MIN('Case 2 - Residual Benefit'!BP3*AP_Factor,Deeming_Threshold)*Lower_Deeming_Rate+MAX('Case 2 - Residual Benefit'!BP3*AP_Factor-Deeming_Threshold,0)*Higher_Deeming_Rate-Income_Test_Threshold,0)),0),MAX(Full_AP-(Asset_Test_Taper*MAX('Case 2 - Residual Benefit'!BP3*AP_Factor-Asset_Test_Threshold,0)),0))/AP_Factor,0.01) -> 4986.8 | BQ3: =MAX(MIN(MAX(Full_AP-(Income_Test_Taper*MAX(MIN('Case 2 - Residual Benefit'!BQ3*AP_Factor,Deeming_Threshold)*Lower_Deeming_Rate+MAX('Case 2 - Residual Benefit'!BQ3*AP_Factor-Deeming_Threshold,0)*Higher_Deeming_Rate-Income_Test_Threshold,0)),0),MAX(Full_AP-(Asset_Test_Taper*MAX('Case 2 - Residual Benefit'!BQ3*AP_Factor-Asset_Test_Threshold,0)),0))/AP_Factor,0.01) -> 4986.8 | BR3: =MAX(MIN(MAX(Full_AP-(Income_Test_Taper*MAX(MIN('Case 2 - Residual Benefit'!BR3*AP_Factor,Deeming_Threshold)*Lower_Deeming_Rate+MAX('Case 2 - Residual Benefit'!BR3*AP_Factor-Deeming_Threshold,0)*Higher_Deeming_Rate-Income_Test_Threshold,0)),0),MAX(Full_AP-(Asset_Test_Taper*MAX('Case 2 - Residual Benefit'!BR3*AP_Factor-Asset_Test_Threshold,0)),0))/AP_Factor,0.01) -> 4986.8 | BS3: =MAX(MIN(MAX(Full_AP-(Income_Test_Taper*MAX(MIN('Case 2 - Residual Benefit'!BS3*AP_Factor,Deeming_Threshold)*Lower_Deeming_Rate+MAX('Case 2 - Residual Benefit'!BS3*AP_Factor-Deeming_Threshold,0)*Higher_Deeming_Rate-Income_Test_Threshold,0)),0),MAX(Full_AP-(Asset_Test_Taper*MAX('Case 2 - Residual Benefit'!BS3*AP_Factor-Asset_Test_Threshold,0)),0))/AP_Factor,0.01) -> 4986.8 | BT3: =MAX(MIN(MAX(Full_AP-(Income_Test_Taper*MAX(MIN('Case 2 - Residual Benefit'!BT3*AP_Factor,Deeming_Threshold)*Lower_Deeming_Rate+MAX('Case 2 - Residual Benefit'!BT3*AP_Factor-Deeming_Threshold,0)*Higher_Deeming_Rate-Income_Test_Threshold,0)),0),MAX(Full_AP-(Asset_Test_Taper*MAX('Case 2 - Residual Benefit'!BT3*AP_Factor-Asset_Test_Threshold,0)),0))/AP_Factor,0.01) -> 4986.8 | BU3: =MAX(MIN(MAX(Full_AP-(Income_Test_Taper*MAX(MIN('Case 2 - Residual Benefit'!BU3*AP_Factor,Deeming_Threshold)*Lower_Deeming_Rate+MAX('Case 2 - Residual Benefit'!BU3*AP_Factor-Deeming_Threshold,0)*Higher_Deeming_Rate-Income_Test_Threshold,0)),0),MAX(Full_AP-(Asset_Test_Taper*MAX('Case 2 - Residual Benefit'!BU3*AP_Factor-Asset_Test_Threshold,0)),0))/AP_Factor,0.01) -> 4986.8 | BV3: =MAX(MIN(MAX(Full_AP-(Income_Test_Taper*MAX(MIN('Case 2 - Residual Benefit'!BV3*AP_Factor,Deeming_Threshold)*Lower_Deeming_Rate+MAX('Case 2 - Residual Benefit'!BV3*AP_Factor-Deeming_Threshold,0)*Higher_Deeming_Rate-Income_Test_Threshold,0)),0),MAX(Full_AP-(Asset_Test_Taper*MAX('Case 2 - Residual Benefit'!BV3*AP_Factor-Asset_Test_Threshold,0)),0))/AP_Factor,0.01) -> 4986.8 | BW3: =MAX(MIN(MAX(Full_AP-(Income_Test_Taper*MAX(MIN('Case 2 - Residual Benefit'!BW3*AP_Factor,Deeming_Threshold)*Lower_Deeming_Rate+MAX('Case 2 - Residual Benefit'!BW3*AP_Factor-Deeming_Threshold,0)*Higher_Deeming_Rate-Income_Test_Threshold,0)),0),MAX(Full_AP-(Asset_Test_Taper*MAX('Case 2 - Residual Benefit'!BW3*AP_Factor-Asset_Test_Threshold,0)),0))/AP_Factor,0.01) -> 4986.8 | BX3: =MAX(MIN(MAX(Full_AP-(Income_Test_Taper*MAX(MIN('Case 2 - Residual Benefit'!BX3*AP_Factor,Deeming_Threshold)*Lower_Deeming_Rate+MAX('Case 2 - Residual Benefit'!BX3*AP_Factor-Deeming_Threshold,0)*Higher_Deeming_Rate-Income_Test_Threshold,0)),0),MAX(Full_AP-(Asset_Test_Taper*MAX('Case 2 - Residual Benefit'!BX3*AP_Factor-Asset_Test_Threshold,0)),0))/AP_Factor,0.01) -> 4986.8 | BY3: =MAX(MIN(MAX(Full_AP-(Income_Test_Taper*MAX(MIN('Case 2 - Residual Benefit'!BY3*AP_Factor,Deeming_Threshold)*Lower_Deeming_Rate+MAX('Case 2 - Residual Benefit'!BY3*AP_Factor-Deeming_Threshold,0)*Higher_Deeming_Rate-Income_Test_Threshold,0)),0),MAX(Full_AP-(Asset_Test_Taper*MAX('Case 2 - Residual Benefit'!BY3*AP_Factor-Asset_Test_Threshold,0)),0))/AP_Factor,0.01) -> 4986.8 | BZ3: =MAX(MIN(MAX(Full_AP-(Income_Test_Taper*MAX(MIN('Case 2 - Residual Benefit'!BZ3*AP_Factor,Deeming_Threshold)*Lower_Deeming_Rate+MAX('Case 2 - Residual Benefit'!BZ3*AP_Factor-Deeming_Threshold,0)*Higher_Deeming_Rate-Income_Test_Threshold,0)),0),MAX(Full_AP-(Asset_Test_Taper*MAX('Case 2 - Residual Benefit'!BZ3*AP_Factor-Asset_Test_Threshold,0)),0))/AP_Factor,0.01) -> 4986.8 | CA3: =MAX(MIN(MAX(Full_AP-(Income_Test_Taper*MAX(MIN('Case 2 - Residual Benefit'!CA3*AP_Factor,Deeming_Threshold)*Lower_Deeming_Rate+MAX('Case 2 - Residual Benefit'!CA3*AP_Factor-Deeming_Threshold,0)*Higher_Deeming_Rate-Income_Test_Threshold,0)),0),MAX(Full_AP-(Asset_Test_Taper*MAX('Case 2 - Residual Benefit'!CA3*AP_Factor-Asset_Test_Threshold,0)),0))/AP_Factor,0.01) -> 4986.8 | CB3: =MAX(MIN(MAX(Full_AP-(Income_Test_Taper*MAX(MIN('Case 2 - Residual Benefit'!CB3*AP_Factor,Deeming_Threshold)*Lower_Deeming_Rate+MAX('Case 2 - Residual Benefit'!CB3*AP_Factor-Deeming_Threshold,0)*Higher_Deeming_Rate-Income_Test_Threshold,0)),0),MAX(Full_AP-(Asset_Test_Taper*MAX('Case 2 - Residual Benefit'!CB3*AP_Factor-Asset_Test_Threshold,0)),0))/AP_Factor,0.01) -> 4986.8 | CC3: =MAX(MIN(MAX(Full_AP-(Income_Test_Taper*MAX(MIN('Case 2 - Residual Benefit'!CC3*AP_Factor,Deeming_Threshold)*Lower_Deeming_Rate+MAX('Case 2 - Residual Benefit'!CC3*AP_Factor-Deeming_Threshold,0)*Higher_Deeming_Rate-Income_Test_Threshold,0)),0),MAX(Full_AP-(Asset_Test_Taper*MAX('Case 2 - Residual Benefit'!CC3*AP_Factor-Asset_Test_Threshold,0)),0))/AP_Factor,0.01) -> 4986.8 | CD3: =MAX(MIN(MAX(Full_AP-(Income_Test_Taper*MAX(MIN('Case 2 - Residual Benefit'!CD3*AP_Factor,Deeming_Threshold)*Lower_Deeming_Rate+MAX('Case 2 - Residual Benefit'!CD3*AP_Factor-Deeming_Threshold,0)*Higher_Deeming_Rate-Income_Test_Threshold,0)),0),MAX(Full_AP-(Asset_Test_Taper*MAX('Case 2 - Residual Benefit'!CD3*AP_Factor-Asset_Test_Threshold,0)),0))/AP_Factor,0.01) -> 4986.8 | CE3: =MAX(MIN(MAX(Full_AP-(Income_Test_Taper*MAX(MIN('Case 2 - Residual Benefit'!CE3*AP_Factor,Deeming_Threshold)*Lower_Deeming_Rate+MAX('Case 2 - Residual Benefit'!CE3*AP_Factor-Deeming_Threshold,0)*Higher_Deeming_Rate-Income_Test_Threshold,0)),0),MAX(Full_AP-(Asset_Test_Taper*MAX('Case 2 - Residual Benefit'!CE3*AP_Factor-Asset_Test_Threshold,0)),0))/AP_Factor,0.01) -> 4986.8 | CF3: =MAX(MIN(MAX(Full_AP-(Income_Test_Taper*MAX(MIN('Case 2 - Residual Benefit'!CF3*AP_Factor,Deeming_Threshold)*Lower_Deeming_Rate+MAX('Case 2 - Residual Benefit'!CF3*AP_Factor-Deeming_Threshold,0)*Higher_Deeming_Rate-Income_Test_Threshold,0)),0),MAX(Full_AP-(Asset_Test_Taper*MAX('Case 2 - Residual Benefit'!CF3*AP_Factor-Asset_Test_Threshold,0)),0))/AP_Factor,0.01) -> 4986.8 | CG3: =MAX(MIN(MAX(Full_AP-(Income_Test_Taper*MAX(MIN('Case 2 - Residual Benefit'!CG3*AP_Factor,Deeming_Threshold)*Lower_Deeming_Rate+MAX('Case 2 - Residual Benefit'!CG3*AP_Factor-Deeming_Threshold,0)*Higher_Deeming_Rate-Income_Test_Threshold,0)),0),MAX(Full_AP-(Asset_Test_Taper*MAX('Case 2 - Residual Benefit'!CG3*AP_Factor-Asset_Test_Threshold,0)),0))/AP_Factor,0.01) -> 4986.8 | CH3: =MAX(MIN(MAX(Full_AP-(Income_Test_Taper*MAX(MIN('Case 2 - Residual Benefit'!CH3*AP_Factor,Deeming_Threshold)*Lower_Deeming_Rate+MAX('Case 2 - Residual Benefit'!CH3*AP_Factor-Deeming_Threshold,0)*Higher_Deeming_Rate-Income_Test_Threshold,0)),0),MAX(Full_AP-(Asset_Test_Taper*MAX('Case 2 - Residual Benefit'!CH3*AP_Factor-Asset_Test_Threshold,0)),0))/AP_Factor,0.01) -> 4986.8 | CI3: =MAX(MIN(MAX(Full_AP-(Income_Test_Taper*MAX(MIN('Case 2 - Residual Benefit'!CI3*AP_Factor,Deeming_Threshold)*Lower_Deeming_Rate+MAX('Case 2 - Residual Benefit'!CI3*AP_Factor-Deeming_Threshold,0)*Higher_Deeming_Rate-Income_Test_Threshold,0)),0),MAX(Full_AP-(Asset_Test_Taper*MAX('Case 2 - Residual Benefit'!CI3*AP_Factor-Asset_Test_Threshold,0)),0))/AP_Factor,0.01) -> 4986.8 | CJ3: =MAX(MIN(MAX(Full_AP-(Income_Test_Taper*MAX(MIN('Case 2 - Residual Benefit'!CJ3*AP_Factor,Deeming_Threshold)*Lower_Deeming_Rate+MAX('Case 2 - Residual Benefit'!CJ3*AP_Factor-Deeming_Threshold,0)*Higher_Deeming_Rate-Income_Test_Threshold,0)),0),MAX(Full_AP-(Asset_Test_Taper*MAX('Case 2 - Residual Benefit'!CJ3*AP_Factor-Asset_Test_Threshold,0)),0))/AP_Factor,0.01) -> 4986.8 | CK3: =MAX(MIN(MAX(Full_AP-(Income_Test_Taper*MAX(MIN('Case 2 - Residual Benefit'!CK3*AP_Factor,Deeming_Threshold)*Lower_Deeming_Rate+MAX('Case 2 - Residual Benefit'!CK3*AP_Factor-Deeming_Threshold,0)*Higher_Deeming_Rate-Income_Test_Threshold,0)),0),MAX(Full_AP-(Asset_Test_Taper*MAX('Case 2 - Residual Benefit'!CK3*AP_Factor-Asset_Test_Threshold,0)),0))/AP_Factor,0.01) -> 4986.8 | CL3: =MAX(MIN(MAX(Full_AP-(Income_Test_Taper*MAX(MIN('Case 2 - Residual Benefit'!CL3*AP_Factor,Deeming_Threshold)*Lower_Deeming_Rate+MAX('Case 2 - Residual Benefit'!CL3*AP_Factor-Deeming_Threshold,0)*Higher_Deeming_Rate-Income_Test_Threshold,0)),0),MAX(Full_AP-(Asset_Test_Taper*MAX('Case 2 - Residual Benefit'!CL3*AP_Factor-Asset_Test_Threshold,0)),0))/AP_Factor,0.01) -> 4986.8 | CM3: =MAX(MIN(MAX(Full_AP-(Income_Test_Taper*MAX(MIN('Case 2 - Residual Benefit'!CM3*AP_Factor,Deeming_Threshold)*Lower_Deeming_Rate+MAX('Case 2 - Residual Benefit'!CM3*AP_Factor-Deeming_Threshold,0)*Higher_Deeming_Rate-Income_Test_Threshold,0)),0),MAX(Full_AP-(Asset_Test_Taper*MAX('Case 2 - Residual Benefit'!CM3*AP_Factor-Asset_Test_Threshold,0)),0))/AP_Factor,0.01) -> 4986.8 | CN3: =MAX(MIN(MAX(Full_AP-(Income_Test_Taper*MAX(MIN('Case 2 - Residual Benefit'!CN3*AP_Factor,Deeming_Threshold)*Lower_Deeming_Rate+MAX('Case 2 - Residual Benefit'!CN3*AP_Factor-Deeming_Threshold,0)*Higher_Deeming_Rate-Income_Test_Threshold,0)),0),MAX(Full_AP-(Asset_Test_Taper*MAX('Case 2 - Residual Benefit'!CN3*AP_Factor-Asset_Test_Threshold,0)),0))/AP_Factor,0.01) -> 4986.8 | CO3: =MAX(MIN(MAX(Full_AP-(Income_Test_Taper*MAX(MIN('Case 2 - Residual Benefit'!CO3*AP_Factor,Deeming_Threshold)*Lower_Deeming_Rate+MAX('Case 2 - Residual Benefit'!CO3*AP_Factor-Deeming_Threshold,0)*Higher_Deeming_Rate-Income_Test_Threshold,0)),0),MAX(Full_AP-(Asset_Test_Taper*MAX('Case 2 - Residual Benefit'!CO3*AP_Factor-Asset_Test_Threshold,0)),0))/AP_Factor,0.01) -> 4986.8 | CP3: =MAX(MIN(MAX(Full_AP-(Income_Test_Taper*MAX(MIN('Case 2 - Residual Benefit'!CP3*AP_Factor,Deeming_Threshold)*Lower_Deeming_Rate+MAX('Case 2 - Residual Benefit'!CP3*AP_Factor-Deeming_Threshold,0)*Higher_Deeming_Rate-Income_Test_Threshold,0)),0),MAX(Full_AP-(Asset_Test_Taper*MAX('Case 2 - Residual Benefit'!CP3*AP_Factor-Asset_Test_Threshold,0)),0))/AP_Factor,0.01) -> 4986.8 | CQ3: =MAX(MIN(MAX(Full_AP-(Income_Test_Taper*MAX(MIN('Case 2 - Residual Benefit'!CQ3*AP_Factor,Deeming_Threshold)*Lower_Deeming_Rate+MAX('Case 2 - Residual Benefit'!CQ3*AP_Factor-Deeming_Threshold,0)*Higher_Deeming_Rate-Income_Test_Threshold,0)),0),MAX(Full_AP-(Asset_Test_Taper*MAX('Case 2 - Residual Benefit'!CQ3*AP_Factor-Asset_Test_Threshold,0)),0))/AP_Factor,0.01) -> 4986.8 | CR3: =MAX(MIN(MAX(Full_AP-(Income_Test_Taper*MAX(MIN('Case 2 - Residual Benefit'!CR3*AP_Factor,Deeming_Threshold)*Lower_Deeming_Rate+MAX('Case 2 - Residual Benefit'!CR3*AP_Factor-Deeming_Threshold,0)*Higher_Deeming_Rate-Income_Test_Threshold,0)),0),MAX(Full_AP-(Asset_Test_Taper*MAX('Case 2 - Residual Benefit'!CR3*AP_Factor-Asset_Test_Threshold,0)),0))/AP_Factor,0.01) -> 4986.8 | CS3: =MAX(MIN(MAX(Full_AP-(Income_Test_Taper*MAX(MIN('Case 2 - Residual Benefit'!CS3*AP_Factor,Deeming_Threshold)*Lower_Deeming_Rate+MAX('Case 2 - Residual Benefit'!CS3*AP_Factor-Deeming_Threshold,0)*Higher_Deeming_Rate-Income_Test_Threshold,0)),0),MAX(Full_AP-(Asset_Test_Taper*MAX('Case 2 - Residual Benefit'!CS3*AP_Factor-Asset_Test_Threshold,0)),0))/AP_Factor,0.01) -> 4986.8 | CT3: =MAX(MIN(MAX(Full_AP-(Income_Test_Taper*MAX(MIN('Case 2 - Residual Benefit'!CT3*AP_Factor,Deeming_Threshold)*Lower_Deeming_Rate+MAX('Case 2 - Residual Benefit'!CT3*AP_Factor-Deeming_Threshold,0)*Higher_Deeming_Rate-Income_Test_Threshold,0)),0),MAX(Full_AP-(Asset_Test_Taper*MAX('Case 2 - Residual Benefit'!CT3*AP_Factor-Asset_Test_Threshold,0)),0))/AP_Factor,0.01) -> 4986.8 | CU3: =MAX(MIN(MAX(Full_AP-(Income_Test_Taper*MAX(MIN('Case 2 - Residual Benefit'!CU3*AP_Factor,Deeming_Threshold)*Lower_Deeming_Rate+MAX('Case 2 - Residual Benefit'!CU3*AP_Factor-Deeming_Threshold,0)*Higher_Deeming_Rate-Income_Test_Threshold,0)),0),MAX(Full_AP-(Asset_Test_Taper*MAX('Case 2 - Residual Benefit'!CU3*AP_Factor-Asset_Test_Threshold,0)),0))/AP_Factor,0.01) -> 4986.8 | CV3: =MAX(MIN(MAX(Full_AP-(Income_Test_Taper*MAX(MIN('Case 2 - Residual Benefit'!CV3*AP_Factor,Deeming_Threshold)*Lower_Deeming_Rate+MAX('Case 2 - Residual Benefit'!CV3*AP_Factor-Deeming_Threshold,0)*Higher_Deeming_Rate-Income_Test_Threshold,0)),0),MAX(Full_AP-(Asset_Test_Taper*MAX('Case 2 - Residual Benefit'!CV3*AP_Factor-Asset_Test_Threshold,0)),0))/AP_Factor,0.01) -> 4986.8 | CW3: =MAX(MIN(MAX(Full_AP-(Income_Test_Taper*MAX(MIN('Case 2 - Residual Benefit'!CW3*AP_Factor,Deeming_Threshold)*Lower_Deeming_Rate+MAX('Case 2 - Residual Benefit'!CW3*AP_Factor-Deeming_Threshold,0)*Higher_Deeming_Rate-Income_Test_Threshold,0)),0),MAX(Full_AP-(Asset_Test_Taper*MAX('Case 2 - Residual Benefit'!CW3*AP_Factor-Asset_Test_Threshold,0)),0))/AP_Factor,0.01) -> 4986.8 | CX3: =MAX(MIN(MAX(Full_AP-(Income_Test_Taper*MAX(MIN('Case 2 - Residual Benefit'!CX3*AP_Factor,Deeming_Threshold)*Lower_Deeming_Rate+MAX('Case 2 - Residual Benefit'!CX3*AP_Factor-Deeming_Threshold,0)*Higher_Deeming_Rate-Income_Test_Threshold,0)),0),MAX(Full_AP-(Asset_Test_Taper*MAX('Case 2 - Residual Benefit'!CX3*AP_Factor-Asset_Test_Threshold,0)),0))/AP_Factor,0.01) -> 4986.8 | CY3: =MAX(MIN(MAX(Full_AP-(Income_Test_Taper*MAX(MIN('Case 2 - Residual Benefit'!CY3*AP_Factor,Deeming_Threshold)*Lower_Deeming_Rate+MAX('Case 2 - Residual Benefit'!CY3*AP_Factor-Deeming_Threshold,0)*Higher_Deeming_Rate-Income_Test_Threshold,0)),0),MAX(Full_AP-(Asset_Test_Taper*MAX('Case 2 - Residual Benefit'!CY3*AP_Factor-Asset_Test_Threshold,0)),0))/AP_Factor,0.01) -> 4986.8 | CZ3: =MAX(MIN(MAX(Full_AP-(Income_Test_Taper*MAX(MIN('Case 2 - Residual Benefit'!CZ3*AP_Factor,Deeming_Threshold)*Lower_Deeming_Rate+MAX('Case 2 - Residual Benefit'!CZ3*AP_Factor-Deeming_Threshold,0)*Higher_Deeming_Rate-Income_Test_Threshold,0)),0),MAX(Full_AP-(Asset_Test_Taper*MAX('Case 2 - Residual Benefit'!CZ3*AP_Factor-Asset_Test_Threshold,0)),0))/AP_Factor,0.01) -> 4986.8 | DA3: =MAX(MIN(MAX(Full_AP-(Income_Test_Taper*MAX(MIN('Case 2 - Residual Benefit'!DA3*AP_Factor,Deeming_Threshold)*Lower_Deeming_Rate+MAX('Case 2 - Residual Benefit'!DA3*AP_Factor-Deeming_Threshold,0)*Higher_Deeming_Rate-Income_Test_Threshold,0)),0),MAX(Full_AP-(Asset_Test_Taper*MAX('Case 2 - Residual Benefit'!DA3*AP_Factor-Asset_Test_Threshold,0)),0))/AP_Factor,0.01) -> 4986.8 | DB3: =MAX(MIN(MAX(Full_AP-(Income_Test_Taper*MAX(MIN('Case 2 - Residual Benefit'!DB3*AP_Factor,Deeming_Threshold)*Lower_Deeming_Rate+MAX('Case 2 - Residual Benefit'!DB3*AP_Factor-Deeming_Threshold,0)*Higher_Deeming_Rate-Income_Test_Threshold,0)),0),MAX(Full_AP-(Asset_Test_Taper*MAX('Case 2 - Residual Benefit'!DB3*AP_Factor-Asset_Test_Threshold,0)),0))/AP_Factor,0.01) -> 4986.8 | DC3: =MAX(MIN(MAX(Full_AP-(Income_Test_Taper*MAX(MIN('Case 2 - Residual Benefit'!DC3*AP_Factor,Deeming_Threshold)*Lower_Deeming_Rate+MAX('Case 2 - Residual Benefit'!DC3*AP_Factor-Deeming_Threshold,0)*Higher_Deeming_Rate-Income_Test_Threshold,0)),0),MAX(Full_AP-(Asset_Test_Taper*MAX('Case 2 - Residual Benefit'!DC3*AP_Factor-Asset_Test_Threshold,0)),0))/AP_Factor,0.01) -> 4986.8 | DD3: =MAX(MIN(MAX(Full_AP-(Income_Test_Taper*MAX(MIN('Case 2 - Residual Benefit'!DD3*AP_Factor,Deeming_Threshold)*Lower_Deeming_Rate+MAX('Case 2 - Residual Benefit'!DD3*AP_Factor-Deeming_Threshold,0)*Higher_Deeming_Rate-Income_Test_Threshold,0)),0),MAX(Full_AP-(Asset_Test_Taper*MAX('Case 2 - Residual Benefit'!DD3*AP_Factor-Asset_Test_Threshold,0)),0))/AP_Factor,0.01) -> 4986.8 | DE3: =MAX(MIN(MAX(Full_AP-(Income_Test_Taper*MAX(MIN('Case 2 - Residual Benefit'!DE3*AP_Factor,Deeming_Threshold)*Lower_Deeming_Rate+MAX('Case 2 - Residual Benefit'!DE3*AP_Factor-Deeming_Threshold,0)*Higher_Deeming_Rate-Income_Test_Threshold,0)),0),MAX(Full_AP-(Asset_Test_Taper*MAX('Case 2 - Residual Benefit'!DE3*AP_Factor-Asset_Test_Threshold,0)),0))/AP_Factor,0.01) -> 4986.8 | DF3: =MAX(MIN(MAX(Full_AP-(Income_Test_Taper*MAX(MIN('Case 2 - Residual Benefit'!DF3*AP_Factor,Deeming_Threshold)*Lower_Deeming_Rate+MAX('Case 2 - Residual Benefit'!DF3*AP_Factor-Deeming_Threshold,0)*Higher_Deeming_Rate-Income_Test_Threshold,0)),0),MAX(Full_AP-(Asset_Test_Taper*MAX('Case 2 - Residual Benefit'!DF3*AP_Factor-Asset_Test_Threshold,0)),0))/AP_Factor,0.01) -> 4986.8 | DG3: =MAX(MIN(MAX(Full_AP-(Income_Test_Taper*MAX(MIN('Case 2 - Residual Benefit'!DG3*AP_Factor,Deeming_Threshold)*Lower_Deeming_Rate+MAX('Case 2 - Residual Benefit'!DG3*AP_Factor-Deeming_Threshold,0)*Higher_Deeming_Rate-Income_Test_Threshold,0)),0),MAX(Full_AP-(Asset_Test_Taper*MAX('Case 2 - Residual Benefit'!DG3*AP_Factor-Asset_Test_Threshold,0)),0))/AP_Factor,0.01) -> 4986.8 | DH3: =MAX(MIN(MAX(Full_AP-(Income_Test_Taper*MAX(MIN('Case 2 - Residual Benefit'!DH3*AP_Factor,Deeming_Threshold)*Lower_Deeming_Rate+MAX('Case 2 - Residual Benefit'!DH3*AP_Factor-Deeming_Threshold,0)*Higher_Deeming_Rate-Income_Test_Threshold,0)),0),MAX(Full_AP-(Asset_Test_Taper*MAX('Case 2 - Residual Benefit'!DH3*AP_Factor-Asset_Test_Threshold,0)),0))/AP_Factor,0.01) -> 4986.8 | DI3: =MAX(MIN(MAX(Full_AP-(Income_Test_Taper*MAX(MIN('Case 2 - Residual Benefit'!DI3*AP_Factor,Deeming_Threshold)*Lower_Deeming_Rate+MAX('Case 2 - Residual Benefit'!DI3*AP_Factor-Deeming_Threshold,0)*Higher_Deeming_Rate-Income_Test_Threshold,0)),0),MAX(Full_AP-(Asset_Test_Taper*MAX('Case 2 - Residual Benefit'!DI3*AP_Factor-Asset_Test_Threshold,0)),0))/AP_Factor,0.01) -> 4986.8 | DJ3: =MAX(MIN(MAX(Full_AP-(Income_Test_Taper*MAX(MIN('Case 2 - Residual Benefit'!DJ3*AP_Factor,Deeming_Threshold)*Lower_Deeming_Rate+MAX('Case 2 - Residual Benefit'!DJ3*AP_Factor-Deeming_Threshold,0)*Higher_Deeming_Rate-Income_Test_Threshold,0)),0),MAX(Full_AP-(Asset_Test_Taper*MAX('Case 2 - Residual Benefit'!DJ3*AP_Factor-Asset_Test_Threshold,0)),0))/AP_Factor,0.01) -> 4986.8 | DK3: =MAX(MIN(MAX(Full_AP-(Income_Test_Taper*MAX(MIN('Case 2 - Residual Benefit'!DK3*AP_Factor,Deeming_Threshold)*Lower_Deeming_Rate+MAX('Case 2 - Residual Benefit'!DK3*AP_Factor-Deeming_Threshold,0)*Higher_Deeming_Rate-Income_Test_Threshold,0)),0),MAX(Full_AP-(Asset_Test_Taper*MAX('Case 2 - Residual Benefit'!DK3*AP_Factor-Asset_Test_Threshold,0)),0))/AP_Factor,0.01) -> 4986.8 | DL3: =MAX(MIN(MAX(Full_AP-(Income_Test_Taper*MAX(MIN('Case 2 - Residual Benefit'!DL3*AP_Factor,Deeming_Threshold)*Lower_Deeming_Rate+MAX('Case 2 - Residual Benefit'!DL3*AP_Factor-Deeming_Threshold,0)*Higher_Deeming_Rate-Income_Test_Threshold,0)),0),MAX(Full_AP-(Asset_Test_Taper*MAX('Case 2 - Residual Benefit'!DL3*AP_Factor-Asset_Test_Threshold,0)),0))/AP_Factor,0.01) -> 4986.8 | DM3: =MAX(MIN(MAX(Full_AP-(Income_Test_Taper*MAX(MIN('Case 2 - Residual Benefit'!DM3*AP_Factor,Deeming_Threshold)*Lower_Deeming_Rate+MAX('Case 2 - Residual Benefit'!DM3*AP_Factor-Deeming_Threshold,0)*Higher_Deeming_Rate-Income_Test_Threshold,0)),0),MAX(Full_AP-(Asset_Test_Taper*MAX('Case 2 - Residual Benefit'!DM3*AP_Factor-Asset_Test_Threshold,0)),0))/AP_Factor,0.01) -> 4986.8 | DN3: =MAX(MIN(MAX(Full_AP-(Income_Test_Taper*MAX(MIN('Case 2 - Residual Benefit'!DN3*AP_Factor,Deeming_Threshold)*Lower_Deeming_Rate+MAX('Case 2 - Residual Benefit'!DN3*AP_Factor-Deeming_Threshold,0)*Higher_Deeming_Rate-Income_Test_Threshold,0)),0),MAX(Full_AP-(Asset_Test_Taper*MAX('Case 2 - Residual Benefit'!DN3*AP_Factor-Asset_Test_Threshold,0)),0))/AP_Factor,0.01) -> 4986.8 | DO3: =MAX(MIN(MAX(Full_AP-(Income_Test_Taper*MAX(MIN('Case 2 - Residual Benefit'!DO3*AP_Factor,Deeming_Threshold)*Lower_Deeming_Rate+MAX('Case 2 - Residual Benefit'!DO3*AP_Factor-Deeming_Threshold,0)*Higher_Deeming_Rate-Income_Test_Threshold,0)),0),MAX(Full_AP-(Asset_Test_Taper*MAX('Case 2 - Residual Benefit'!DO3*AP_Factor-Asset_Test_Threshold,0)),0))/AP_Factor,0.01) -> 4986.8 | DP3: =MAX(MIN(MAX(Full_AP-(Income_Test_Taper*MAX(MIN('Case 2 - Residual Benefit'!DP3*AP_Factor,Deeming_Threshold)*Lower_Deeming_Rate+MAX('Case 2 - Residual Benefit'!DP3*AP_Factor-Deeming_Threshold,0)*Higher_Deeming_Rate-Income_Test_Threshold,0)),0),MAX(Full_AP-(Asset_Test_Taper*MAX('Case 2 - Residual Benefit'!DP3*AP_Factor-Asset_Test_Threshold,0)),0))/AP_Factor,0.01) -> 4986.8 | DQ3: =MAX(MIN(MAX(Full_AP-(Income_Test_Taper*MAX(MIN('Case 2 - Residual Benefit'!DQ3*AP_Factor,Deeming_Threshold)*Lower_Deeming_Rate+MAX('Case 2 - Residual Benefit'!DQ3*AP_Factor-Deeming_Threshold,0)*Higher_Deeming_Rate-Income_Test_Threshold,0)),0),MAX(Full_AP-(Asset_Test_Taper*MAX('Case 2 - Residual Benefit'!DQ3*AP_Factor-Asset_Test_Threshold,0)),0))/AP_Factor,0.01) -> 4986.8 | DR3: =MAX(MIN(MAX(Full_AP-(Income_Test_Taper*MAX(MIN('Case 2 - Residual Benefit'!DR3*AP_Factor,Deeming_Threshold)*Lower_Deeming_Rate+MAX('Case 2 - Residual Benefit'!DR3*AP_Factor-Deeming_Threshold,0)*Higher_Deeming_Rate-Income_Test_Threshold,0)),0),MAX(Full_AP-(Asset_Test_Taper*MAX('Case 2 - Residual Benefit'!DR3*AP_Factor-Asset_Test_Threshold,0)),0))/AP_Factor,0.01) -> 4986.8 | DS3: =MAX(MIN(MAX(Full_AP-(Income_Test_Taper*MAX(MIN('Case 2 - Residual Benefit'!DS3*AP_Factor,Deeming_Threshold)*Lower_Deeming_Rate+MAX('Case 2 - Residual Benefit'!DS3*AP_Factor-Deeming_Threshold,0)*Higher_Deeming_Rate-Income_Test_Threshold,0)),0),MAX(Full_AP-(Asset_Test_Taper*MAX('Case 2 - Residual Benefit'!DS3*AP_Factor-Asset_Test_Threshold,0)),0))/AP_Factor,0.01) -> 4986.8 | DT3: =MAX(MIN(MAX(Full_AP-(Income_Test_Taper*MAX(MIN('Case 2 - Residual Benefit'!DT3*AP_Factor,Deeming_Threshold)*Lower_Deeming_Rate+MAX('Case 2 - Residual Benefit'!DT3*AP_Factor-Deeming_Threshold,0)*Higher_Deeming_Rate-Income_Test_Threshold,0)),0),MAX(Full_AP-(Asset_Test_Taper*MAX('Case 2 - Residual Benefit'!DT3*AP_Factor-Asset_Test_Threshold,0)),0))/AP_Factor,0.01) -> 4986.8 | DU3: =MAX(MIN(MAX(Full_AP-(Income_Test_Taper*MAX(MIN('Case 2 - Residual Benefit'!DU3*AP_Factor,Deeming_Threshold)*Lower_Deeming_Rate+MAX('Case 2 - Residual Benefit'!DU3*AP_Factor-Deeming_Threshold,0)*Higher_Deeming_Rate-Income_Test_Threshold,0)),0),MAX(Full_AP-(Asset_Test_Taper*MAX('Case 2 - Residual Benefit'!DU3*AP_Factor-Asset_Test_Threshold,0)),0))/AP_Factor,0.01) -> 4986.8 | DV3: =MAX(MIN(MAX(Full_AP-(Income_Test_Taper*MAX(MIN('Case 2 - Residual Benefit'!DV3*AP_Factor,Deeming_Threshold)*Lower_Deeming_Rate+MAX('Case 2 - Residual Benefit'!DV3*AP_Factor-Deeming_Threshold,0)*Higher_Deeming_Rate-Income_Test_Threshold,0)),0),MAX(Full_AP-(Asset_Test_Taper*MAX('Case 2 - Residual Benefit'!DV3*AP_Factor-Asset_Test_Threshold,0)),0))/AP_Factor,0.01) -> 4986.8 | DW3: =MAX(MIN(MAX(Full_AP-(Income_Test_Taper*MAX(MIN('Case 2 - Residual Benefit'!DW3*AP_Factor,Deeming_Threshold)*Lower_Deeming_Rate+MAX('Case 2 - Residual Benefit'!DW3*AP_Factor-Deeming_Threshold,0)*Higher_Deeming_Rate-Income_Test_Threshold,0)),0),MAX(Full_AP-(Asset_Test_Taper*MAX('Case 2 - Residual Benefit'!DW3*AP_Factor-Asset_Test_Threshold,0)),0))/AP_Factor,0.01) -> 4986.8 | DX3: =MAX(MIN(MAX(Full_AP-(Income_Test_Taper*MAX(MIN('Case 2 - Residual Benefit'!DX3*AP_Factor,Deeming_Threshold)*Lower_Deeming_Rate+MAX('Case 2 - Residual Benefit'!DX3*AP_Factor-Deeming_Threshold,0)*Higher_Deeming_Rate-Income_Test_Threshold,0)),0),MAX(Full_AP-(Asset_Test_Taper*MAX('Case 2 - Residual Benefit'!DX3*AP_Factor-Asset_Test_Threshold,0)),0))/AP_Factor,0.01) -> 4986.8 | DY3: =MAX(MIN(MAX(Full_AP-(Income_Test_Taper*MAX(MIN('Case 2 - Residual Benefit'!DY3*AP_Factor,Deeming_Threshold)*Lower_Deeming_Rate+MAX('Case 2 - Residual Benefit'!DY3*AP_Factor-Deeming_Threshold,0)*Higher_Deeming_Rate-Income_Test_Threshold,0)),0),MAX(Full_AP-(Asset_Test_Taper*MAX('Case 2 - Residual Benefit'!DY3*AP_Factor-Asset_Test_Threshold,0)),0))/AP_Factor,0.01) -> 4986.8 | DZ3: =MAX(MIN(MAX(Full_AP-(Income_Test_Taper*MAX(MIN('Case 2 - Residual Benefit'!DZ3*AP_Factor,Deeming_Threshold)*Lower_Deeming_Rate+MAX('Case 2 - Residual Benefit'!DZ3*AP_Factor-Deeming_Threshold,0)*Higher_Deeming_Rate-Income_Test_Threshold,0)),0),MAX(Full_AP-(Asset_Test_Taper*MAX('Case 2 - Residual Benefit'!DZ3*AP_Factor-Asset_Test_Threshold,0)),0))/AP_Factor,0.01) -> 4986.8 | EA3: =MAX(MIN(MAX(Full_AP-(Income_Test_Taper*MAX(MIN('Case 2 - Residual Benefit'!EA3*AP_Factor,Deeming_Threshold)*Lower_Deeming_Rate+MAX('Case 2 - Residual Benefit'!EA3*AP_Factor-Deeming_Threshold,0)*Higher_Deeming_Rate-Income_Test_Threshold,0)),0),MAX(Full_AP-(Asset_Test_Taper*MAX('Case 2 - Residual Benefit'!EA3*AP_Factor-Asset_Test_Threshold,0)),0))/AP_Factor,0.01) -> 4986.8 | EB3: =MAX(MIN(MAX(Full_AP-(Income_Test_Taper*MAX(MIN('Case 2 - Residual Benefit'!EB3*AP_Factor,Deeming_Threshold)*Lower_Deeming_Rate+MAX('Case 2 - Residual Benefit'!EB3*AP_Factor-Deeming_Threshold,0)*Higher_Deeming_Rate-Income_Test_Threshold,0)),0),MAX(Full_AP-(Asset_Test_Taper*MAX('Case 2 - Residual Benefit'!EB3*AP_Factor-Asset_Test_Threshold,0)),0))/AP_Factor,0.01) -> 4986.8 | EC3: =MAX(MIN(MAX(Full_AP-(Income_Test_Taper*MAX(MIN('Case 2 - Residual Benefit'!EC3*AP_Factor,Deeming_Threshold)*Lower_Deeming_Rate+MAX('Case 2 - Residual Benefit'!EC3*AP_Factor-Deeming_Threshold,0)*Higher_Deeming_Rate-Income_Test_Threshold,0)),0),MAX(Full_AP-(Asset_Test_Taper*MAX('Case 2 - Residual Benefit'!EC3*AP_Factor-Asset_Test_Threshold,0)),0))/AP_Factor,0.01) -> 4986.8 | ED3: =MAX(MIN(MAX(Full_AP-(Income_Test_Taper*MAX(MIN('Case 2 - Residual Benefit'!ED3*AP_Factor,Deeming_Threshold)*Lower_Deeming_Rate+MAX('Case 2 - Residual Benefit'!ED3*AP_Factor-Deeming_Threshold,0)*Higher_Deeming_Rate-Income_Test_Threshold,0)),0),MAX(Full_AP-(Asset_Test_Taper*MAX('Case 2 - Residual Benefit'!ED3*AP_Factor-Asset_Test_Threshold,0)),0))/AP_Factor,0.01) -> 4986.8 | EE3: =MAX(MIN(MAX(Full_AP-(Income_Test_Taper*MAX(MIN('Case 2 - Residual Benefit'!EE3*AP_Factor,Deeming_Threshold)*Lower_Deeming_Rate+MAX('Case 2 - Residual Benefit'!EE3*AP_Factor-Deeming_Threshold,0)*Higher_Deeming_Rate-Income_Test_Threshold,0)),0),MAX(Full_AP-(Asset_Test_Taper*MAX('Case 2 - Residual Benefit'!EE3*AP_Factor-Asset_Test_Threshold,0)),0))/AP_Factor,0.01) -> 4986.8 | EF3: =MAX(MIN(MAX(Full_AP-(Income_Test_Taper*MAX(MIN('Case 2 - Residual Benefit'!EF3*AP_Factor,Deeming_Threshold)*Lower_Deeming_Rate+MAX('Case 2 - Residual Benefit'!EF3*AP_Factor-Deeming_Threshold,0)*Higher_Deeming_Rate-Income_Test_Threshold,0)),0),MAX(Full_AP-(Asset_Test_Taper*MAX('Case 2 - Residual Benefit'!EF3*AP_Factor-Asset_Test_Threshold,0)),0))/AP_Factor,0.01) -> 4986.8 | EG3: =MAX(MIN(MAX(Full_AP-(Income_Test_Taper*MAX(MIN('Case 2 - Residual Benefit'!EG3*AP_Factor,Deeming_Threshold)*Lower_Deeming_Rate+MAX('Case 2 - Residual Benefit'!EG3*AP_Factor-Deeming_Threshold,0)*Higher_Deeming_Rate-Income_Test_Threshold,0)),0),MAX(Full_AP-(Asset_Test_Taper*MAX('Case 2 - Residual Benefit'!EG3*AP_Factor-Asset_Test_Threshold,0)),0))/AP_Factor,0.01) -> 4986.8 | EH3: =MAX(MIN(MAX(Full_AP-(Income_Test_Taper*MAX(MIN('Case 2 - Residual Benefit'!EH3*AP_Factor,Deeming_Threshold)*Lower_Deeming_Rate+MAX('Case 2 - Residual Benefit'!EH3*AP_Factor-Deeming_Threshold,0)*Higher_Deeming_Rate-Income_Test_Threshold,0)),0),MAX(Full_AP-(Asset_Test_Taper*MAX('Case 2 - Residual Benefit'!EH3*AP_Factor-Asset_Test_Threshold,0)),0))/AP_Factor,0.01) -> 4986.8 | EI3: =MAX(MIN(MAX(Full_AP-(Income_Test_Taper*MAX(MIN('Case 2 - Residual Benefit'!EI3*AP_Factor,Deeming_Threshold)*Lower_Deeming_Rate+MAX('Case 2 - Residual Benefit'!EI3*AP_Factor-Deeming_Threshold,0)*Higher_Deeming_Rate-Income_Test_Threshold,0)),0),MAX(Full_AP-(Asset_Test_Taper*MAX('Case 2 - Residual Benefit'!EI3*AP_Factor-Asset_Test_Threshold,0)),0))/AP_Factor,0.01) -> 4986.8 | EJ3: =MAX(MIN(MAX(Full_AP-(Income_Test_Taper*MAX(MIN('Case 2 - Residual Benefit'!EJ3*AP_Factor,Deeming_Threshold)*Lower_Deeming_Rate+MAX('Case 2 - Residual Benefit'!EJ3*AP_Factor-Deeming_Threshold,0)*Higher_Deeming_Rate-Income_Test_Threshold,0)),0),MAX(Full_AP-(Asset_Test_Taper*MAX('Case 2 - Residual Benefit'!EJ3*AP_Factor-Asset_Test_Threshold,0)),0))/AP_Factor,0.01) -> 4986.8 | EK3: =MAX(MIN(MAX(Full_AP-(Income_Test_Taper*MAX(MIN('Case 2 - Residual Benefit'!EK3*AP_Factor,Deeming_Threshold)*Lower_Deeming_Rate+MAX('Case 2 - Residual Benefit'!EK3*AP_Factor-Deeming_Threshold,0)*Higher_Deeming_Rate-Income_Test_Threshold,0)),0),MAX(Full_AP-(Asset_Test_Taper*MAX('Case 2 - Residual Benefit'!EK3*AP_Factor-Asset_Test_Threshold,0)),0))/AP_Factor,0.01) -> 4986.8 | EL3: =MAX(MIN(MAX(Full_AP-(Income_Test_Taper*MAX(MIN('Case 2 - Residual Benefit'!EL3*AP_Factor,Deeming_Threshold)*Lower_Deeming_Rate+MAX('Case 2 - Residual Benefit'!EL3*AP_Factor-Deeming_Threshold,0)*Higher_Deeming_Rate-Income_Test_Threshold,0)),0),MAX(Full_AP-(Asset_Test_Taper*MAX('Case 2 - Residual Benefit'!EL3*AP_Factor-Asset_Test_Threshold,0)),0))/AP_Factor,0.01) -> 4986.8 | EM3: =MAX(MIN(MAX(Full_AP-(Income_Test_Taper*MAX(MIN('Case 2 - Residual Benefit'!EM3*AP_Factor,Deeming_Threshold)*Lower_Deeming_Rate+MAX('Case 2 - Residual Benefit'!EM3*AP_Factor-Deeming_Threshold,0)*Higher_Deeming_Rate-Income_Test_Threshold,0)),0),MAX(Full_AP-(Asset_Test_Taper*MAX('Case 2 - Residual Benefit'!EM3*AP_Factor-Asset_Test_Threshold,0)),0))/AP_Factor,0.01) -> 4986.8 | EN3: =MAX(MIN(MAX(Full_AP-(Income_Test_Taper*MAX(MIN('Case 2 - Residual Benefit'!EN3*AP_Factor,Deeming_Threshold)*Lower_Deeming_Rate+MAX('Case 2 - Residual Benefit'!EN3*AP_Factor-Deeming_Threshold,0)*Higher_Deeming_Rate-Income_Test_Threshold,0)),0),MAX(Full_AP-(Asset_Test_Taper*MAX('Case 2 - Residual Benefit'!EN3*AP_Factor-Asset_Test_Threshold,0)),0))/AP_Factor,0.01) -> 4986.8 | EO3: =MAX(MIN(MAX(Full_AP-(Income_Test_Taper*MAX(MIN('Case 2 - Residual Benefit'!EO3*AP_Factor,Deeming_Threshold)*Lower_Deeming_Rate+MAX('Case 2 - Residual Benefit'!EO3*AP_Factor-Deeming_Threshold,0)*Higher_Deeming_Rate-Income_Test_Threshold,0)),0),MAX(Full_AP-(Asset_Test_Taper*MAX('Case 2 - Residual Benefit'!EO3*AP_Factor-Asset_Test_Threshold,0)),0))/AP_Factor,0.01) -> 4986.8 | EP3: =MAX(MIN(MAX(Full_AP-(Income_Test_Taper*MAX(MIN('Case 2 - Residual Benefit'!EP3*AP_Factor,Deeming_Threshold)*Lower_Deeming_Rate+MAX('Case 2 - Residual Benefit'!EP3*AP_Factor-Deeming_Threshold,0)*Higher_Deeming_Rate-Income_Test_Threshold,0)),0),MAX(Full_AP-(Asset_Test_Taper*MAX('Case 2 - Residual Benefit'!EP3*AP_Factor-Asset_Test_Threshold,0)),0))/AP_Factor,0.01) -> 4986.8 | EQ3: =MAX(MIN(MAX(Full_AP-(Income_Test_Taper*MAX(MIN('Case 2 - Residual Benefit'!EQ3*AP_Factor,Deeming_Threshold)*Lower_Deeming_Rate+MAX('Case 2 - Residual Benefit'!EQ3*AP_Factor-Deeming_Threshold,0)*Higher_Deeming_Rate-Income_Test_Threshold,0)),0),MAX(Full_AP-(Asset_Test_Taper*MAX('Case 2 - Residual Benefit'!EQ3*AP_Factor-Asset_Test_Threshold,0)),0))/AP_Factor,0.01) -> 4986.8 | ER3: =MAX(MIN(MAX(Full_AP-(Income_Test_Taper*MAX(MIN('Case 2 - Residual Benefit'!ER3*AP_Factor,Deeming_Threshold)*Lower_Deeming_Rate+MAX('Case 2 - Residual Benefit'!ER3*AP_Factor-Deeming_Threshold,0)*Higher_Deeming_Rate-Income_Test_Threshold,0)),0),MAX(Full_AP-(Asset_Test_Taper*MAX('Case 2 - Residual Benefit'!ER3*AP_Factor-Asset_Test_Threshold,0)),0))/AP_Factor,0.01) -> 4986.8 | ES3: =MAX(MIN(MAX(Full_AP-(Income_Test_Taper*MAX(MIN('Case 2 - Residual Benefit'!ES3*AP_Factor,Deeming_Threshold)*Lower_Deeming_Rate+MAX('Case 2 - Residual Benefit'!ES3*AP_Factor-Deeming_Threshold,0)*Higher_Deeming_Rate-Income_Test_Threshold,0)),0),MAX(Full_AP-(Asset_Test_Taper*MAX('Case 2 - Residual Benefit'!ES3*AP_Factor-Asset_Test_Threshold,0)),0))/AP_Factor,0.01) -> 4986.8 | ET3: =MAX(MIN(MAX(Full_AP-(Income_Test_Taper*MAX(MIN('Case 2 - Residual Benefit'!ET3*AP_Factor,Deeming_Threshold)*Lower_Deeming_Rate+MAX('Case 2 - Residual Benefit'!ET3*AP_Factor-Deeming_Threshold,0)*Higher_Deeming_Rate-Income_Test_Threshold,0)),0),MAX(Full_AP-(Asset_Test_Taper*MAX('Case 2 - Residual Benefit'!ET3*AP_Factor-Asset_Test_Threshold,0)),0))/AP_Factor,0.01) -> 4986.8 | EU3: =MAX(MIN(MAX(Full_AP-(Income_Test_Taper*MAX(MIN('Case 2 - Residual Benefit'!EU3*AP_Factor,Deeming_Threshold)*Lower_Deeming_Rate+MAX('Case 2 - Residual Benefit'!EU3*AP_Factor-Deeming_Threshold,0)*Higher_Deeming_Rate-Income_Test_Threshold,0)),0),MAX(Full_AP-(Asset_Test_Taper*MAX('Case 2 - Residual Benefit'!EU3*AP_Factor-Asset_Test_Threshold,0)),0))/AP_Factor,0.01) -> 4986.8 | EV3: =MAX(MIN(MAX(Full_AP-(Income_Test_Taper*MAX(MIN('Case 2 - Residual Benefit'!EV3*AP_Factor,Deeming_Threshold)*Lower_Deeming_Rate+MAX('Case 2 - Residual Benefit'!EV3*AP_Factor-Deeming_Threshold,0)*Higher_Deeming_Rate-Income_Test_Threshold,0)),0),MAX(Full_AP-(Asset_Test_Taper*MAX('Case 2 - Residual Benefit'!EV3*AP_Factor-Asset_Test_Threshold,0)),0))/AP_Factor,0.01) -> 4986.8 | EW3: =MAX(MIN(MAX(Full_AP-(Income_Test_Taper*MAX(MIN('Case 2 - Residual Benefit'!EW3*AP_Factor,Deeming_Threshold)*Lower_Deeming_Rate+MAX('Case 2 - Residual Benefit'!EW3*AP_Factor-Deeming_Threshold,0)*Higher_Deeming_Rate-Income_Test_Threshold,0)),0),MAX(Full_AP-(Asset_Test_Taper*MAX('Case 2 - Residual Benefit'!EW3*AP_Factor-Asset_Test_Threshold,0)),0))/AP_Factor,0.01) -> 4986.8 | EX3: =MAX(MIN(MAX(Full_AP-(Income_Test_Taper*MAX(MIN('Case 2 - Residual Benefit'!EX3*AP_Factor,Deeming_Threshold)*Lower_Deeming_Rate+MAX('Case 2 - Residual Benefit'!EX3*AP_Factor-Deeming_Threshold,0)*Higher_Deeming_Rate-Income_Test_Threshold,0)),0),MAX(Full_AP-(Asset_Test_Taper*MAX('Case 2 - Residual Benefit'!EX3*AP_Factor-Asset_Test_Threshold,0)),0))/AP_Factor,0.01) -> 4986.8 | EY3: =MAX(MIN(MAX(Full_AP-(Income_Test_Taper*MAX(MIN('Case 2 - Residual Benefit'!EY3*AP_Factor,Deeming_Threshold)*Lower_Deeming_Rate+MAX('Case 2 - Residual Benefit'!EY3*AP_Factor-Deeming_Threshold,0)*Higher_Deeming_Rate-Income_Test_Threshold,0)),0),MAX(Full_AP-(Asset_Test_Taper*MAX('Case 2 - Residual Benefit'!EY3*AP_Factor-Asset_Test_Threshold,0)),0))/AP_Factor,0.01) -> 4986.8 | EZ3: =MAX(MIN(MAX(Full_AP-(Income_Test_Taper*MAX(MIN('Case 2 - Residual Benefit'!EZ3*AP_Factor,Deeming_Threshold)*Lower_Deeming_Rate+MAX('Case 2 - Residual Benefit'!EZ3*AP_Factor-Deeming_Threshold,0)*Higher_Deeming_Rate-Income_Test_Threshold,0)),0),MAX(Full_AP-(Asset_Test_Taper*MAX('Case 2 - Residual Benefit'!EZ3*AP_Factor-Asset_Test_Threshold,0)),0))/AP_Factor,0.01) -> 4986.8 | FA3: =MAX(MIN(MAX(Full_AP-(Income_Test_Taper*MAX(MIN('Case 2 - Residual Benefit'!FA3*AP_Factor,Deeming_Threshold)*Lower_Deeming_Rate+MAX('Case 2 - Residual Benefit'!FA3*AP_Factor-Deeming_Threshold,0)*Higher_Deeming_Rate-Income_Test_Threshold,0)),0),MAX(Full_AP-(Asset_Test_Taper*MAX('Case 2 - Residual Benefit'!FA3*AP_Factor-Asset_Test_Threshold,0)),0))/AP_Factor,0.01) -> 4986.8 | FB3: =MAX(MIN(MAX(Full_AP-(Income_Test_Taper*MAX(MIN('Case 2 - Residual Benefit'!FB3*AP_Factor,Deeming_Threshold)*Lower_Deeming_Rate+MAX('Case 2 - Residual Benefit'!FB3*AP_Factor-Deeming_Threshold,0)*Higher_Deeming_Rate-Income_Test_Threshold,0)),0),MAX(Full_AP-(Asset_Test_Taper*MAX('Case 2 - Residual Benefit'!FB3*AP_Factor-Asset_Test_Threshold,0)),0))/AP_Factor,0.01) -> 4986.8 | FC3: =MAX(MIN(MAX(Full_AP-(Income_Test_Taper*MAX(MIN('Case 2 - Residual Benefit'!FC3*AP_Factor,Deeming_Threshold)*Lower_Deeming_Rate+MAX('Case 2 - Residual Benefit'!FC3*AP_Factor-Deeming_Threshold,0)*Higher_Deeming_Rate-Income_Test_Threshold,0)),0),MAX(Full_AP-(Asset_Test_Taper*MAX('Case 2 - Residual Benefit'!FC3*AP_Factor-Asset_Test_Threshold,0)),0))/AP_Factor,0.01) -> 4986.8 | FD3: =MAX(MIN(MAX(Full_AP-(Income_Test_Taper*MAX(MIN('Case 2 - Residual Benefit'!FD3*AP_Factor,Deeming_Threshold)*Lower_Deeming_Rate+MAX('Case 2 - Residual Benefit'!FD3*AP_Factor-Deeming_Threshold,0)*Higher_Deeming_Rate-Income_Test_Threshold,0)),0),MAX(Full_AP-(Asset_Test_Taper*MAX('Case 2 - Residual Benefit'!FD3*AP_Factor-Asset_Test_Threshold,0)),0))/AP_Factor,0.01) -> 4986.8 | FE3: =MAX(MIN(MAX(Full_AP-(Income_Test_Taper*MAX(MIN('Case 2 - Residual Benefit'!FE3*AP_Factor,Deeming_Threshold)*Lower_Deeming_Rate+MAX('Case 2 - Residual Benefit'!FE3*AP_Factor-Deeming_Threshold,0)*Higher_Deeming_Rate-Income_Test_Threshold,0)),0),MAX(Full_AP-(Asset_Test_Taper*MAX('Case 2 - Residual Benefit'!FE3*AP_Factor-Asset_Test_Threshold,0)),0))/AP_Factor,0.01) -> 4986.8 | FF3: =MAX(MIN(MAX(Full_AP-(Income_Test_Taper*MAX(MIN('Case 2 - Residual Benefit'!FF3*AP_Factor,Deeming_Threshold)*Lower_Deeming_Rate+MAX('Case 2 - Residual Benefit'!FF3*AP_Factor-Deeming_Threshold,0)*Higher_Deeming_Rate-Income_Test_Threshold,0)),0),MAX(Full_AP-(Asset_Test_Taper*MAX('Case 2 - Residual Benefit'!FF3*AP_Factor-Asset_Test_Threshold,0)),0))/AP_Factor,0.01) -> 4986.8 | FG3: =MAX(MIN(MAX(Full_AP-(Income_Test_Taper*MAX(MIN('Case 2 - Residual Benefit'!FG3*AP_Factor,Deeming_Threshold)*Lower_Deeming_Rate+MAX('Case 2 - Residual Benefit'!FG3*AP_Factor-Deeming_Threshold,0)*Higher_Deeming_Rate-Income_Test_Threshold,0)),0),MAX(Full_AP-(Asset_Test_Taper*MAX('Case 2 - Residual Benefit'!FG3*AP_Factor-Asset_Test_Threshold,0)),0))/AP_Factor,0.01) -> 4986.8 | FH3: =MAX(MIN(MAX(Full_AP-(Income_Test_Taper*MAX(MIN('Case 2 - Residual Benefit'!FH3*AP_Factor,Deeming_Threshold)*Lower_Deeming_Rate+MAX('Case 2 - Residual Benefit'!FH3*AP_Factor-Deeming_Threshold,0)*Higher_Deeming_Rate-Income_Test_Threshold,0)),0),MAX(Full_AP-(Asset_Test_Taper*MAX('Case 2 - Residual Benefit'!FH3*AP_Factor-Asset_Test_Threshold,0)),0))/AP_Factor,0.01) -> 4986.8 | FI3: =MAX(MIN(MAX(Full_AP-(Income_Test_Taper*MAX(MIN('Case 2 - Residual Benefit'!FI3*AP_Factor,Deeming_Threshold)*Lower_Deeming_Rate+MAX('Case 2 - Residual Benefit'!FI3*AP_Factor-Deeming_Threshold,0)*Higher_Deeming_Rate-Income_Test_Threshold,0)),0),MAX(Full_AP-(Asset_Test_Taper*MAX('Case 2 - Residual Benefit'!FI3*AP_Factor-Asset_Test_Threshold,0)),0))/AP_Factor,0.01) -> 4986.8 | FJ3: =MAX(MIN(MAX(Full_AP-(Income_Test_Taper*MAX(MIN('Case 2 - Residual Benefit'!FJ3*AP_Factor,Deeming_Threshold)*Lower_Deeming_Rate+MAX('Case 2 - Residual Benefit'!FJ3*AP_Factor-Deeming_Threshold,0)*Higher_Deeming_Rate-Income_Test_Threshold,0)),0),MAX(Full_AP-(Asset_Test_Taper*MAX('Case 2 - Residual Benefit'!FJ3*AP_Factor-Asset_Test_Threshold,0)),0))/AP_Factor,0.01) -> 4986.8 | FK3: =MAX(MIN(MAX(Full_AP-(Income_Test_Taper*MAX(MIN('Case 2 - Residual Benefit'!FK3*AP_Factor,Deeming_Threshold)*Lower_Deeming_Rate+MAX('Case 2 - Residual Benefit'!FK3*AP_Factor-Deeming_Threshold,0)*Higher_Deeming_Rate-Income_Test_Threshold,0)),0),MAX(Full_AP-(Asset_Test_Taper*MAX('Case 2 - Residual Benefit'!FK3*AP_Factor-Asset_Test_Threshold,0)),0))/AP_Factor,0.01) -> 4986.8 | FL3: =MAX(MIN(MAX(Full_AP-(Income_Test_Taper*MAX(MIN('Case 2 - Residual Benefit'!FL3*AP_Factor,Deeming_Threshold)*Lower_Deeming_Rate+MAX('Case 2 - Residual Benefit'!FL3*AP_Factor-Deeming_Threshold,0)*Higher_Deeming_Rate-Income_Test_Threshold,0)),0),MAX(Full_AP-(Asset_Test_Taper*MAX('Case 2 - Residual Benefit'!FL3*AP_Factor-Asset_Test_Threshold,0)),0))/AP_Factor,0.01) -> 4986.8 | FM3: =MAX(MIN(MAX(Full_AP-(Income_Test_Taper*MAX(MIN('Case 2 - Residual Benefit'!FM3*AP_Factor,Deeming_Threshold)*Lower_Deeming_Rate+MAX('Case 2 - Residual Benefit'!FM3*AP_Factor-Deeming_Threshold,0)*Higher_Deeming_Rate-Income_Test_Threshold,0)),0),MAX(Full_AP-(Asset_Test_Taper*MAX('Case 2 - Residual Benefit'!FM3*AP_Factor-Asset_Test_Threshold,0)),0))/AP_Factor,0.01) -> 4986.8 | FN3: =MAX(MIN(MAX(Full_AP-(Income_Test_Taper*MAX(MIN('Case 2 - Residual Benefit'!FN3*AP_Factor,Deeming_Threshold)*Lower_Deeming_Rate+MAX('Case 2 - Residual Benefit'!FN3*AP_Factor-Deeming_Threshold,0)*Higher_Deeming_Rate-Income_Test_Threshold,0)),0),MAX(Full_AP-(Asset_Test_Taper*MAX('Case 2 - Residual Benefit'!FN3*AP_Factor-Asset_Test_Threshold,0)),0))/AP_Factor,0.01) -> 4986.8 | FO3: =MAX(MIN(MAX(Full_AP-(Income_Test_Taper*MAX(MIN('Case 2 - Residual Benefit'!FO3*AP_Factor,Deeming_Threshold)*Lower_Deeming_Rate+MAX('Case 2 - Residual Benefit'!FO3*AP_Factor-Deeming_Threshold,0)*Higher_Deeming_Rate-Income_Test_Threshold,0)),0),MAX(Full_AP-(Asset_Test_Taper*MAX('Case 2 - Residual Benefit'!FO3*AP_Factor-Asset_Test_Threshold,0)),0))/AP_Factor,0.01) -> 4986.8 | FP3: =MAX(MIN(MAX(Full_AP-(Income_Test_Taper*MAX(MIN('Case 2 - Residual Benefit'!FP3*AP_Factor,Deeming_Threshold)*Lower_Deeming_Rate+MAX('Case 2 - Residual Benefit'!FP3*AP_Factor-Deeming_Threshold,0)*Higher_Deeming_Rate-Income_Test_Threshold,0)),0),MAX(Full_AP-(Asset_Test_Taper*MAX('Case 2 - Residual Benefit'!FP3*AP_Factor-Asset_Test_Threshold,0)),0))/AP_Factor,0.01) -> 4986.8 | FQ3: =MAX(MIN(MAX(Full_AP-(Income_Test_Taper*MAX(MIN('Case 2 - Residual Benefit'!FQ3*AP_Factor,Deeming_Threshold)*Lower_Deeming_Rate+MAX('Case 2 - Residual Benefit'!FQ3*AP_Factor-Deeming_Threshold,0)*Higher_Deeming_Rate-Income_Test_Threshold,0)),0),MAX(Full_AP-(Asset_Test_Taper*MAX('Case 2 - Residual Benefit'!FQ3*AP_Factor-Asset_Test_Threshold,0)),0))/AP_Factor,0.01) -> 4986.8 | FR3: =MAX(MIN(MAX(Full_AP-(Income_Test_Taper*MAX(MIN('Case 2 - Residual Benefit'!FR3*AP_Factor,Deeming_Threshold)*Lower_Deeming_Rate+MAX('Case 2 - Residual Benefit'!FR3*AP_Factor-Deeming_Threshold,0)*Higher_Deeming_Rate-Income_Test_Threshold,0)),0),MAX(Full_AP-(Asset_Test_Taper*MAX('Case 2 - Residual Benefit'!FR3*AP_Factor-Asset_Test_Threshold,0)),0))/AP_Factor,0.01) -> 4986.8 | FS3: =MAX(MIN(MAX(Full_AP-(Income_Test_Taper*MAX(MIN('Case 2 - Residual Benefit'!FS3*AP_Factor,Deeming_Threshold)*Lower_Deeming_Rate+MAX('Case 2 - Residual Benefit'!FS3*AP_Factor-Deeming_Threshold,0)*Higher_Deeming_Rate-Income_Test_Threshold,0)),0),MAX(Full_AP-(Asset_Test_Taper*MAX('Case 2 - Residual Benefit'!FS3*AP_Factor-Asset_Test_Threshold,0)),0))/AP_Factor,0.01) -> 4986.8 | FT3: =MAX(MIN(MAX(Full_AP-(Income_Test_Taper*MAX(MIN('Case 2 - Residual Benefit'!FT3*AP_Factor,Deeming_Threshold)*Lower_Deeming_Rate+MAX('Case 2 - Residual Benefit'!FT3*AP_Factor-Deeming_Threshold,0)*Higher_Deeming_Rate-Income_Test_Threshold,0)),0),MAX(Full_AP-(Asset_Test_Taper*MAX('Case 2 - Residual Benefit'!FT3*AP_Factor-Asset_Test_Threshold,0)),0))/AP_Factor,0.01) -> 4986.8 | FU3: =MAX(MIN(MAX(Full_AP-(Income_Test_Taper*MAX(MIN('Case 2 - Residual Benefit'!FU3*AP_Factor,Deeming_Threshold)*Lower_Deeming_Rate+MAX('Case 2 - Residual Benefit'!FU3*AP_Factor-Deeming_Threshold,0)*Higher_Deeming_Rate-Income_Test_Threshold,0)),0),MAX(Full_AP-(Asset_Test_Taper*MAX('Case 2 - Residual Benefit'!FU3*AP_Factor-Asset_Test_Threshold,0)),0))/AP_Factor,0.01) -> 4986.8 | FV3: =MAX(MIN(MAX(Full_AP-(Income_Test_Taper*MAX(MIN('Case 2 - Residual Benefit'!FV3*AP_Factor,Deeming_Threshold)*Lower_Deeming_Rate+MAX('Case 2 - Residual Benefit'!FV3*AP_Factor-Deeming_Threshold,0)*Higher_Deeming_Rate-Income_Test_Threshold,0)),0),MAX(Full_AP-(Asset_Test_Taper*MAX('Case 2 - Residual Benefit'!FV3*AP_Factor-Asset_Test_Threshold,0)),0))/AP_Factor,0.01) -> 4986.8 | FW3: =MAX(MIN(MAX(Full_AP-(Income_Test_Taper*MAX(MIN('Case 2 - Residual Benefit'!FW3*AP_Factor,Deeming_Threshold)*Lower_Deeming_Rate+MAX('Case 2 - Residual Benefit'!FW3*AP_Factor-Deeming_Threshold,0)*Higher_Deeming_Rate-Income_Test_Threshold,0)),0),MAX(Full_AP-(Asset_Test_Taper*MAX('Case 2 - Residual Benefit'!FW3*AP_Factor-Asset_Test_Threshold,0)),0))/AP_Factor,0.01) -> 4986.8 | FX3: =MAX(MIN(MAX(Full_AP-(Income_Test_Taper*MAX(MIN('Case 2 - Residual Benefit'!FX3*AP_Factor,Deeming_Threshold)*Lower_Deeming_Rate+MAX('Case 2 - Residual Benefit'!FX3*AP_Factor-Deeming_Threshold,0)*Higher_Deeming_Rate-Income_Test_Threshold,0)),0),MAX(Full_AP-(Asset_Test_Taper*MAX('Case 2 - Residual Benefit'!FX3*AP_Factor-Asset_Test_Threshold,0)),0))/AP_Factor,0.01) -> 4986.8 | FY3: =MAX(MIN(MAX(Full_AP-(Income_Test_Taper*MAX(MIN('Case 2 - Residual Benefit'!FY3*AP_Factor,Deeming_Threshold)*Lower_Deeming_Rate+MAX('Case 2 - Residual Benefit'!FY3*AP_Factor-Deeming_Threshold,0)*Higher_Deeming_Rate-Income_Test_Threshold,0)),0),MAX(Full_AP-(Asset_Test_Taper*MAX('Case 2 - Residual Benefit'!FY3*AP_Factor-Asset_Test_Threshold,0)),0))/AP_Factor,0.01) -> 4986.8 | FZ3: =MAX(MIN(MAX(Full_AP-(Income_Test_Taper*MAX(MIN('Case 2 - Residual Benefit'!FZ3*AP_Factor,Deeming_Threshold)*Lower_Deeming_Rate+MAX('Case 2 - Residual Benefit'!FZ3*AP_Factor-Deeming_Threshold,0)*Higher_Deeming_Rate-Income_Test_Threshold,0)),0),MAX(Full_AP-(Asset_Test_Taper*MAX('Case 2 - Residual Benefit'!FZ3*AP_Factor-Asset_Test_Threshold,0)),0))/AP_Factor,0.01) -> 4986.8 | GA3: =MAX(MIN(MAX(Full_AP-(Income_Test_Taper*MAX(MIN('Case 2 - Residual Benefit'!GA3*AP_Factor,Deeming_Threshold)*Lower_Deeming_Rate+MAX('Case 2 - Residual Benefit'!GA3*AP_Factor-Deeming_Threshold,0)*Higher_Deeming_Rate-Income_Test_Threshold,0)),0),MAX(Full_AP-(Asset_Test_Taper*MAX('Case 2 - Residual Benefit'!GA3*AP_Factor-Asset_Test_Threshold,0)),0))/AP_Factor,0.01) -> 4986.8 | GB3: =MAX(MIN(MAX(Full_AP-(Income_Test_Taper*MAX(MIN('Case 2 - Residual Benefit'!GB3*AP_Factor,Deeming_Threshold)*Lower_Deeming_Rate+MAX('Case 2 - Residual Benefit'!GB3*AP_Factor-Deeming_Threshold,0)*Higher_Deeming_Rate-Income_Test_Threshold,0)),0),MAX(Full_AP-(Asset_Test_Taper*MAX('Case 2 - Residual Benefit'!GB3*AP_Factor-Asset_Test_Threshold,0)),0))/AP_Factor,0.01) -> 4986.8 | GC3: =MAX(MIN(MAX(Full_AP-(Income_Test_Taper*MAX(MIN('Case 2 - Residual Benefit'!GC3*AP_Factor,Deeming_Threshold)*Lower_Deeming_Rate+MAX('Case 2 - Residual Benefit'!GC3*AP_Factor-Deeming_Threshold,0)*Higher_Deeming_Rate-Income_Test_Threshold,0)),0),MAX(Full_AP-(Asset_Test_Taper*MAX('Case 2 - Residual Benefit'!GC3*AP_Factor-Asset_Test_Threshold,0)),0))/AP_Factor,0.01) -> 4986.8 | GD3: =MAX(MIN(MAX(Full_AP-(Income_Test_Taper*MAX(MIN('Case 2 - Residual Benefit'!GD3*AP_Factor,Deeming_Threshold)*Lower_Deeming_Rate+MAX('Case 2 - Residual Benefit'!GD3*AP_Factor-Deeming_Threshold,0)*Higher_Deeming_Rate-Income_Test_Threshold,0)),0),MAX(Full_AP-(Asset_Test_Taper*MAX('Case 2 - Residual Benefit'!GD3*AP_Factor-Asset_Test_Threshold,0)),0))/AP_Factor,0.01) -> 4986.8 | GE3: =MAX(MIN(MAX(Full_AP-(Income_Test_Taper*MAX(MIN('Case 2 - Residual Benefit'!GE3*AP_Factor,Deeming_Threshold)*Lower_Deeming_Rate+MAX('Case 2 - Residual Benefit'!GE3*AP_Factor-Deeming_Threshold,0)*Higher_Deeming_Rate-Income_Test_Threshold,0)),0),MAX(Full_AP-(Asset_Test_Taper*MAX('Case 2 - Residual Benefit'!GE3*AP_Factor-Asset_Test_Threshold,0)),0))/AP_Factor,0.01) -> 4986.8 | GF3: =MAX(MIN(MAX(Full_AP-(Income_Test_Taper*MAX(MIN('Case 2 - Residual Benefit'!GF3*AP_Factor,Deeming_Threshold)*Lower_Deeming_Rate+MAX('Case 2 - Residual Benefit'!GF3*AP_Factor-Deeming_Threshold,0)*Higher_Deeming_Rate-Income_Test_Threshold,0)),0),MAX(Full_AP-(Asset_Test_Taper*MAX('Case 2 - Residual Benefit'!GF3*AP_Factor-Asset_Test_Threshold,0)),0))/AP_Factor,0.01) -> 4986.8 | GG3: =MAX(MIN(MAX(Full_AP-(Income_Test_Taper*MAX(MIN('Case 2 - Residual Benefit'!GG3*AP_Factor,Deeming_Threshold)*Lower_Deeming_Rate+MAX('Case 2 - Residual Benefit'!GG3*AP_Factor-Deeming_Threshold,0)*Higher_Deeming_Rate-Income_Test_Threshold,0)),0),MAX(Full_AP-(Asset_Test_Taper*MAX('Case 2 - Residual Benefit'!GG3*AP_Factor-Asset_Test_Threshold,0)),0))/AP_Factor,0.01) -> 4986.8 | GH3: =MAX(MIN(MAX(Full_AP-(Income_Test_Taper*MAX(MIN('Case 2 - Residual Benefit'!GH3*AP_Factor,Deeming_Threshold)*Lower_Deeming_Rate+MAX('Case 2 - Residual Benefit'!GH3*AP_Factor-Deeming_Threshold,0)*Higher_Deeming_Rate-Income_Test_Threshold,0)),0),MAX(Full_AP-(Asset_Test_Taper*MAX('Case 2 - Residual Benefit'!GH3*AP_Factor-Asset_Test_Threshold,0)),0))/AP_Factor,0.01) -> 4986.8 | GI3: =MAX(MIN(MAX(Full_AP-(Income_Test_Taper*MAX(MIN('Case 2 - Residual Benefit'!GI3*AP_Factor,Deeming_Threshold)*Lower_Deeming_Rate+MAX('Case 2 - Residual Benefit'!GI3*AP_Factor-Deeming_Threshold,0)*Higher_Deeming_Rate-Income_Test_Threshold,0)),0),MAX(Full_AP-(Asset_Test_Taper*MAX('Case 2 - Residual Benefit'!GI3*AP_Factor-Asset_Test_Threshold,0)),0))/AP_Factor,0.01) -> 4986.8 | GJ3: =MAX(MIN(MAX(Full_AP-(Income_Test_Taper*MAX(MIN('Case 2 - Residual Benefit'!GJ3*AP_Factor,Deeming_Threshold)*Lower_Deeming_Rate+MAX('Case 2 - Residual Benefit'!GJ3*AP_Factor-Deeming_Threshold,0)*Higher_Deeming_Rate-Income_Test_Threshold,0)),0),MAX(Full_AP-(Asset_Test_Taper*MAX('Case 2 - Residual Benefit'!GJ3*AP_Factor-Asset_Test_Threshold,0)),0))/AP_Factor,0.01) -> 4986.8 | GK3: =MAX(MIN(MAX(Full_AP-(Income_Test_Taper*MAX(MIN('Case 2 - Residual Benefit'!GK3*AP_Factor,Deeming_Threshold)*Lower_Deeming_Rate+MAX('Case 2 - Residual Benefit'!GK3*AP_Factor-Deeming_Threshold,0)*Higher_Deeming_Rate-Income_Test_Threshold,0)),0),MAX(Full_AP-(Asset_Test_Taper*MAX('Case 2 - Residual Benefit'!GK3*AP_Factor-Asset_Test_Threshold,0)),0))/AP_Factor,0.01) -> 4986.8 | GL3: =MAX(MIN(MAX(Full_AP-(Income_Test_Taper*MAX(MIN('Case 2 - Residual Benefit'!GL3*AP_Factor,Deeming_Threshold)*Lower_Deeming_Rate+MAX('Case 2 - Residual Benefit'!GL3*AP_Factor-Deeming_Threshold,0)*Higher_Deeming_Rate-Income_Test_Threshold,0)),0),MAX(Full_AP-(Asset_Test_Taper*MAX('Case 2 - Residual Benefit'!GL3*AP_Factor-Asset_Test_Threshold,0)),0))/AP_Factor,0.01) -> 4986.8 | GM3: =MAX(MIN(MAX(Full_AP-(Income_Test_Taper*MAX(MIN('Case 2 - Residual Benefit'!GM3*AP_Factor,Deeming_Threshold)*Lower_Deeming_Rate+MAX('Case 2 - Residual Benefit'!GM3*AP_Factor-Deeming_Threshold,0)*Higher_Deeming_Rate-Income_Test_Threshold,0)),0),MAX(Full_AP-(Asset_Test_Taper*MAX('Case 2 - Residual Benefit'!GM3*AP_Factor-Asset_Test_Threshold,0)),0))/AP_Factor,0.01) -> 4986.8 | GN3: =MAX(MIN(MAX(Full_AP-(Income_Test_Taper*MAX(MIN('Case 2 - Residual Benefit'!GN3*AP_Factor,Deeming_Threshold)*Lower_Deeming_Rate+MAX('Case 2 - Residual Benefit'!GN3*AP_Factor-Deeming_Threshold,0)*Higher_Deeming_Rate-Income_Test_Threshold,0)),0),MAX(Full_AP-(Asset_Test_Taper*MAX('Case 2 - Residual Benefit'!GN3*AP_Factor-Asset_Test_Threshold,0)),0))/AP_Factor,0.01) -> 4986.8 | GO3: =MAX(MIN(MAX(Full_AP-(Income_Test_Taper*MAX(MIN('Case 2 - Residual Benefit'!GO3*AP_Factor,Deeming_Threshold)*Lower_Deeming_Rate+MAX('Case 2 - Residual Benefit'!GO3*AP_Factor-Deeming_Threshold,0)*Higher_Deeming_Rate-Income_Test_Threshold,0)),0),MAX(Full_AP-(Asset_Test_Taper*MAX('Case 2 - Residual Benefit'!GO3*AP_Factor-Asset_Test_Threshold,0)),0))/AP_Factor,0.01) -> 4986.8 | GP3: =MAX(MIN(MAX(Full_AP-(Income_Test_Taper*MAX(MIN('Case 2 - Residual Benefit'!GP3*AP_Factor,Deeming_Threshold)*Lower_Deeming_Rate+MAX('Case 2 - Residual Benefit'!GP3*AP_Factor-Deeming_Threshold,0)*Higher_Deeming_Rate-Income_Test_Threshold,0)),0),MAX(Full_AP-(Asset_Test_Taper*MAX('Case 2 - Residual Benefit'!GP3*AP_Factor-Asset_Test_Threshold,0)),0))/AP_Factor,0.01) -> 4986.8 | GQ3: =MAX(MIN(MAX(Full_AP-(Income_Test_Taper*MAX(MIN('Case 2 - Residual Benefit'!GQ3*AP_Factor,Deeming_Threshold)*Lower_Deeming_Rate+MAX('Case 2 - Residual Benefit'!GQ3*AP_Factor-Deeming_Threshold,0)*Higher_Deeming_Rate-Income_Test_Threshold,0)),0),MAX(Full_AP-(Asset_Test_Taper*MAX('Case 2 - Residual Benefit'!GQ3*AP_Factor-Asset_Test_Threshold,0)),0))/AP_Factor,0.01) -> 4986.8 | GR3: =MAX(MIN(MAX(Full_AP-(Income_Test_Taper*MAX(MIN('Case 2 - Residual Benefit'!GR3*AP_Factor,Deeming_Threshold)*Lower_Deeming_Rate+MAX('Case 2 - Residual Benefit'!GR3*AP_Factor-Deeming_Threshold,0)*Higher_Deeming_Rate-Income_Test_Threshold,0)),0),MAX(Full_AP-(Asset_Test_Taper*MAX('Case 2 - Residual Benefit'!GR3*AP_Factor-Asset_Test_Threshold,0)),0))/AP_Factor,0.01) -> 4986.8 | GS3: =MAX(MIN(MAX(Full_AP-(Income_Test_Taper*MAX(MIN('Case 2 - Residual Benefit'!GS3*AP_Factor,Deeming_Threshold)*Lower_Deeming_Rate+MAX('Case 2 - Residual Benefit'!GS3*AP_Factor-Deeming_Threshold,0)*Higher_Deeming_Rate-Income_Test_Threshold,0)),0),MAX(Full_AP-(Asset_Test_Taper*MAX('Case 2 - Residual Benefit'!GS3*AP_Factor-Asset_Test_Threshold,0)),0))/AP_Factor,0.01) -> 4986.8 | GT3: =MAX(MIN(MAX(Full_AP-(Income_Test_Taper*MAX(MIN('Case 2 - Residual Benefit'!GT3*AP_Factor,Deeming_Threshold)*Lower_Deeming_Rate+MAX('Case 2 - Residual Benefit'!GT3*AP_Factor-Deeming_Threshold,0)*Higher_Deeming_Rate-Income_Test_Threshold,0)),0),MAX(Full_AP-(Asset_Test_Taper*MAX('Case 2 - Residual Benefit'!GT3*AP_Factor-Asset_Test_Threshold,0)),0))/AP_Factor,0.01) -> 4986.8 | GU3: =MAX(MIN(MAX(Full_AP-(Income_Test_Taper*MAX(MIN('Case 2 - Residual Benefit'!GU3*AP_Factor,Deeming_Threshold)*Lower_Deeming_Rate+MAX('Case 2 - Residual Benefit'!GU3*AP_Factor-Deeming_Threshold,0)*Higher_Deeming_Rate-Income_Test_Threshold,0)),0),MAX(Full_AP-(Asset_Test_Taper*MAX('Case 2 - Residual Benefit'!GU3*AP_Factor-Asset_Test_Threshold,0)),0))/AP_Factor,0.01) -> 4986.8 | GV3: =MAX(MIN(MAX(Full_AP-(Income_Test_Taper*MAX(MIN('Case 2 - Residual Benefit'!GV3*AP_Factor,Deeming_Threshold)*Lower_Deeming_Rate+MAX('Case 2 - Residual Benefit'!GV3*AP_Factor-Deeming_Threshold,0)*Higher_Deeming_Rate-Income_Test_Threshold,0)),0),MAX(Full_AP-(Asset_Test_Taper*MAX('Case 2 - Residual Benefit'!GV3*AP_Factor-Asset_Test_Threshold,0)),0))/AP_Factor,0.01) -> 4986.8 | GW3: =MAX(MIN(MAX(Full_AP-(Income_Test_Taper*MAX(MIN('Case 2 - Residual Benefit'!GW3*AP_Factor,Deeming_Threshold)*Lower_Deeming_Rate+MAX('Case 2 - Residual Benefit'!GW3*AP_Factor-Deeming_Threshold,0)*Higher_Deeming_Rate-Income_Test_Threshold,0)),0),MAX(Full_AP-(Asset_Test_Taper*MAX('Case 2 - Residual Benefit'!GW3*AP_Factor-Asset_Test_Threshold,0)),0))/AP_Factor,0.01) -> 4986.8 | GX3: =MAX(MIN(MAX(Full_AP-(Income_Test_Taper*MAX(MIN('Case 2 - Residual Benefit'!GX3*AP_Factor,Deeming_Threshold)*Lower_Deeming_Rate+MAX('Case 2 - Residual Benefit'!GX3*AP_Factor-Deeming_Threshold,0)*Higher_Deeming_Rate-Income_Test_Threshold,0)),0),MAX(Full_AP-(Asset_Test_Taper*MAX('Case 2 - Residual Benefit'!GX3*AP_Factor-Asset_Test_Threshold,0)),0))/AP_Factor,0.01) -> 4986.8 | GY3: =MAX(MIN(MAX(Full_AP-(Income_Test_Taper*MAX(MIN('Case 2 - Residual Benefit'!GY3*AP_Factor,Deeming_Threshold)*Lower_Deeming_Rate+MAX('Case 2 - Residual Benefit'!GY3*AP_Factor-Deeming_Threshold,0)*Higher_Deeming_Rate-Income_Test_Threshold,0)),0),MAX(Full_AP-(Asset_Test_Taper*MAX('Case 2 - Residual Benefit'!GY3*AP_Factor-Asset_Test_Threshold,0)),0))/AP_Factor,0.01) -> 4986.8 | GZ3: =MAX(MIN(MAX(Full_AP-(Income_Test_Taper*MAX(MIN('Case 2 - Residual Benefit'!GZ3*AP_Factor,Deeming_Threshold)*Lower_Deeming_Rate+MAX('Case 2 - Residual Benefit'!GZ3*AP_Factor-Deeming_Threshold,0)*Higher_Deeming_Rate-Income_Test_Threshold,0)),0),MAX(Full_AP-(Asset_Test_Taper*MAX('Case 2 - Residual Benefit'!GZ3*AP_Factor-Asset_Test_Threshold,0)),0))/AP_Factor,0.01) -> 4986.8 | HA3: =MAX(MIN(MAX(Full_AP-(Income_Test_Taper*MAX(MIN('Case 2 - Residual Benefit'!HA3*AP_Factor,Deeming_Threshold)*Lower_Deeming_Rate+MAX('Case 2 - Residual Benefit'!HA3*AP_Factor-Deeming_Threshold,0)*Higher_Deeming_Rate-Income_Test_Threshold,0)),0),MAX(Full_AP-(Asset_Test_Taper*MAX('Case 2 - Residual Benefit'!HA3*AP_Factor-Asset_Test_Threshold,0)),0))/AP_Factor,0.01) -> 4986.8 | HB3: =MAX(MIN(MAX(Full_AP-(Income_Test_Taper*MAX(MIN('Case 2 - Residual Benefit'!HB3*AP_Factor,Deeming_Threshold)*Lower_Deeming_Rate+MAX('Case 2 - Residual Benefit'!HB3*AP_Factor-Deeming_Threshold,0)*Higher_Deeming_Rate-Income_Test_Threshold,0)),0),MAX(Full_AP-(Asset_Test_Taper*MAX('Case 2 - Residual Benefit'!HB3*AP_Factor-Asset_Test_Threshold,0)),0))/AP_Factor,0.01) -> 4986.8 | HC3: =MAX(MIN(MAX(Full_AP-(Income_Test_Taper*MAX(MIN('Case 2 - Residual Benefit'!HC3*AP_Factor,Deeming_Threshold)*Lower_Deeming_Rate+MAX('Case 2 - Residual Benefit'!HC3*AP_Factor-Deeming_Threshold,0)*Higher_Deeming_Rate-Income_Test_Threshold,0)),0),MAX(Full_AP-(Asset_Test_Taper*MAX('Case 2 - Residual Benefit'!HC3*AP_Factor-Asset_Test_Threshold,0)),0))/AP_Factor,0.01) -> 4986.8 | HD3: =MAX(MIN(MAX(Full_AP-(Income_Test_Taper*MAX(MIN('Case 2 - Residual Benefit'!HD3*AP_Factor,Deeming_Threshold)*Lower_Deeming_Rate+MAX('Case 2 - Residual Benefit'!HD3*AP_Factor-Deeming_Threshold,0)*Higher_Deeming_Rate-Income_Test_Threshold,0)),0),MAX(Full_AP-(Asset_Test_Taper*MAX('Case 2 - Residual Benefit'!HD3*AP_Factor-Asset_Test_Threshold,0)),0))/AP_Factor,0.01) -> 4986.8 | HE3: =MAX(MIN(MAX(Full_AP-(Income_Test_Taper*MAX(MIN('Case 2 - Residual Benefit'!HE3*AP_Factor,Deeming_Threshold)*Lower_Deeming_Rate+MAX('Case 2 - Residual Benefit'!HE3*AP_Factor-Deeming_Threshold,0)*Higher_Deeming_Rate-Income_Test_Threshold,0)),0),MAX(Full_AP-(Asset_Test_Taper*MAX('Case 2 - Residual Benefit'!HE3*AP_Factor-Asset_Test_Threshold,0)),0))/AP_Factor,0.01) -> 4986.8 | HF3: =MAX(MIN(MAX(Full_AP-(Income_Test_Taper*MAX(MIN('Case 2 - Residual Benefit'!HF3*AP_Factor,Deeming_Threshold)*Lower_Deeming_Rate+MAX('Case 2 - Residual Benefit'!HF3*AP_Factor-Deeming_Threshold,0)*Higher_Deeming_Rate-Income_Test_Threshold,0)),0),MAX(Full_AP-(Asset_Test_Taper*MAX('Case 2 - Residual Benefit'!HF3*AP_Factor-Asset_Test_Threshold,0)),0))/AP_Factor,0.01) -> 4986.8 | HG3: =MAX(MIN(MAX(Full_AP-(Income_Test_Taper*MAX(MIN('Case 2 - Residual Benefit'!HG3*AP_Factor,Deeming_Threshold)*Lower_Deeming_Rate+MAX('Case 2 - Residual Benefit'!HG3*AP_Factor-Deeming_Threshold,0)*Higher_Deeming_Rate-Income_Test_Threshold,0)),0),MAX(Full_AP-(Asset_Test_Taper*MAX('Case 2 - Residual Benefit'!HG3*AP_Factor-Asset_Test_Threshold,0)),0))/AP_Factor,0.01) -> 4986.8 | HH3: =MAX(MIN(MAX(Full_AP-(Income_Test_Taper*MAX(MIN('Case 2 - Residual Benefit'!HH3*AP_Factor,Deeming_Threshold)*Lower_Deeming_Rate+MAX('Case 2 - Residual Benefit'!HH3*AP_Factor-Deeming_Threshold,0)*Higher_Deeming_Rate-Income_Test_Threshold,0)),0),MAX(Full_AP-(Asset_Test_Taper*MAX('Case 2 - Residual Benefit'!HH3*AP_Factor-Asset_Test_Threshold,0)),0))/AP_Factor,0.01) -> 4986.8 | HI3: =MAX(MIN(MAX(Full_AP-(Income_Test_Taper*MAX(MIN('Case 2 - Residual Benefit'!HI3*AP_Factor,Deeming_Threshold)*Lower_Deeming_Rate+MAX('Case 2 - Residual Benefit'!HI3*AP_Factor-Deeming_Threshold,0)*Higher_Deeming_Rate-Income_Test_Threshold,0)),0),MAX(Full_AP-(Asset_Test_Taper*MAX('Case 2 - Residual Benefit'!HI3*AP_Factor-Asset_Test_Threshold,0)),0))/AP_Factor,0.01) -> 4986.8 | HJ3: =MAX(MIN(MAX(Full_AP-(Income_Test_Taper*MAX(MIN('Case 2 - Residual Benefit'!HJ3*AP_Factor,Deeming_Threshold)*Lower_Deeming_Rate+MAX('Case 2 - Residual Benefit'!HJ3*AP_Factor-Deeming_Threshold,0)*Higher_Deeming_Rate-Income_Test_Threshold,0)),0),MAX(Full_AP-(Asset_Test_Taper*MAX('Case 2 - Residual Benefit'!HJ3*AP_Factor-Asset_Test_Threshold,0)),0))/AP_Factor,0.01) -> 4986.8 | HK3: =MAX(MIN(MAX(Full_AP-(Income_Test_Taper*MAX(MIN('Case 2 - Residual Benefit'!HK3*AP_Factor,Deeming_Threshold)*Lower_Deeming_Rate+MAX('Case 2 - Residual Benefit'!HK3*AP_Factor-Deeming_Threshold,0)*Higher_Deeming_Rate-Income_Test_Threshold,0)),0),MAX(Full_AP-(Asset_Test_Taper*MAX('Case 2 - Residual Benefit'!HK3*AP_Factor-Asset_Test_Threshold,0)),0))/AP_Factor,0.01) -> 4986.8 | HL3: =MAX(MIN(MAX(Full_AP-(Income_Test_Taper*MAX(MIN('Case 2 - Residual Benefit'!HL3*AP_Factor,Deeming_Threshold)*Lower_Deeming_Rate+MAX('Case 2 - Residual Benefit'!HL3*AP_Factor-Deeming_Threshold,0)*Higher_Deeming_Rate-Income_Test_Threshold,0)),0),MAX(Full_AP-(Asset_Test_Taper*MAX('Case 2 - Residual Benefit'!HL3*AP_Factor-Asset_Test_Threshold,0)),0))/AP_Factor,0.01) -> 4986.8 | HM3: =MAX(MIN(MAX(Full_AP-(Income_Test_Taper*MAX(MIN('Case 2 - Residual Benefit'!HM3*AP_Factor,Deeming_Threshold)*Lower_Deeming_Rate+MAX('Case 2 - Residual Benefit'!HM3*AP_Factor-Deeming_Threshold,0)*Higher_Deeming_Rate-Income_Test_Threshold,0)),0),MAX(Full_AP-(Asset_Test_Taper*MAX('Case 2 - Residual Benefit'!HM3*AP_Factor-Asset_Test_Threshold,0)),0))/AP_Factor,0.01) -> 4986.8 | HN3: =MAX(MIN(MAX(Full_AP-(Income_Test_Taper*MAX(MIN('Case 2 - Residual Benefit'!HN3*AP_Factor,Deeming_Threshold)*Lower_Deeming_Rate+MAX('Case 2 - Residual Benefit'!HN3*AP_Factor-Deeming_Threshold,0)*Higher_Deeming_Rate-Income_Test_Threshold,0)),0),MAX(Full_AP-(Asset_Test_Taper*MAX('Case 2 - Residual Benefit'!HN3*AP_Factor-Asset_Test_Threshold,0)),0))/AP_Factor,0.01) -> 4986.8 | HO3: =MAX(MIN(MAX(Full_AP-(Income_Test_Taper*MAX(MIN('Case 2 - Residual Benefit'!HO3*AP_Factor,Deeming_Threshold)*Lower_Deeming_Rate+MAX('Case 2 - Residual Benefit'!HO3*AP_Factor-Deeming_Threshold,0)*Higher_Deeming_Rate-Income_Test_Threshold,0)),0),MAX(Full_AP-(Asset_Test_Taper*MAX('Case 2 - Residual Benefit'!HO3*AP_Factor-Asset_Test_Threshold,0)),0))/AP_Factor,0.01) -> 4986.8 | HP3: =MAX(MIN(MAX(Full_AP-(Income_Test_Taper*MAX(MIN('Case 2 - Residual Benefit'!HP3*AP_Factor,Deeming_Threshold)*Lower_Deeming_Rate+MAX('Case 2 - Residual Benefit'!HP3*AP_Factor-Deeming_Threshold,0)*Higher_Deeming_Rate-Income_Test_Threshold,0)),0),MAX(Full_AP-(Asset_Test_Taper*MAX('Case 2 - Residual Benefit'!HP3*AP_Factor-Asset_Test_Threshold,0)),0))/AP_Factor,0.01) -> 4986.8 | HQ3: =MAX(MIN(MAX(Full_AP-(Income_Test_Taper*MAX(MIN('Case 2 - Residual Benefit'!HQ3*AP_Factor,Deeming_Threshold)*Lower_Deeming_Rate+MAX('Case 2 - Residual Benefit'!HQ3*AP_Factor-Deeming_Threshold,0)*Higher_Deeming_Rate-Income_Test_Threshold,0)),0),MAX(Full_AP-(Asset_Test_Taper*MAX('Case 2 - Residual Benefit'!HQ3*AP_Factor-Asset_Test_Threshold,0)),0))/AP_Factor,0.01) -> 4986.8 | HR3: =MAX(MIN(MAX(Full_AP-(Income_Test_Taper*MAX(MIN('Case 2 - Residual Benefit'!HR3*AP_Factor,Deeming_Threshold)*Lower_Deeming_Rate+MAX('Case 2 - Residual Benefit'!HR3*AP_Factor-Deeming_Threshold,0)*Higher_Deeming_Rate-Income_Test_Threshold,0)),0),MAX(Full_AP-(Asset_Test_Taper*MAX('Case 2 - Residual Benefit'!HR3*AP_Factor-Asset_Test_Threshold,0)),0))/AP_Factor,0.01) -> 4986.8 | HS3: =MAX(MIN(MAX(Full_AP-(Income_Test_Taper*MAX(MIN('Case 2 - Residual Benefit'!HS3*AP_Factor,Deeming_Threshold)*Lower_Deeming_Rate+MAX('Case 2 - Residual Benefit'!HS3*AP_Factor-Deeming_Threshold,0)*Higher_Deeming_Rate-Income_Test_Threshold,0)),0),MAX(Full_AP-(Asset_Test_Taper*MAX('Case 2 - Residual Benefit'!HS3*AP_Factor-Asset_Test_Threshold,0)),0))/AP_Factor,0.01) -> 4986.8 | HT3: =MAX(MIN(MAX(Full_AP-(Income_Test_Taper*MAX(MIN('Case 2 - Residual Benefit'!HT3*AP_Factor,Deeming_Threshold)*Lower_Deeming_Rate+MAX('Case 2 - Residual Benefit'!HT3*AP_Factor-Deeming_Threshold,0)*Higher_Deeming_Rate-Income_Test_Threshold,0)),0),MAX(Full_AP-(Asset_Test_Taper*MAX('Case 2 - Residual Benefit'!HT3*AP_Factor-Asset_Test_Threshold,0)),0))/AP_Factor,0.01) -> 4986.8 | HU3: =MAX(MIN(MAX(Full_AP-(Income_Test_Taper*MAX(MIN('Case 2 - Residual Benefit'!HU3*AP_Factor,Deeming_Threshold)*Lower_Deeming_Rate+MAX('Case 2 - Residual Benefit'!HU3*AP_Factor-Deeming_Threshold,0)*Higher_Deeming_Rate-Income_Test_Threshold,0)),0),MAX(Full_AP-(Asset_Test_Taper*MAX('Case 2 - Residual Benefit'!HU3*AP_Factor-Asset_Test_Threshold,0)),0))/AP_Factor,0.01) -> 4986.8 | HV3: =MAX(MIN(MAX(Full_AP-(Income_Test_Taper*MAX(MIN('Case 2 - Residual Benefit'!HV3*AP_Factor,Deeming_Threshold)*Lower_Deeming_Rate+MAX('Case 2 - Residual Benefit'!HV3*AP_Factor-Deeming_Threshold,0)*Higher_Deeming_Rate-Income_Test_Threshold,0)),0),MAX(Full_AP-(Asset_Test_Taper*MAX('Case 2 - Residual Benefit'!HV3*AP_Factor-Asset_Test_Threshold,0)),0))/AP_Factor,0.01) -> 4986.8 | HW3: =MAX(MIN(MAX(Full_AP-(Income_Test_Taper*MAX(MIN('Case 2 - Residual Benefit'!HW3*AP_Factor,Deeming_Threshold)*Lower_Deeming_Rate+MAX('Case 2 - Residual Benefit'!HW3*AP_Factor-Deeming_Threshold,0)*Higher_Deeming_Rate-Income_Test_Threshold,0)),0),MAX(Full_AP-(Asset_Test_Taper*MAX('Case 2 - Residual Benefit'!HW3*AP_Factor-Asset_Test_Threshold,0)),0))/AP_Factor,0.01) -> 4986.8 | HX3: =MAX(MIN(MAX(Full_AP-(Income_Test_Taper*MAX(MIN('Case 2 - Residual Benefit'!HX3*AP_Factor,Deeming_Threshold)*Lower_Deeming_Rate+MAX('Case 2 - Residual Benefit'!HX3*AP_Factor-Deeming_Threshold,0)*Higher_Deeming_Rate-Income_Test_Threshold,0)),0),MAX(Full_AP-(Asset_Test_Taper*MAX('Case 2 - Residual Benefit'!HX3*AP_Factor-Asset_Test_Threshold,0)),0))/AP_Factor,0.01) -> 4986.8 | HY3: =MAX(MIN(MAX(Full_AP-(Income_Test_Taper*MAX(MIN('Case 2 - Residual Benefit'!HY3*AP_Factor,Deeming_Threshold)*Lower_Deeming_Rate+MAX('Case 2 - Residual Benefit'!HY3*AP_Factor-Deeming_Threshold,0)*Higher_Deeming_Rate-Income_Test_Threshold,0)),0),MAX(Full_AP-(Asset_Test_Taper*MAX('Case 2 - Residual Benefit'!HY3*AP_Factor-Asset_Test_Threshold,0)),0))/AP_Factor,0.01) -> 4986.8 | HZ3: =MAX(MIN(MAX(Full_AP-(Income_Test_Taper*MAX(MIN('Case 2 - Residual Benefit'!HZ3*AP_Factor,Deeming_Threshold)*Lower_Deeming_Rate+MAX('Case 2 - Residual Benefit'!HZ3*AP_Factor-Deeming_Threshold,0)*Higher_Deeming_Rate-Income_Test_Threshold,0)),0),MAX(Full_AP-(Asset_Test_Taper*MAX('Case 2 - Residual Benefit'!HZ3*AP_Factor-Asset_Test_Threshold,0)),0))/AP_Factor,0.01) -> 4986.8 | IA3: =MAX(MIN(MAX(Full_AP-(Income_Test_Taper*MAX(MIN('Case 2 - Residual Benefit'!IA3*AP_Factor,Deeming_Threshold)*Lower_Deeming_Rate+MAX('Case 2 - Residual Benefit'!IA3*AP_Factor-Deeming_Threshold,0)*Higher_Deeming_Rate-Income_Test_Threshold,0)),0),MAX(Full_AP-(Asset_Test_Taper*MAX('Case 2 - Residual Benefit'!IA3*AP_Factor-Asset_Test_Threshold,0)),0))/AP_Factor,0.01) -> 4986.8 | IB3: =MAX(MIN(MAX(Full_AP-(Income_Test_Taper*MAX(MIN('Case 2 - Residual Benefit'!IB3*AP_Factor,Deeming_Threshold)*Lower_Deeming_Rate+MAX('Case 2 - Residual Benefit'!IB3*AP_Factor-Deeming_Threshold,0)*Higher_Deeming_Rate-Income_Test_Threshold,0)),0),MAX(Full_AP-(Asset_Test_Taper*MAX('Case 2 - Residual Benefit'!IB3*AP_Factor-Asset_Test_Threshold,0)),0))/AP_Factor,0.01) -> 4986.8 | IC3: =MAX(MIN(MAX(Full_AP-(Income_Test_Taper*MAX(MIN('Case 2 - Residual Benefit'!IC3*AP_Factor,Deeming_Threshold)*Lower_Deeming_Rate+MAX('Case 2 - Residual Benefit'!IC3*AP_Factor-Deeming_Threshold,0)*Higher_Deeming_Rate-Income_Test_Threshold,0)),0),MAX(Full_AP-(Asset_Test_Taper*MAX('Case 2 - Residual Benefit'!IC3*AP_Factor-Asset_Test_Threshold,0)),0))/AP_Factor,0.01) -> 4986.8 | ID3: =MAX(MIN(MAX(Full_AP-(Income_Test_Taper*MAX(MIN('Case 2 - Residual Benefit'!ID3*AP_Factor,Deeming_Threshold)*Lower_Deeming_Rate+MAX('Case 2 - Residual Benefit'!ID3*AP_Factor-Deeming_Threshold,0)*Higher_Deeming_Rate-Income_Test_Threshold,0)),0),MAX(Full_AP-(Asset_Test_Taper*MAX('Case 2 - Residual Benefit'!ID3*AP_Factor-Asset_Test_Threshold,0)),0))/AP_Factor,0.01) -> 4986.8 | IE3: =MAX(MIN(MAX(Full_AP-(Income_Test_Taper*MAX(MIN('Case 2 - Residual Benefit'!IE3*AP_Factor,Deeming_Threshold)*Lower_Deeming_Rate+MAX('Case 2 - Residual Benefit'!IE3*AP_Factor-Deeming_Threshold,0)*Higher_Deeming_Rate-Income_Test_Threshold,0)),0),MAX(Full_AP-(Asset_Test_Taper*MAX('Case 2 - Residual Benefit'!IE3*AP_Factor-Asset_Test_Threshold,0)),0))/AP_Factor,0.01) -> 4986.8 | IF3: =MAX(MIN(MAX(Full_AP-(Income_Test_Taper*MAX(MIN('Case 2 - Residual Benefit'!IF3*AP_Factor,Deeming_Threshold)*Lower_Deeming_Rate+MAX('Case 2 - Residual Benefit'!IF3*AP_Factor-Deeming_Threshold,0)*Higher_Deeming_Rate-Income_Test_Threshold,0)),0),MAX(Full_AP-(Asset_Test_Taper*MAX('Case 2 - Residual Benefit'!IF3*AP_Factor-Asset_Test_Threshold,0)),0))/AP_Factor,0.01) -> 4986.8 | IG3: =MAX(MIN(MAX(Full_AP-(Income_Test_Taper*MAX(MIN('Case 2 - Residual Benefit'!IG3*AP_Factor,Deeming_Threshold)*Lower_Deeming_Rate+MAX('Case 2 - Residual Benefit'!IG3*AP_Factor-Deeming_Threshold,0)*Higher_Deeming_Rate-Income_Test_Threshold,0)),0),MAX(Full_AP-(Asset_Test_Taper*MAX('Case 2 - Residual Benefit'!IG3*AP_Factor-Asset_Test_Threshold,0)),0))/AP_Factor,0.01) -> 4986.8 | IH3: =MAX(MIN(MAX(Full_AP-(Income_Test_Taper*MAX(MIN('Case 2 - Residual Benefit'!IH3*AP_Factor,Deeming_Threshold)*Lower_Deeming_Rate+MAX('Case 2 - Residual Benefit'!IH3*AP_Factor-Deeming_Threshold,0)*Higher_Deeming_Rate-Income_Test_Threshold,0)),0),MAX(Full_AP-(Asset_Test_Taper*MAX('Case 2 - Residual Benefit'!IH3*AP_Factor-Asset_Test_Threshold,0)),0))/AP_Factor,0.01) -> 4986.8 | II3: =MAX(MIN(MAX(Full_AP-(Income_Test_Taper*MAX(MIN('Case 2 - Residual Benefit'!II3*AP_Factor,Deeming_Threshold)*Lower_Deeming_Rate+MAX('Case 2 - Residual Benefit'!II3*AP_Factor-Deeming_Threshold,0)*Higher_Deeming_Rate-Income_Test_Threshold,0)),0),MAX(Full_AP-(Asset_Test_Taper*MAX('Case 2 - Residual Benefit'!II3*AP_Factor-Asset_Test_Threshold,0)),0))/AP_Factor,0.01) -> 4986.8 | IJ3: =MAX(MIN(MAX(Full_AP-(Income_Test_Taper*MAX(MIN('Case 2 - Residual Benefit'!IJ3*AP_Factor,Deeming_Threshold)*Lower_Deeming_Rate+MAX('Case 2 - Residual Benefit'!IJ3*AP_Factor-Deeming_Threshold,0)*Higher_Deeming_Rate-Income_Test_Threshold,0)),0),MAX(Full_AP-(Asset_Test_Taper*MAX('Case 2 - Residual Benefit'!IJ3*AP_Factor-Asset_Test_Threshold,0)),0))/AP_Factor,0.01) -> 4986.8 | IK3: =MAX(MIN(MAX(Full_AP-(Income_Test_Taper*MAX(MIN('Case 2 - Residual Benefit'!IK3*AP_Factor,Deeming_Threshold)*Lower_Deeming_Rate+MAX('Case 2 - Residual Benefit'!IK3*AP_Factor-Deeming_Threshold,0)*Higher_Deeming_Rate-Income_Test_Threshold,0)),0),MAX(Full_AP-(Asset_Test_Taper*MAX('Case 2 - Residual Benefit'!IK3*AP_Factor-Asset_Test_Threshold,0)),0))/AP_Factor,0.01) -> 4986.8 | IL3: =MAX(MIN(MAX(Full_AP-(Income_Test_Taper*MAX(MIN('Case 2 - Residual Benefit'!IL3*AP_Factor,Deeming_Threshold)*Lower_Deeming_Rate+MAX('Case 2 - Residual Benefit'!IL3*AP_Factor-Deeming_Threshold,0)*Higher_Deeming_Rate-Income_Test_Threshold,0)),0),MAX(Full_AP-(Asset_Test_Taper*MAX('Case 2 - Residual Benefit'!IL3*AP_Factor-Asset_Test_Threshold,0)),0))/AP_Factor,0.01) -> 4986.8 | IM3: =MAX(MIN(MAX(Full_AP-(Income_Test_Taper*MAX(MIN('Case 2 - Residual Benefit'!IM3*AP_Factor,Deeming_Threshold)*Lower_Deeming_Rate+MAX('Case 2 - Residual Benefit'!IM3*AP_Factor-Deeming_Threshold,0)*Higher_Deeming_Rate-Income_Test_Threshold,0)),0),MAX(Full_AP-(Asset_Test_Taper*MAX('Case 2 - Residual Benefit'!IM3*AP_Factor-Asset_Test_Threshold,0)),0))/AP_Factor,0.01) -> 4986.8 | IN3: =MAX(MIN(MAX(Full_AP-(Income_Test_Taper*MAX(MIN('Case 2 - Residual Benefit'!IN3*AP_Factor,Deeming_Threshold)*Lower_Deeming_Rate+MAX('Case 2 - Residual Benefit'!IN3*AP_Factor-Deeming_Threshold,0)*Higher_Deeming_Rate-Income_Test_Threshold,0)),0),MAX(Full_AP-(Asset_Test_Taper*MAX('Case 2 - Residual Benefit'!IN3*AP_Factor-Asset_Test_Threshold,0)),0))/AP_Factor,0.01) -> 4986.8 | IO3: =MAX(MIN(MAX(Full_AP-(Income_Test_Taper*MAX(MIN('Case 2 - Residual Benefit'!IO3*AP_Factor,Deeming_Threshold)*Lower_Deeming_Rate+MAX('Case 2 - Residual Benefit'!IO3*AP_Factor-Deeming_Threshold,0)*Higher_Deeming_Rate-Income_Test_Threshold,0)),0),MAX(Full_AP-(Asset_Test_Taper*MAX('Case 2 - Residual Benefit'!IO3*AP_Factor-Asset_Test_Threshold,0)),0))/AP_Factor,0.01) -> 4986.8 | IP3: =MAX(MIN(MAX(Full_AP-(Income_Test_Taper*MAX(MIN('Case 2 - Residual Benefit'!IP3*AP_Factor,Deeming_Threshold)*Lower_Deeming_Rate+MAX('Case 2 - Residual Benefit'!IP3*AP_Factor-Deeming_Threshold,0)*Higher_Deeming_Rate-Income_Test_Threshold,0)),0),MAX(Full_AP-(Asset_Test_Taper*MAX('Case 2 - Residual Benefit'!IP3*AP_Factor-Asset_Test_Threshold,0)),0))/AP_Factor,0.01) -> 4986.8 | IQ3: =MAX(MIN(MAX(Full_AP-(Income_Test_Taper*MAX(MIN('Case 2 - Residual Benefit'!IQ3*AP_Factor,Deeming_Threshold)*Lower_Deeming_Rate+MAX('Case 2 - Residual Benefit'!IQ3*AP_Factor-Deeming_Threshold,0)*Higher_Deeming_Rate-Income_Test_Threshold,0)),0),MAX(Full_AP-(Asset_Test_Taper*MAX('Case 2 - Residual Benefit'!IQ3*AP_Factor-Asset_Test_Threshold,0)),0))/AP_Factor,0.01) -> 4986.8 | IR3: =MAX(MIN(MAX(Full_AP-(Income_Test_Taper*MAX(MIN('Case 2 - Residual Benefit'!IR3*AP_Factor,Deeming_Threshold)*Lower_Deeming_Rate+MAX('Case 2 - Residual Benefit'!IR3*AP_Factor-Deeming_Threshold,0)*Higher_Deeming_Rate-Income_Test_Threshold,0)),0),MAX(Full_AP-(Asset_Test_Taper*MAX('Case 2 - Residual Benefit'!IR3*AP_Factor-Asset_Test_Threshold,0)),0))/AP_Factor,0.01) -> 4986.8 | IS3: =MAX(MIN(MAX(Full_AP-(Income_Test_Taper*MAX(MIN('Case 2 - Residual Benefit'!IS3*AP_Factor,Deeming_Threshold)*Lower_Deeming_Rate+MAX('Case 2 - Residual Benefit'!IS3*AP_Factor-Deeming_Threshold,0)*Higher_Deeming_Rate-Income_Test_Threshold,0)),0),MAX(Full_AP-(Asset_Test_Taper*MAX('Case 2 - Residual Benefit'!IS3*AP_Factor-Asset_Test_Threshold,0)),0))/AP_Factor,0.01) -> 4986.8 | IT3: =MAX(MIN(MAX(Full_AP-(Income_Test_Taper*MAX(MIN('Case 2 - Residual Benefit'!IT3*AP_Factor,Deeming_Threshold)*Lower_Deeming_Rate+MAX('Case 2 - Residual Benefit'!IT3*AP_Factor-Deeming_Threshold,0)*Higher_Deeming_Rate-Income_Test_Threshold,0)),0),MAX(Full_AP-(Asset_Test_Taper*MAX('Case 2 - Residual Benefit'!IT3*AP_Factor-Asset_Test_Threshold,0)),0))/AP_Factor,0.01) -> 4986.8 | IU3: =MAX(MIN(MAX(Full_AP-(Income_Test_Taper*MAX(MIN('Case 2 - Residual Benefit'!IU3*AP_Factor,Deeming_Threshold)*Lower_Deeming_Rate+MAX('Case 2 - Residual Benefit'!IU3*AP_Factor-Deeming_Threshold,0)*Higher_Deeming_Rate-Income_Test_Threshold,0)),0),MAX(Full_AP-(Asset_Test_Taper*MAX('Case 2 - Residual Benefit'!IU3*AP_Factor-Asset_Test_Threshold,0)),0))/AP_Factor,0.01) -> 4986.8 | IV3: =MAX(MIN(MAX(Full_AP-(Income_Test_Taper*MAX(MIN('Case 2 - Residual Benefit'!IV3*AP_Factor,Deeming_Threshold)*Lower_Deeming_Rate+MAX('Case 2 - Residual Benefit'!IV3*AP_Factor-Deeming_Threshold,0)*Higher_Deeming_Rate-Income_Test_Threshold,0)),0),MAX(Full_AP-(Asset_Test_Taper*MAX('Case 2 - Residual Benefit'!IV3*AP_Factor-Asset_Test_Threshold,0)),0))/AP_Factor,0.01) -> 4986.8 | IW3: =MAX(MIN(MAX(Full_AP-(Income_Test_Taper*MAX(MIN('Case 2 - Residual Benefit'!IW3*AP_Factor,Deeming_Threshold)*Lower_Deeming_Rate+MAX('Case 2 - Residual Benefit'!IW3*AP_Factor-Deeming_Threshold,0)*Higher_Deeming_Rate-Income_Test_Threshold,0)),0),MAX(Full_AP-(Asset_Test_Taper*MAX('Case 2 - Residual Benefit'!IW3*AP_Factor-Asset_Test_Threshold,0)),0))/AP_Factor,0.01) -> 4986.8 | IX3: =MAX(MIN(MAX(Full_AP-(Income_Test_Taper*MAX(MIN('Case 2 - Residual Benefit'!IX3*AP_Factor,Deeming_Threshold)*Lower_Deeming_Rate+MAX('Case 2 - Residual Benefit'!IX3*AP_Factor-Deeming_Threshold,0)*Higher_Deeming_Rate-Income_Test_Threshold,0)),0),MAX(Full_AP-(Asset_Test_Taper*MAX('Case 2 - Residual Benefit'!IX3*AP_Factor-Asset_Test_Threshold,0)),0))/AP_Factor,0.01) -> 4986.8 | IY3: =MAX(MIN(MAX(Full_AP-(Income_Test_Taper*MAX(MIN('Case 2 - Residual Benefit'!IY3*AP_Factor,Deeming_Threshold)*Lower_Deeming_Rate+MAX('Case 2 - Residual Benefit'!IY3*AP_Factor-Deeming_Threshold,0)*Higher_Deeming_Rate-Income_Test_Threshold,0)),0),MAX(Full_AP-(Asset_Test_Taper*MAX('Case 2 - Residual Benefit'!IY3*AP_Factor-Asset_Test_Threshold,0)),0))/AP_Factor,0.01) -> 4986.8 | IZ3: =MAX(MIN(MAX(Full_AP-(Income_Test_Taper*MAX(MIN('Case 2 - Residual Benefit'!IZ3*AP_Factor,Deeming_Threshold)*Lower_Deeming_Rate+MAX('Case 2 - Residual Benefit'!IZ3*AP_Factor-Deeming_Threshold,0)*Higher_Deeming_Rate-Income_Test_Threshold,0)),0),MAX(Full_AP-(Asset_Test_Taper*MAX('Case 2 - Residual Benefit'!IZ3*AP_Factor-Asset_Test_Threshold,0)),0))/AP_Factor,0.01) -> 4986.8 | JA3: =MAX(MIN(MAX(Full_AP-(Income_Test_Taper*MAX(MIN('Case 2 - Residual Benefit'!JA3*AP_Factor,Deeming_Threshold)*Lower_Deeming_Rate+MAX('Case 2 - Residual Benefit'!JA3*AP_Factor-Deeming_Threshold,0)*Higher_Deeming_Rate-Income_Test_Threshold,0)),0),MAX(Full_AP-(Asset_Test_Taper*MAX('Case 2 - Residual Benefit'!JA3*AP_Factor-Asset_Test_Threshold,0)),0))/AP_Factor,0.01) -> 4986.8 | JB3: =MAX(MIN(MAX(Full_AP-(Income_Test_Taper*MAX(MIN('Case 2 - Residual Benefit'!JB3*AP_Factor,Deeming_Threshold)*Lower_Deeming_Rate+MAX('Case 2 - Residual Benefit'!JB3*AP_Factor-Deeming_Threshold,0)*Higher_Deeming_Rate-Income_Test_Threshold,0)),0),MAX(Full_AP-(Asset_Test_Taper*MAX('Case 2 - Residual Benefit'!JB3*AP_Factor-Asset_Test_Threshold,0)),0))/AP_Factor,0.01) -> 4986.8 | JC3: =MAX(MIN(MAX(Full_AP-(Income_Test_Taper*MAX(MIN('Case 2 - Residual Benefit'!JC3*AP_Factor,Deeming_Threshold)*Lower_Deeming_Rate+MAX('Case 2 - Residual Benefit'!JC3*AP_Factor-Deeming_Threshold,0)*Higher_Deeming_Rate-Income_Test_Threshold,0)),0),MAX(Full_AP-(Asset_Test_Taper*MAX('Case 2 - Residual Benefit'!JC3*AP_Factor-Asset_Test_Threshold,0)),0))/AP_Factor,0.01) -> 4986.8 | JD3: =MAX(MIN(MAX(Full_AP-(Income_Test_Taper*MAX(MIN('Case 2 - Residual Benefit'!JD3*AP_Factor,Deeming_Threshold)*Lower_Deeming_Rate+MAX('Case 2 - Residual Benefit'!JD3*AP_Factor-Deeming_Threshold,0)*Higher_Deeming_Rate-Income_Test_Threshold,0)),0),MAX(Full_AP-(Asset_Test_Taper*MAX('Case 2 - Residual Benefit'!JD3*AP_Factor-Asset_Test_Threshold,0)),0))/AP_Factor,0.01) -> 4986.8 | JE3: =MAX(MIN(MAX(Full_AP-(Income_Test_Taper*MAX(MIN('Case 2 - Residual Benefit'!JE3*AP_Factor,Deeming_Threshold)*Lower_Deeming_Rate+MAX('Case 2 - Residual Benefit'!JE3*AP_Factor-Deeming_Threshold,0)*Higher_Deeming_Rate-Income_Test_Threshold,0)),0),MAX(Full_AP-(Asset_Test_Taper*MAX('Case 2 - Residual Benefit'!JE3*AP_Factor-Asset_Test_Threshold,0)),0))/AP_Factor,0.01) -> 4986.8 | JF3: =MAX(MIN(MAX(Full_AP-(Income_Test_Taper*MAX(MIN('Case 2 - Residual Benefit'!JF3*AP_Factor,Deeming_Threshold)*Lower_Deeming_Rate+MAX('Case 2 - Residual Benefit'!JF3*AP_Factor-Deeming_Threshold,0)*Higher_Deeming_Rate-Income_Test_Threshold,0)),0),MAX(Full_AP-(Asset_Test_Taper*MAX('Case 2 - Residual Benefit'!JF3*AP_Factor-Asset_Test_Threshold,0)),0))/AP_Factor,0.01) -> 4986.8 | JG3: =MAX(MIN(MAX(Full_AP-(Income_Test_Taper*MAX(MIN('Case 2 - Residual Benefit'!JG3*AP_Factor,Deeming_Threshold)*Lower_Deeming_Rate+MAX('Case 2 - Residual Benefit'!JG3*AP_Factor-Deeming_Threshold,0)*Higher_Deeming_Rate-Income_Test_Threshold,0)),0),MAX(Full_AP-(Asset_Test_Taper*MAX('Case 2 - Residual Benefit'!JG3*AP_Factor-Asset_Test_Threshold,0)),0))/AP_Factor,0.01) -> 4986.8 | JH3: =MAX(MIN(MAX(Full_AP-(Income_Test_Taper*MAX(MIN('Case 2 - Residual Benefit'!JH3*AP_Factor,Deeming_Threshold)*Lower_Deeming_Rate+MAX('Case 2 - Residual Benefit'!JH3*AP_Factor-Deeming_Threshold,0)*Higher_Deeming_Rate-Income_Test_Threshold,0)),0),MAX(Full_AP-(Asset_Test_Taper*MAX('Case 2 - Residual Benefit'!JH3*AP_Factor-Asset_Test_Threshold,0)),0))/AP_Factor,0.01) -> 4986.8 | JI3: =MAX(MIN(MAX(Full_AP-(Income_Test_Taper*MAX(MIN('Case 2 - Residual Benefit'!JI3*AP_Factor,Deeming_Threshold)*Lower_Deeming_Rate+MAX('Case 2 - Residual Benefit'!JI3*AP_Factor-Deeming_Threshold,0)*Higher_Deeming_Rate-Income_Test_Threshold,0)),0),MAX(Full_AP-(Asset_Test_Taper*MAX('Case 2 - Residual Benefit'!JI3*AP_Factor-Asset_Test_Threshold,0)),0))/AP_Factor,0.01) -> 4986.8 | JJ3: =MAX(MIN(MAX(Full_AP-(Income_Test_Taper*MAX(MIN('Case 2 - Residual Benefit'!JJ3*AP_Factor,Deeming_Threshold)*Lower_Deeming_Rate+MAX('Case 2 - Residual Benefit'!JJ3*AP_Factor-Deeming_Threshold,0)*Higher_Deeming_Rate-Income_Test_Threshold,0)),0),MAX(Full_AP-(Asset_Test_Taper*MAX('Case 2 - Residual Benefit'!JJ3*AP_Factor-Asset_Test_Threshold,0)),0))/AP_Factor,0.01) -> 4986.8 | JK3: =MAX(MIN(MAX(Full_AP-(Income_Test_Taper*MAX(MIN('Case 2 - Residual Benefit'!JK3*AP_Factor,Deeming_Threshold)*Lower_Deeming_Rate+MAX('Case 2 - Residual Benefit'!JK3*AP_Factor-Deeming_Threshold,0)*Higher_Deeming_Rate-Income_Test_Threshold,0)),0),MAX(Full_AP-(Asset_Test_Taper*MAX('Case 2 - Residual Benefit'!JK3*AP_Factor-Asset_Test_Threshold,0)),0))/AP_Factor,0.01) -> 4986.8 | JL3: =MAX(MIN(MAX(Full_AP-(Income_Test_Taper*MAX(MIN('Case 2 - Residual Benefit'!JL3*AP_Factor,Deeming_Threshold)*Lower_Deeming_Rate+MAX('Case 2 - Residual Benefit'!JL3*AP_Factor-Deeming_Threshold,0)*Higher_Deeming_Rate-Income_Test_Threshold,0)),0),MAX(Full_AP-(Asset_Test_Taper*MAX('Case 2 - Residual Benefit'!JL3*AP_Factor-Asset_Test_Threshold,0)),0))/AP_Factor,0.01) -> 4986.8 | JM3: =MAX(MIN(MAX(Full_AP-(Income_Test_Taper*MAX(MIN('Case 2 - Residual Benefit'!JM3*AP_Factor,Deeming_Threshold)*Lower_Deeming_Rate+MAX('Case 2 - Residual Benefit'!JM3*AP_Factor-Deeming_Threshold,0)*Higher_Deeming_Rate-Income_Test_Threshold,0)),0),MAX(Full_AP-(Asset_Test_Taper*MAX('Case 2 - Residual Benefit'!JM3*AP_Factor-Asset_Test_Threshold,0)),0))/AP_Factor,0.01) -> 4986.8 | JN3: =MAX(MIN(MAX(Full_AP-(Income_Test_Taper*MAX(MIN('Case 2 - Residual Benefit'!JN3*AP_Factor,Deeming_Threshold)*Lower_Deeming_Rate+MAX('Case 2 - Residual Benefit'!JN3*AP_Factor-Deeming_Threshold,0)*Higher_Deeming_Rate-Income_Test_Threshold,0)),0),MAX(Full_AP-(Asset_Test_Taper*MAX('Case 2 - Residual Benefit'!JN3*AP_Factor-Asset_Test_Threshold,0)),0))/AP_Factor,0.01) -> 4986.8 | JO3: =MAX(MIN(MAX(Full_AP-(Income_Test_Taper*MAX(MIN('Case 2 - Residual Benefit'!JO3*AP_Factor,Deeming_Threshold)*Lower_Deeming_Rate+MAX('Case 2 - Residual Benefit'!JO3*AP_Factor-Deeming_Threshold,0)*Higher_Deeming_Rate-Income_Test_Threshold,0)),0),MAX(Full_AP-(Asset_Test_Taper*MAX('Case 2 - Residual Benefit'!JO3*AP_Factor-Asset_Test_Threshold,0)),0))/AP_Factor,0.01) -> 4986.8 | JP3: =MAX(MIN(MAX(Full_AP-(Income_Test_Taper*MAX(MIN('Case 2 - Residual Benefit'!JP3*AP_Factor,Deeming_Threshold)*Lower_Deeming_Rate+MAX('Case 2 - Residual Benefit'!JP3*AP_Factor-Deeming_Threshold,0)*Higher_Deeming_Rate-Income_Test_Threshold,0)),0),MAX(Full_AP-(Asset_Test_Taper*MAX('Case 2 - Residual Benefit'!JP3*AP_Factor-Asset_Test_Threshold,0)),0))/AP_Factor,0.01) -> 4986.8 | JQ3: =MAX(MIN(MAX(Full_AP-(Income_Test_Taper*MAX(MIN('Case 2 - Residual Benefit'!JQ3*AP_Factor,Deeming_Threshold)*Lower_Deeming_Rate+MAX('Case 2 - Residual Benefit'!JQ3*AP_Factor-Deeming_Threshold,0)*Higher_Deeming_Rate-Income_Test_Threshold,0)),0),MAX(Full_AP-(Asset_Test_Taper*MAX('Case 2 - Residual Benefit'!JQ3*AP_Factor-Asset_Test_Threshold,0)),0))/AP_Factor,0.01) -> 4986.8 | JR3: =MAX(MIN(MAX(Full_AP-(Income_Test_Taper*MAX(MIN('Case 2 - Residual Benefit'!JR3*AP_Factor,Deeming_Threshold)*Lower_Deeming_Rate+MAX('Case 2 - Residual Benefit'!JR3*AP_Factor-Deeming_Threshold,0)*Higher_Deeming_Rate-Income_Test_Threshold,0)),0),MAX(Full_AP-(Asset_Test_Taper*MAX('Case 2 - Residual Benefit'!JR3*AP_Factor-Asset_Test_Threshold,0)),0))/AP_Factor,0.01) -> 4986.8 | JS3: =MAX(MIN(MAX(Full_AP-(Income_Test_Taper*MAX(MIN('Case 2 - Residual Benefit'!JS3*AP_Factor,Deeming_Threshold)*Lower_Deeming_Rate+MAX('Case 2 - Residual Benefit'!JS3*AP_Factor-Deeming_Threshold,0)*Higher_Deeming_Rate-Income_Test_Threshold,0)),0),MAX(Full_AP-(Asset_Test_Taper*MAX('Case 2 - Residual Benefit'!JS3*AP_Factor-Asset_Test_Threshold,0)),0))/AP_Factor,0.01) -> 4986.8 | JT3: =MAX(MIN(MAX(Full_AP-(Income_Test_Taper*MAX(MIN('Case 2 - Residual Benefit'!JT3*AP_Factor,Deeming_Threshold)*Lower_Deeming_Rate+MAX('Case 2 - Residual Benefit'!JT3*AP_Factor-Deeming_Threshold,0)*Higher_Deeming_Rate-Income_Test_Threshold,0)),0),MAX(Full_AP-(Asset_Test_Taper*MAX('Case 2 - Residual Benefit'!JT3*AP_Factor-Asset_Test_Threshold,0)),0))/AP_Factor,0.01) -> 4986.8 | JU3: =MAX(MIN(MAX(Full_AP-(Income_Test_Taper*MAX(MIN('Case 2 - Residual Benefit'!JU3*AP_Factor,Deeming_Threshold)*Lower_Deeming_Rate+MAX('Case 2 - Residual Benefit'!JU3*AP_Factor-Deeming_Threshold,0)*Higher_Deeming_Rate-Income_Test_Threshold,0)),0),MAX(Full_AP-(Asset_Test_Taper*MAX('Case 2 - Residual Benefit'!JU3*AP_Factor-Asset_Test_Threshold,0)),0))/AP_Factor,0.01) -> 4986.8 | JV3: =MAX(MIN(MAX(Full_AP-(Income_Test_Taper*MAX(MIN('Case 2 - Residual Benefit'!JV3*AP_Factor,Deeming_Threshold)*Lower_Deeming_Rate+MAX('Case 2 - Residual Benefit'!JV3*AP_Factor-Deeming_Threshold,0)*Higher_Deeming_Rate-Income_Test_Threshold,0)),0),MAX(Full_AP-(Asset_Test_Taper*MAX('Case 2 - Residual Benefit'!JV3*AP_Factor-Asset_Test_Threshold,0)),0))/AP_Factor,0.01) -> 4986.8 | JW3: =MAX(MIN(MAX(Full_AP-(Income_Test_Taper*MAX(MIN('Case 2 - Residual Benefit'!JW3*AP_Factor,Deeming_Threshold)*Lower_Deeming_Rate+MAX('Case 2 - Residual Benefit'!JW3*AP_Factor-Deeming_Threshold,0)*Higher_Deeming_Rate-Income_Test_Threshold,0)),0),MAX(Full_AP-(Asset_Test_Taper*MAX('Case 2 - Residual Benefit'!JW3*AP_Factor-Asset_Test_Threshold,0)),0))/AP_Factor,0.01) -> 4986.8 | JX3: =MAX(MIN(MAX(Full_AP-(Income_Test_Taper*MAX(MIN('Case 2 - Residual Benefit'!JX3*AP_Factor,Deeming_Threshold)*Lower_Deeming_Rate+MAX('Case 2 - Residual Benefit'!JX3*AP_Factor-Deeming_Threshold,0)*Higher_Deeming_Rate-Income_Test_Threshold,0)),0),MAX(Full_AP-(Asset_Test_Taper*MAX('Case 2 - Residual Benefit'!JX3*AP_Factor-Asset_Test_Threshold,0)),0))/AP_Factor,0.01) -> 4986.8 | JY3: =MAX(MIN(MAX(Full_AP-(Income_Test_Taper*MAX(MIN('Case 2 - Residual Benefit'!JY3*AP_Factor,Deeming_Threshold)*Lower_Deeming_Rate+MAX('Case 2 - Residual Benefit'!JY3*AP_Factor-Deeming_Threshold,0)*Higher_Deeming_Rate-Income_Test_Threshold,0)),0),MAX(Full_AP-(Asset_Test_Taper*MAX('Case 2 - Residual Benefit'!JY3*AP_Factor-Asset_Test_Threshold,0)),0))/AP_Factor,0.01) -> 4986.8 | JZ3: =MAX(MIN(MAX(Full_AP-(Income_Test_Taper*MAX(MIN('Case 2 - Residual Benefit'!JZ3*AP_Factor,Deeming_Threshold)*Lower_Deeming_Rate+MAX('Case 2 - Residual Benefit'!JZ3*AP_Factor-Deeming_Threshold,0)*Higher_Deeming_Rate-Income_Test_Threshold,0)),0),MAX(Full_AP-(Asset_Test_Taper*MAX('Case 2 - Residual Benefit'!JZ3*AP_Factor-Asset_Test_Threshold,0)),0))/AP_Factor,0.01) -> 4986.8 | KA3: =MAX(MIN(MAX(Full_AP-(Income_Test_Taper*MAX(MIN('Case 2 - Residual Benefit'!KA3*AP_Factor,Deeming_Threshold)*Lower_Deeming_Rate+MAX('Case 2 - Residual Benefit'!KA3*AP_Factor-Deeming_Threshold,0)*Higher_Deeming_Rate-Income_Test_Threshold,0)),0),MAX(Full_AP-(Asset_Test_Taper*MAX('Case 2 - Residual Benefit'!KA3*AP_Factor-Asset_Test_Threshold,0)),0))/AP_Factor,0.01) -> 4986.8 | KB3: =MAX(MIN(MAX(Full_AP-(Income_Test_Taper*MAX(MIN('Case 2 - Residual Benefit'!KB3*AP_Factor,Deeming_Threshold)*Lower_Deeming_Rate+MAX('Case 2 - Residual Benefit'!KB3*AP_Factor-Deeming_Threshold,0)*Higher_Deeming_Rate-Income_Test_Threshold,0)),0),MAX(Full_AP-(Asset_Test_Taper*MAX('Case 2 - Residual Benefit'!KB3*AP_Factor-Asset_Test_Threshold,0)),0))/AP_Factor,0.01) -> 4986.8 | KC3: =MAX(MIN(MAX(Full_AP-(Income_Test_Taper*MAX(MIN('Case 2 - Residual Benefit'!KC3*AP_Factor,Deeming_Threshold)*Lower_Deeming_Rate+MAX('Case 2 - Residual Benefit'!KC3*AP_Factor-Deeming_Threshold,0)*Higher_Deeming_Rate-Income_Test_Threshold,0)),0),MAX(Full_AP-(Asset_Test_Taper*MAX('Case 2 - Residual Benefit'!KC3*AP_Factor-Asset_Test_Threshold,0)),0))/AP_Factor,0.01) -> 4986.8 | KD3: =MAX(MIN(MAX(Full_AP-(Income_Test_Taper*MAX(MIN('Case 2 - Residual Benefit'!KD3*AP_Factor,Deeming_Threshold)*Lower_Deeming_Rate+MAX('Case 2 - Residual Benefit'!KD3*AP_Factor-Deeming_Threshold,0)*Higher_Deeming_Rate-Income_Test_Threshold,0)),0),MAX(Full_AP-(Asset_Test_Taper*MAX('Case 2 - Residual Benefit'!KD3*AP_Factor-Asset_Test_Threshold,0)),0))/AP_Factor,0.01) -> 4986.8 | KE3: =MAX(MIN(MAX(Full_AP-(Income_Test_Taper*MAX(MIN('Case 2 - Residual Benefit'!KE3*AP_Factor,Deeming_Threshold)*Lower_Deeming_Rate+MAX('Case 2 - Residual Benefit'!KE3*AP_Factor-Deeming_Threshold,0)*Higher_Deeming_Rate-Income_Test_Threshold,0)),0),MAX(Full_AP-(Asset_Test_Taper*MAX('Case 2 - Residual Benefit'!KE3*AP_Factor-Asset_Test_Threshold,0)),0))/AP_Factor,0.01) -> 4986.8 | KF3: =MAX(MIN(MAX(Full_AP-(Income_Test_Taper*MAX(MIN('Case 2 - Residual Benefit'!KF3*AP_Factor,Deeming_Threshold)*Lower_Deeming_Rate+MAX('Case 2 - Residual Benefit'!KF3*AP_Factor-Deeming_Threshold,0)*Higher_Deeming_Rate-Income_Test_Threshold,0)),0),MAX(Full_AP-(Asset_Test_Taper*MAX('Case 2 - Residual Benefit'!KF3*AP_Factor-Asset_Test_Threshold,0)),0))/AP_Factor,0.01) -> 4986.8 | KG3: =MAX(MIN(MAX(Full_AP-(Income_Test_Taper*MAX(MIN('Case 2 - Residual Benefit'!KG3*AP_Factor,Deeming_Threshold)*Lower_Deeming_Rate+MAX('Case 2 - Residual Benefit'!KG3*AP_Factor-Deeming_Threshold,0)*Higher_Deeming_Rate-Income_Test_Threshold,0)),0),MAX(Full_AP-(Asset_Test_Taper*MAX('Case 2 - Residual Benefit'!KG3*AP_Factor-Asset_Test_Threshold,0)),0))/AP_Factor,0.01) -> 4986.8 | KH3: =MAX(MIN(MAX(Full_AP-(Income_Test_Taper*MAX(MIN('Case 2 - Residual Benefit'!KH3*AP_Factor,Deeming_Threshold)*Lower_Deeming_Rate+MAX('Case 2 - Residual Benefit'!KH3*AP_Factor-Deeming_Threshold,0)*Higher_Deeming_Rate-Income_Test_Threshold,0)),0),MAX(Full_AP-(Asset_Test_Taper*MAX('Case 2 - Residual Benefit'!KH3*AP_Factor-Asset_Test_Threshold,0)),0))/AP_Factor,0.01) -> 4986.8 | KI3: =MAX(MIN(MAX(Full_AP-(Income_Test_Taper*MAX(MIN('Case 2 - Residual Benefit'!KI3*AP_Factor,Deeming_Threshold)*Lower_Deeming_Rate+MAX('Case 2 - Residual Benefit'!KI3*AP_Factor-Deeming_Threshold,0)*Higher_Deeming_Rate-Income_Test_Threshold,0)),0),MAX(Full_AP-(Asset_Test_Taper*MAX('Case 2 - Residual Benefit'!KI3*AP_Factor-Asset_Test_Threshold,0)),0))/AP_Factor,0.01) -> 4986.8 | KJ3: =MAX(MIN(MAX(Full_AP-(Income_Test_Taper*MAX(MIN('Case 2 - Residual Benefit'!KJ3*AP_Factor,Deeming_Threshold)*Lower_Deeming_Rate+MAX('Case 2 - Residual Benefit'!KJ3*AP_Factor-Deeming_Threshold,0)*Higher_Deeming_Rate-Income_Test_Threshold,0)),0),MAX(Full_AP-(Asset_Test_Taper*MAX('Case 2 - Residual Benefit'!KJ3*AP_Factor-Asset_Test_Threshold,0)),0))/AP_Factor,0.01) -> 4986.8 | KK3: =MAX(MIN(MAX(Full_AP-(Income_Test_Taper*MAX(MIN('Case 2 - Residual Benefit'!KK3*AP_Factor,Deeming_Threshold)*Lower_Deeming_Rate+MAX('Case 2 - Residual Benefit'!KK3*AP_Factor-Deeming_Threshold,0)*Higher_Deeming_Rate-Income_Test_Threshold,0)),0),MAX(Full_AP-(Asset_Test_Taper*MAX('Case 2 - Residual Benefit'!KK3*AP_Factor-Asset_Test_Threshold,0)),0))/AP_Factor,0.01) -> 4986.8 | KL3: =MAX(MIN(MAX(Full_AP-(Income_Test_Taper*MAX(MIN('Case 2 - Residual Benefit'!KL3*AP_Factor,Deeming_Threshold)*Lower_Deeming_Rate+MAX('Case 2 - Residual Benefit'!KL3*AP_Factor-Deeming_Threshold,0)*Higher_Deeming_Rate-Income_Test_Threshold,0)),0),MAX(Full_AP-(Asset_Test_Taper*MAX('Case 2 - Residual Benefit'!KL3*AP_Factor-Asset_Test_Threshold,0)),0))/AP_Factor,0.01) -> 4986.8 | KM3: =MAX(MIN(MAX(Full_AP-(Income_Test_Taper*MAX(MIN('Case 2 - Residual Benefit'!KM3*AP_Factor,Deeming_Threshold)*Lower_Deeming_Rate+MAX('Case 2 - Residual Benefit'!KM3*AP_Factor-Deeming_Threshold,0)*Higher_Deeming_Rate-Income_Test_Threshold,0)),0),MAX(Full_AP-(Asset_Test_Taper*MAX('Case 2 - Residual Benefit'!KM3*AP_Factor-Asset_Test_Threshold,0)),0))/AP_Factor,0.01) -> 4986.8 | KN3: =MAX(MIN(MAX(Full_AP-(Income_Test_Taper*MAX(MIN('Case 2 - Residual Benefit'!KN3*AP_Factor,Deeming_Threshold)*Lower_Deeming_Rate+MAX('Case 2 - Residual Benefit'!KN3*AP_Factor-Deeming_Threshold,0)*Higher_Deeming_Rate-Income_Test_Threshold,0)),0),MAX(Full_AP-(Asset_Test_Taper*MAX('Case 2 - Residual Benefit'!KN3*AP_Factor-Asset_Test_Threshold,0)),0))/AP_Factor,0.01) -> 4986.8 | KO3: =MAX(MIN(MAX(Full_AP-(Income_Test_Taper*MAX(MIN('Case 2 - Residual Benefit'!KO3*AP_Factor,Deeming_Threshold)*Lower_Deeming_Rate+MAX('Case 2 - Residual Benefit'!KO3*AP_Factor-Deeming_Threshold,0)*Higher_Deeming_Rate-Income_Test_Threshold,0)),0),MAX(Full_AP-(Asset_Test_Taper*MAX('Case 2 - Residual Benefit'!KO3*AP_Factor-Asset_Test_Threshold,0)),0))/AP_Factor,0.01) -> 4986.8 | KP3: =MAX(MIN(MAX(Full_AP-(Income_Test_Taper*MAX(MIN('Case 2 - Residual Benefit'!KP3*AP_Factor,Deeming_Threshold)*Lower_Deeming_Rate+MAX('Case 2 - Residual Benefit'!KP3*AP_Factor-Deeming_Threshold,0)*Higher_Deeming_Rate-Income_Test_Threshold,0)),0),MAX(Full_AP-(Asset_Test_Taper*MAX('Case 2 - Residual Benefit'!KP3*AP_Factor-Asset_Test_Threshold,0)),0))/AP_Factor,0.01) -> 4986.8 | KQ3: =MAX(MIN(MAX(Full_AP-(Income_Test_Taper*MAX(MIN('Case 2 - Residual Benefit'!KQ3*AP_Factor,Deeming_Threshold)*Lower_Deeming_Rate+MAX('Case 2 - Residual Benefit'!KQ3*AP_Factor-Deeming_Threshold,0)*Higher_Deeming_Rate-Income_Test_Threshold,0)),0),MAX(Full_AP-(Asset_Test_Taper*MAX('Case 2 - Residual Benefit'!KQ3*AP_Factor-Asset_Test_Threshold,0)),0))/AP_Factor,0.01) -> 4986.8 | KR3: =MAX(MIN(MAX(Full_AP-(Income_Test_Taper*MAX(MIN('Case 2 - Residual Benefit'!KR3*AP_Factor,Deeming_Threshold)*Lower_Deeming_Rate+MAX('Case 2 - Residual Benefit'!KR3*AP_Factor-Deeming_Threshold,0)*Higher_Deeming_Rate-Income_Test_Threshold,0)),0),MAX(Full_AP-(Asset_Test_Taper*MAX('Case 2 - Residual Benefit'!KR3*AP_Factor-Asset_Test_Threshold,0)),0))/AP_Factor,0.01) -> 4986.8 | KS3: =MAX(MIN(MAX(Full_AP-(Income_Test_Taper*MAX(MIN('Case 2 - Residual Benefit'!KS3*AP_Factor,Deeming_Threshold)*Lower_Deeming_Rate+MAX('Case 2 - Residual Benefit'!KS3*AP_Factor-Deeming_Threshold,0)*Higher_Deeming_Rate-Income_Test_Threshold,0)),0),MAX(Full_AP-(Asset_Test_Taper*MAX('Case 2 - Residual Benefit'!KS3*AP_Factor-Asset_Test_Threshold,0)),0))/AP_Factor,0.01) -> 4986.8 | KT3: =MAX(MIN(MAX(Full_AP-(Income_Test_Taper*MAX(MIN('Case 2 - Residual Benefit'!KT3*AP_Factor,Deeming_Threshold)*Lower_Deeming_Rate+MAX('Case 2 - Residual Benefit'!KT3*AP_Factor-Deeming_Threshold,0)*Higher_Deeming_Rate-Income_Test_Threshold,0)),0),MAX(Full_AP-(Asset_Test_Taper*MAX('Case 2 - Residual Benefit'!KT3*AP_Factor-Asset_Test_Threshold,0)),0))/AP_Factor,0.01) -> 4986.8 | KU3: =MAX(MIN(MAX(Full_AP-(Income_Test_Taper*MAX(MIN('Case 2 - Residual Benefit'!KU3*AP_Factor,Deeming_Threshold)*Lower_Deeming_Rate+MAX('Case 2 - Residual Benefit'!KU3*AP_Factor-Deeming_Threshold,0)*Higher_Deeming_Rate-Income_Test_Threshold,0)),0),MAX(Full_AP-(Asset_Test_Taper*MAX('Case 2 - Residual Benefit'!KU3*AP_Factor-Asset_Test_Threshold,0)),0))/AP_Factor,0.01) -> 4986.8 | KV3: =MAX(MIN(MAX(Full_AP-(Income_Test_Taper*MAX(MIN('Case 2 - Residual Benefit'!KV3*AP_Factor,Deeming_Threshold)*Lower_Deeming_Rate+MAX('Case 2 - Residual Benefit'!KV3*AP_Factor-Deeming_Threshold,0)*Higher_Deeming_Rate-Income_Test_Threshold,0)),0),MAX(Full_AP-(Asset_Test_Taper*MAX('Case 2 - Residual Benefit'!KV3*AP_Factor-Asset_Test_Threshold,0)),0))/AP_Factor,0.01) -> 4986.8 | KW3: =MAX(MIN(MAX(Full_AP-(Income_Test_Taper*MAX(MIN('Case 2 - Residual Benefit'!KW3*AP_Factor,Deeming_Threshold)*Lower_Deeming_Rate+MAX('Case 2 - Residual Benefit'!KW3*AP_Factor-Deeming_Threshold,0)*Higher_Deeming_Rate-Income_Test_Threshold,0)),0),MAX(Full_AP-(Asset_Test_Taper*MAX('Case 2 - Residual Benefit'!KW3*AP_Factor-Asset_Test_Threshold,0)),0))/AP_Factor,0.01) -> 4986.8 | KX3: =MAX(MIN(MAX(Full_AP-(Income_Test_Taper*MAX(MIN('Case 2 - Residual Benefit'!KX3*AP_Factor,Deeming_Threshold)*Lower_Deeming_Rate+MAX('Case 2 - Residual Benefit'!KX3*AP_Factor-Deeming_Threshold,0)*Higher_Deeming_Rate-Income_Test_Threshold,0)),0),MAX(Full_AP-(Asset_Test_Taper*MAX('Case 2 - Residual Benefit'!KX3*AP_Factor-Asset_Test_Threshold,0)),0))/AP_Factor,0.01) -> 4986.8 | KY3: =MAX(MIN(MAX(Full_AP-(Income_Test_Taper*MAX(MIN('Case 2 - Residual Benefit'!KY3*AP_Factor,Deeming_Threshold)*Lower_Deeming_Rate+MAX('Case 2 - Residual Benefit'!KY3*AP_Factor-Deeming_Threshold,0)*Higher_Deeming_Rate-Income_Test_Threshold,0)),0),MAX(Full_AP-(Asset_Test_Taper*MAX('Case 2 - Residual Benefit'!KY3*AP_Factor-Asset_Test_Threshold,0)),0))/AP_Factor,0.01) -> 4986.8 | KZ3: =MAX(MIN(MAX(Full_AP-(Income_Test_Taper*MAX(MIN('Case 2 - Residual Benefit'!KZ3*AP_Factor,Deeming_Threshold)*Lower_Deeming_Rate+MAX('Case 2 - Residual Benefit'!KZ3*AP_Factor-Deeming_Threshold,0)*Higher_Deeming_Rate-Income_Test_Threshold,0)),0),MAX(Full_AP-(Asset_Test_Taper*MAX('Case 2 - Residual Benefit'!KZ3*AP_Factor-Asset_Test_Threshold,0)),0))/AP_Factor,0.01) -> 4986.8 | LA3: =MAX(MIN(MAX(Full_AP-(Income_Test_Taper*MAX(MIN('Case 2 - Residual Benefit'!LA3*AP_Factor,Deeming_Threshold)*Lower_Deeming_Rate+MAX('Case 2 - Residual Benefit'!LA3*AP_Factor-Deeming_Threshold,0)*Higher_Deeming_Rate-Income_Test_Threshold,0)),0),MAX(Full_AP-(Asset_Test_Taper*MAX('Case 2 - Residual Benefit'!LA3*AP_Factor-Asset_Test_Threshold,0)),0))/AP_Factor,0.01) -> 4986.8 | LB3: =MAX(MIN(MAX(Full_AP-(Income_Test_Taper*MAX(MIN('Case 2 - Residual Benefit'!LB3*AP_Factor,Deeming_Threshold)*Lower_Deeming_Rate+MAX('Case 2 - Residual Benefit'!LB3*AP_Factor-Deeming_Threshold,0)*Higher_Deeming_Rate-Income_Test_Threshold,0)),0),MAX(Full_AP-(Asset_Test_Taper*MAX('Case 2 - Residual Benefit'!LB3*AP_Factor-Asset_Test_Threshold,0)),0))/AP_Factor,0.01) -> 4986.8 | LC3: =MAX(MIN(MAX(Full_AP-(Income_Test_Taper*MAX(MIN('Case 2 - Residual Benefit'!LC3*AP_Factor,Deeming_Threshold)*Lower_Deeming_Rate+MAX('Case 2 - Residual Benefit'!LC3*AP_Factor-Deeming_Threshold,0)*Higher_Deeming_Rate-Income_Test_Threshold,0)),0),MAX(Full_AP-(Asset_Test_Taper*MAX('Case 2 - Residual Benefit'!LC3*AP_Factor-Asset_Test_Threshold,0)),0))/AP_Factor,0.01) -> 4986.8 | LD3: =MAX(MIN(MAX(Full_AP-(Income_Test_Taper*MAX(MIN('Case 2 - Residual Benefit'!LD3*AP_Factor,Deeming_Threshold)*Lower_Deeming_Rate+MAX('Case 2 - Residual Benefit'!LD3*AP_Factor-Deeming_Threshold,0)*Higher_Deeming_Rate-Income_Test_Threshold,0)),0),MAX(Full_AP-(Asset_Test_Taper*MAX('Case 2 - Residual Benefit'!LD3*AP_Factor-Asset_Test_Threshold,0)),0))/AP_Factor,0.01) -> 4986.8 | LE3: =MAX(MIN(MAX(Full_AP-(Income_Test_Taper*MAX(MIN('Case 2 - Residual Benefit'!LE3*AP_Factor,Deeming_Threshold)*Lower_Deeming_Rate+MAX('Case 2 - Residual Benefit'!LE3*AP_Factor-Deeming_Threshold,0)*Higher_Deeming_Rate-Income_Test_Threshold,0)),0),MAX(Full_AP-(Asset_Test_Taper*MAX('Case 2 - Residual Benefit'!LE3*AP_Factor-Asset_Test_Threshold,0)),0))/AP_Factor,0.01) -> 4986.8 | LF3: =MAX(MIN(MAX(Full_AP-(Income_Test_Taper*MAX(MIN('Case 2 - Residual Benefit'!LF3*AP_Factor,Deeming_Threshold)*Lower_Deeming_Rate+MAX('Case 2 - Residual Benefit'!LF3*AP_Factor-Deeming_Threshold,0)*Higher_Deeming_Rate-Income_Test_Threshold,0)),0),MAX(Full_AP-(Asset_Test_Taper*MAX('Case 2 - Residual Benefit'!LF3*AP_Factor-Asset_Test_Threshold,0)),0))/AP_Factor,0.01) -> 4986.8 | LG3: =MAX(MIN(MAX(Full_AP-(Income_Test_Taper*MAX(MIN('Case 2 - Residual Benefit'!LG3*AP_Factor,Deeming_Threshold)*Lower_Deeming_Rate+MAX('Case 2 - Residual Benefit'!LG3*AP_Factor-Deeming_Threshold,0)*Higher_Deeming_Rate-Income_Test_Threshold,0)),0),MAX(Full_AP-(Asset_Test_Taper*MAX('Case 2 - Residual Benefit'!LG3*AP_Factor-Asset_Test_Threshold,0)),0))/AP_Factor,0.01) -> 4986.8 | LH3: =MAX(MIN(MAX(Full_AP-(Income_Test_Taper*MAX(MIN('Case 2 - Residual Benefit'!LH3*AP_Factor,Deeming_Threshold)*Lower_Deeming_Rate+MAX('Case 2 - Residual Benefit'!LH3*AP_Factor-Deeming_Threshold,0)*Higher_Deeming_Rate-Income_Test_Threshold,0)),0),MAX(Full_AP-(Asset_Test_Taper*MAX('Case 2 - Residual Benefit'!LH3*AP_Factor-Asset_Test_Threshold,0)),0))/AP_Factor,0.01) -> 4986.8 | LI3: =MAX(MIN(MAX(Full_AP-(Income_Test_Taper*MAX(MIN('Case 2 - Residual Benefit'!LI3*AP_Factor,Deeming_Threshold)*Lower_Deeming_Rate+MAX('Case 2 - Residual Benefit'!LI3*AP_Factor-Deeming_Threshold,0)*Higher_Deeming_Rate-Income_Test_Threshold,0)),0),MAX(Full_AP-(Asset_Test_Taper*MAX('Case 2 - Residual Benefit'!LI3*AP_Factor-Asset_Test_Threshold,0)),0))/AP_Factor,0.01) -> 4986.8 | LJ3: =MAX(MIN(MAX(Full_AP-(Income_Test_Taper*MAX(MIN('Case 2 - Residual Benefit'!LJ3*AP_Factor,Deeming_Threshold)*Lower_Deeming_Rate+MAX('Case 2 - Residual Benefit'!LJ3*AP_Factor-Deeming_Threshold,0)*Higher_Deeming_Rate-Income_Test_Threshold,0)),0),MAX(Full_AP-(Asset_Test_Taper*MAX('Case 2 - Residual Benefit'!LJ3*AP_Factor-Asset_Test_Threshold,0)),0))/AP_Factor,0.01) -> 4986.8 | LK3: =MAX(MIN(MAX(Full_AP-(Income_Test_Taper*MAX(MIN('Case 2 - Residual Benefit'!LK3*AP_Factor,Deeming_Threshold)*Lower_Deeming_Rate+MAX('Case 2 - Residual Benefit'!LK3*AP_Factor-Deeming_Threshold,0)*Higher_Deeming_Rate-Income_Test_Threshold,0)),0),MAX(Full_AP-(Asset_Test_Taper*MAX('Case 2 - Residual Benefit'!LK3*AP_Factor-Asset_Test_Threshold,0)),0))/AP_Factor,0.01) -> 4986.8 | LL3: =MAX(MIN(MAX(Full_AP-(Income_Test_Taper*MAX(MIN('Case 2 - Residual Benefit'!LL3*AP_Factor,Deeming_Threshold)*Lower_Deeming_Rate+MAX('Case 2 - Residual Benefit'!LL3*AP_Factor-Deeming_Threshold,0)*Higher_Deeming_Rate-Income_Test_Threshold,0)),0),MAX(Full_AP-(Asset_Test_Taper*MAX('Case 2 - Residual Benefit'!LL3*AP_Factor-Asset_Test_Threshold,0)),0))/AP_Factor,0.01) -> 4986.8 | LM3: =MAX(MIN(MAX(Full_AP-(Income_Test_Taper*MAX(MIN('Case 2 - Residual Benefit'!LM3*AP_Factor,Deeming_Threshold)*Lower_Deeming_Rate+MAX('Case 2 - Residual Benefit'!LM3*AP_Factor-Deeming_Threshold,0)*Higher_Deeming_Rate-Income_Test_Threshold,0)),0),MAX(Full_AP-(Asset_Test_Taper*MAX('Case 2 - Residual Benefit'!LM3*AP_Factor-Asset_Test_Threshold,0)),0))/AP_Factor,0.01) -> 4986.8 | LN3: =MAX(MIN(MAX(Full_AP-(Income_Test_Taper*MAX(MIN('Case 2 - Residual Benefit'!LN3*AP_Factor,Deeming_Threshold)*Lower_Deeming_Rate+MAX('Case 2 - Residual Benefit'!LN3*AP_Factor-Deeming_Threshold,0)*Higher_Deeming_Rate-Income_Test_Threshold,0)),0),MAX(Full_AP-(Asset_Test_Taper*MAX('Case 2 - Residual Benefit'!LN3*AP_Factor-Asset_Test_Threshold,0)),0))/AP_Factor,0.01) -> 4986.8 | LO3: =MAX(MIN(MAX(Full_AP-(Income_Test_Taper*MAX(MIN('Case 2 - Residual Benefit'!LO3*AP_Factor,Deeming_Threshold)*Lower_Deeming_Rate+MAX('Case 2 - Residual Benefit'!LO3*AP_Factor-Deeming_Threshold,0)*Higher_Deeming_Rate-Income_Test_Threshold,0)),0),MAX(Full_AP-(Asset_Test_Taper*MAX('Case 2 - Residual Benefit'!LO3*AP_Factor-Asset_Test_Threshold,0)),0))/AP_Factor,0.01) -> 4986.8 | LP3: =MAX(MIN(MAX(Full_AP-(Income_Test_Taper*MAX(MIN('Case 2 - Residual Benefit'!LP3*AP_Factor,Deeming_Threshold)*Lower_Deeming_Rate+MAX('Case 2 - Residual Benefit'!LP3*AP_Factor-Deeming_Threshold,0)*Higher_Deeming_Rate-Income_Test_Threshold,0)),0),MAX(Full_AP-(Asset_Test_Taper*MAX('Case 2 - Residual Benefit'!LP3*AP_Factor-Asset_Test_Threshold,0)),0))/AP_Factor,0.01) -> 4986.8 | LQ3: =MAX(MIN(MAX(Full_AP-(Income_Test_Taper*MAX(MIN('Case 2 - Residual Benefit'!LQ3*AP_Factor,Deeming_Threshold)*Lower_Deeming_Rate+MAX('Case 2 - Residual Benefit'!LQ3*AP_Factor-Deeming_Threshold,0)*Higher_Deeming_Rate-Income_Test_Threshold,0)),0),MAX(Full_AP-(Asset_Test_Taper*MAX('Case 2 - Residual Benefit'!LQ3*AP_Factor-Asset_Test_Threshold,0)),0))/AP_Factor,0.01) -> 4986.8 | LR3: =MAX(MIN(MAX(Full_AP-(Income_Test_Taper*MAX(MIN('Case 2 - Residual Benefit'!LR3*AP_Factor,Deeming_Threshold)*Lower_Deeming_Rate+MAX('Case 2 - Residual Benefit'!LR3*AP_Factor-Deeming_Threshold,0)*Higher_Deeming_Rate-Income_Test_Threshold,0)),0),MAX(Full_AP-(Asset_Test_Taper*MAX('Case 2 - Residual Benefit'!LR3*AP_Factor-Asset_Test_Threshold,0)),0))/AP_Factor,0.01) -> 4986.8 | LS3: =MAX(MIN(MAX(Full_AP-(Income_Test_Taper*MAX(MIN('Case 2 - Residual Benefit'!LS3*AP_Factor,Deeming_Threshold)*Lower_Deeming_Rate+MAX('Case 2 - Residual Benefit'!LS3*AP_Factor-Deeming_Threshold,0)*Higher_Deeming_Rate-Income_Test_Threshold,0)),0),MAX(Full_AP-(Asset_Test_Taper*MAX('Case 2 - Residual Benefit'!LS3*AP_Factor-Asset_Test_Threshold,0)),0))/AP_Factor,0.01) -> 4986.8 | LT3: =MAX(MIN(MAX(Full_AP-(Income_Test_Taper*MAX(MIN('Case 2 - Residual Benefit'!LT3*AP_Factor,Deeming_Threshold)*Lower_Deeming_Rate+MAX('Case 2 - Residual Benefit'!LT3*AP_Factor-Deeming_Threshold,0)*Higher_Deeming_Rate-Income_Test_Threshold,0)),0),MAX(Full_AP-(Asset_Test_Taper*MAX('Case 2 - Residual Benefit'!LT3*AP_Factor-Asset_Test_Threshold,0)),0))/AP_Factor,0.01) -> 4986.8 | LU3: =MAX(MIN(MAX(Full_AP-(Income_Test_Taper*MAX(MIN('Case 2 - Residual Benefit'!LU3*AP_Factor,Deeming_Threshold)*Lower_Deeming_Rate+MAX('Case 2 - Residual Benefit'!LU3*AP_Factor-Deeming_Threshold,0)*Higher_Deeming_Rate-Income_Test_Threshold,0)),0),MAX(Full_AP-(Asset_Test_Taper*MAX('Case 2 - Residual Benefit'!LU3*AP_Factor-Asset_Test_Threshold,0)),0))/AP_Factor,0.01) -> 4986.8 | LV3: =MAX(MIN(MAX(Full_AP-(Income_Test_Taper*MAX(MIN('Case 2 - Residual Benefit'!LV3*AP_Factor,Deeming_Threshold)*Lower_Deeming_Rate+MAX('Case 2 - Residual Benefit'!LV3*AP_Factor-Deeming_Threshold,0)*Higher_Deeming_Rate-Income_Test_Threshold,0)),0),MAX(Full_AP-(Asset_Test_Taper*MAX('Case 2 - Residual Benefit'!LV3*AP_Factor-Asset_Test_Threshold,0)),0))/AP_Factor,0.01) -> 4986.8 | LW3: =MAX(MIN(MAX(Full_AP-(Income_Test_Taper*MAX(MIN('Case 2 - Residual Benefit'!LW3*AP_Factor,Deeming_Threshold)*Lower_Deeming_Rate+MAX('Case 2 - Residual Benefit'!LW3*AP_Factor-Deeming_Threshold,0)*Higher_Deeming_Rate-Income_Test_Threshold,0)),0),MAX(Full_AP-(Asset_Test_Taper*MAX('Case 2 - Residual Benefit'!LW3*AP_Factor-Asset_Test_Threshold,0)),0))/AP_Factor,0.01) -> 4986.8 | LX3: =MAX(MIN(MAX(Full_AP-(Income_Test_Taper*MAX(MIN('Case 2 - Residual Benefit'!LX3*AP_Factor,Deeming_Threshold)*Lower_Deeming_Rate+MAX('Case 2 - Residual Benefit'!LX3*AP_Factor-Deeming_Threshold,0)*Higher_Deeming_Rate-Income_Test_Threshold,0)),0),MAX(Full_AP-(Asset_Test_Taper*MAX('Case 2 - Residual Benefit'!LX3*AP_Factor-Asset_Test_Threshold,0)),0))/AP_Factor,0.01) -> 4986.8 | LY3: =MAX(MIN(MAX(Full_AP-(Income_Test_Taper*MAX(MIN('Case 2 - Residual Benefit'!LY3*AP_Factor,Deeming_Threshold)*Lower_Deeming_Rate+MAX('Case 2 - Residual Benefit'!LY3*AP_Factor-Deeming_Threshold,0)*Higher_Deeming_Rate-Income_Test_Threshold,0)),0),MAX(Full_AP-(Asset_Test_Taper*MAX('Case 2 - Residual Benefit'!LY3*AP_Factor-Asset_Test_Threshold,0)),0))/AP_Factor,0.01) -> 4986.8 | LZ3: =MAX(MIN(MAX(Full_AP-(Income_Test_Taper*MAX(MIN('Case 2 - Residual Benefit'!LZ3*AP_Factor,Deeming_Threshold)*Lower_Deeming_Rate+MAX('Case 2 - Residual Benefit'!LZ3*AP_Factor-Deeming_Threshold,0)*Higher_Deeming_Rate-Income_Test_Threshold,0)),0),MAX(Full_AP-(Asset_Test_Taper*MAX('Case 2 - Residual Benefit'!LZ3*AP_Factor-Asset_Test_Threshold,0)),0))/AP_Factor,0.01) -> 4986.8 | MA3: =MAX(MIN(MAX(Full_AP-(Income_Test_Taper*MAX(MIN('Case 2 - Residual Benefit'!MA3*AP_Factor,Deeming_Threshold)*Lower_Deeming_Rate+MAX('Case 2 - Residual Benefit'!MA3*AP_Factor-Deeming_Threshold,0)*Higher_Deeming_Rate-Income_Test_Threshold,0)),0),MAX(Full_AP-(Asset_Test_Taper*MAX('Case 2 - Residual Benefit'!MA3*AP_Factor-Asset_Test_Threshold,0)),0))/AP_Factor,0.01) -> 4986.8 | MB3: =MAX(MIN(MAX(Full_AP-(Income_Test_Taper*MAX(MIN('Case 2 - Residual Benefit'!MB3*AP_Factor,Deeming_Threshold)*Lower_Deeming_Rate+MAX('Case 2 - Residual Benefit'!MB3*AP_Factor-Deeming_Threshold,0)*Higher_Deeming_Rate-Income_Test_Threshold,0)),0),MAX(Full_AP-(Asset_Test_Taper*MAX('Case 2 - Residual Benefit'!MB3*AP_Factor-Asset_Test_Threshold,0)),0))/AP_Factor,0.01) -> 4986.8 | MC3: =MAX(MIN(MAX(Full_AP-(Income_Test_Taper*MAX(MIN('Case 2 - Residual Benefit'!MC3*AP_Factor,Deeming_Threshold)*Lower_Deeming_Rate+MAX('Case 2 - Residual Benefit'!MC3*AP_Factor-Deeming_Threshold,0)*Higher_Deeming_Rate-Income_Test_Threshold,0)),0),MAX(Full_AP-(Asset_Test_Taper*MAX('Case 2 - Residual Benefit'!MC3*AP_Factor-Asset_Test_Threshold,0)),0))/AP_Factor,0.01) -> 4986.8 | MD3: =MAX(MIN(MAX(Full_AP-(Income_Test_Taper*MAX(MIN('Case 2 - Residual Benefit'!MD3*AP_Factor,Deeming_Threshold)*Lower_Deeming_Rate+MAX('Case 2 - Residual Benefit'!MD3*AP_Factor-Deeming_Threshold,0)*Higher_Deeming_Rate-Income_Test_Threshold,0)),0),MAX(Full_AP-(Asset_Test_Taper*MAX('Case 2 - Residual Benefit'!MD3*AP_Factor-Asset_Test_Threshold,0)),0))/AP_Factor,0.01) -> 4986.8 | ME3: =MAX(MIN(MAX(Full_AP-(Income_Test_Taper*MAX(MIN('Case 2 - Residual Benefit'!ME3*AP_Factor,Deeming_Threshold)*Lower_Deeming_Rate+MAX('Case 2 - Residual Benefit'!ME3*AP_Factor-Deeming_Threshold,0)*Higher_Deeming_Rate-Income_Test_Threshold,0)),0),MAX(Full_AP-(Asset_Test_Taper*MAX('Case 2 - Residual Benefit'!ME3*AP_Factor-Asset_Test_Threshold,0)),0))/AP_Factor,0.01) -> 4986.8 | MF3: =MAX(MIN(MAX(Full_AP-(Income_Test_Taper*MAX(MIN('Case 2 - Residual Benefit'!MF3*AP_Factor,Deeming_Threshold)*Lower_Deeming_Rate+MAX('Case 2 - Residual Benefit'!MF3*AP_Factor-Deeming_Threshold,0)*Higher_Deeming_Rate-Income_Test_Threshold,0)),0),MAX(Full_AP-(Asset_Test_Taper*MAX('Case 2 - Residual Benefit'!MF3*AP_Factor-Asset_Test_Threshold,0)),0))/AP_Factor,0.01) -> 4986.8 | MG3: =MAX(MIN(MAX(Full_AP-(Income_Test_Taper*MAX(MIN('Case 2 - Residual Benefit'!MG3*AP_Factor,Deeming_Threshold)*Lower_Deeming_Rate+MAX('Case 2 - Residual Benefit'!MG3*AP_Factor-Deeming_Threshold,0)*Higher_Deeming_Rate-Income_Test_Threshold,0)),0),MAX(Full_AP-(Asset_Test_Taper*MAX('Case 2 - Residual Benefit'!MG3*AP_Factor-Asset_Test_Threshold,0)),0))/AP_Factor,0.01) -> 4986.8 | MH3: =MAX(MIN(MAX(Full_AP-(Income_Test_Taper*MAX(MIN('Case 2 - Residual Benefit'!MH3*AP_Factor,Deeming_Threshold)*Lower_Deeming_Rate+MAX('Case 2 - Residual Benefit'!MH3*AP_Factor-Deeming_Threshold,0)*Higher_Deeming_Rate-Income_Test_Threshold,0)),0),MAX(Full_AP-(Asset_Test_Taper*MAX('Case 2 - Residual Benefit'!MH3*AP_Factor-Asset_Test_Threshold,0)),0))/AP_Factor,0.01) -> 4986.8 | MI3: =MAX(MIN(MAX(Full_AP-(Income_Test_Taper*MAX(MIN('Case 2 - Residual Benefit'!MI3*AP_Factor,Deeming_Threshold)*Lower_Deeming_Rate+MAX('Case 2 - Residual Benefit'!MI3*AP_Factor-Deeming_Threshold,0)*Higher_Deeming_Rate-Income_Test_Threshold,0)),0),MAX(Full_AP-(Asset_Test_Taper*MAX('Case 2 - Residual Benefit'!MI3*AP_Factor-Asset_Test_Threshold,0)),0))/AP_Factor,0.01) -> 4986.8 | MJ3: =MAX(MIN(MAX(Full_AP-(Income_Test_Taper*MAX(MIN('Case 2 - Residual Benefit'!MJ3*AP_Factor,Deeming_Threshold)*Lower_Deeming_Rate+MAX('Case 2 - Residual Benefit'!MJ3*AP_Factor-Deeming_Threshold,0)*Higher_Deeming_Rate-Income_Test_Threshold,0)),0),MAX(Full_AP-(Asset_Test_Taper*MAX('Case 2 - Residual Benefit'!MJ3*AP_Factor-Asset_Test_Threshold,0)),0))/AP_Factor,0.01) -> 4986.8 | MK3: =MAX(MIN(MAX(Full_AP-(Income_Test_Taper*MAX(MIN('Case 2 - Residual Benefit'!MK3*AP_Factor,Deeming_Threshold)*Lower_Deeming_Rate+MAX('Case 2 - Residual Benefit'!MK3*AP_Factor-Deeming_Threshold,0)*Higher_Deeming_Rate-Income_Test_Threshold,0)),0),MAX(Full_AP-(Asset_Test_Taper*MAX('Case 2 - Residual Benefit'!MK3*AP_Factor-Asset_Test_Threshold,0)),0))/AP_Factor,0.01) -> 4986.8 | ML3: =MAX(MIN(MAX(Full_AP-(Income_Test_Taper*MAX(MIN('Case 2 - Residual Benefit'!ML3*AP_Factor,Deeming_Threshold)*Lower_Deeming_Rate+MAX('Case 2 - Residual Benefit'!ML3*AP_Factor-Deeming_Threshold,0)*Higher_Deeming_Rate-Income_Test_Threshold,0)),0),MAX(Full_AP-(Asset_Test_Taper*MAX('Case 2 - Residual Benefit'!ML3*AP_Factor-Asset_Test_Threshold,0)),0))/AP_Factor,0.01) -> 4986.8 | MM3: =MAX(MIN(MAX(Full_AP-(Income_Test_Taper*MAX(MIN('Case 2 - Residual Benefit'!MM3*AP_Factor,Deeming_Threshold)*Lower_Deeming_Rate+MAX('Case 2 - Residual Benefit'!MM3*AP_Factor-Deeming_Threshold,0)*Higher_Deeming_Rate-Income_Test_Threshold,0)),0),MAX(Full_AP-(Asset_Test_Taper*MAX('Case 2 - Residual Benefit'!MM3*AP_Factor-Asset_Test_Threshold,0)),0))/AP_Factor,0.01) -> 4986.8 | MN3: =MAX(MIN(MAX(Full_AP-(Income_Test_Taper*MAX(MIN('Case 2 - Residual Benefit'!MN3*AP_Factor,Deeming_Threshold)*Lower_Deeming_Rate+MAX('Case 2 - Residual Benefit'!MN3*AP_Factor-Deeming_Threshold,0)*Higher_Deeming_Rate-Income_Test_Threshold,0)),0),MAX(Full_AP-(Asset_Test_Taper*MAX('Case 2 - Residual Benefit'!MN3*AP_Factor-Asset_Test_Threshold,0)),0))/AP_Factor,0.01) -> 4986.8 | MO3: =MAX(MIN(MAX(Full_AP-(Income_Test_Taper*MAX(MIN('Case 2 - Residual Benefit'!MO3*AP_Factor,Deeming_Threshold)*Lower_Deeming_Rate+MAX('Case 2 - Residual Benefit'!MO3*AP_Factor-Deeming_Threshold,0)*Higher_Deeming_Rate-Income_Test_Threshold,0)),0),MAX(Full_AP-(Asset_Test_Taper*MAX('Case 2 - Residual Benefit'!MO3*AP_Factor-Asset_Test_Threshold,0)),0))/AP_Factor,0.01) -> 4986.8 | MP3: =MAX(MIN(MAX(Full_AP-(Income_Test_Taper*MAX(MIN('Case 2 - Residual Benefit'!MP3*AP_Factor,Deeming_Threshold)*Lower_Deeming_Rate+MAX('Case 2 - Residual Benefit'!MP3*AP_Factor-Deeming_Threshold,0)*Higher_Deeming_Rate-Income_Test_Threshold,0)),0),MAX(Full_AP-(Asset_Test_Taper*MAX('Case 2 - Residual Benefit'!MP3*AP_Factor-Asset_Test_Threshold,0)),0))/AP_Factor,0.01) -> 4986.8 | MQ3: =MAX(MIN(MAX(Full_AP-(Income_Test_Taper*MAX(MIN('Case 2 - Residual Benefit'!MQ3*AP_Factor,Deeming_Threshold)*Lower_Deeming_Rate+MAX('Case 2 - Residual Benefit'!MQ3*AP_Factor-Deeming_Threshold,0)*Higher_Deeming_Rate-Income_Test_Threshold,0)),0),MAX(Full_AP-(Asset_Test_Taper*MAX('Case 2 - Residual Benefit'!MQ3*AP_Factor-Asset_Test_Threshold,0)),0))/AP_Factor,0.01) -> 4986.8 | MR3: =MAX(MIN(MAX(Full_AP-(Income_Test_Taper*MAX(MIN('Case 2 - Residual Benefit'!MR3*AP_Factor,Deeming_Threshold)*Lower_Deeming_Rate+MAX('Case 2 - Residual Benefit'!MR3*AP_Factor-Deeming_Threshold,0)*Higher_Deeming_Rate-Income_Test_Threshold,0)),0),MAX(Full_AP-(Asset_Test_Taper*MAX('Case 2 - Residual Benefit'!MR3*AP_Factor-Asset_Test_Threshold,0)),0))/AP_Factor,0.01) -> 4986.8 | MS3: =MAX(MIN(MAX(Full_AP-(Income_Test_Taper*MAX(MIN('Case 2 - Residual Benefit'!MS3*AP_Factor,Deeming_Threshold)*Lower_Deeming_Rate+MAX('Case 2 - Residual Benefit'!MS3*AP_Factor-Deeming_Threshold,0)*Higher_Deeming_Rate-Income_Test_Threshold,0)),0),MAX(Full_AP-(Asset_Test_Taper*MAX('Case 2 - Residual Benefit'!MS3*AP_Factor-Asset_Test_Threshold,0)),0))/AP_Factor,0.01) -> 4986.8 | MT3: =MAX(MIN(MAX(Full_AP-(Income_Test_Taper*MAX(MIN('Case 2 - Residual Benefit'!MT3*AP_Factor,Deeming_Threshold)*Lower_Deeming_Rate+MAX('Case 2 - Residual Benefit'!MT3*AP_Factor-Deeming_Threshold,0)*Higher_Deeming_Rate-Income_Test_Threshold,0)),0),MAX(Full_AP-(Asset_Test_Taper*MAX('Case 2 - Residual Benefit'!MT3*AP_Factor-Asset_Test_Threshold,0)),0))/AP_Factor,0.01) -> 4986.8 | MU3: =MAX(MIN(MAX(Full_AP-(Income_Test_Taper*MAX(MIN('Case 2 - Residual Benefit'!MU3*AP_Factor,Deeming_Threshold)*Lower_Deeming_Rate+MAX('Case 2 - Residual Benefit'!MU3*AP_Factor-Deeming_Threshold,0)*Higher_Deeming_Rate-Income_Test_Threshold,0)),0),MAX(Full_AP-(Asset_Test_Taper*MAX('Case 2 - Residual Benefit'!MU3*AP_Factor-Asset_Test_Threshold,0)),0))/AP_Factor,0.01) -> 4986.8 | MV3: =MAX(MIN(MAX(Full_AP-(Income_Test_Taper*MAX(MIN('Case 2 - Residual Benefit'!MV3*AP_Factor,Deeming_Threshold)*Lower_Deeming_Rate+MAX('Case 2 - Residual Benefit'!MV3*AP_Factor-Deeming_Threshold,0)*Higher_Deeming_Rate-Income_Test_Threshold,0)),0),MAX(Full_AP-(Asset_Test_Taper*MAX('Case 2 - Residual Benefit'!MV3*AP_Factor-Asset_Test_Threshold,0)),0))/AP_Factor,0.01) -> 4986.8 | MW3: =MAX(MIN(MAX(Full_AP-(Income_Test_Taper*MAX(MIN('Case 2 - Residual Benefit'!MW3*AP_Factor,Deeming_Threshold)*Lower_Deeming_Rate+MAX('Case 2 - Residual Benefit'!MW3*AP_Factor-Deeming_Threshold,0)*Higher_Deeming_Rate-Income_Test_Threshold,0)),0),MAX(Full_AP-(Asset_Test_Taper*MAX('Case 2 - Residual Benefit'!MW3*AP_Factor-Asset_Test_Threshold,0)),0))/AP_Factor,0.01) -> 4986.8 | MX3: =MAX(MIN(MAX(Full_AP-(Income_Test_Taper*MAX(MIN('Case 2 - Residual Benefit'!MX3*AP_Factor,Deeming_Threshold)*Lower_Deeming_Rate+MAX('Case 2 - Residual Benefit'!MX3*AP_Factor-Deeming_Threshold,0)*Higher_Deeming_Rate-Income_Test_Threshold,0)),0),MAX(Full_AP-(Asset_Test_Taper*MAX('Case 2 - Residual Benefit'!MX3*AP_Factor-Asset_Test_Threshold,0)),0))/AP_Factor,0.01) -> 4986.8 | MY3: =MAX(MIN(MAX(Full_AP-(Income_Test_Taper*MAX(MIN('Case 2 - Residual Benefit'!MY3*AP_Factor,Deeming_Threshold)*Lower_Deeming_Rate+MAX('Case 2 - Residual Benefit'!MY3*AP_Factor-Deeming_Threshold,0)*Higher_Deeming_Rate-Income_Test_Threshold,0)),0),MAX(Full_AP-(Asset_Test_Taper*MAX('Case 2 - Residual Benefit'!MY3*AP_Factor-Asset_Test_Threshold,0)),0))/AP_Factor,0.01) -> 4986.8 | MZ3: =MAX(MIN(MAX(Full_AP-(Income_Test_Taper*MAX(MIN('Case 2 - Residual Benefit'!MZ3*AP_Factor,Deeming_Threshold)*Lower_Deeming_Rate+MAX('Case 2 - Residual Benefit'!MZ3*AP_Factor-Deeming_Threshold,0)*Higher_Deeming_Rate-Income_Test_Threshold,0)),0),MAX(Full_AP-(Asset_Test_Taper*MAX('Case 2 - Residual Benefit'!MZ3*AP_Factor-Asset_Test_Threshold,0)),0))/AP_Factor,0.01) -> 4986.8 | NA3: =MAX(MIN(MAX(Full_AP-(Income_Test_Taper*MAX(MIN('Case 2 - Residual Benefit'!NA3*AP_Factor,Deeming_Threshold)*Lower_Deeming_Rate+MAX('Case 2 - Residual Benefit'!NA3*AP_Factor-Deeming_Threshold,0)*Higher_Deeming_Rate-Income_Test_Threshold,0)),0),MAX(Full_AP-(Asset_Test_Taper*MAX('Case 2 - Residual Benefit'!NA3*AP_Factor-Asset_Test_Threshold,0)),0))/AP_Factor,0.01) -> 4986.8 | NB3: =MAX(MIN(MAX(Full_AP-(Income_Test_Taper*MAX(MIN('Case 2 - Residual Benefit'!NB3*AP_Factor,Deeming_Threshold)*Lower_Deeming_Rate+MAX('Case 2 - Residual Benefit'!NB3*AP_Factor-Deeming_Threshold,0)*Higher_Deeming_Rate-Income_Test_Threshold,0)),0),MAX(Full_AP-(Asset_Test_Taper*MAX('Case 2 - Residual Benefit'!NB3*AP_Factor-Asset_Test_Threshold,0)),0))/AP_Factor,0.01) -> 4986.8 | NC3: =MAX(MIN(MAX(Full_AP-(Income_Test_Taper*MAX(MIN('Case 2 - Residual Benefit'!NC3*AP_Factor,Deeming_Threshold)*Lower_Deeming_Rate+MAX('Case 2 - Residual Benefit'!NC3*AP_Factor-Deeming_Threshold,0)*Higher_Deeming_Rate-Income_Test_Threshold,0)),0),MAX(Full_AP-(Asset_Test_Taper*MAX('Case 2 - Residual Benefit'!NC3*AP_Factor-Asset_Test_Threshold,0)),0))/AP_Factor,0.01) -> 4986.8 | ND3: =MAX(MIN(MAX(Full_AP-(Income_Test_Taper*MAX(MIN('Case 2 - Residual Benefit'!ND3*AP_Factor,Deeming_Threshold)*Lower_Deeming_Rate+MAX('Case 2 - Residual Benefit'!ND3*AP_Factor-Deeming_Threshold,0)*Higher_Deeming_Rate-Income_Test_Threshold,0)),0),MAX(Full_AP-(Asset_Test_Taper*MAX('Case 2 - Residual Benefit'!ND3*AP_Factor-Asset_Test_Threshold,0)),0))/AP_Factor,0.01) -> 4986.8 | NE3: =MAX(MIN(MAX(Full_AP-(Income_Test_Taper*MAX(MIN('Case 2 - Residual Benefit'!NE3*AP_Factor,Deeming_Threshold)*Lower_Deeming_Rate+MAX('Case 2 - Residual Benefit'!NE3*AP_Factor-Deeming_Threshold,0)*Higher_Deeming_Rate-Income_Test_Threshold,0)),0),MAX(Full_AP-(Asset_Test_Taper*MAX('Case 2 - Residual Benefit'!NE3*AP_Factor-Asset_Test_Threshold,0)),0))/AP_Factor,0.01) -> 4986.8 | NF3: =MAX(MIN(MAX(Full_AP-(Income_Test_Taper*MAX(MIN('Case 2 - Residual Benefit'!NF3*AP_Factor,Deeming_Threshold)*Lower_Deeming_Rate+MAX('Case 2 - Residual Benefit'!NF3*AP_Factor-Deeming_Threshold,0)*Higher_Deeming_Rate-Income_Test_Threshold,0)),0),MAX(Full_AP-(Asset_Test_Taper*MAX('Case 2 - Residual Benefit'!NF3*AP_Factor-Asset_Test_Threshold,0)),0))/AP_Factor,0.01) -> 4986.8 | NG3: =MAX(MIN(MAX(Full_AP-(Income_Test_Taper*MAX(MIN('Case 2 - Residual Benefit'!NG3*AP_Factor,Deeming_Threshold)*Lower_Deeming_Rate+MAX('Case 2 - Residual Benefit'!NG3*AP_Factor-Deeming_Threshold,0)*Higher_Deeming_Rate-Income_Test_Threshold,0)),0),MAX(Full_AP-(Asset_Test_Taper*MAX('Case 2 - Residual Benefit'!NG3*AP_Factor-Asset_Test_Threshold,0)),0))/AP_Factor,0.01) -> 4986.8 | NH3: =MAX(MIN(MAX(Full_AP-(Income_Test_Taper*MAX(MIN('Case 2 - Residual Benefit'!NH3*AP_Factor,Deeming_Threshold)*Lower_Deeming_Rate+MAX('Case 2 - Residual Benefit'!NH3*AP_Factor-Deeming_Threshold,0)*Higher_Deeming_Rate-Income_Test_Threshold,0)),0),MAX(Full_AP-(Asset_Test_Taper*MAX('Case 2 - Residual Benefit'!NH3*AP_Factor-Asset_Test_Threshold,0)),0))/AP_Factor,0.01) -> 4986.8 | NI3: =MAX(MIN(MAX(Full_AP-(Income_Test_Taper*MAX(MIN('Case 2 - Residual Benefit'!NI3*AP_Factor,Deeming_Threshold)*Lower_Deeming_Rate+MAX('Case 2 - Residual Benefit'!NI3*AP_Factor-Deeming_Threshold,0)*Higher_Deeming_Rate-Income_Test_Threshold,0)),0),MAX(Full_AP-(Asset_Test_Taper*MAX('Case 2 - Residual Benefit'!NI3*AP_Factor-Asset_Test_Threshold,0)),0))/AP_Factor,0.01) -> 4986.8 | NJ3: =MAX(MIN(MAX(Full_AP-(Income_Test_Taper*MAX(MIN('Case 2 - Residual Benefit'!NJ3*AP_Factor,Deeming_Threshold)*Lower_Deeming_Rate+MAX('Case 2 - Residual Benefit'!NJ3*AP_Factor-Deeming_Threshold,0)*Higher_Deeming_Rate-Income_Test_Threshold,0)),0),MAX(Full_AP-(Asset_Test_Taper*MAX('Case 2 - Residual Benefit'!NJ3*AP_Factor-Asset_Test_Threshold,0)),0))/AP_Factor,0.01) -> 4986.8 | NK3: =MAX(MIN(MAX(Full_AP-(Income_Test_Taper*MAX(MIN('Case 2 - Residual Benefit'!NK3*AP_Factor,Deeming_Threshold)*Lower_Deeming_Rate+MAX('Case 2 - Residual Benefit'!NK3*AP_Factor-Deeming_Threshold,0)*Higher_Deeming_Rate-Income_Test_Threshold,0)),0),MAX(Full_AP-(Asset_Test_Taper*MAX('Case 2 - Residual Benefit'!NK3*AP_Factor-Asset_Test_Threshold,0)),0))/AP_Factor,0.01) -> 4986.8 | NL3: =MAX(MIN(MAX(Full_AP-(Income_Test_Taper*MAX(MIN('Case 2 - Residual Benefit'!NL3*AP_Factor,Deeming_Threshold)*Lower_Deeming_Rate+MAX('Case 2 - Residual Benefit'!NL3*AP_Factor-Deeming_Threshold,0)*Higher_Deeming_Rate-Income_Test_Threshold,0)),0),MAX(Full_AP-(Asset_Test_Taper*MAX('Case 2 - Residual Benefit'!NL3*AP_Factor-Asset_Test_Threshold,0)),0))/AP_Factor,0.01) -> 4986.8 | NM3: =MAX(MIN(MAX(Full_AP-(Income_Test_Taper*MAX(MIN('Case 2 - Residual Benefit'!NM3*AP_Factor,Deeming_Threshold)*Lower_Deeming_Rate+MAX('Case 2 - Residual Benefit'!NM3*AP_Factor-Deeming_Threshold,0)*Higher_Deeming_Rate-Income_Test_Threshold,0)),0),MAX(Full_AP-(Asset_Test_Taper*MAX('Case 2 - Residual Benefit'!NM3*AP_Factor-Asset_Test_Threshold,0)),0))/AP_Factor,0.01) -> 4986.8 | NN3: =MAX(MIN(MAX(Full_AP-(Income_Test_Taper*MAX(MIN('Case 2 - Residual Benefit'!NN3*AP_Factor,Deeming_Threshold)*Lower_Deeming_Rate+MAX('Case 2 - Residual Benefit'!NN3*AP_Factor-Deeming_Threshold,0)*Higher_Deeming_Rate-Income_Test_Threshold,0)),0),MAX(Full_AP-(Asset_Test_Taper*MAX('Case 2 - Residual Benefit'!NN3*AP_Factor-Asset_Test_Threshold,0)),0))/AP_Factor,0.01) -> 4986.8 | NO3: =MAX(MIN(MAX(Full_AP-(Income_Test_Taper*MAX(MIN('Case 2 - Residual Benefit'!NO3*AP_Factor,Deeming_Threshold)*Lower_Deeming_Rate+MAX('Case 2 - Residual Benefit'!NO3*AP_Factor-Deeming_Threshold,0)*Higher_Deeming_Rate-Income_Test_Threshold,0)),0),MAX(Full_AP-(Asset_Test_Taper*MAX('Case 2 - Residual Benefit'!NO3*AP_Factor-Asset_Test_Threshold,0)),0))/AP_Factor,0.01) -> 4986.8 | NP3: =MAX(MIN(MAX(Full_AP-(Income_Test_Taper*MAX(MIN('Case 2 - Residual Benefit'!NP3*AP_Factor,Deeming_Threshold)*Lower_Deeming_Rate+MAX('Case 2 - Residual Benefit'!NP3*AP_Factor-Deeming_Threshold,0)*Higher_Deeming_Rate-Income_Test_Threshold,0)),0),MAX(Full_AP-(Asset_Test_Taper*MAX('Case 2 - Residual Benefit'!NP3*AP_Factor-Asset_Test_Threshold,0)),0))/AP_Factor,0.01) -> 4986.8 | NQ3: =MAX(MIN(MAX(Full_AP-(Income_Test_Taper*MAX(MIN('Case 2 - Residual Benefit'!NQ3*AP_Factor,Deeming_Threshold)*Lower_Deeming_Rate+MAX('Case 2 - Residual Benefit'!NQ3*AP_Factor-Deeming_Threshold,0)*Higher_Deeming_Rate-Income_Test_Threshold,0)),0),MAX(Full_AP-(Asset_Test_Taper*MAX('Case 2 - Residual Benefit'!NQ3*AP_Factor-Asset_Test_Threshold,0)),0))/AP_Factor,0.01) -> 4986.8 | NR3: =MAX(MIN(MAX(Full_AP-(Income_Test_Taper*MAX(MIN('Case 2 - Residual Benefit'!NR3*AP_Factor,Deeming_Threshold)*Lower_Deeming_Rate+MAX('Case 2 - Residual Benefit'!NR3*AP_Factor-Deeming_Threshold,0)*Higher_Deeming_Rate-Income_Test_Threshold,0)),0),MAX(Full_AP-(Asset_Test_Taper*MAX('Case 2 - Residual Benefit'!NR3*AP_Factor-Asset_Test_Threshold,0)),0))/AP_Factor,0.01) -> 4986.8 | NS3: =MAX(MIN(MAX(Full_AP-(Income_Test_Taper*MAX(MIN('Case 2 - Residual Benefit'!NS3*AP_Factor,Deeming_Threshold)*Lower_Deeming_Rate+MAX('Case 2 - Residual Benefit'!NS3*AP_Factor-Deeming_Threshold,0)*Higher_Deeming_Rate-Income_Test_Threshold,0)),0),MAX(Full_AP-(Asset_Test_Taper*MAX('Case 2 - Residual Benefit'!NS3*AP_Factor-Asset_Test_Threshold,0)),0))/AP_Factor,0.01) -> 4986.8 | NT3: =MAX(MIN(MAX(Full_AP-(Income_Test_Taper*MAX(MIN('Case 2 - Residual Benefit'!NT3*AP_Factor,Deeming_Threshold)*Lower_Deeming_Rate+MAX('Case 2 - Residual Benefit'!NT3*AP_Factor-Deeming_Threshold,0)*Higher_Deeming_Rate-Income_Test_Threshold,0)),0),MAX(Full_AP-(Asset_Test_Taper*MAX('Case 2 - Residual Benefit'!NT3*AP_Factor-Asset_Test_Threshold,0)),0))/AP_Factor,0.01) -> 4986.8 | NU3: =MAX(MIN(MAX(Full_AP-(Income_Test_Taper*MAX(MIN('Case 2 - Residual Benefit'!NU3*AP_Factor,Deeming_Threshold)*Lower_Deeming_Rate+MAX('Case 2 - Residual Benefit'!NU3*AP_Factor-Deeming_Threshold,0)*Higher_Deeming_Rate-Income_Test_Threshold,0)),0),MAX(Full_AP-(Asset_Test_Taper*MAX('Case 2 - Residual Benefit'!NU3*AP_Factor-Asset_Test_Threshold,0)),0))/AP_Factor,0.01) -> 4986.8 | NV3: =MAX(MIN(MAX(Full_AP-(Income_Test_Taper*MAX(MIN('Case 2 - Residual Benefit'!NV3*AP_Factor,Deeming_Threshold)*Lower_Deeming_Rate+MAX('Case 2 - Residual Benefit'!NV3*AP_Factor-Deeming_Threshold,0)*Higher_Deeming_Rate-Income_Test_Threshold,0)),0),MAX(Full_AP-(Asset_Test_Taper*MAX('Case 2 - Residual Benefit'!NV3*AP_Factor-Asset_Test_Threshold,0)),0))/AP_Factor,0.01) -> 4986.8 | NW3: =MAX(MIN(MAX(Full_AP-(Income_Test_Taper*MAX(MIN('Case 2 - Residual Benefit'!NW3*AP_Factor,Deeming_Threshold)*Lower_Deeming_Rate+MAX('Case 2 - Residual Benefit'!NW3*AP_Factor-Deeming_Threshold,0)*Higher_Deeming_Rate-Income_Test_Threshold,0)),0),MAX(Full_AP-(Asset_Test_Taper*MAX('Case 2 - Residual Benefit'!NW3*AP_Factor-Asset_Test_Threshold,0)),0))/AP_Factor,0.01) -> 4986.8 | NX3: =MAX(MIN(MAX(Full_AP-(Income_Test_Taper*MAX(MIN('Case 2 - Residual Benefit'!NX3*AP_Factor,Deeming_Threshold)*Lower_Deeming_Rate+MAX('Case 2 - Residual Benefit'!NX3*AP_Factor-Deeming_Threshold,0)*Higher_Deeming_Rate-Income_Test_Threshold,0)),0),MAX(Full_AP-(Asset_Test_Taper*MAX('Case 2 - Residual Benefit'!NX3*AP_Factor-Asset_Test_Threshold,0)),0))/AP_Factor,0.01) -> 4986.8 | NY3: =MAX(MIN(MAX(Full_AP-(Income_Test_Taper*MAX(MIN('Case 2 - Residual Benefit'!NY3*AP_Factor,Deeming_Threshold)*Lower_Deeming_Rate+MAX('Case 2 - Residual Benefit'!NY3*AP_Factor-Deeming_Threshold,0)*Higher_Deeming_Rate-Income_Test_Threshold,0)),0),MAX(Full_AP-(Asset_Test_Taper*MAX('Case 2 - Residual Benefit'!NY3*AP_Factor-Asset_Test_Threshold,0)),0))/AP_Factor,0.01) -> 4986.8 | NZ3: =MAX(MIN(MAX(Full_AP-(Income_Test_Taper*MAX(MIN('Case 2 - Residual Benefit'!NZ3*AP_Factor,Deeming_Threshold)*Lower_Deeming_Rate+MAX('Case 2 - Residual Benefit'!NZ3*AP_Factor-Deeming_Threshold,0)*Higher_Deeming_Rate-Income_Test_Threshold,0)),0),MAX(Full_AP-(Asset_Test_Taper*MAX('Case 2 - Residual Benefit'!NZ3*AP_Factor-Asset_Test_Threshold,0)),0))/AP_Factor,0.01) -> 4986.8 | OA3: =MAX(MIN(MAX(Full_AP-(Income_Test_Taper*MAX(MIN('Case 2 - Residual Benefit'!OA3*AP_Factor,Deeming_Threshold)*Lower_Deeming_Rate+MAX('Case 2 - Residual Benefit'!OA3*AP_Factor-Deeming_Threshold,0)*Higher_Deeming_Rate-Income_Test_Threshold,0)),0),MAX(Full_AP-(Asset_Test_Taper*MAX('Case 2 - Residual Benefit'!OA3*AP_Factor-Asset_Test_Threshold,0)),0))/AP_Factor,0.01) -> 4986.8 | OB3: =MAX(MIN(MAX(Full_AP-(Income_Test_Taper*MAX(MIN('Case 2 - Residual Benefit'!OB3*AP_Factor,Deeming_Threshold)*Lower_Deeming_Rate+MAX('Case 2 - Residual Benefit'!OB3*AP_Factor-Deeming_Threshold,0)*Higher_Deeming_Rate-Income_Test_Threshold,0)),0),MAX(Full_AP-(Asset_Test_Taper*MAX('Case 2 - Residual Benefit'!OB3*AP_Factor-Asset_Test_Threshold,0)),0))/AP_Factor,0.01) -> 4986.8 | OC3: =MAX(MIN(MAX(Full_AP-(Income_Test_Taper*MAX(MIN('Case 2 - Residual Benefit'!OC3*AP_Factor,Deeming_Threshold)*Lower_Deeming_Rate+MAX('Case 2 - Residual Benefit'!OC3*AP_Factor-Deeming_Threshold,0)*Higher_Deeming_Rate-Income_Test_Threshold,0)),0),MAX(Full_AP-(Asset_Test_Taper*MAX('Case 2 - Residual Benefit'!OC3*AP_Factor-Asset_Test_Threshold,0)),0))/AP_Factor,0.01) -> 4986.8 | OD3: =MAX(MIN(MAX(Full_AP-(Income_Test_Taper*MAX(MIN('Case 2 - Residual Benefit'!OD3*AP_Factor,Deeming_Threshold)*Lower_Deeming_Rate+MAX('Case 2 - Residual Benefit'!OD3*AP_Factor-Deeming_Threshold,0)*Higher_Deeming_Rate-Income_Test_Threshold,0)),0),MAX(Full_AP-(Asset_Test_Taper*MAX('Case 2 - Residual Benefit'!OD3*AP_Factor-Asset_Test_Threshold,0)),0))/AP_Factor,0.01) -> 4986.8 | OE3: =MAX(MIN(MAX(Full_AP-(Income_Test_Taper*MAX(MIN('Case 2 - Residual Benefit'!OE3*AP_Factor,Deeming_Threshold)*Lower_Deeming_Rate+MAX('Case 2 - Residual Benefit'!OE3*AP_Factor-Deeming_Threshold,0)*Higher_Deeming_Rate-Income_Test_Threshold,0)),0),MAX(Full_AP-(Asset_Test_Taper*MAX('Case 2 - Residual Benefit'!OE3*AP_Factor-Asset_Test_Threshold,0)),0))/AP_Factor,0.01) -> 4986.8 | OF3: =MAX(MIN(MAX(Full_AP-(Income_Test_Taper*MAX(MIN('Case 2 - Residual Benefit'!OF3*AP_Factor,Deeming_Threshold)*Lower_Deeming_Rate+MAX('Case 2 - Residual Benefit'!OF3*AP_Factor-Deeming_Threshold,0)*Higher_Deeming_Rate-Income_Test_Threshold,0)),0),MAX(Full_AP-(Asset_Test_Taper*MAX('Case 2 - Residual Benefit'!OF3*AP_Factor-Asset_Test_Threshold,0)),0))/AP_Factor,0.01) -> 4986.8 | OG3: =MAX(MIN(MAX(Full_AP-(Income_Test_Taper*MAX(MIN('Case 2 - Residual Benefit'!OG3*AP_Factor,Deeming_Threshold)*Lower_Deeming_Rate+MAX('Case 2 - Residual Benefit'!OG3*AP_Factor-Deeming_Threshold,0)*Higher_Deeming_Rate-Income_Test_Threshold,0)),0),MAX(Full_AP-(Asset_Test_Taper*MAX('Case 2 - Residual Benefit'!OG3*AP_Factor-Asset_Test_Threshold,0)),0))/AP_Factor,0.01) -> 4986.8 | OH3: =MAX(MIN(MAX(Full_AP-(Income_Test_Taper*MAX(MIN('Case 2 - Residual Benefit'!OH3*AP_Factor,Deeming_Threshold)*Lower_Deeming_Rate+MAX('Case 2 - Residual Benefit'!OH3*AP_Factor-Deeming_Threshold,0)*Higher_Deeming_Rate-Income_Test_Threshold,0)),0),MAX(Full_AP-(Asset_Test_Taper*MAX('Case 2 - Residual Benefit'!OH3*AP_Factor-Asset_Test_Threshold,0)),0))/AP_Factor,0.01) -> 4986.8 | OI3: =MAX(MIN(MAX(Full_AP-(Income_Test_Taper*MAX(MIN('Case 2 - Residual Benefit'!OI3*AP_Factor,Deeming_Threshold)*Lower_Deeming_Rate+MAX('Case 2 - Residual Benefit'!OI3*AP_Factor-Deeming_Threshold,0)*Higher_Deeming_Rate-Income_Test_Threshold,0)),0),MAX(Full_AP-(Asset_Test_Taper*MAX('Case 2 - Residual Benefit'!OI3*AP_Factor-Asset_Test_Threshold,0)),0))/AP_Factor,0.01) -> 4986.8 | OJ3: =MAX(MIN(MAX(Full_AP-(Income_Test_Taper*MAX(MIN('Case 2 - Residual Benefit'!OJ3*AP_Factor,Deeming_Threshold)*Lower_Deeming_Rate+MAX('Case 2 - Residual Benefit'!OJ3*AP_Factor-Deeming_Threshold,0)*Higher_Deeming_Rate-Income_Test_Threshold,0)),0),MAX(Full_AP-(Asset_Test_Taper*MAX('Case 2 - Residual Benefit'!OJ3*AP_Factor-Asset_Test_Threshold,0)),0))/AP_Factor,0.01) -> 4986.8 | OK3: =MAX(MIN(MAX(Full_AP-(Income_Test_Taper*MAX(MIN('Case 2 - Residual Benefit'!OK3*AP_Factor,Deeming_Threshold)*Lower_Deeming_Rate+MAX('Case 2 - Residual Benefit'!OK3*AP_Factor-Deeming_Threshold,0)*Higher_Deeming_Rate-Income_Test_Threshold,0)),0),MAX(Full_AP-(Asset_Test_Taper*MAX('Case 2 - Residual Benefit'!OK3*AP_Factor-Asset_Test_Threshold,0)),0))/AP_Factor,0.01) -> 4986.8 | OL3: =MAX(MIN(MAX(Full_AP-(Income_Test_Taper*MAX(MIN('Case 2 - Residual Benefit'!OL3*AP_Factor,Deeming_Threshold)*Lower_Deeming_Rate+MAX('Case 2 - Residual Benefit'!OL3*AP_Factor-Deeming_Threshold,0)*Higher_Deeming_Rate-Income_Test_Threshold,0)),0),MAX(Full_AP-(Asset_Test_Taper*MAX('Case 2 - Residual Benefit'!OL3*AP_Factor-Asset_Test_Threshold,0)),0))/AP_Factor,0.01) -> 4986.8 | OM3: =MAX(MIN(MAX(Full_AP-(Income_Test_Taper*MAX(MIN('Case 2 - Residual Benefit'!OM3*AP_Factor,Deeming_Threshold)*Lower_Deeming_Rate+MAX('Case 2 - Residual Benefit'!OM3*AP_Factor-Deeming_Threshold,0)*Higher_Deeming_Rate-Income_Test_Threshold,0)),0),MAX(Full_AP-(Asset_Test_Taper*MAX('Case 2 - Residual Benefit'!OM3*AP_Factor-Asset_Test_Threshold,0)),0))/AP_Factor,0.01) -> 4986.8 | ON3: =MAX(MIN(MAX(Full_AP-(Income_Test_Taper*MAX(MIN('Case 2 - Residual Benefit'!ON3*AP_Factor,Deeming_Threshold)*Lower_Deeming_Rate+MAX('Case 2 - Residual Benefit'!ON3*AP_Factor-Deeming_Threshold,0)*Higher_Deeming_Rate-Income_Test_Threshold,0)),0),MAX(Full_AP-(Asset_Test_Taper*MAX('Case 2 - Residual Benefit'!ON3*AP_Factor-Asset_Test_Threshold,0)),0))/AP_Factor,0.01) -> 4986.8 | OO3: =MAX(MIN(MAX(Full_AP-(Income_Test_Taper*MAX(MIN('Case 2 - Residual Benefit'!OO3*AP_Factor,Deeming_Threshold)*Lower_Deeming_Rate+MAX('Case 2 - Residual Benefit'!OO3*AP_Factor-Deeming_Threshold,0)*Higher_Deeming_Rate-Income_Test_Threshold,0)),0),MAX(Full_AP-(Asset_Test_Taper*MAX('Case 2 - Residual Benefit'!OO3*AP_Factor-Asset_Test_Threshold,0)),0))/AP_Factor,0.01) -> 4986.8 | OP3: =MAX(MIN(MAX(Full_AP-(Income_Test_Taper*MAX(MIN('Case 2 - Residual Benefit'!OP3*AP_Factor,Deeming_Threshold)*Lower_Deeming_Rate+MAX('Case 2 - Residual Benefit'!OP3*AP_Factor-Deeming_Threshold,0)*Higher_Deeming_Rate-Income_Test_Threshold,0)),0),MAX(Full_AP-(Asset_Test_Taper*MAX('Case 2 - Residual Benefit'!OP3*AP_Factor-Asset_Test_Threshold,0)),0))/AP_Factor,0.01) -> 4986.8 | OQ3: =MAX(MIN(MAX(Full_AP-(Income_Test_Taper*MAX(MIN('Case 2 - Residual Benefit'!OQ3*AP_Factor,Deeming_Threshold)*Lower_Deeming_Rate+MAX('Case 2 - Residual Benefit'!OQ3*AP_Factor-Deeming_Threshold,0)*Higher_Deeming_Rate-Income_Test_Threshold,0)),0),MAX(Full_AP-(Asset_Test_Taper*MAX('Case 2 - Residual Benefit'!OQ3*AP_Factor-Asset_Test_Threshold,0)),0))/AP_Factor,0.01) -> 4986.8 | OR3: =MAX(MIN(MAX(Full_AP-(Income_Test_Taper*MAX(MIN('Case 2 - Residual Benefit'!OR3*AP_Factor,Deeming_Threshold)*Lower_Deeming_Rate+MAX('Case 2 - Residual Benefit'!OR3*AP_Factor-Deeming_Threshold,0)*Higher_Deeming_Rate-Income_Test_Threshold,0)),0),MAX(Full_AP-(Asset_Test_Taper*MAX('Case 2 - Residual Benefit'!OR3*AP_Factor-Asset_Test_Threshold,0)),0))/AP_Factor,0.01) -> 4986.8 | OS3: =MAX(MIN(MAX(Full_AP-(Income_Test_Taper*MAX(MIN('Case 2 - Residual Benefit'!OS3*AP_Factor,Deeming_Threshold)*Lower_Deeming_Rate+MAX('Case 2 - Residual Benefit'!OS3*AP_Factor-Deeming_Threshold,0)*Higher_Deeming_Rate-Income_Test_Threshold,0)),0),MAX(Full_AP-(Asset_Test_Taper*MAX('Case 2 - Residual Benefit'!OS3*AP_Factor-Asset_Test_Threshold,0)),0))/AP_Factor,0.01) -> 4986.8 | OT3: =MAX(MIN(MAX(Full_AP-(Income_Test_Taper*MAX(MIN('Case 2 - Residual Benefit'!OT3*AP_Factor,Deeming_Threshold)*Lower_Deeming_Rate+MAX('Case 2 - Residual Benefit'!OT3*AP_Factor-Deeming_Threshold,0)*Higher_Deeming_Rate-Income_Test_Threshold,0)),0),MAX(Full_AP-(Asset_Test_Taper*MAX('Case 2 - Residual Benefit'!OT3*AP_Factor-Asset_Test_Threshold,0)),0))/AP_Factor,0.01) -> 4986.8 | OU3: =MAX(MIN(MAX(Full_AP-(Income_Test_Taper*MAX(MIN('Case 2 - Residual Benefit'!OU3*AP_Factor,Deeming_Threshold)*Lower_Deeming_Rate+MAX('Case 2 - Residual Benefit'!OU3*AP_Factor-Deeming_Threshold,0)*Higher_Deeming_Rate-Income_Test_Threshold,0)),0),MAX(Full_AP-(Asset_Test_Taper*MAX('Case 2 - Residual Benefit'!OU3*AP_Factor-Asset_Test_Threshold,0)),0))/AP_Factor,0.01) -> 4986.8 | OV3: =MAX(MIN(MAX(Full_AP-(Income_Test_Taper*MAX(MIN('Case 2 - Residual Benefit'!OV3*AP_Factor,Deeming_Threshold)*Lower_Deeming_Rate+MAX('Case 2 - Residual Benefit'!OV3*AP_Factor-Deeming_Threshold,0)*Higher_Deeming_Rate-Income_Test_Threshold,0)),0),MAX(Full_AP-(Asset_Test_Taper*MAX('Case 2 - Residual Benefit'!OV3*AP_Factor-Asset_Test_Threshold,0)),0))/AP_Factor,0.01) -> 4986.8 | OW3: =MAX(MIN(MAX(Full_AP-(Income_Test_Taper*MAX(MIN('Case 2 - Residual Benefit'!OW3*AP_Factor,Deeming_Threshold)*Lower_Deeming_Rate+MAX('Case 2 - Residual Benefit'!OW3*AP_Factor-Deeming_Threshold,0)*Higher_Deeming_Rate-Income_Test_Threshold,0)),0),MAX(Full_AP-(Asset_Test_Taper*MAX('Case 2 - Residual Benefit'!OW3*AP_Factor-Asset_Test_Threshold,0)),0))/AP_Factor,0.01) -> 4986.8 | OX3: =MAX(MIN(MAX(Full_AP-(Income_Test_Taper*MAX(MIN('Case 2 - Residual Benefit'!OX3*AP_Factor,Deeming_Threshold)*Lower_Deeming_Rate+MAX('Case 2 - Residual Benefit'!OX3*AP_Factor-Deeming_Threshold,0)*Higher_Deeming_Rate-Income_Test_Threshold,0)),0),MAX(Full_AP-(Asset_Test_Taper*MAX('Case 2 - Residual Benefit'!OX3*AP_Factor-Asset_Test_Threshold,0)),0))/AP_Factor,0.01) -> 4986.8 | OY3: =MAX(MIN(MAX(Full_AP-(Income_Test_Taper*MAX(MIN('Case 2 - Residual Benefit'!OY3*AP_Factor,Deeming_Threshold)*Lower_Deeming_Rate+MAX('Case 2 - Residual Benefit'!OY3*AP_Factor-Deeming_Threshold,0)*Higher_Deeming_Rate-Income_Test_Threshold,0)),0),MAX(Full_AP-(Asset_Test_Taper*MAX('Case 2 - Residual Benefit'!OY3*AP_Factor-Asset_Test_Threshold,0)),0))/AP_Factor,0.01) -> 4986.8 | OZ3: =MAX(MIN(MAX(Full_AP-(Income_Test_Taper*MAX(MIN('Case 2 - Residual Benefit'!OZ3*AP_Factor,Deeming_Threshold)*Lower_Deeming_Rate+MAX('Case 2 - Residual Benefit'!OZ3*AP_Factor-Deeming_Threshold,0)*Higher_Deeming_Rate-Income_Test_Threshold,0)),0),MAX(Full_AP-(Asset_Test_Taper*MAX('Case 2 - Residual Benefit'!OZ3*AP_Factor-Asset_Test_Threshold,0)),0))/AP_Factor,0.01) -> 4986.8 | PA3: =MAX(MIN(MAX(Full_AP-(Income_Test_Taper*MAX(MIN('Case 2 - Residual Benefit'!PA3*AP_Factor,Deeming_Threshold)*Lower_Deeming_Rate+MAX('Case 2 - Residual Benefit'!PA3*AP_Factor-Deeming_Threshold,0)*Higher_Deeming_Rate-Income_Test_Threshold,0)),0),MAX(Full_AP-(Asset_Test_Taper*MAX('Case 2 - Residual Benefit'!PA3*AP_Factor-Asset_Test_Threshold,0)),0))/AP_Factor,0.01) -> 4986.8 | PB3: =MAX(MIN(MAX(Full_AP-(Income_Test_Taper*MAX(MIN('Case 2 - Residual Benefit'!PB3*AP_Factor,Deeming_Threshold)*Lower_Deeming_Rate+MAX('Case 2 - Residual Benefit'!PB3*AP_Factor-Deeming_Threshold,0)*Higher_Deeming_Rate-Income_Test_Threshold,0)),0),MAX(Full_AP-(Asset_Test_Taper*MAX('Case 2 - Residual Benefit'!PB3*AP_Factor-Asset_Test_Threshold,0)),0))/AP_Factor,0.01) -> 4986.8 | PC3: =MAX(MIN(MAX(Full_AP-(Income_Test_Taper*MAX(MIN('Case 2 - Residual Benefit'!PC3*AP_Factor,Deeming_Threshold)*Lower_Deeming_Rate+MAX('Case 2 - Residual Benefit'!PC3*AP_Factor-Deeming_Threshold,0)*Higher_Deeming_Rate-Income_Test_Threshold,0)),0),MAX(Full_AP-(Asset_Test_Taper*MAX('Case 2 - Residual Benefit'!PC3*AP_Factor-Asset_Test_Threshold,0)),0))/AP_Factor,0.01) -> 4986.8 | PD3: =MAX(MIN(MAX(Full_AP-(Income_Test_Taper*MAX(MIN('Case 2 - Residual Benefit'!PD3*AP_Factor,Deeming_Threshold)*Lower_Deeming_Rate+MAX('Case 2 - Residual Benefit'!PD3*AP_Factor-Deeming_Threshold,0)*Higher_Deeming_Rate-Income_Test_Threshold,0)),0),MAX(Full_AP-(Asset_Test_Taper*MAX('Case 2 - Residual Benefit'!PD3*AP_Factor-Asset_Test_Threshold,0)),0))/AP_Factor,0.01) -> 4986.8 | PE3: =MAX(MIN(MAX(Full_AP-(Income_Test_Taper*MAX(MIN('Case 2 - Residual Benefit'!PE3*AP_Factor,Deeming_Threshold)*Lower_Deeming_Rate+MAX('Case 2 - Residual Benefit'!PE3*AP_Factor-Deeming_Threshold,0)*Higher_Deeming_Rate-Income_Test_Threshold,0)),0),MAX(Full_AP-(Asset_Test_Taper*MAX('Case 2 - Residual Benefit'!PE3*AP_Factor-Asset_Test_Threshold,0)),0))/AP_Factor,0.01) -> 4986.8 | PF3: =MAX(MIN(MAX(Full_AP-(Income_Test_Taper*MAX(MIN('Case 2 - Residual Benefit'!PF3*AP_Factor,Deeming_Threshold)*Lower_Deeming_Rate+MAX('Case 2 - Residual Benefit'!PF3*AP_Factor-Deeming_Threshold,0)*Higher_Deeming_Rate-Income_Test_Threshold,0)),0),MAX(Full_AP-(Asset_Test_Taper*MAX('Case 2 - Residual Benefit'!PF3*AP_Factor-Asset_Test_Threshold,0)),0))/AP_Factor,0.01) -> 4986.8 | PG3: =MAX(MIN(MAX(Full_AP-(Income_Test_Taper*MAX(MIN('Case 2 - Residual Benefit'!PG3*AP_Factor,Deeming_Threshold)*Lower_Deeming_Rate+MAX('Case 2 - Residual Benefit'!PG3*AP_Factor-Deeming_Threshold,0)*Higher_Deeming_Rate-Income_Test_Threshold,0)),0),MAX(Full_AP-(Asset_Test_Taper*MAX('Case 2 - Residual Benefit'!PG3*AP_Factor-Asset_Test_Threshold,0)),0))/AP_Factor,0.01) -> 4986.8 | PH3: =MAX(MIN(MAX(Full_AP-(Income_Test_Taper*MAX(MIN('Case 2 - Residual Benefit'!PH3*AP_Factor,Deeming_Threshold)*Lower_Deeming_Rate+MAX('Case 2 - Residual Benefit'!PH3*AP_Factor-Deeming_Threshold,0)*Higher_Deeming_Rate-Income_Test_Threshold,0)),0),MAX(Full_AP-(Asset_Test_Taper*MAX('Case 2 - Residual Benefit'!PH3*AP_Factor-Asset_Test_Threshold,0)),0))/AP_Factor,0.01) -> 4986.8 | PI3: =MAX(MIN(MAX(Full_AP-(Income_Test_Taper*MAX(MIN('Case 2 - Residual Benefit'!PI3*AP_Factor,Deeming_Threshold)*Lower_Deeming_Rate+MAX('Case 2 - Residual Benefit'!PI3*AP_Factor-Deeming_Threshold,0)*Higher_Deeming_Rate-Income_Test_Threshold,0)),0),MAX(Full_AP-(Asset_Test_Taper*MAX('Case 2 - Residual Benefit'!PI3*AP_Factor-Asset_Test_Threshold,0)),0))/AP_Factor,0.01) -> 4986.8 | PJ3: =MAX(MIN(MAX(Full_AP-(Income_Test_Taper*MAX(MIN('Case 2 - Residual Benefit'!PJ3*AP_Factor,Deeming_Threshold)*Lower_Deeming_Rate+MAX('Case 2 - Residual Benefit'!PJ3*AP_Factor-Deeming_Threshold,0)*Higher_Deeming_Rate-Income_Test_Threshold,0)),0),MAX(Full_AP-(Asset_Test_Taper*MAX('Case 2 - Residual Benefit'!PJ3*AP_Factor-Asset_Test_Threshold,0)),0))/AP_Factor,0.01) -> 4986.8 | PK3: =MAX(MIN(MAX(Full_AP-(Income_Test_Taper*MAX(MIN('Case 2 - Residual Benefit'!PK3*AP_Factor,Deeming_Threshold)*Lower_Deeming_Rate+MAX('Case 2 - Residual Benefit'!PK3*AP_Factor-Deeming_Threshold,0)*Higher_Deeming_Rate-Income_Test_Threshold,0)),0),MAX(Full_AP-(Asset_Test_Taper*MAX('Case 2 - Residual Benefit'!PK3*AP_Factor-Asset_Test_Threshold,0)),0))/AP_Factor,0.01) -> 4986.8 | PL3: =MAX(MIN(MAX(Full_AP-(Income_Test_Taper*MAX(MIN('Case 2 - Residual Benefit'!PL3*AP_Factor,Deeming_Threshold)*Lower_Deeming_Rate+MAX('Case 2 - Residual Benefit'!PL3*AP_Factor-Deeming_Threshold,0)*Higher_Deeming_Rate-Income_Test_Threshold,0)),0),MAX(Full_AP-(Asset_Test_Taper*MAX('Case 2 - Residual Benefit'!PL3*AP_Factor-Asset_Test_Threshold,0)),0))/AP_Factor,0.01) -> 4986.8 | PM3: =MAX(MIN(MAX(Full_AP-(Income_Test_Taper*MAX(MIN('Case 2 - Residual Benefit'!PM3*AP_Factor,Deeming_Threshold)*Lower_Deeming_Rate+MAX('Case 2 - Residual Benefit'!PM3*AP_Factor-Deeming_Threshold,0)*Higher_Deeming_Rate-Income_Test_Threshold,0)),0),MAX(Full_AP-(Asset_Test_Taper*MAX('Case 2 - Residual Benefit'!PM3*AP_Factor-Asset_Test_Threshold,0)),0))/AP_Factor,0.01) -> 4986.8 | PN3: =MAX(MIN(MAX(Full_AP-(Income_Test_Taper*MAX(MIN('Case 2 - Residual Benefit'!PN3*AP_Factor,Deeming_Threshold)*Lower_Deeming_Rate+MAX('Case 2 - Residual Benefit'!PN3*AP_Factor-Deeming_Threshold,0)*Higher_Deeming_Rate-Income_Test_Threshold,0)),0),MAX(Full_AP-(Asset_Test_Taper*MAX('Case 2 - Residual Benefit'!PN3*AP_Factor-Asset_Test_Threshold,0)),0))/AP_Factor,0.01) -> 4986.8 | PO3: =MAX(MIN(MAX(Full_AP-(Income_Test_Taper*MAX(MIN('Case 2 - Residual Benefit'!PO3*AP_Factor,Deeming_Threshold)*Lower_Deeming_Rate+MAX('Case 2 - Residual Benefit'!PO3*AP_Factor-Deeming_Threshold,0)*Higher_Deeming_Rate-Income_Test_Threshold,0)),0),MAX(Full_AP-(Asset_Test_Taper*MAX('Case 2 - Residual Benefit'!PO3*AP_Factor-Asset_Test_Threshold,0)),0))/AP_Factor,0.01) -> 4986.8 | PP3: =MAX(MIN(MAX(Full_AP-(Income_Test_Taper*MAX(MIN('Case 2 - Residual Benefit'!PP3*AP_Factor,Deeming_Threshold)*Lower_Deeming_Rate+MAX('Case 2 - Residual Benefit'!PP3*AP_Factor-Deeming_Threshold,0)*Higher_Deeming_Rate-Income_Test_Threshold,0)),0),MAX(Full_AP-(Asset_Test_Taper*MAX('Case 2 - Residual Benefit'!PP3*AP_Factor-Asset_Test_Threshold,0)),0))/AP_Factor,0.01) -> 4986.8 | PQ3: =MAX(MIN(MAX(Full_AP-(Income_Test_Taper*MAX(MIN('Case 2 - Residual Benefit'!PQ3*AP_Factor,Deeming_Threshold)*Lower_Deeming_Rate+MAX('Case 2 - Residual Benefit'!PQ3*AP_Factor-Deeming_Threshold,0)*Higher_Deeming_Rate-Income_Test_Threshold,0)),0),MAX(Full_AP-(Asset_Test_Taper*MAX('Case 2 - Residual Benefit'!PQ3*AP_Factor-Asset_Test_Threshold,0)),0))/AP_Factor,0.01) -> 4986.8 | PR3: =MAX(MIN(MAX(Full_AP-(Income_Test_Taper*MAX(MIN('Case 2 - Residual Benefit'!PR3*AP_Factor,Deeming_Threshold)*Lower_Deeming_Rate+MAX('Case 2 - Residual Benefit'!PR3*AP_Factor-Deeming_Threshold,0)*Higher_Deeming_Rate-Income_Test_Threshold,0)),0),MAX(Full_AP-(Asset_Test_Taper*MAX('Case 2 - Residual Benefit'!PR3*AP_Factor-Asset_Test_Threshold,0)),0))/AP_Factor,0.01) -> 4986.8 | PS3: =MAX(MIN(MAX(Full_AP-(Income_Test_Taper*MAX(MIN('Case 2 - Residual Benefit'!PS3*AP_Factor,Deeming_Threshold)*Lower_Deeming_Rate+MAX('Case 2 - Residual Benefit'!PS3*AP_Factor-Deeming_Threshold,0)*Higher_Deeming_Rate-Income_Test_Threshold,0)),0),MAX(Full_AP-(Asset_Test_Taper*MAX('Case 2 - Residual Benefit'!PS3*AP_Factor-Asset_Test_Threshold,0)),0))/AP_Factor,0.01) -> 4986.8 | PT3: =MAX(MIN(MAX(Full_AP-(Income_Test_Taper*MAX(MIN('Case 2 - Residual Benefit'!PT3*AP_Factor,Deeming_Threshold)*Lower_Deeming_Rate+MAX('Case 2 - Residual Benefit'!PT3*AP_Factor-Deeming_Threshold,0)*Higher_Deeming_Rate-Income_Test_Threshold,0)),0),MAX(Full_AP-(Asset_Test_Taper*MAX('Case 2 - Residual Benefit'!PT3*AP_Factor-Asset_Test_Threshold,0)),0))/AP_Factor,0.01) -> 4986.8 | PU3: =MAX(MIN(MAX(Full_AP-(Income_Test_Taper*MAX(MIN('Case 2 - Residual Benefit'!PU3*AP_Factor,Deeming_Threshold)*Lower_Deeming_Rate+MAX('Case 2 - Residual Benefit'!PU3*AP_Factor-Deeming_Threshold,0)*Higher_Deeming_Rate-Income_Test_Threshold,0)),0),MAX(Full_AP-(Asset_Test_Taper*MAX('Case 2 - Residual Benefit'!PU3*AP_Factor-Asset_Test_Threshold,0)),0))/AP_Factor,0.01) -> 4986.8 | PV3: =MAX(MIN(MAX(Full_AP-(Income_Test_Taper*MAX(MIN('Case 2 - Residual Benefit'!PV3*AP_Factor,Deeming_Threshold)*Lower_Deeming_Rate+MAX('Case 2 - Residual Benefit'!PV3*AP_Factor-Deeming_Threshold,0)*Higher_Deeming_Rate-Income_Test_Threshold,0)),0),MAX(Full_AP-(Asset_Test_Taper*MAX('Case 2 - Residual Benefit'!PV3*AP_Factor-Asset_Test_Threshold,0)),0))/AP_Factor,0.01) -> 4986.8 | PW3: =MAX(MIN(MAX(Full_AP-(Income_Test_Taper*MAX(MIN('Case 2 - Residual Benefit'!PW3*AP_Factor,Deeming_Threshold)*Lower_Deeming_Rate+MAX('Case 2 - Residual Benefit'!PW3*AP_Factor-Deeming_Threshold,0)*Higher_Deeming_Rate-Income_Test_Threshold,0)),0),MAX(Full_AP-(Asset_Test_Taper*MAX('Case 2 - Residual Benefit'!PW3*AP_Factor-Asset_Test_Threshold,0)),0))/AP_Factor,0.01) -> 4986.8 | PX3: =MAX(MIN(MAX(Full_AP-(Income_Test_Taper*MAX(MIN('Case 2 - Residual Benefit'!PX3*AP_Factor,Deeming_Threshold)*Lower_Deeming_Rate+MAX('Case 2 - Residual Benefit'!PX3*AP_Factor-Deeming_Threshold,0)*Higher_Deeming_Rate-Income_Test_Threshold,0)),0),MAX(Full_AP-(Asset_Test_Taper*MAX('Case 2 - Residual Benefit'!PX3*AP_Factor-Asset_Test_Threshold,0)),0))/AP_Factor,0.01) -> 4986.8 | PY3: =MAX(MIN(MAX(Full_AP-(Income_Test_Taper*MAX(MIN('Case 2 - Residual Benefit'!PY3*AP_Factor,Deeming_Threshold)*Lower_Deeming_Rate+MAX('Case 2 - Residual Benefit'!PY3*AP_Factor-Deeming_Threshold,0)*Higher_Deeming_Rate-Income_Test_Threshold,0)),0),MAX(Full_AP-(Asset_Test_Taper*MAX('Case 2 - Residual Benefit'!PY3*AP_Factor-Asset_Test_Threshold,0)),0))/AP_Factor,0.01) -> 4986.8 | PZ3: =MAX(MIN(MAX(Full_AP-(Income_Test_Taper*MAX(MIN('Case 2 - Residual Benefit'!PZ3*AP_Factor,Deeming_Threshold)*Lower_Deeming_Rate+MAX('Case 2 - Residual Benefit'!PZ3*AP_Factor-Deeming_Threshold,0)*Higher_Deeming_Rate-Income_Test_Threshold,0)),0),MAX(Full_AP-(Asset_Test_Taper*MAX('Case 2 - Residual Benefit'!PZ3*AP_Factor-Asset_Test_Threshold,0)),0))/AP_Factor,0.01) -> 4986.8 | QA3: =MAX(MIN(MAX(Full_AP-(Income_Test_Taper*MAX(MIN('Case 2 - Residual Benefit'!QA3*AP_Factor,Deeming_Threshold)*Lower_Deeming_Rate+MAX('Case 2 - Residual Benefit'!QA3*AP_Factor-Deeming_Threshold,0)*Higher_Deeming_Rate-Income_Test_Threshold,0)),0),MAX(Full_AP-(Asset_Test_Taper*MAX('Case 2 - Residual Benefit'!QA3*AP_Factor-Asset_Test_Threshold,0)),0))/AP_Factor,0.01) -> 4986.8 | QB3: =MAX(MIN(MAX(Full_AP-(Income_Test_Taper*MAX(MIN('Case 2 - Residual Benefit'!QB3*AP_Factor,Deeming_Threshold)*Lower_Deeming_Rate+MAX('Case 2 - Residual Benefit'!QB3*AP_Factor-Deeming_Threshold,0)*Higher_Deeming_Rate-Income_Test_Threshold,0)),0),MAX(Full_AP-(Asset_Test_Taper*MAX('Case 2 - Residual Benefit'!QB3*AP_Factor-Asset_Test_Threshold,0)),0))/AP_Factor,0.01) -> 4986.8 | QC3: =MAX(MIN(MAX(Full_AP-(Income_Test_Taper*MAX(MIN('Case 2 - Residual Benefit'!QC3*AP_Factor,Deeming_Threshold)*Lower_Deeming_Rate+MAX('Case 2 - Residual Benefit'!QC3*AP_Factor-Deeming_Threshold,0)*Higher_Deeming_Rate-Income_Test_Threshold,0)),0),MAX(Full_AP-(Asset_Test_Taper*MAX('Case 2 - Residual Benefit'!QC3*AP_Factor-Asset_Test_Threshold,0)),0))/AP_Factor,0.01) -> 4986.8 | QD3: =MAX(MIN(MAX(Full_AP-(Income_Test_Taper*MAX(MIN('Case 2 - Residual Benefit'!QD3*AP_Factor,Deeming_Threshold)*Lower_Deeming_Rate+MAX('Case 2 - Residual Benefit'!QD3*AP_Factor-Deeming_Threshold,0)*Higher_Deeming_Rate-Income_Test_Threshold,0)),0),MAX(Full_AP-(Asset_Test_Taper*MAX('Case 2 - Residual Benefit'!QD3*AP_Factor-Asset_Test_Threshold,0)),0))/AP_Factor,0.01) -> 4986.8 | QE3: =MAX(MIN(MAX(Full_AP-(Income_Test_Taper*MAX(MIN('Case 2 - Residual Benefit'!QE3*AP_Factor,Deeming_Threshold)*Lower_Deeming_Rate+MAX('Case 2 - Residual Benefit'!QE3*AP_Factor-Deeming_Threshold,0)*Higher_Deeming_Rate-Income_Test_Threshold,0)),0),MAX(Full_AP-(Asset_Test_Taper*MAX('Case 2 - Residual Benefit'!QE3*AP_Factor-Asset_Test_Threshold,0)),0))/AP_Factor,0.01) -> 4986.8 | QF3: =MAX(MIN(MAX(Full_AP-(Income_Test_Taper*MAX(MIN('Case 2 - Residual Benefit'!QF3*AP_Factor,Deeming_Threshold)*Lower_Deeming_Rate+MAX('Case 2 - Residual Benefit'!QF3*AP_Factor-Deeming_Threshold,0)*Higher_Deeming_Rate-Income_Test_Threshold,0)),0),MAX(Full_AP-(Asset_Test_Taper*MAX('Case 2 - Residual Benefit'!QF3*AP_Factor-Asset_Test_Threshold,0)),0))/AP_Factor,0.01) -> 4986.8 | QG3: =MAX(MIN(MAX(Full_AP-(Income_Test_Taper*MAX(MIN('Case 2 - Residual Benefit'!QG3*AP_Factor,Deeming_Threshold)*Lower_Deeming_Rate+MAX('Case 2 - Residual Benefit'!QG3*AP_Factor-Deeming_Threshold,0)*Higher_Deeming_Rate-Income_Test_Threshold,0)),0),MAX(Full_AP-(Asset_Test_Taper*MAX('Case 2 - Residual Benefit'!QG3*AP_Factor-Asset_Test_Threshold,0)),0))/AP_Factor,0.01) -> 4986.8 | QH3: =MAX(MIN(MAX(Full_AP-(Income_Test_Taper*MAX(MIN('Case 2 - Residual Benefit'!QH3*AP_Factor,Deeming_Threshold)*Lower_Deeming_Rate+MAX('Case 2 - Residual Benefit'!QH3*AP_Factor-Deeming_Threshold,0)*Higher_Deeming_Rate-Income_Test_Threshold,0)),0),MAX(Full_AP-(Asset_Test_Taper*MAX('Case 2 - Residual Benefit'!QH3*AP_Factor-Asset_Test_Threshold,0)),0))/AP_Factor,0.01) -> 4986.8 | QI3: =MAX(MIN(MAX(Full_AP-(Income_Test_Taper*MAX(MIN('Case 2 - Residual Benefit'!QI3*AP_Factor,Deeming_Threshold)*Lower_Deeming_Rate+MAX('Case 2 - Residual Benefit'!QI3*AP_Factor-Deeming_Threshold,0)*Higher_Deeming_Rate-Income_Test_Threshold,0)),0),MAX(Full_AP-(Asset_Test_Taper*MAX('Case 2 - Residual Benefit'!QI3*AP_Factor-Asset_Test_Threshold,0)),0))/AP_Factor,0.01) -> 4986.8 | QJ3: =MAX(MIN(MAX(Full_AP-(Income_Test_Taper*MAX(MIN('Case 2 - Residual Benefit'!QJ3*AP_Factor,Deeming_Threshold)*Lower_Deeming_Rate+MAX('Case 2 - Residual Benefit'!QJ3*AP_Factor-Deeming_Threshold,0)*Higher_Deeming_Rate-Income_Test_Threshold,0)),0),MAX(Full_AP-(Asset_Test_Taper*MAX('Case 2 - Residual Benefit'!QJ3*AP_Factor-Asset_Test_Threshold,0)),0))/AP_Factor,0.01) -> 4986.8 | QK3: =MAX(MIN(MAX(Full_AP-(Income_Test_Taper*MAX(MIN('Case 2 - Residual Benefit'!QK3*AP_Factor,Deeming_Threshold)*Lower_Deeming_Rate+MAX('Case 2 - Residual Benefit'!QK3*AP_Factor-Deeming_Threshold,0)*Higher_Deeming_Rate-Income_Test_Threshold,0)),0),MAX(Full_AP-(Asset_Test_Taper*MAX('Case 2 - Residual Benefit'!QK3*AP_Factor-Asset_Test_Threshold,0)),0))/AP_Factor,0.01) -> 4986.8 | QL3: =MAX(MIN(MAX(Full_AP-(Income_Test_Taper*MAX(MIN('Case 2 - Residual Benefit'!QL3*AP_Factor,Deeming_Threshold)*Lower_Deeming_Rate+MAX('Case 2 - Residual Benefit'!QL3*AP_Factor-Deeming_Threshold,0)*Higher_Deeming_Rate-Income_Test_Threshold,0)),0),MAX(Full_AP-(Asset_Test_Taper*MAX('Case 2 - Residual Benefit'!QL3*AP_Factor-Asset_Test_Threshold,0)),0))/AP_Factor,0.01) -> 4986.8 | QM3: =MAX(MIN(MAX(Full_AP-(Income_Test_Taper*MAX(MIN('Case 2 - Residual Benefit'!QM3*AP_Factor,Deeming_Threshold)*Lower_Deeming_Rate+MAX('Case 2 - Residual Benefit'!QM3*AP_Factor-Deeming_Threshold,0)*Higher_Deeming_Rate-Income_Test_Threshold,0)),0),MAX(Full_AP-(Asset_Test_Taper*MAX('Case 2 - Residual Benefit'!QM3*AP_Factor-Asset_Test_Threshold,0)),0))/AP_Factor,0.01) -> 4986.8 | QN3: =MAX(MIN(MAX(Full_AP-(Income_Test_Taper*MAX(MIN('Case 2 - Residual Benefit'!QN3*AP_Factor,Deeming_Threshold)*Lower_Deeming_Rate+MAX('Case 2 - Residual Benefit'!QN3*AP_Factor-Deeming_Threshold,0)*Higher_Deeming_Rate-Income_Test_Threshold,0)),0),MAX(Full_AP-(Asset_Test_Taper*MAX('Case 2 - Residual Benefit'!QN3*AP_Factor-Asset_Test_Threshold,0)),0))/AP_Factor,0.01) -> 4986.8 | QO3: =MAX(MIN(MAX(Full_AP-(Income_Test_Taper*MAX(MIN('Case 2 - Residual Benefit'!QO3*AP_Factor,Deeming_Threshold)*Lower_Deeming_Rate+MAX('Case 2 - Residual Benefit'!QO3*AP_Factor-Deeming_Threshold,0)*Higher_Deeming_Rate-Income_Test_Threshold,0)),0),MAX(Full_AP-(Asset_Test_Taper*MAX('Case 2 - Residual Benefit'!QO3*AP_Factor-Asset_Test_Threshold,0)),0))/AP_Factor,0.01) -> 4986.8 | QP3: =MAX(MIN(MAX(Full_AP-(Income_Test_Taper*MAX(MIN('Case 2 - Residual Benefit'!QP3*AP_Factor,Deeming_Threshold)*Lower_Deeming_Rate+MAX('Case 2 - Residual Benefit'!QP3*AP_Factor-Deeming_Threshold,0)*Higher_Deeming_Rate-Income_Test_Threshold,0)),0),MAX(Full_AP-(Asset_Test_Taper*MAX('Case 2 - Residual Benefit'!QP3*AP_Factor-Asset_Test_Threshold,0)),0))/AP_Factor,0.01) -> 4986.8 | QQ3: =MAX(MIN(MAX(Full_AP-(Income_Test_Taper*MAX(MIN('Case 2 - Residual Benefit'!QQ3*AP_Factor,Deeming_Threshold)*Lower_Deeming_Rate+MAX('Case 2 - Residual Benefit'!QQ3*AP_Factor-Deeming_Threshold,0)*Higher_Deeming_Rate-Income_Test_Threshold,0)),0),MAX(Full_AP-(Asset_Test_Taper*MAX('Case 2 - Residual Benefit'!QQ3*AP_Factor-Asset_Test_Threshold,0)),0))/AP_Factor,0.01) -> 4986.8 | QR3: =MAX(MIN(MAX(Full_AP-(Income_Test_Taper*MAX(MIN('Case 2 - Residual Benefit'!QR3*AP_Factor,Deeming_Threshold)*Lower_Deeming_Rate+MAX('Case 2 - Residual Benefit'!QR3*AP_Factor-Deeming_Threshold,0)*Higher_Deeming_Rate-Income_Test_Threshold,0)),0),MAX(Full_AP-(Asset_Test_Taper*MAX('Case 2 - Residual Benefit'!QR3*AP_Factor-Asset_Test_Threshold,0)),0))/AP_Factor,0.01) -> 4986.8 | QS3: =MAX(MIN(MAX(Full_AP-(Income_Test_Taper*MAX(MIN('Case 2 - Residual Benefit'!QS3*AP_Factor,Deeming_Threshold)*Lower_Deeming_Rate+MAX('Case 2 - Residual Benefit'!QS3*AP_Factor-Deeming_Threshold,0)*Higher_Deeming_Rate-Income_Test_Threshold,0)),0),MAX(Full_AP-(Asset_Test_Taper*MAX('Case 2 - Residual Benefit'!QS3*AP_Factor-Asset_Test_Threshold,0)),0))/AP_Factor,0.01) -> 4986.8 | QT3: =MAX(MIN(MAX(Full_AP-(Income_Test_Taper*MAX(MIN('Case 2 - Residual Benefit'!QT3*AP_Factor,Deeming_Threshold)*Lower_Deeming_Rate+MAX('Case 2 - Residual Benefit'!QT3*AP_Factor-Deeming_Threshold,0)*Higher_Deeming_Rate-Income_Test_Threshold,0)),0),MAX(Full_AP-(Asset_Test_Taper*MAX('Case 2 - Residual Benefit'!QT3*AP_Factor-Asset_Test_Threshold,0)),0))/AP_Factor,0.01) -> 4986.8 | QU3: =MAX(MIN(MAX(Full_AP-(Income_Test_Taper*MAX(MIN('Case 2 - Residual Benefit'!QU3*AP_Factor,Deeming_Threshold)*Lower_Deeming_Rate+MAX('Case 2 - Residual Benefit'!QU3*AP_Factor-Deeming_Threshold,0)*Higher_Deeming_Rate-Income_Test_Threshold,0)),0),MAX(Full_AP-(Asset_Test_Taper*MAX('Case 2 - Residual Benefit'!QU3*AP_Factor-Asset_Test_Threshold,0)),0))/AP_Factor,0.01) -> 4986.8 | QV3: =MAX(MIN(MAX(Full_AP-(Income_Test_Taper*MAX(MIN('Case 2 - Residual Benefit'!QV3*AP_Factor,Deeming_Threshold)*Lower_Deeming_Rate+MAX('Case 2 - Residual Benefit'!QV3*AP_Factor-Deeming_Threshold,0)*Higher_Deeming_Rate-Income_Test_Threshold,0)),0),MAX(Full_AP-(Asset_Test_Taper*MAX('Case 2 - Residual Benefit'!QV3*AP_Factor-Asset_Test_Threshold,0)),0))/AP_Factor,0.01) -> 4986.8 | QW3: =MAX(MIN(MAX(Full_AP-(Income_Test_Taper*MAX(MIN('Case 2 - Residual Benefit'!QW3*AP_Factor,Deeming_Threshold)*Lower_Deeming_Rate+MAX('Case 2 - Residual Benefit'!QW3*AP_Factor-Deeming_Threshold,0)*Higher_Deeming_Rate-Income_Test_Threshold,0)),0),MAX(Full_AP-(Asset_Test_Taper*MAX('Case 2 - Residual Benefit'!QW3*AP_Factor-Asset_Test_Threshold,0)),0))/AP_Factor,0.01) -> 4986.8 | QX3: =MAX(MIN(MAX(Full_AP-(Income_Test_Taper*MAX(MIN('Case 2 - Residual Benefit'!QX3*AP_Factor,Deeming_Threshold)*Lower_Deeming_Rate+MAX('Case 2 - Residual Benefit'!QX3*AP_Factor-Deeming_Threshold,0)*Higher_Deeming_Rate-Income_Test_Threshold,0)),0),MAX(Full_AP-(Asset_Test_Taper*MAX('Case 2 - Residual Benefit'!QX3*AP_Factor-Asset_Test_Threshold,0)),0))/AP_Factor,0.01) -> 4986.8 | QY3: =MAX(MIN(MAX(Full_AP-(Income_Test_Taper*MAX(MIN('Case 2 - Residual Benefit'!QY3*AP_Factor,Deeming_Threshold)*Lower_Deeming_Rate+MAX('Case 2 - Residual Benefit'!QY3*AP_Factor-Deeming_Threshold,0)*Higher_Deeming_Rate-Income_Test_Threshold,0)),0),MAX(Full_AP-(Asset_Test_Taper*MAX('Case 2 - Residual Benefit'!QY3*AP_Factor-Asset_Test_Threshold,0)),0))/AP_Factor,0.01) -> 4986.8 | QZ3: =MAX(MIN(MAX(Full_AP-(Income_Test_Taper*MAX(MIN('Case 2 - Residual Benefit'!QZ3*AP_Factor,Deeming_Threshold)*Lower_Deeming_Rate+MAX('Case 2 - Residual Benefit'!QZ3*AP_Factor-Deeming_Threshold,0)*Higher_Deeming_Rate-Income_Test_Threshold,0)),0),MAX(Full_AP-(Asset_Test_Taper*MAX('Case 2 - Residual Benefit'!QZ3*AP_Factor-Asset_Test_Threshold,0)),0))/AP_Factor,0.01) -> 4986.8 | RA3: =MAX(MIN(MAX(Full_AP-(Income_Test_Taper*MAX(MIN('Case 2 - Residual Benefit'!RA3*AP_Factor,Deeming_Threshold)*Lower_Deeming_Rate+MAX('Case 2 - Residual Benefit'!RA3*AP_Factor-Deeming_Threshold,0)*Higher_Deeming_Rate-Income_Test_Threshold,0)),0),MAX(Full_AP-(Asset_Test_Taper*MAX('Case 2 - Residual Benefit'!RA3*AP_Factor-Asset_Test_Threshold,0)),0))/AP_Factor,0.01) -> 4986.8 | RB3: =MAX(MIN(MAX(Full_AP-(Income_Test_Taper*MAX(MIN('Case 2 - Residual Benefit'!RB3*AP_Factor,Deeming_Threshold)*Lower_Deeming_Rate+MAX('Case 2 - Residual Benefit'!RB3*AP_Factor-Deeming_Threshold,0)*Higher_Deeming_Rate-Income_Test_Threshold,0)),0),MAX(Full_AP-(Asset_Test_Taper*MAX('Case 2 - Residual Benefit'!RB3*AP_Factor-Asset_Test_Threshold,0)),0))/AP_Factor,0.01) -> 4986.8 | RC3: =MAX(MIN(MAX(Full_AP-(Income_Test_Taper*MAX(MIN('Case 2 - Residual Benefit'!RC3*AP_Factor,Deeming_Threshold)*Lower_Deeming_Rate+MAX('Case 2 - Residual Benefit'!RC3*AP_Factor-Deeming_Threshold,0)*Higher_Deeming_Rate-Income_Test_Threshold,0)),0),MAX(Full_AP-(Asset_Test_Taper*MAX('Case 2 - Residual Benefit'!RC3*AP_Factor-Asset_Test_Threshold,0)),0))/AP_Factor,0.01) -> 4986.8 | RD3: =MAX(MIN(MAX(Full_AP-(Income_Test_Taper*MAX(MIN('Case 2 - Residual Benefit'!RD3*AP_Factor,Deeming_Threshold)*Lower_Deeming_Rate+MAX('Case 2 - Residual Benefit'!RD3*AP_Factor-Deeming_Threshold,0)*Higher_Deeming_Rate-Income_Test_Threshold,0)),0),MAX(Full_AP-(Asset_Test_Taper*MAX('Case 2 - Residual Benefit'!RD3*AP_Factor-Asset_Test_Threshold,0)),0))/AP_Factor,0.01) -> 4986.8 | RE3: =MAX(MIN(MAX(Full_AP-(Income_Test_Taper*MAX(MIN('Case 2 - Residual Benefit'!RE3*AP_Factor,Deeming_Threshold)*Lower_Deeming_Rate+MAX('Case 2 - Residual Benefit'!RE3*AP_Factor-Deeming_Threshold,0)*Higher_Deeming_Rate-Income_Test_Threshold,0)),0),MAX(Full_AP-(Asset_Test_Taper*MAX('Case 2 - Residual Benefit'!RE3*AP_Factor-Asset_Test_Threshold,0)),0))/AP_Factor,0.01) -> 4986.8 | RF3: =MAX(MIN(MAX(Full_AP-(Income_Test_Taper*MAX(MIN('Case 2 - Residual Benefit'!RF3*AP_Factor,Deeming_Threshold)*Lower_Deeming_Rate+MAX('Case 2 - Residual Benefit'!RF3*AP_Factor-Deeming_Threshold,0)*Higher_Deeming_Rate-Income_Test_Threshold,0)),0),MAX(Full_AP-(Asset_Test_Taper*MAX('Case 2 - Residual Benefit'!RF3*AP_Factor-Asset_Test_Threshold,0)),0))/AP_Factor,0.01) -> 4986.8 | RG3: =MAX(MIN(MAX(Full_AP-(Income_Test_Taper*MAX(MIN('Case 2 - Residual Benefit'!RG3*AP_Factor,Deeming_Threshold)*Lower_Deeming_Rate+MAX('Case 2 - Residual Benefit'!RG3*AP_Factor-Deeming_Threshold,0)*Higher_Deeming_Rate-Income_Test_Threshold,0)),0),MAX(Full_AP-(Asset_Test_Taper*MAX('Case 2 - Residual Benefit'!RG3*AP_Factor-Asset_Test_Threshold,0)),0))/AP_Factor,0.01) -> 4986.8 | RH3: =MAX(MIN(MAX(Full_AP-(Income_Test_Taper*MAX(MIN('Case 2 - Residual Benefit'!RH3*AP_Factor,Deeming_Threshold)*Lower_Deeming_Rate+MAX('Case 2 - Residual Benefit'!RH3*AP_Factor-Deeming_Threshold,0)*Higher_Deeming_Rate-Income_Test_Threshold,0)),0),MAX(Full_AP-(Asset_Test_Taper*MAX('Case 2 - Residual Benefit'!RH3*AP_Factor-Asset_Test_Threshold,0)),0))/AP_Factor,0.01) -> 4986.8 | RI3: =MAX(MIN(MAX(Full_AP-(Income_Test_Taper*MAX(MIN('Case 2 - Residual Benefit'!RI3*AP_Factor,Deeming_Threshold)*Lower_Deeming_Rate+MAX('Case 2 - Residual Benefit'!RI3*AP_Factor-Deeming_Threshold,0)*Higher_Deeming_Rate-Income_Test_Threshold,0)),0),MAX(Full_AP-(Asset_Test_Taper*MAX('Case 2 - Residual Benefit'!RI3*AP_Factor-Asset_Test_Threshold,0)),0))/AP_Factor,0.01) -> 4986.8 | RJ3: =MAX(MIN(MAX(Full_AP-(Income_Test_Taper*MAX(MIN('Case 2 - Residual Benefit'!RJ3*AP_Factor,Deeming_Threshold)*Lower_Deeming_Rate+MAX('Case 2 - Residual Benefit'!RJ3*AP_Factor-Deeming_Threshold,0)*Higher_Deeming_Rate-Income_Test_Threshold,0)),0),MAX(Full_AP-(Asset_Test_Taper*MAX('Case 2 - Residual Benefit'!RJ3*AP_Factor-Asset_Test_Threshold,0)),0))/AP_Factor,0.01) -> 4986.8 | RK3: =MAX(MIN(MAX(Full_AP-(Income_Test_Taper*MAX(MIN('Case 2 - Residual Benefit'!RK3*AP_Factor,Deeming_Threshold)*Lower_Deeming_Rate+MAX('Case 2 - Residual Benefit'!RK3*AP_Factor-Deeming_Threshold,0)*Higher_Deeming_Rate-Income_Test_Threshold,0)),0),MAX(Full_AP-(Asset_Test_Taper*MAX('Case 2 - Residual Benefit'!RK3*AP_Factor-Asset_Test_Threshold,0)),0))/AP_Factor,0.01) -> 4986.8 | RL3: =MAX(MIN(MAX(Full_AP-(Income_Test_Taper*MAX(MIN('Case 2 - Residual Benefit'!RL3*AP_Factor,Deeming_Threshold)*Lower_Deeming_Rate+MAX('Case 2 - Residual Benefit'!RL3*AP_Factor-Deeming_Threshold,0)*Higher_Deeming_Rate-Income_Test_Threshold,0)),0),MAX(Full_AP-(Asset_Test_Taper*MAX('Case 2 - Residual Benefit'!RL3*AP_Factor-Asset_Test_Threshold,0)),0))/AP_Factor,0.01) -> 4986.8 | RM3: =MAX(MIN(MAX(Full_AP-(Income_Test_Taper*MAX(MIN('Case 2 - Residual Benefit'!RM3*AP_Factor,Deeming_Threshold)*Lower_Deeming_Rate+MAX('Case 2 - Residual Benefit'!RM3*AP_Factor-Deeming_Threshold,0)*Higher_Deeming_Rate-Income_Test_Threshold,0)),0),MAX(Full_AP-(Asset_Test_Taper*MAX('Case 2 - Residual Benefit'!RM3*AP_Factor-Asset_Test_Threshold,0)),0))/AP_Factor,0.01) -> 4986.8 | RN3: =MAX(MIN(MAX(Full_AP-(Income_Test_Taper*MAX(MIN('Case 2 - Residual Benefit'!RN3*AP_Factor,Deeming_Threshold)*Lower_Deeming_Rate+MAX('Case 2 - Residual Benefit'!RN3*AP_Factor-Deeming_Threshold,0)*Higher_Deeming_Rate-Income_Test_Threshold,0)),0),MAX(Full_AP-(Asset_Test_Taper*MAX('Case 2 - Residual Benefit'!RN3*AP_Factor-Asset_Test_Threshold,0)),0))/AP_Factor,0.01) -> 4986.8 | RO3: =MAX(MIN(MAX(Full_AP-(Income_Test_Taper*MAX(MIN('Case 2 - Residual Benefit'!RO3*AP_Factor,Deeming_Threshold)*Lower_Deeming_Rate+MAX('Case 2 - Residual Benefit'!RO3*AP_Factor-Deeming_Threshold,0)*Higher_Deeming_Rate-Income_Test_Threshold,0)),0),MAX(Full_AP-(Asset_Test_Taper*MAX('Case 2 - Residual Benefit'!RO3*AP_Factor-Asset_Test_Threshold,0)),0))/AP_Factor,0.01) -> 4986.8 | RP3: =MAX(MIN(MAX(Full_AP-(Income_Test_Taper*MAX(MIN('Case 2 - Residual Benefit'!RP3*AP_Factor,Deeming_Threshold)*Lower_Deeming_Rate+MAX('Case 2 - Residual Benefit'!RP3*AP_Factor-Deeming_Threshold,0)*Higher_Deeming_Rate-Income_Test_Threshold,0)),0),MAX(Full_AP-(Asset_Test_Taper*MAX('Case 2 - Residual Benefit'!RP3*AP_Factor-Asset_Test_Threshold,0)),0))/AP_Factor,0.01) -> 4986.8 | RQ3: =MAX(MIN(MAX(Full_AP-(Income_Test_Taper*MAX(MIN('Case 2 - Residual Benefit'!RQ3*AP_Factor,Deeming_Threshold)*Lower_Deeming_Rate+MAX('Case 2 - Residual Benefit'!RQ3*AP_Factor-Deeming_Threshold,0)*Higher_Deeming_Rate-Income_Test_Threshold,0)),0),MAX(Full_AP-(Asset_Test_Taper*MAX('Case 2 - Residual Benefit'!RQ3*AP_Factor-Asset_Test_Threshold,0)),0))/AP_Factor,0.01) -> 4986.8 | RR3: =MAX(MIN(MAX(Full_AP-(Income_Test_Taper*MAX(MIN('Case 2 - Residual Benefit'!RR3*AP_Factor,Deeming_Threshold)*Lower_Deeming_Rate+MAX('Case 2 - Residual Benefit'!RR3*AP_Factor-Deeming_Threshold,0)*Higher_Deeming_Rate-Income_Test_Threshold,0)),0),MAX(Full_AP-(Asset_Test_Taper*MAX('Case 2 - Residual Benefit'!RR3*AP_Factor-Asset_Test_Threshold,0)),0))/AP_Factor,0.01) -> 4986.8 | RS3: =MAX(MIN(MAX(Full_AP-(Income_Test_Taper*MAX(MIN('Case 2 - Residual Benefit'!RS3*AP_Factor,Deeming_Threshold)*Lower_Deeming_Rate+MAX('Case 2 - Residual Benefit'!RS3*AP_Factor-Deeming_Threshold,0)*Higher_Deeming_Rate-Income_Test_Threshold,0)),0),MAX(Full_AP-(Asset_Test_Taper*MAX('Case 2 - Residual Benefit'!RS3*AP_Factor-Asset_Test_Threshold,0)),0))/AP_Factor,0.01) -> 4986.8 | RT3: =MAX(MIN(MAX(Full_AP-(Income_Test_Taper*MAX(MIN('Case 2 - Residual Benefit'!RT3*AP_Factor,Deeming_Threshold)*Lower_Deeming_Rate+MAX('Case 2 - Residual Benefit'!RT3*AP_Factor-Deeming_Threshold,0)*Higher_Deeming_Rate-Income_Test_Threshold,0)),0),MAX(Full_AP-(Asset_Test_Taper*MAX('Case 2 - Residual Benefit'!RT3*AP_Factor-Asset_Test_Threshold,0)),0))/AP_Factor,0.01) -> 4986.8 | RU3: =MAX(MIN(MAX(Full_AP-(Income_Test_Taper*MAX(MIN('Case 2 - Residual Benefit'!RU3*AP_Factor,Deeming_Threshold)*Lower_Deeming_Rate+MAX('Case 2 - Residual Benefit'!RU3*AP_Factor-Deeming_Threshold,0)*Higher_Deeming_Rate-Income_Test_Threshold,0)),0),MAX(Full_AP-(Asset_Test_Taper*MAX('Case 2 - Residual Benefit'!RU3*AP_Factor-Asset_Test_Threshold,0)),0))/AP_Factor,0.01) -> 4986.8 | RV3: =MAX(MIN(MAX(Full_AP-(Income_Test_Taper*MAX(MIN('Case 2 - Residual Benefit'!RV3*AP_Factor,Deeming_Threshold)*Lower_Deeming_Rate+MAX('Case 2 - Residual Benefit'!RV3*AP_Factor-Deeming_Threshold,0)*Higher_Deeming_Rate-Income_Test_Threshold,0)),0),MAX(Full_AP-(Asset_Test_Taper*MAX('Case 2 - Residual Benefit'!RV3*AP_Factor-Asset_Test_Threshold,0)),0))/AP_Factor,0.01) -> 4986.8 | RW3: =MAX(MIN(MAX(Full_AP-(Income_Test_Taper*MAX(MIN('Case 2 - Residual Benefit'!RW3*AP_Factor,Deeming_Threshold)*Lower_Deeming_Rate+MAX('Case 2 - Residual Benefit'!RW3*AP_Factor-Deeming_Threshold,0)*Higher_Deeming_Rate-Income_Test_Threshold,0)),0),MAX(Full_AP-(Asset_Test_Taper*MAX('Case 2 - Residual Benefit'!RW3*AP_Factor-Asset_Test_Threshold,0)),0))/AP_Factor,0.01) -> 4986.8 | RX3: =MAX(MIN(MAX(Full_AP-(Income_Test_Taper*MAX(MIN('Case 2 - Residual Benefit'!RX3*AP_Factor,Deeming_Threshold)*Lower_Deeming_Rate+MAX('Case 2 - Residual Benefit'!RX3*AP_Factor-Deeming_Threshold,0)*Higher_Deeming_Rate-Income_Test_Threshold,0)),0),MAX(Full_AP-(Asset_Test_Taper*MAX('Case 2 - Residual Benefit'!RX3*AP_Factor-Asset_Test_Threshold,0)),0))/AP_Factor,0.01) -> 4986.8 | RY3: =MAX(MIN(MAX(Full_AP-(Income_Test_Taper*MAX(MIN('Case 2 - Residual Benefit'!RY3*AP_Factor,Deeming_Threshold)*Lower_Deeming_Rate+MAX('Case 2 - Residual Benefit'!RY3*AP_Factor-Deeming_Threshold,0)*Higher_Deeming_Rate-Income_Test_Threshold,0)),0),MAX(Full_AP-(Asset_Test_Taper*MAX('Case 2 - Residual Benefit'!RY3*AP_Factor-Asset_Test_Threshold,0)),0))/AP_Factor,0.01) -> 4986.8 | RZ3: =MAX(MIN(MAX(Full_AP-(Income_Test_Taper*MAX(MIN('Case 2 - Residual Benefit'!RZ3*AP_Factor,Deeming_Threshold)*Lower_Deeming_Rate+MAX('Case 2 - Residual Benefit'!RZ3*AP_Factor-Deeming_Threshold,0)*Higher_Deeming_Rate-Income_Test_Threshold,0)),0),MAX(Full_AP-(Asset_Test_Taper*MAX('Case 2 - Residual Benefit'!RZ3*AP_Factor-Asset_Test_Threshold,0)),0))/AP_Factor,0.01) -> 4986.8 | SA3: =MAX(MIN(MAX(Full_AP-(Income_Test_Taper*MAX(MIN('Case 2 - Residual Benefit'!SA3*AP_Factor,Deeming_Threshold)*Lower_Deeming_Rate+MAX('Case 2 - Residual Benefit'!SA3*AP_Factor-Deeming_Threshold,0)*Higher_Deeming_Rate-Income_Test_Threshold,0)),0),MAX(Full_AP-(Asset_Test_Taper*MAX('Case 2 - Residual Benefit'!SA3*AP_Factor-Asset_Test_Threshold,0)),0))/AP_Factor,0.01) -> 4986.8 | SB3: =MAX(MIN(MAX(Full_AP-(Income_Test_Taper*MAX(MIN('Case 2 - Residual Benefit'!SB3*AP_Factor,Deeming_Threshold)*Lower_Deeming_Rate+MAX('Case 2 - Residual Benefit'!SB3*AP_Factor-Deeming_Threshold,0)*Higher_Deeming_Rate-Income_Test_Threshold,0)),0),MAX(Full_AP-(Asset_Test_Taper*MAX('Case 2 - Residual Benefit'!SB3*AP_Factor-Asset_Test_Threshold,0)),0))/AP_Factor,0.01) -> 4986.8 | SC3: =MAX(MIN(MAX(Full_AP-(Income_Test_Taper*MAX(MIN('Case 2 - Residual Benefit'!SC3*AP_Factor,Deeming_Threshold)*Lower_Deeming_Rate+MAX('Case 2 - Residual Benefit'!SC3*AP_Factor-Deeming_Threshold,0)*Higher_Deeming_Rate-Income_Test_Threshold,0)),0),MAX(Full_AP-(Asset_Test_Taper*MAX('Case 2 - Residual Benefit'!SC3*AP_Factor-Asset_Test_Threshold,0)),0))/AP_Factor,0.01) -> 4986.8 | SD3: =MAX(MIN(MAX(Full_AP-(Income_Test_Taper*MAX(MIN('Case 2 - Residual Benefit'!SD3*AP_Factor,Deeming_Threshold)*Lower_Deeming_Rate+MAX('Case 2 - Residual Benefit'!SD3*AP_Factor-Deeming_Threshold,0)*Higher_Deeming_Rate-Income_Test_Threshold,0)),0),MAX(Full_AP-(Asset_Test_Taper*MAX('Case 2 - Residual Benefit'!SD3*AP_Factor-Asset_Test_Threshold,0)),0))/AP_Factor,0.01) -> 4986.8 | SE3: =MAX(MIN(MAX(Full_AP-(Income_Test_Taper*MAX(MIN('Case 2 - Residual Benefit'!SE3*AP_Factor,Deeming_Threshold)*Lower_Deeming_Rate+MAX('Case 2 - Residual Benefit'!SE3*AP_Factor-Deeming_Threshold,0)*Higher_Deeming_Rate-Income_Test_Threshold,0)),0),MAX(Full_AP-(Asset_Test_Taper*MAX('Case 2 - Residual Benefit'!SE3*AP_Factor-Asset_Test_Threshold,0)),0))/AP_Factor,0.01) -> 4986.8 | SF3: =MAX(MIN(MAX(Full_AP-(Income_Test_Taper*MAX(MIN('Case 2 - Residual Benefit'!SF3*AP_Factor,Deeming_Threshold)*Lower_Deeming_Rate+MAX('Case 2 - Residual Benefit'!SF3*AP_Factor-Deeming_Threshold,0)*Higher_Deeming_Rate-Income_Test_Threshold,0)),0),MAX(Full_AP-(Asset_Test_Taper*MAX('Case 2 - Residual Benefit'!SF3*AP_Factor-Asset_Test_Threshold,0)),0))/AP_Factor,0.01) -> 4986.8 | SG3: =MAX(MIN(MAX(Full_AP-(Income_Test_Taper*MAX(MIN('Case 2 - Residual Benefit'!SG3*AP_Factor,Deeming_Threshold)*Lower_Deeming_Rate+MAX('Case 2 - Residual Benefit'!SG3*AP_Factor-Deeming_Threshold,0)*Higher_Deeming_Rate-Income_Test_Threshold,0)),0),MAX(Full_AP-(Asset_Test_Taper*MAX('Case 2 - Residual Benefit'!SG3*AP_Factor-Asset_Test_Threshold,0)),0))/AP_Factor,0.01) -> 4986.8
... 4 more rows

Sheet Case 2 - Utility (hidden)
A1: Utility
B2: Expected Utility | C2: Risk-adj Measure | D2: 1 | E2: 2 | F2: 3 | G2: 4 | H2: 5 | I2: 6 | J2: 7 | K2: 8 | L2: 9 | M2: 10 | N2: 11 | O2: 12 | P2: 13 | Q2: 14 | R2: 15 | S2: 16 | T2: 17 | U2: 18 | V2: 19 | W2: 20 | X2: 21 | Y2: 22 | Z2: 23 | AA2: 24 | AB2: 25 | AC2: 26 | AD2: 27 | AE2: 28 | AF2: 29 | AG2: 30 | AH2: 31 | AI2: 32 | AJ2: 33 | AK2: 34 | AL2: 35 | AM2: 36 | AN2: 37 | AO2: 38 | AP2: 39 | AQ2: 40 | AR2: 41 | AS2: 42 | AT2: 43 | AU2: 44 | AV2: 45 | AW2: 46 | AX2: 47 | AY2: 48 | AZ2: 49 | BA2: 50 | BB2: 51 | BC2: 52 | BD2: 53 | BE2: 54 | BF2: 55 | BG2: 56 | BH2: 57 | BI2: 58 | BJ2: 59 | BK2: 60 | BL2: 61 | BM2: 62 | BN2: 63 | BO2: 64 | BP2: 65 | BQ2: 66 | BR2: 67 | BS2: 68 | BT2: 69 | BU2: 70 | BV2: 71 | BW2: 72 | BX2: 73 | BY2: 74 | BZ2: 75 | CA2: 76 | CB2: 77 | CC2: 78 | CD2: 79 | CE2: 80 | CF2: 81 | CG2: 82 | CH2: 83 | CI2: 84 | CJ2: 85 | CK2: 86 | CL2: 87 | CM2: 88 | CN2: 89 | CO2: 90 | CP2: 91 | CQ2: 92 | CR2: 93 | CS2: 94 | CT2: 95 | CU2: 96 | CV2: 97 | CW2: 98 | CX2: 99 | CY2: 100 | CZ2: 101 | DA2: 102 | DB2: 103 | DC2: 104 | DD2: 105 | DE2: 106 | DF2: 107 | DG2: 108 | DH2: 109 | DI2: 110 | DJ2: 111 | DK2: 112 | DL2: 113 | DM2: 114 | DN2: 115 | DO2: 116 | DP2: 117 | DQ2: 118 | DR2: 119 | DS2: 120 | DT2: 121 | DU2: 122 | DV2: 123 | DW2: 124 | DX2: 125 | DY2: 126 | DZ2: 127 | EA2: 128 | EB2: 129 | EC2: 130 | ED2: 131 | EE2: 132 | EF2: 133 | EG2: 134 | EH2: 135 | EI2: 136 | EJ2: 137 | EK2: 138 | EL2: 139 | EM2: 140 | EN2: 141 | EO2: 142 | EP2: 143 | EQ2: 144 | ER2: 145 | ES2: 146 | ET2: 147 | EU2: 148 | EV2: 149 | EW2: 150 | EX2: 151 | EY2: 152 | EZ2: 153 | FA2: 154 | FB2: 155 | FC2: 156 | FD2: 157 | FE2: 158 | FF2: 159 | FG2: 160 | FH2: 161 | FI2: 162 | FJ2: 163 | FK2: 164 | FL2: 165 | FM2: 166 | FN2: 167 | FO2: 168 | FP2: 169 | FQ2: 170 | FR2: 171 | FS2: 172 | FT2: 173 | FU2: 174 | FV2: 175 | FW2: 176 | FX2: 177 | FY2: 178 | FZ2: 179 | GA2: 180 | GB2: 181 | GC2: 182 | GD2: 183 | GE2: 184 | GF2: 185 | GG2: 186 | GH2: 187 | GI2: 188 | GJ2: 189 | GK2: 190 | GL2: 191 | GM2: 192 | GN2: 193 | GO2: 194 | GP2: 195 | GQ2: 196 | GR2: 197 | GS2: 198 | GT2: 199 | GU2: 200 | GV2: 201 | GW2: 202 | GX2: 203 | GY2: 204 | GZ2: 205 | HA2: 206 | HB2: 207 | HC2: 208 | HD2: 209 | HE2: 210 | HF2: 211 | HG2: 212 | HH2: 213 | HI2: 214 | HJ2: 215 | HK2: 216 | HL2: 217 | HM2: 218 | HN2: 219 | HO2: 220 | HP2: 221 | HQ2: 222 | HR2: 223 | HS2: 224 | HT2: 225 | HU2: 226 | HV2: 227 | HW2: 228 | HX2: 229 | HY2: 230 | HZ2: 231 | IA2: 232 | IB2: 233 | IC2: 234 | ID2: 235 | IE2: 236 | IF2: 237 | IG2: 238 | IH2: 239 | II2: 240 | IJ2: 241 | IK2: 242 | IL2: 243 | IM2: 244 | IN2: 245 | IO2: 246 | IP2: 247 | IQ2: 248 | IR2: 249 | IS2: 250 | IT2: 251 | IU2: 252 | IV2: 253 | IW2: 254 | IX2: 255 | IY2: 256 | IZ2: 257 | JA2: 258 | JB2: 259 | JC2: 260 | JD2: 261 | JE2: 262 | JF2: 263 | JG2: 264 | JH2: 265 | JI2: 266 | JJ2: 267 | JK2: 268 | JL2: 269 | JM2: 270 | JN2: 271 | JO2: 272 | JP2: 273 | JQ2: 274 | JR2: 275 | JS2: 276 | JT2: 277 | JU2: 278 | JV2: 279 | JW2: 280 | JX2: 281 | JY2: 282 | JZ2: 283 | KA2: 284 | KB2: 285 | KC2: 286 | KD2: 287 | KE2: 288 | KF2: 289 | KG2: 290 | KH2: 291 | KI2: 292 | KJ2: 293 | KK2: 294 | KL2: 295 | KM2: 296 | KN2: 297 | KO2: 298 | KP2: 299 | KQ2: 300 | KR2: 301 | KS2: 302 | KT2: 303 | KU2: 304 | KV2: 305 | KW2: 306 | KX2: 307 | KY2: 308 | KZ2: 309 | LA2: 310 | LB2: 311 | LC2: 312 | LD2: 313 | LE2: 314 | LF2: 315 | LG2: 316 | LH2: 317 | LI2: 318 | LJ2: 319 | LK2: 320 | LL2: 321 | LM2: 322 | LN2: 323 | LO2: 324 | LP2: 325 | LQ2: 326 | LR2: 327 | LS2: 328 | LT2: 329 | LU2: 330 | LV2: 331 | LW2: 332 | LX2: 333 | LY2: 334 | LZ2: 335 | MA2: 336 | MB2: 337 | MC2: 338 | MD2: 339 | ME2: 340 | MF2: 341 | MG2: 342 | MH2: 343 | MI2: 344 | MJ2: 345 | MK2: 346 | ML2: 347 | MM2: 348 | MN2: 349 | MO2: 350 | MP2: 351 | MQ2: 352 | MR2: 353 | MS2: 354 | MT2: 355 | MU2: 356 | MV2: 357 | MW2: 358 | MX2: 359 | MY2: 360 | MZ2: 361 | NA2: 362 | NB2: 363 | NC2: 364 | ND2: 365 | NE2: 366 | NF2: 367 | NG2: 368 | NH2: 369 | NI2: 370 | NJ2: 371 | NK2: 372 | NL2: 373 | NM2: 374 | NN2: 375 | NO2: 376 | NP2: 377 | NQ2: 378 | NR2: 379 | NS2: 380 | NT2: 381 | NU2: 382 | NV2: 383 | NW2: 384 | NX2: 385 | NY2: 386 | NZ2: 387 | OA2: 388 | OB2: 389 | OC2: 390 | OD2: 391 | OE2: 392 | OF2: 393 | OG2: 394 | OH2: 395 | OI2: 396 | OJ2: 397 | OK2: 398 | OL2: 399 | OM2: 400 | ON2: 401 | OO2: 402 | OP2: 403 | OQ2: 404 | OR2: 405 | OS2: 406 | OT2: 407 | OU2: 408 | OV2: 409 | OW2: 410 | OX2: 411 | OY2: 412 | OZ2: 413 | PA2: 414 | PB2: 415 | PC2: 416 | PD2: 417 | PE2: 418 | PF2: 419 | PG2: 420 | PH2: 421 | PI2: 422 | PJ2: 423 | PK2: 424 | PL2: 425 | PM2: 426 | PN2: 427 | PO2: 428 | PP2: 429 | PQ2: 430 | PR2: 431 | PS2: 432 | PT2: 433 | PU2: 434 | PV2: 435 | PW2: 436 | PX2: 437 | PY2: 438 | PZ2: 439 | QA2: 440 | QB2: 441 | QC2: 442 | QD2: 443 | QE2: 444 | QF2: 445 | QG2: 446 | QH2: 447 | QI2: 448 | QJ2: 449 | QK2: 450 | QL2: 451 | QM2: 452 | QN2: 453 | QO2: 454 | QP2: 455 | QQ2: 456 | QR2: 457 | QS2: 458 | QT2: 459 | QU2: 460 | QV2: 461 | QW2: 462 | QX2: 463 | QY2: 464 | QZ2: 465 | RA2: 466 | RB2: 467 | RC2: 468 | RD2: 469 | RE2: 470 | RF2: 471 | RG2: 472 | RH2: 473 | RI2: 474 | RJ2: 475 | RK2: 476 | RL2: 477 | RM2: 478 | RN2: 479 | RO2: 480 | RP2: 481 | RQ2: 482 | RR2: 483 | RS2: 484 | RT2: 485 | RU2: 486 | RV2: 487 | RW2: 488 | RX2: 489 | RY2: 490 | RZ2: 491 | SA2: 492 | SB2: 493 | SC2: 494 | SD2: 495 | SE2: 496 | SF2: 497 | SG2: 498 | SH2: 499 | SI2: 500
